Workbook

Sheet 使い方
A1: シグナビＦＯＣ（以下シグナビ、ファイル名：Signavi-FOC.xlsm）の起動方法とマクロなどの使い方・機能を説明します。
A2: なお、ここに記載されていないか説明がないシートやボタンはトレイドエイドの統合システムでのみ使うものです。
A5: １．起動
A6: （１）岡三ＲＳＳを起動し、ログインします。
A7: （２）シグナビを開きます。なお、ＲＳＳの関数はシグナビを初めて開いたときに、シグナビ利用者によって所定のマクロを起動することで適切なセルに書き込まれます。
A8: （３）ＲＳＳからの配信が始まると自動的に感知してデータの更新を行います。ブックが開いている間は四本値データのみならず、すべての配信データを監視しています。
A9: （４）ＲＳＳが接続状態で配信が始まっているにもかかわらず、四本値が更新されない場合は、ワークシート「ＲＴＣ」の「RSS 読み込み」や「５分足四本値再読み込み」ボタンをクリックしてみてください。
A10: （５）それでも動かない場合は、「数式」⇒「計算方法の設定」⇒「自動」や同じく「再計算実行」を行ってみてください。
A11: （６）以上を行ってもダメなときは、ＲＳＳの再起動、シグナビの再起動などをお試しください。
A12: （７）ＲＳＳの最終的なトラブル解決は岡三オンライン証券へ依頼してください。
A14: ２．ワークシート「Menu」
B17: ワークシート「ＲＴＣ」へ移動します。
B20: 当日のリアルタイムデータを表示するための準備をします。寄付き後でもセットアップできます。１日１回のみです。
B23: 当日のデータを保存します。大引け後に行います。１日１回のみです。
B26: 週の初めに行います。１週間に１回のみです。
B29: シグナビを終了します。
B32: 寄り前の準備を同じ日に複数回クリックした場合、ワークシート「リアルタイム更新データ」に当日レコードが複数こ作成されます。これを削除するためにクリックします。
B35: トレイドエイドのサイトから最新データベースをダウンロードします。
B38: ダウンロードしたデータベースを使ってシグナビＦＯＣを更新します。
A41: チャート更新間隔設定 | E41: シグナル発動に使用するチャートデータの更新間隔を設定します。デフォルトの値は５秒ごとになります。
A42: 更新間隔 | B42: タイマー | C42: カウンター | E42: 「更新間隔」の下２桁を１～５９の間で自由に設定できます。単位は秒です。
A43: 00:00:05 | B43: 2019-07-02T17:34:15 | C43: 3298 | E43: 「タイマー」には次回更新時刻が、「カウンター」には更新回数をＶＢＡで自動的に入力します。「カウンター」には好きな数字を入れることができます。
A45: ３．ワークシート「ＯＧＰ」
A46: オープニングギャッププレーの自動取引を行うための設定を行うためのものです。
A47: この自動取引を行うためには、いくつかの事前準備と設定が必要になります。以下の手順に従って、設定準備を行ってください。
A48: ３－１．事前準備と設定
A49: ３－１－１．自動発注システムとＲＳＳの準備
A50: ① 自動発注システムインストール | B50: Ｍｅｎｕの「自動発注システムのダウンロード」をクリックして、必要なファイルをダウンロードします。
A51: ② 自動発注システムを開く。
A52: ③ ＲＳＳを接続する。
A53: ④ ＲＳＳを注文可能状態にする。
A54: ⑤ 自動発注システムの誤発注防止ロックを解除する。
A55: ３－１－２．注文設定
A56: ① 新規建て注文と決済注文設定 | B56: ＊新規建て注文の価格、売買区分、執行条件（指値か成行）、発注する時刻を設定します。
B57: ＊決済注文の指値、数量、損切価格を設定します。
B58: ＊指値の場合は始値が決まるまでは、注文がＲＳＳ送信されませんので、８：４５：００以降に設定します。
A59: ② 自動発注システムを開く。
A71: ３．ワークシート「ＲＴＣ」
B74: ５分足チャートに表示する価格帯を拡大縮小することができます。
B76: ５分足チャートに現在の気配値を表示します。通常、寄り前に使用します。
B78: ５分足チャートにワークシート「ＦＢ監視」のセルＢ４３のＣＭＥ終値を表示します。通常、寄り前に使用します。
B80: ５分足チャートで使う売買シグナルやテクニカル指標のマーカーや線の凡例を表示しません。
B82: ５分足チャートで使う売買シグナルやテクニカル指標のマーカーや線の凡例を表示します。
B84: ＲＳＳから配信されるデータを使って、シグナビのデータを更新するマクロを稼働します。
B86: ＲＳＳから配信される四本値データをワークシート「ＲＴＣ５分足データ」のＢ４０３～Ｆ４０３以降に表示します。
B88: ワークシート「ＲＴＣ」を全画面表示します。解除するにはキーボードの「Ｅｓｃ」を押下します。
B90: ＦＢの売買シグナル発動を再現し、発動していれば再表示します。ただし、複数回発動している場合は、完全には復元できません。
B92: 日足チャートに表示する日数を変更します。最低数は２０日間です。
B94: 週足チャートに表示する週数を変更します。最低数は２０日間です。
B96: インターネットからダウンロードした際に、数式にＲＳＳのプログラムが保管されていた場所へのパスが付加されることがあるので、これを消去します。ただし、うまく消去できない場合もあるので、その場合は「岡三RSS」でブック全体を検索して、手動で余分な表示を削除する必要があります。
A104: ４．ワークシート「ＲＴＣ５分足データ」
B108: ワークシート「FB監視」のC4~D69のデータを取り込んで、５分足チャートに表示できるようにします。
B112: 当日データを表示するセルに残っている前日データをデリートします。
B116: 当日の５分足四本値をRSSから読み込んで、当日データを表示するセルに書き込みます。
B121: 当日の５分足四本値をRSSから読み込んで、DA403～DG481に書き込みます。
B126: 直近３日間の５分足四本値をRSSから読み込んで、A11～F11から書き込みます。
A129: ５．ワークシート「FB監視」
B131: C4～D69のデータを降順に並べ替えます。
B133: OGPの売買シグナル発動となる価格範囲を表示します。データはU～Z列に表示されます。手法名がU1～Z1に表示され、数字が１の場合はシグナルが発動します。
A136: ６．ワークシート「MP」
B138: 前日５分足データからマーケットプロファイルを作ります。
B140: 同じくmodeを計算して、セルを緑色にします。
B143: 同じくValueAreaを計算し、セルを黄色にします。
A146: ７．ワークシート「mado」 | B146: 一番近い窓のデータを黄色のセルに入力すると５分足チャートに表示されます。
B148: 窓上限１ | D148: 窓下限１
B149: 窓上限２ | D149: 窓下限２
B150: 窓上限３ | D150: 窓下限３
A153: ８．ワークシート「週足」
B156: 週足四本値の１つのレコードを一番上に追加します。通常は月曜日の週替わりの際に作成しておきます。
B160: 週の途中で四本値などを更新します。
B165: 当日のデータで四本値を更新します。
B169: 週足データの一番上のレコードを削除します。
B173: 日足の全データから週足ファイルを作ります。
A183: ９．ワークシート「更新数式」 | B183: ワークシート「リアルタイム更新データ」のテクニカル指標の計算をするための数式が保管されています。
A185: １０．システムメッセージ
B186: ①大引け処理時の実行時エラー１００４
B187: エクセルの設定で、インターネットなどからダウンロードしたファイルを開ける際、保護モードを使う設定になっている場合に発生する事があります。
B188: 対策としては、保護モードを使わない設定にするか、ダウンロードした後、ファイル名を変えて一旦保存し、改めて正規の名前に変更します。
B189: ②起動時のリンクの編集
B190: Sim.xlsmが「エラー:ソースが見つかりません」と言うエラーが発生しますが、このファイルはトレイドエイドの処理にのみ使うもので、リンクを設定する必要はありません。
B191: エラーはそのままにしておいても問題ありません。
DR443: 23550 | DS443: 23570 | DT443: 23550 | DU443: 23550 | DV443: 964
DR444: 23550 | DS444: 23550 | DT444: 23530 | DU444: 23540 | DV444: 406
DR445: 23540 | DS445: 23550 | DT445: 23530 | DU445: 23550 | DV445: 472
DR446: 23540 | DS446: 23550 | DT446: 23510 | DU446: 23530 | DV446: 1202
DR447: 23520 | DS447: 23570 | DT447: 23520 | DU447: 23540 | DV447: 1169
DR448: 23540 | DS448: 23540 | DT448: 23490 | DU448: 23520 | DV448: 1401
DR449: 23520 | DS449: 23530 | DT449: 23490 | DU449: 23500 | DV449: 1624
DR450: 23500 | DS450: 23540 | DT450: 23500 | DU450: 23520 | DV450: 1338
DR451: 23520 | DS451: 23520 | DT451: 23470 | DU451: 23490 | DV451: 1740
DR452: 23490 | DS452: 23510 | DT452: 23480 | DU452: 23510 | DV452: 860
DR453: 23510 | DS453: 23520 | DT453: 23490 | DU453: 23490 | DV453: 1028
DR454: 23490 | DS454: 23500 | DT454: 23480 | DU454: 23500 | DV454: 512
DR455: 23490 | DS455: 23500 | DT455: 23480 | DU455: 23500 | DV455: 546
DR456: 23500 | DS456: 23520 | DT456: 23490 | DU456: 23490 | DV456: 769
DR457: 23500 | DS457: 23530 | DT457: 23500 | DU457: 23520 | DV457: 775
DR458: 23530 | DS458: 23530 | DT458: 23500 | DU458: 23500 | DV458: 903
DR459: 23500 | DS459: 23500 | DT459: 23460 | DU459: 23470 | DV459: 1063
DR460: 23470 | DS460: 23490 | DT460: 23460 | DU460: 23480 | DV460: 476
DR461: 23480 | DS461: 23510 | DT461: 23480 | DU461: 23510 | DV461: 663
DR462: 23510 | DS462: 23510 | DT462: 23500 | DU462: 23500 | DV462: 753
DR463: 23500 | DS463: 23510 | DT463: 23490 | DU463: 23510 | DV463: 250
DR464: 23510 | DS464: 23570 | DT464: 23510 | DU464: 23530 | DV464: 1300
DR465: 23530 | DS465: 23530 | DT465: 23500 | DU465: 23500 | DV465: 1126
DR466: 23500 | DS466: 23500 | DT466: 23450 | DU466: 23460 | DV466: 1552
DR467: 23460 | DS467: 23490 | DT467: 23450 | DU467: 23490 | DV467: 1172
DR468: 23480 | DS468: 23480 | DT468: 23440 | DU468: 23450 | DV468: 2332
DR469: 23450 | DS469: 23470 | DT469: 23450 | DU469: 23460 | DV469: 756
DR470: 23460 | DS470: 23490 | DT470: 23450 | DU470: 23490 | DV470: 1211
DR471: 23490 | DS471: 23520 | DT471: 23490 | DU471: 23510 | DV471: 1113
DR472: 23510 | DS472: 23550 | DT472: 23510 | DU472: 23550 | DV472: 1430
DR473: 23540 | DS473: 23580 | DT473: 23540 | DU473: 23570 | DV473: 1228
DR474: 23580 | DS474: 23590 | DT474: 23570 | DU474: 23570 | DV474: 608
DR475: 23570 | DS475: 23600 | DT475: 23560 | DU475: 23590 | DV475: 900
DR476: 23590 | DS476: 23590 | DT476: 23580 | DU476: 23580 | DV476: 539
DR477: 23580 | DS477: 23580 | DT477: 23560 | DU477: 23560 | DV477: 535
DR478: 23560 | DS478: 23560 | DT478: 23550 | DU478: 23550 | DV478: 136
DR479: 23560 | DS479: 23560 | DT479: 23540 | DU479: 23550 | DV479: 324
DR480: 23550 | DS480: 23550 | DT480: 23530 | DU480: 23530 | DV480: 421
DR481: 23540 | DS481: 23540 | DT481: 23540 | DU481: 23540 | DV481: 208
DR482: 23540 | DS482: 23540 | DT482: 23530 | DU482: 23530 | DV482: 50
DR483: 23540 | DS483: 23540 | DT483: 23510 | DU483: 23510 | DV483: 400
DR484: 23510 | DS484: 23530 | DT484: 23500 | DU484: 23520 | DV484: 189
DR485: 23530 | DS485: 23530 | DT485: 23530 | DU485: 23530 | DV485: 134
DR486: 23540 | DS486: 23560 | DT486: 23540 | DU486: 23560 | DV486: 518
DR487: 23560 | DS487: 23560 | DT487: 23540 | DU487: 23540 | DV487: 436
DR488: 23540 | DS488: 23550 | DT488: 23510 | DU488: 23520 | DV488: 561
DR489: 23520 | DS489: 23550 | DT489: 23500 | DU489: 23500 | DV489: 784
DR490: 23500 | DS490: 23510 | DT490: 23490 | DU490: 23500 | DV490: 1004
DR491: 23510 | DS491: 23510 | DT491: 23490 | DU491: 23500 | DV491: 383
DR492: 23510 | DS492: 23510 | DT492: 23490 | DU492: 23510 | DV492: 456
DR493: 23510 | DS493: 23520 | DT493: 23500 | DU493: 23500 | DV493: 375
DR494: 23510 | DS494: 23530 | DT494: 23510 | DU494: 23520 | DV494: 448
DR495: 23520 | DS495: 23520 | DT495: 23510 | DU495: 23510 | DV495: 169
DR496: 23500 | DS496: 23510 | DT496: 23500 | DU496: 23500 | DV496: 439
DR497: 23500 | DS497: 23500 | DT497: 23490 | DU497: 23500 | DV497: 427
DR498: 23490 | DS498: 23490 | DT498: 23460 | DU498: 23460 | DV498: 585
DR499: 23470 | DS499: 23490 | DT499: 23450 | DU499: 23480 | DV499: 641
DR500: 23470 | DS500: 23510 | DT500: 23470 | DU500: 23510 | DV500: 364
DR501: 23510 | DS501: 23510 | DT501: 23490 | DU501: 23490 | DV501: 428
DR502: 23500 | DS502: 23500 | DT502: 23490 | DU502: 23490 | DV502: 221
DR503: 23490 | DS503: 23490 | DT503: 23470 | DU503: 23490 | DV503: 421
DR504: 23480 | DS504: 23490 | DT504: 23480 | DU504: 23490 | DV504: 254
DR505: 23490 | DS505: 23490 | DT505: 23460 | DU505: 23480 | DV505: 611
DR506: 23480 | DS506: 23490 | DT506: 23470 | DU506: 23490 | DV506: 262
DR507: 23490 | DS507: 23500 | DT507: 23490 | DU507: 23490 | DV507: 324
DR508: 23500 | DS508: 23510 | DT508: 23490 | DU508: 23490 | DV508: 795
DR509: 23500 | DS509: 23500 | DT509: 23490 | DU509: 23490 | DV509: 225
DR510: 23500 | DS510: 23510 | DT510: 23500 | DU510: 23500 | DV510: 354
DR511: 23510 | DS511: 23520 | DT511: 23490 | DU511: 23500 | DV511: 499
DR512: 23500 | DS512: 23500 | DT512: 23490 | DU512: 23500 | DV512: 331
DR513: 23500 | DS513: 23520 | DT513: 23500 | DU513: 23510 | DV513: 294
DR514: 23510 | DS514: 23520 | DT514: 23500 | DU514: 23510 | DV514: 744
DR515: 23510 | DS515: 23510 | DT515: 23480 | DU515: 23480 | DV515: 647
DR516: 23480 | DS516: 23480 | DT516: 23450 | DU516: 23450 | DV516: 1425
DR517: 23450 | DS517: 23500 | DT517: 23440 | DU517: 23490 | DV517: 1847
DR518: 23490 | DS518: 23520 | DT518: 23480 | DU518: 23480 | DV518: 2745
DR519: 23480 | DS519: 23490 | DT519: 23480 | DU519: 23490 | DV519: 1121
DR520: 23490 | DS520: 23490 | DT520: 23490 | DU520: 23490 | DV520: 0
DR521: 23470 | DS521: 23470 | DT521: 23470 | DU521: 23470 | DV521: 1714
DR522: 23490 | DS522: 23510 | DT522: 23490 | DU522: 23510 | DV522: 645
DR523: 23510 | DS523: 23510 | DT523: 23510 | DU523: 23510 | DV523: 107
DR524: 23500 | DS524: 23500 | DT524: 23490 | DU524: 23490 | DV524: 498
DR525: 23500 | DS525: 23510 | DT525: 23490 | DU525: 23510 | DV525: 127
DR526: 23500 | DS526: 23500 | DT526: 23490 | DU526: 23500 | DV526: 98
DR527: 23500 | DS527: 23500 | DT527: 23470 | DU527: 23470 | DV527: 487
DR528: 23470 | DS528: 23470 | DT528: 23450 | DU528: 23460 | DV528: 144
DR529: 23460 | DS529: 23460 | DT529: 23440 | DU529: 23450 | DV529: 223
DR530: 23450 | DS530: 23450 | DT530: 23430 | DU530: 23430 | DV530: 202
DR531: 23440 | DS531: 23460 | DT531: 23440 | DU531: 23440 | DV531: 305
DR532: 23440 | DS532: 23450 | DT532: 23440 | DU532: 23450 | DV532: 178
DR533: 23440 | DS533: 23450 | DT533: 23440 | DU533: 23440 | DV533: 155
DR534: 23430 | DS534: 23450 | DT534: 23430 | DU534: 23440 | DV534: 260
DR535: 23440 | DS535: 23440 | DT535: 23430 | DU535: 23430 | DV535: 89
DR536: 23440 | DS536: 23440 | DT536: 23440 | DU536: 23440 | DV536: 87
DR537: 23450 | DS537: 23450 | DT537: 23440 | DU537: 23450 | DV537: 289
DR538: 23450 | DS538: 23460 | DT538: 23450 | DU538: 23450 | DV538: 100
DR539: 23450 | DS539: 23460 | DT539: 23450 | DU539: 23450 | DV539: 98
DR540: 23460 | DS540: 23460 | DT540: 23450 | DU540: 23460 | DV540: 169
DR541: 23470 | DS541: 23470 | DT541: 23440 | DU541: 23450 | DV541: 150
DR542: 23440 | DS542: 23450 | DT542: 23440 | DU542: 23450 | DV542: 122
DR543: 23450 | DS543: 23450 | DT543: 23450 | DU543: 23450 | DV543: 133
DR544: 23440 | DS544: 23460 | DT544: 23440 | DU544: 23450 | DV544: 43
DR545: 23440 | DS545: 23450 | DT545: 23440 | DU545: 23450 | DV545: 122
DR546: 23450 | DS546: 23450 | DT546: 23450 | DU546: 23450 | DV546: 133
DR547: 23440 | DS547: 23440 | DT547: 23440 | DU547: 23440 | DV547: 1
DV548: 100
DV549: 98
DV550: 169
DV551: 150
DV552: 122
DV553: 35

Sheet Menu
G1: シグナビＦＯＣ
M2: バージョン： ２０１９年７月１７日１１：３６（正式リリース前テストバージョン）
G4: ■メインメニュー■
E5: .
C25: チャート更新間隔設定
C26: 更新間隔 | D26: タイマー | E26: カウンター
C27: 00:00:10 | D27: 43690.70582 | E27: 79722
H28: RSS利用確認 | J28: OK
G39: データベース状況 | J39: 登録件数 | L39: =COUNTA(リアルタイム更新データ!A:A)-1 -> 7255
J40: 最新データ日付 | L40: =リアルタイム更新データ!A2 -> 2019-08-13
G41: ＲＳＳ使用意思確認 | J41: OK

Sheet OGP
A1: 1 | B1: 2 | C1: 3 | D1: 4 | E1: 5 | F1: 6 | G1: 7 | H1: 8 | I1: 9 | J1: 10 | K1: 11 | L1: 12 | M1: 13 | N1: 14
A2: 自動発注システムインストール有無 | B2: 有 | D2: 日付 | E2: =FB監視!A1 -> 2019-08-13T16:56:13.400 | F2: =TEXT(E2,"aaaa") -> 火曜日 | H2: 順張り売り | I2: =FB監視!I90 -> 0 | K2: 現在値 | L2: =FB監視!B4 -> 20410
A3: 自動発注システムファイル開閉 | B3: open | D3: 現在時刻 | E3: =MOD(E2,1) -> 16:56:13.400 | H3: 逆張り売り | I3: =FB監視!I49 -> 1 | K3: 始値 | L3: =FB監視!B5 -> 20340
A4: ＲＳＳ発注可否 | B4: 可 | H4: 順張り買い | I4: =FB監視!N90 -> 0 | K4: 気配値 | L4: =FB監視!P29 -> 20400
A5: 自動発注可否 | B5: =IF(AND(B4="可",B3="open", I6 <>"",B6="Lock解除中",B7>0,E3<E6),"可","") -> 可 | H5: 逆張り買い | I5: =FB監視!N49 -> 1
A6: 発注ロック | B6: Lock解除中 | D6: 未約注文取消時刻 | E6: 20:00:00 | H6: 売買区分 | I6: =IF(I7<>"",I7,IF(AND((I2+I3)<>0,(I4+I5)=0),"売り",IF(AND((I2+I3)=0,(I4+I5)<>0),"買い",""))) -> 買い
A7: 未発注注文件数 | B7: =C14-L14 -> 3 | D7: 発注予約設定間隔 | E7: 00:00:10 | H7: 強制 シグナル | I7: 買い
A9: ＯＧＰ新規建て注文
A10: 番号 | B10: 始値±値幅 | C10: 数量 | D10: 発注時刻 | E10: 未約注文 取消時刻 | F10: 執行条件 | G10: 注文価格 | H10: 新規発注ID | I10: 注文状態 | J10: 価格条件 | K10: 発注可否 | L10: 発注履歴 | M10: 発注予定時刻 | N10: 保有状態（建玉番号）
A11: 注文① | B11: 10 | C11: =C29 -> 2 | D11: 08:45:10 | E11: =$E$6 -> 20:00:00 | F11: =IF(B11=0,"成行（FAK）","指値") -> 指値 | G11: =IF(F11="成行（FAK）",0,IF($L$3<>"",IF($I$6="売り",$L$3+B11,$L$3-B11),"")) -> 20330 | I11: =IFERROR(IF($H$11<>"",OFFSET([2]注文照会!$DL$3,MATCH($H$11,[2]注文照会!$DM$4:$DM$512,0),0),""),"該当注文なし") ->  | J11: =IF(C11<>"",IF(B11=0,"OK",IF(AND($L$3<>0,$L$3<>""),"OK","NG")),"") -> OK | K11: =IF(AND($E$3>=D11,$E$3<=E11,J11="OK",C11<>"",D11<>" ",L11="",E11<>""),"可","") -> 可 | N11: =IFERROR(IF($H$11<>"",OFFSET([2]保有!$DE$3,MATCH($H$11,[2]保有!$DL$4:$DL$512,0),0),""),"該当注文なし") -> 
A12: 注文② | B12: 15 | C12: =G29 -> 2 | D12: 08:45:20 | E12: =$E$6 -> 20:00:00 | F12: =IF(B12=0,"成行","指値") -> 指値 | G12: =IF(F12="成行（FAK）",0,IF($L$3<>"",IF($I$6="売り",$L$3+B12,$L$3-B12),"")) -> 20325 | I12: =IFERROR(IF($H$12<>"",OFFSET([2]注文照会!$DL$3,MATCH($H$12,[2]注文照会!$DM$4:$DM$512,0),0),""),"該当注文なし") ->  | J12: =IF(C12<>"",IF(B12=0,"OK",IF(AND($L$3<>0,$L$3<>""),"OK","NG")),"") -> OK | K12: =IF(AND($E$3>=D12,$E$3<=E12,J12="OK",C12<>"",D12<>" ",L12="",E12<>""),"可","") -> 可 | N12: =IFERROR(IF($H$12<>"",OFFSET([2]保有!$DE$3,MATCH($H$12,[2]保有!$DL$4:$DL$512,0),0),""),"該当注文なし") -> 
A13: 注文③ | B13: 20 | C13: =K29 -> 2 | D13: 08:45:30 | E13: 20:00:00 | F13: =IF(B13=0,"成行","指値") -> 指値 | G13: 20320 | I13: =IFERROR(IF($H$13<>"",OFFSET([2]注文照会!$DL$3,MATCH($H$13,[2]注文照会!$DM$4:$DM$512,0),0),""),"該当注文なし") ->  | J13: =IF(C13<>"",IF(B13=0,"OK",IF(AND($L$3<>0,$L$3<>""),"OK","NG")),"") -> OK | K13: 可 | N13: =IFERROR(IF($H$13<>"",OFFSET([2]保有!$DE$3,MATCH($H$13,[2]保有!$DL$4:$DL$512,0),0),""),"該当注文なし") -> 
C14: =3-COUNTBLANK(C11:C13) -> 3 | K14: =IF(OR(K11<>"",K12<>"",K13<>""),"可","") -> 可 | L14: =3-COUNTBLANK(L11:L13) -> 0 | N14: =3-COUNTBLANK(N11:N13) -> 0
A17: 決済注文① | B17: 損切値幅 | C17: 20 | E17: 決済注文② | F17: 損切値幅 | G17: 30 | I17: 決済注文③ | J17: 損切値幅 | K17: 40
A18: 利確 | B18: 利幅 | C18: 数量 | E18: 利確 | F18: 利幅 | G18: 数量 | I18: 利確 | J18: 利幅 | K18: 数量
A19: 決済注文① | B19: 10 | C19: 1 | E19: 決済注文① | F19: 40 | G19: 1 | I19: 決済注文① | J19: 90 | K19: 1
A20: 決済注文② | B20: 20 | C20: 1 | E20: 決済注文② | F20: 60 | G20: 1 | I20: 決済注文② | J20: 120 | K20: 1
A21: 決済注文③ | E21: 決済注文③ | I21: 決済注文③
A22: 決済注文④ | E22: 決済注文④ | I22: 決済注文④
A23: 決済注文⑤ | E23: 決済注文⑤ | I23: 決済注文⑤
A24: 決済注文⑥ | E24: 決済注文⑥ | I24: 決済注文⑥
A25: 決済注文⑦ | E25: 決済注文⑦ | I25: 決済注文⑦
A26: 決済注文⑧ | E26: 決済注文⑧ | I26: 決済注文⑧
A27: 決済注文⑨ | E27: 決済注文⑨ | I27: 決済注文⑨
A28: 決済注文⑩ | E28: 決済注文⑩ | I28: 決済注文⑩
A29: 合計 | B29: =10-COUNTBLANK(B19:B28) -> 2 | C29: =IF(C17<>"",SUM(C19:C28),"") -> 2 | E29: 合計 | F29: =10-COUNTBLANK(F19:F28) -> 2 | G29: =IF(G17<>"",SUM(G19:G28),"") -> 2 | I29: 合計 | J29: =10-COUNTBLANK(J19:J28) -> 2 | K29: =IF(K17<>"",SUM(K19:K28),"") -> 2
A31: 時刻指定決済注文
A32: 手仕舞時刻 | B32: 14:38:00
A33: 手仕舞時刻設定 | B33: 14:38:00

Sheet ＲＴＣ
A1: 売買シグナル強度 | B1: GUR/GDR | C1: BAG | D1: IRB | E1: 30MRBO | F1: 120MRBO | G1: ギャップ幅 | H1: OBQ | I1: WOBQ | J1: TOBQ | R1: 週足チャート | S1: 日足チャート | T1: ５分足チャート | X1: 現在位置 | Y1: 修正位置 | Z1: ナベアツ売買シグナル発動条件設定 | AC1: =[3]!FTICK("N225","0","30","現在値",Z9) -> FTICK("N225","0","30","現在値",Z9) | AD1: =[3]!FTICK("N225","0","30","約定数量",AA9) -> FTICK("N225","0","30","約定数量",AA9) | AL1: on
A2: 売り | B2: =FB監視!I49 -> 1 | C2: =FB監視!N90 -> 0 | D2: =FB監視!I75 -> 0 | E2: =L104+J124 -> 0 | F2: =L161 -> 0 | G2: =FB監視!P5 -> -1210 | H2: =MIN(IF(ＲＴＣ５分足データ!DD403:DD481>=0,ＲＴＣ５分足データ!DD403:DD481,"")) -> 0 | I2: =MIN(IF(ＲＴＣ５分足データ!DE403:DE481>=0,ＲＴＣ５分足データ!DE403:DE481,"")) -> 0 | J2: =MIN(IF(ＲＴＣ５分足データ!DF403:DF481>=0,ＲＴＣ５分足データ!DF403:DF481,"")) -> 0 | R2: 表示週数 | S2: 表示日数 | T2: 最大値 | U2: 最小値 | V2: チャート範囲自動調整 | X2: =ＲＴＣ５分足データ!DP400 -> 481 | Y2: 444 | AA2: 買い | AB2: 売り | AC2: =(O7-"9:00:00") -> 43689.625 | AD2: =HOUR(AC2) -> 15 | AE2: =MINUTE(AC2) -> 0 | AF2: =AD2*60+AE2 -> 900 | AG2: =A5/AF2 -> 46.61333333 | AL2: off
A3: 買い | B3: =FB監視!N49 -> 1 | C3: =FB監視!I90 -> 0 | D3: =FB監視!N75 -> 0 | E3: =M104+K124 -> 0 | F3: =M143 -> 0 | H3: =MIN(IF(ＲＴＣ５分足データ!DA403:DA481>=0,ＲＴＣ５分足データ!DA403:DA481,"")) -> 0 | I3: =MIN(IF(ＲＴＣ５分足データ!DB403:DB481>=0,ＲＴＣ５分足データ!DB403:DB481,"")) -> 0 | J3: =MIN(IF(ＲＴＣ５分足データ!DC403:DC481>=0,ＲＴＣ５分足データ!DC403:DC481,"")) -> 0 | R3: 20 | S3: 20 | T3: 20700 | U3: 20200 | V3: off | Z3: 連続足本数 | AA3: 4 | AB3: 4
A4: 当日出来高 | B4: 同一時間帯前日出来高 | C4: 同一時間帯出来高前日比 | D4: 今日の値幅 | E4: 直近5日間平均値幅 | F4: 高値切り上げ | G4: 安値切り下げ | H4: 高値切り上げ継続時間 | I4: 安値切り下げ継続時間 | J4: span model 並び | K4: span model ブルベア転換 | L4: 遅行スパン ブルベア転換 | M4: 5MBB幅 | N4: 5MBB幅 拡大率 | O4: 5MBB ブレイク | Z4: 転換・基準線並び | AA4: 2 | AB4: 2
A5: =SUM(ＲＴＣ５分足データ!DV403:DV481) -> 41952 | B5: 41663 | C5: 1.00693661 | D5: =FB監視!P6 -> 160 | E5: =リアルタイム更新データ!AD3 -> 123.3333333 | F5: 0 | G5: 0 | H5: 0 | I5: 0 | J5: =IF(X2<>0,OFFSET(ＲＴＣ５分足データ!CL401,MATCH($X$2,ＲＴＣ５分足データ!$DO$402:$DO$481,0),0),"") -> L | K5: =IF(X2<>0,OFFSET(ＲＴＣ５分足データ!CM401,MATCH($X$2,ＲＴＣ５分足データ!$DO$402:$DO$481,0),0),"") ->  | L5: =IF(X2<>0,OFFSET(ＲＴＣ５分足データ!CN401,MATCH($X$2,ＲＴＣ５分足データ!$DO$402:$DO$481,0),0),"") -> L | M5: =IF(X2<>0,OFFSET(ＲＴＣ５分足データ!DG401,MATCH($X$2,ＲＴＣ５分足データ!$DO$402:$DO$481,0),0),"") -> 1.700922752 | N5: =IF(X2<>0,OFFSET(ＲＴＣ５分足データ!DH401,MATCH($X$2,ＲＴＣ５分足データ!$DO$402:$DO$481,0),0),"") -> 0.9586505224 | O5: =IF(X2<>0,OFFSET(ＲＴＣ５分足データ!DI401,MATCH($X$2,ＲＴＣ５分足データ!$DO$402:$DO$481,0),0),"") -> 
M7: =TODAY() -> 2019-08-13 | O7: =M7 -> 43690 | P7: =NOW() -> 43690.70571
M8: 到達所要時間（分） | N8: 売り | O8: 気配値 | P8: 買い | Q8: 到達所要時間（分） | Z8: 約定価格 | AA8: 数量
M9: =IF($A$5>0,SUM(N9:N16)/$AG$2,0) -> 43.91447368 | N9: =FB監視!O21 -> 172 | O9: =FB監視!P21 -> 20480 | Z9: 20410 | AA9: 2
M10: =IF($A$5>0,SUM(N10:N16)/$AG$2,0) -> 40.22454233 | N10: =FB監視!O22 -> 211 | O10: =FB監視!P22 -> 20470 | Z10: 20410 | AA10: 5
M11: =IF($A$5>0,SUM(N11:N16)/$AG$2,0) -> 35.6979405 | N11: =FB監視!O23 -> 329 | O11: =FB監視!P23 -> 20460 | Z11: 20410 | AA11: 6
M12: =IF($A$5>0,SUM(N12:N16)/$AG$2,0) -> 28.63987414 | N12: =FB監視!O24 -> 418 | O12: =FB監視!P24 -> 20450 | Z12: 20410 | AA12: 1
M13: =IF($A$5>0,SUM(N13:N16)/$AG$2,0) -> 19.67248284 | N13: =FB監視!O25 -> 304 | O13: =FB監視!P25 -> 20440 | Z13: 20410 | AA13: 1
M14: =IF($A$5>0,SUM(N14:N16)/$AG$2,0) -> 13.15074371 | N14: =FB監視!O26 -> 279 | O14: =FB監視!P26 -> 20430 | Z14: 20410 | AA14: 1
M15: =IF($A$5>0,SUM(N15:N16)/$AG$2,0) -> 7.165331808 | N15: =FB監視!O27 -> 232 | O15: =FB監視!P27 -> 20420 | Z15: 20410 | AA15: 7
M16: =IF($A$5>0,SUM(N16)/$AG$2,0) -> 2.188215103 | N16: =FB監視!O28 -> 102 | O16: =FB監視!P28 -> 20410 | Z16: 20410 | AA16: 4
N17: =FB監視!O29 -> 0 | O17: =FB監視!P29 -> 20400 | P17: =FB監視!Q29 -> 271 | Q17: =IF($A$5>0,P17/$AG$2,0) -> 5.813787185 | Z17: 20410 | AA17: 8
O18: =FB監視!P30 -> 20390 | P18: =FB監視!Q30 -> 246 | Q18: =IF($A$5>0,SUM(P17:P18)/$AG$2,0) -> 11.09124714 | Z18: 20410 | AA18: 1
O19: =FB監視!P31 -> 20380 | P19: =FB監視!Q31 -> 259 | Q19: =IF($A$5>0,SUM(P17:P19)/$AG$2,0) -> 16.64759725 | Z19: 20410 | AA19: 8
O20: =FB監視!P32 -> 20370 | P20: =FB監視!Q32 -> 253 | Q20: =IF($A$5>0,SUM(P17:P20)/$AG$2,0) -> 22.07522883 | Z20: 20410 | AA20: 2
O21: =FB監視!P33 -> 20360 | P21: =FB監視!Q33 -> 225 | Q21: =IF($A$5>0,SUM(P17:P21)/$AG$2,0) -> 26.90217391 | Z21: 20410 | AA21: 1
O22: =FB監視!P34 -> 20350 | P22: =FB監視!Q34 -> 308 | Q22: =IF($A$5>0,SUM(P17:P22)/$AG$2,0) -> 33.5097254 | Z22: 20410 | AA22: 28
O23: =FB監視!P35 -> 20340 | P23: =FB監視!Q35 -> 234 | Q23: =IF($A$5>0,SUM(P17:P23)/$AG$2,0) -> 38.52974828 | Z23: 20410 | AA23: 2
O24: =FB監視!P36 -> 20330 | P24: =FB監視!Q36 -> 199 | Q24: =IF($A$5>0,SUM(P17:P24)/$AG$2,0) -> 42.79891304 | Z24: 20410 | AA24: 1
Z25: 20420 | AA25: 1
Z26: 20410 | AA26: 10
Z27: 20410 | AA27: 1
Z28: 20410 | AA28: 1
Z29: 20410 | AA29: 11
Z30: 20410 | AA30: 1
Z31: 20410 | AA31: 12
Z32: 20410 | AA32: 17
Z33: 20410 | AA33: 1
Z34: 20410 | AA34: 1
Z35: 20410 | AA35: 1
Z36: 20410 | AA36: 10
Z37: 20410 | AA37: 12
Z38: 20410 | AA38: 1
C43: フィボナッチ計算機
C44: 高値 | D44: 24450
C45: 安値 | D45: 22200
C46: -38.2% or +61.8% | D46: =D44-(D44-D45)*0.382 -> 23590.5
C47: ±50% | D47: =D44-(D44-D45)*0.5 -> 23325
C48: -61.8% or +38.2% | D48: =D44-(D44-D45)*0.618 -> 23059.5
A89: 30MRBO Ｇap-upパターン | D89: 1 | E89: 2 | F89: 3 | G89: 4 | H89: 5 | I89: 6 | J89: 7 | K89: 8 | L89: short | M89: long
A90: ギャップ値幅 | C90: =FB監視!$P$5 -> -1210 | D90: =IF(C90>=0,1,0) -> 0 | E90: =IF(C90>=0,1,0) -> 0 | F90: =IF(C90>=50,1,0) -> 0 | G90: =IF(C90>=0,1,0) -> 0 | H90: =IF(C90>=0,1,0) -> 0 | I90: =IF(C90>=0,1,0) -> 0 | J90: =IF(C90>=0,1,0) -> 0 | K90: =IF(C90>=0,1,0) -> 0
A91: 前日レンジブレイク | C91: =IF(FB監視!$P$38>FB監視!$B$9,"H",IF(FB監視!$P$38<FB監視!$B$10,"L","I")) -> L | E91: =IF(C91="H",1,0) -> 0 | F91: =IF(C91="H",1,0) -> 0 | G91: =IF(C91="I",1,0) -> 0 | H91: =IF(C91="H",1,0) -> 0 | I91: =IF(C91="I",1,0) -> 0 | J91: =IF(C91="H",1,0) -> 0 | K91: =IF(C91="H",1,0) -> 0
A92: Ｐ～ | C92: =IF(FB監視!$P$38>=FB監視!$B$15,"Y","N") -> N | D92: =IF(FB監視!B5<>"",IF(C92="Y",1,0),0) -> 0
A93: Ｂ１～Ｐ | C93: =IF(AND(FB監視!$P$38>=FB監視!$B$16,FB監視!$P$38<=FB監視!$B$15),"Y","N") -> N | E93: =IF(FB監視!B5<>"",IF(C93="Y",1,0),0) -> 0 | G93: =IF(FB監視!B5<>"",IF(C93="Y",1,0),0) -> 0
A94: Ｓ１～ＨＢＯＰ | C94: =IF(AND(FB監視!$P$38>=FB監視!$B$14,FB監視!$P$38<=FB監視!$B$12),"Y","N") -> N | E94: =IF(FB監視!B5<>"",IF(C94="Y",1,0),0) -> 0
A95: Ｐ～Ｓ２ | C95: =IF(AND(FB監視!$P$38>=FB監視!$B$15,FB監視!$P$38<=FB監視!$B$13),"Y","N") -> N | I95: =IF(FB監視!B5<>"",IF(C95="Y",1,0),0) -> 0
A96: Ｓ１～Ｓ２ | C96: =IF(AND(FB監視!$P$38>=FB監視!$B$14,FB監視!$P$38<=FB監視!$B$13),"Y","N") -> N | J96: =IF(FB監視!B5<>"",IF(C96="Y",1,0),0) -> 0
A97: ＨＢＯＰ～ | C97: =IF(FB監視!$P$38>=FB監視!$B$12,"Y","N") -> N | K97: =IF(FB監視!B5<>"",IF(C97="Y",1,0),0) -> 0
A98: 始値～５分 | C98: =IF(FB監視!$B$5<>" ",IF(ＲＴＣ５分足データ!B404<>"",ＲＴＣ５分足データ!$E$403-ＲＴＣ５分足データ!$B$403," "),"") -> -30 | D98: =IF(ＲＴＣ５分足データ!C404<>"",IF(C98<=0,1,0),0) -> 1 | E98: =IF(ＲＴＣ５分足データ!C404<>"",IF(C98>=0,1,0),0) -> 0 | F98: =IF(ＲＴＣ５分足データ!C404<>"",IF(C98>=10,1,0),0) -> 0 | G98: =IF(ＲＴＣ５分足データ!C404<>"",IF(C98>=0,1,0),0) -> 0 | H98: =IF(ＲＴＣ５分足データ!C404<>"",IF(C98<=0,1,0),0) -> 1 | I98: =IF(ＲＴＣ５分足データ!C404<>"",IF(C98<=0,1,0),0) -> 1 | J98: =IF(ＲＴＣ５分足データ!C404<>"",IF(OR(C98>=0,C99>=0,C100>=0,C101>=0),1,0),0) -> 1
A99: 始値～１０分 | C99: =IF(ＲＴＣ５分足データ!C404<>"",ＲＴＣ５分足データ!E404-ＲＴＣ５分足データ!B403,"") -> -10 | I99: =IF(ＲＴＣ５分足データ!C404<>"",IF(OR(C99>=0,C100>=0),1,0),0) -> 1 | J99: =IF(ＲＴＣ５分足データ!C404<>"",IF(OR(C98>=0,C99>=0,C100>=0,C101>=0),1,0),0) -> 1
A100: 始値～１５分 | C100: =IF(ＲＴＣ５分足データ!C405<>"",ＲＴＣ５分足データ!E405-ＲＴＣ５分足データ!B403,"") -> 40 | D100: =IF(ＲＴＣ５分足データ!C405<>"",IF(C100>=0,1,0),0) -> 1 | I100: =IF(ＲＴＣ５分足データ!C405<>"",IF(OR(C99>=0,C100>=0),1,0),0) -> 1 | J100: =IF(ＲＴＣ５分足データ!C405<>"",IF(OR(C98>=0,C99>=0,C100>=0,C101>=0),1,0),0) -> 1
A101: 始値～３０分 | C101: =IF(ＲＴＣ５分足データ!C408<>"",ＲＴＣ５分足データ!E408-ＲＴＣ５分足データ!B403,"") -> 10 | E101: =IF(ＲＴＣ５分足データ!C408<>"",IF(C101<=0,1,0),0) -> 0 | F101: =IF(ＲＴＣ５分足データ!C408<>"",IF(C101<=0,1,0),0) -> 0 | G101: =IF(ＲＴＣ５分足データ!C408<>"",IF(C101<=0,1,0),0) -> 0 | J101: =IF(ＲＴＣ５分足データ!C408<>"",IF(OR(C98>=0,C99>=0,C100>=0,C101>=0),1,0),0) -> 1
A102: 前日本体値幅 | C102: =#REF! ->  | H102: =IF(C102<=0,1,0) ->  | K102: =IF(C102>=0,1,0) -> 
A103: セットアップ | D103: =IF(SUM(D90,D92,D98,D100)=4,MAX(ＲＴＣ５分足データ!C403:C408),"") ->  | E103: =IF(SUM(E90,E91,E93,E94,E98,E101)=6,MIN(ＲＴＣ５分足データ!D403:D408),"") ->  | F103: =IF(SUM(F90,F91,F98,F101)=4,MIN(ＲＴＣ５分足データ!D403:D408),"") ->  | G103: =IF(SUM(G90,G91,G93,G98,G101)=5,MIN(ＲＴＣ５分足データ!D403:D408),"") ->  | H103: =IF(SUM(H90,H91,H98,H102)=4,MAX(ＲＴＣ５分足データ!C403:C408),"") ->  | I103: =IF(SUM(I90,I91,I95,I98,I99,I100)=6,MAX(ＲＴＣ５分足データ!C403:C408),"") ->  | J103: =IF(SUM(J90,J91,J96,J98,J99,J100,J101)=7,MAX(ＲＴＣ５分足データ!C403:C408),"") ->  | K103: =IF(SUM(K90,K91,K97,K102)=4,MAX(ＲＴＣ５分足データ!C403:C408),"") -> 
A104: シグナル | D104: =IF(AND(D103<>"",MAX(ＲＴＣ５分足データ!$C$409:$C$460)>D103),D103+10,"") ->  | E104: =IF(AND(E103<>"",MIN(ＲＴＣ５分足データ!$D$409:$D$460)<E103),E103-10,"") ->  | F104: =IF(AND(F103<>"",MIN(ＲＴＣ５分足データ!$D$409:$D$460)<F103),F103-10,"") ->  | G104: =IF(AND(G103<>"",MIN(ＲＴＣ５分足データ!$D$409:$D$460)<G103),G103-10,"") ->  | H104: =IF(AND(H103<>"",MAX(ＲＴＣ５分足データ!$C$409:$C$460)>H103),H103+10,"") ->  | I104: =IF(AND(I103<>"",MAX(ＲＴＣ５分足データ!$C$409:$C$460)>I103),I103+10,"") ->  | J104: =IF(AND(J103<>"",MAX(ＲＴＣ５分足データ!$C$409:$C$460)>J103),J103+10,"") ->  | K104: =IF(AND(K103<>"",MAX(ＲＴＣ５分足データ!$C$409:$C$460)>K103),K103+10,"") ->  | L104: =COUNTIF(E104:G104,">0") -> 0 | M104: =COUNTIF(D104,">0")+COUNTIF(H104:K104,">0") -> 0
A106: 30MRBO Ｇap-downパターン | D106: 1 | E106: 2 | F106: 3 | G106: 4 | H106: 5 | I106: 6 | J106: short | K106: long
A107: ギャップ値幅 | C107: =C90 -> -1210 | D107: =IF(C107<=0,1,0) -> 1 | E107: =IF(C107<=0,1,0) -> 1 | F107: =IF(C107<=0,1,0) -> 1 | G107: =IF(C107<=0,1,0) -> 1 | H107: =IF(C107<=-10,1,0) -> 1 | I107: =IF(C107<=-10,1,0) -> 1
A108: 前日レンジブレイク | C108: L | I108: =IF(C108="L",1,0) -> 1
A110: Ｂ１～Ｐ | C110: N | D110: =IF(FB監視!B5<>"",IF(C110="Y",1,0),0) -> 0 | E110: =IF(FB監視!B5<>"",IF(C110="Y",1,0),0) -> 0
A111: Ｓ１～ＨＢＯＰ | C111: N
A112: Ｐ～Ｓ２ | C112: N | I112: =IF(FB監視!B5<>"",IF(C112="Y",1,0),0) -> 0
A115: Ｂ２～Ｂ１ | C115: =IF(AND(FB監視!$P$38>=FB監視!$B$17,FB監視!$P$38<=FB監視!$B$16),"Y","N") -> N | F115: =IF(FB監視!B5<>"",IF(C115="Y",1,0),0) -> 0
A116: ～Ｂ２ | C116: =IF(FB監視!$P$38<=FB監視!$B$17,"Y","N") -> Y | G116: =IF(FB監視!B5<>"",IF(C116="Y",1,0),0) -> 1
A117: Ｐ～Ｓ１ | C117: =IF(AND(FB監視!$P$38>=FB監視!$B$15,FB監視!$P$38<=FB監視!$B$14),"Y","N") -> N | H117: =IF(FB監視!B5<>"",IF(C117="Y",1,0),0) -> 0
A118: 始値～５分 | C118: =C98 -> -30 | D118: =IF(ＲＴＣ５分足データ!C404<>"",IF(C118<=-20,1,0),0) -> 1 | E118: =IF(ＲＴＣ５分足データ!C404<>"",IF(C118>=0,1,0),0) -> 0 | F118: =IF(ＲＴＣ５分足データ!C404<>"",IF(C118>=0,1,0),0) -> 0 | H118: =IF(ＲＴＣ５分足データ!C404<>"",IF(C118<=0,1,0),0) -> 1 | I118: =IF(ＲＴＣ５分足データ!C404<>"",IF(C118>=0,1,0),0) -> 0
A119: 始値～１０分 | C119: =C99 -> -10 | E119: =IF(ＲＴＣ５分足データ!C404<>"",IF(C119>=0,1,0),0) -> 0 | F119: =IF(ＲＴＣ５分足データ!C404<>"",IF(C119<=0,1,0),0) -> 1 | I119: =IF(ＲＴＣ５分足データ!C404<>"",IF(C119>=0,1,0),0) -> 0
A120: 始値～１５分 | C120: =C100 -> 40 | E120: =IF(ＲＴＣ５分足データ!C405<>"",IF(C120<=0,1,0),0) -> 0 | G120: =IF(ＲＴＣ５分足データ!C405<>"",IF(C120<=-10,1,0),0) -> 0 | I120: =IF(ＲＴＣ５分足データ!C405<>"",IF(C120>=0,1,0),0) -> 1
A121: 始値～３０分 | C121: =C101 -> 10
A122: 前日本体値幅 | C122: =C102 -> 
A123: セットアップ | D123: =IF(SUM(D107,D110,D118)=3,MIN(ＲＴＣ５分足データ!D403:D408),"") ->  | E123: =IF(SUM(E107,E110,E118,E119,E120)=5,MIN(ＲＴＣ５分足データ!D403:D408),"") ->  | F123: =IF(SUM(F107,F115,F118,F119)=4,MIN(ＲＴＣ５分足データ!D403:D408),"") ->  | G123: =IF(SUM(G107,G116,G120)=6,MIN(ＲＴＣ５分足データ!D403:D408),"") ->  | H123: =IF(SUM(H107,H117,H118)=6,MIN(ＲＴＣ５分足データ!D403:D408),"") ->  | I123: =IF(SUM(I107,I108,I112,I118,I119,I120)=6,MAX(ＲＴＣ５分足データ!C403:C408),"") -> 
A124: シグナル | D124: =IF(AND(D123<>"",MIN(ＲＴＣ５分足データ!$D$409:$D$460)<D123),D123-10,"") ->  | E124: =IF(AND(E123<>"",MIN(ＲＴＣ５分足データ!$D$409:$D$460)<E123),E123-10,"") ->  | F124: =IF(AND(F123<>"",MIN(ＲＴＣ５分足データ!$D$409:$D$460)<F123),F123-10,"") ->  | G124: =IF(AND(G123<>"",MIN(ＲＴＣ５分足データ!$D$409:$D$460)<G123),G123-10,"") ->  | H124: =IF(AND(H123<>"",MIN(ＲＴＣ５分足データ!$D$409:$D$460)<H123),H123-10,"") ->  | I124: =IF(AND(I123<>"",MAX(ＲＴＣ５分足データ!$C$409:$C$460)>I123),I123+10,"") ->  | J124: =COUNTIF(D124:H124,">0") -> 0 | K124: =COUNTIF(I124,">0") -> 0
A126: 120MRBO Ｇap-upパターン | D126: 1 | E126: 2 | F126: 3 | G126: 4 | H126: 5 | I126: 6 | J126: 7 | K126: 8 | L126: short | M126: long
A127: ギャップ値幅 | C127: =FB監視!$P$5 -> -1210 | D127: =IF(C127>=0,1,0) -> 0 | E127: =IF(C127>=0,1,0) -> 0 | F127: =IF(C127>=50,1,0) -> 0 | G127: =IF(C127>=0,1,0) -> 0 | H127: =IF(C127>=0,1,0) -> 0 | I127: =IF(C127>=0,1,0) -> 0 | J127: =IF(C127>=0,1,0) -> 0 | K127: =IF(C127>=0,1,0) -> 0
A128: 前日レンジブレイク | C128: =IF(FB監視!$P$38>FB監視!$B$9,"H",IF(FB監視!$P$38<FB監視!$B$10,"L","I")) -> L | D128: =IF($C$128="I",1,0) -> 0 | E128: =IF($C$128="I",1,0) -> 0 | F128: =IF($C$128="I",1,0) -> 0 | G128: =IF($C$128="I",1,0) -> 0 | H128: =IF($C$128="H",1,0) -> 0 | I128: =IF($C$128="H",1,0) -> 0 | J128: =IF($C$128="H",1,0) -> 0 | K128: =IF($C$128="H",1,0) -> 0
A129: Ｐ～ | C129: =IF(FB監視!$P$38>=FB監視!$B$15,"Y","N") -> N | E129: =IF($C$129="Y",1,0) -> 0 | G129: =IF($C$129="Y",1,0) -> 0 | H129: =IF($C$129="Y",1,0) -> 0
A130: Ｓ２～ | C130: =IF(FB監視!$P$38>=FB監視!$B$13,"Y","N") -> N | K130: =IF($C$130="Y",1,0) -> 0
A131: 始値～５分 | C131: =C98 -> -30 | E131: =IF(ＲＴＣ５分足データ!C404<>"",IF(C131<=-10,1,0),0) -> 1
A133: 始値～１５分 | C133: =C100 -> 40 | H133: =IF(AND(ＲＴＣ５分足データ!C405<>"",C133>=0),1,0) -> 1
A134: 始値～３０分 | C134: =C101 -> 10
A135: 始値～６０分 | C135: =IF(ＲＴＣ５分足データ!C414<>"",ＲＴＣ５分足データ!E414-ＲＴＣ５分足データ!B403,"") -> 10 | F135: =IF(ＲＴＣ５分足データ!C414<>"",IF(C135>=0,1,0),0) -> 1 | H135: =IF(AND(ＲＴＣ５分足データ!C414<>"",C135>=0),1,0) -> 1
A136: 始値～９０分 | C136: =IF(ＲＴＣ５分足データ!C420<>"",ＲＴＣ５分足データ!E420-ＲＴＣ５分足データ!B403,"") -> 70 | D136: =IF(ＲＴＣ５分足データ!C420<>"",IF($C$136<=0,1,0),0) -> 0
A137: 始値～１２０分 | C137: =IF(ＲＴＣ５分足データ!C427<>"",ＲＴＣ５分足データ!E427-ＲＴＣ５分足データ!B403,"") -> 50 | D137: =IF(ＲＴＣ５分足データ!C427<>"",IF($C$137>=0,1,0),0) -> 1 | F137: =IF(ＲＴＣ５分足データ!C427<>"",IF(C137>=0,1,0),0) -> 1
A138: ＲＩＳ５日 | C138: =リアルタイム更新データ!BJ3 -> 29.26829268 | J138: =IF(C138<=70,1,0) -> 1
A139: ＲＳＩ９日 | C139: =リアルタイム更新データ!BK3 -> 72.07207207 | J139: =IF(C139<=60,1,0) -> 0
A140: 前日ギャップ値幅 | C140: =リアルタイム更新データ!AE3 -> -170 | G140: =IF(C140>=0,1,0) -> 0 | I140: =IF(C140>=0,1,0) -> 0
A141: 前日本体値幅 | C141: =C122 ->  | G141: =IF(C141<=0,1,0) ->  | I141: =IF(C141<=0,1,0) -> 
A142: セットアップ | D142: =IF(ＲＴＣ５分足データ!B427<>"",IF(SUM(D127,D128,D136,D137)=4,MAX(ＲＴＣ５分足データ!C403:C427),""),"") ->  | E142: =IF(ＲＴＣ５分足データ!B427<>"",IF(SUM(E127,E128,E129,E131)=4,MAX(ＲＴＣ５分足データ!C403:C427),""),"") ->  | F142: =IF(ＲＴＣ５分足データ!B427<>"",IF(SUM(F127,F128,F135,F137)=4,MAX(ＲＴＣ５分足データ!C403:C427),""),"") ->  | G142: =IF(ＲＴＣ５分足データ!B427<>"",IF(SUM(G127,G128,G129,G140,G141)=5,MAX(ＲＴＣ５分足データ!C403:C427),""),"") ->  | H142: =IF(ＲＴＣ５分足データ!B427<>"",IF(OR(H133=1,H135=1),IF(SUM(H127,H128,H129)=3,MAX(ＲＴＣ５分足データ!C403:C427),""),""),"") ->  | I142: =IF(ＲＴＣ５分足データ!B427<>"",IF(SUM(I127,I128,I140,I141)=4,MAX(ＲＴＣ５分足データ!C403:C427),""),"") ->  | J142: =IF(ＲＴＣ５分足データ!B427<>"",IF(OR(J138=1,J139=1),IF(SUM(J127,J128)=2,MAX(ＲＴＣ５分足データ!C403:C427),""),""),"") ->  | K142: =IF(ＲＴＣ５分足データ!B427<>"",IF(SUM(K127,K128,K130)=3,MAX(ＲＴＣ５分足データ!C403:C427),""),"") -> 
A143: シグナル | D143: =IF(AND(D142<>"",MAX(ＲＴＣ５分足データ!$C$428:$C$460)>D142),D142+10,"") ->  | E143: =IF(AND(E142<>"",MAX(ＲＴＣ５分足データ!$C$428:$C$460)>E142),E142+10,"") ->  | F143: =IF(AND(F142<>"",MAX(ＲＴＣ５分足データ!$C$428:$C$460)>F142),F142+10,"") ->  | G143: =IF(AND(G142<>"",MAX(ＲＴＣ５分足データ!$C$428:$C$460)>G142),G142+10,"") ->  | H143: =IF(AND(H142<>"",MAX(ＲＴＣ５分足データ!$C$428:$C$460)>H142),H142+10,"") ->  | I143: =IF(AND(I142<>"",MAX(ＲＴＣ５分足データ!$C$428:$C$460)>I142),I142+10,"") ->  | J143: =IF(AND(J142<>"",MAX(ＲＴＣ５分足データ!$C$428:$C$460)>J142),J142+10,"") ->  | K143: =IF(AND(K142<>"",MAX(ＲＴＣ５分足データ!$C$428:$C$460)>K142),K142+10,"") ->  | M143: =COUNTIF(D143:K143,">0") -> 0
A145: 120MRBO Ｇap-downパターン | D145: 1 | E145: 2 | F145: 3 | G145: 4 | H145: 5 | I145: 6 | J145: 7 | K145: 8
A146: ギャップ値幅 | C146: =C127 -> -1210 | D146: =IF(C146<=0,1,0) -> 1 | E146: =IF(C146<=0,1,0) -> 1 | F146: =IF(C146<=0,1,0) -> 1 | G146: =IF(C146<=0,1,0) -> 1 | H146: =IF(C146<=-10,1,0) -> 1 | I146: =IF(D146<=-10,1,0) -> 0 | J146: =IF(E146<=-10,1,0) -> 0 | K146: =IF(F146<=-10,1,0) -> 0
A147: 前日レンジブレイク | C147: =C128 -> L | D147: =IF($C$128="I",1,0) -> 0 | E147: =IF($C$128="I",1,0) -> 0 | F147: =IF($C$128="I",1,0) -> 0 | G147: =IF($C$128="I",1,0) -> 0 | H147: =IF($C$128="L",1,0) -> 1 | I147: =IF($C$128="L",1,0) -> 1 | J147: =IF($C$128="L",1,0) -> 1 | K147: =IF($C$128="L",1,0) -> 1
A148: ～Ｐ | C148: =IF(FB監視!$P$38<=FB監視!$B$15,"Y","N") -> Y | H148: =IF(FB監視!$B$5<>"",IF($C$148="Y",1,0),0) -> 1
A149: Ｂ１～Ｐ | C149: =C110 -> N | D149: =IF(FB監視!$B$5<>"",IF(C149="Y",1,0),0) -> 0
A150: Ｂ１～Ｓ１ | C150: =IF(AND(FB監視!$P$38<=FB監視!$B$14,FB監視!$P$38>=FB監視!$B16),"Y","N") -> N | E150: =IF(FB監視!$B$5<>"",IF(C150="Y",1,0),0) -> 0 | F150: =IF(FB監視!$B$5<>"",IF($C$150="Y",1,0),0) -> 0 | G150: =IF(FB監視!$B$5<>"",IF($C$150="Y",1,0),0) -> 0
A151: ＬＢＯＰ～Ｂ１ | C151: =IF(AND(FB監視!$P$38<=FB監視!$B$16,FB監視!$P$38>=FB監視!$B18),"Y","N") -> N | I151: =IF(FB監視!$B$5<>"",IF($C$151="Y",1,0),0) -> 0 | K151: =IF(FB監視!$B$5<>"",IF($C$151="Y",1,0),0) -> 0
A152: ＬＢＯＰ～Ｐ | C152: =IF(AND(FB監視!$P$38<=FB監視!$B$15,FB監視!$P$38>=FB監視!$B18),"Y","N") -> N | J152: =IF(FB監視!$B$5<>"",IF($C$152="Y",1,0),0) -> 0
A153: 始値～５分 | C153: =C136 -> 70 | H153: =IF(ＲＴＣ５分足データ!C404<>"",IF(C153<=0,1,0),0) -> 0
A154: 始値～３０分 | C154: =C137 -> 50 | H154: =IF(ＲＴＣ５分足データ!C408<>"",IF(C154>=0,1,0),0) -> 1
A155: 始値～６０分 | C155: =C138 -> 29.26829268 | D155: =IF(ＲＴＣ５分足データ!C414<>"",IF($C$155<=0,1,0),0) -> 0
A156: 始値～９０分 | C156: =C139 -> 72.07207207 | K156: =IF(ＲＴＣ５分足データ!C420<>"",IF($C$156>=0,1,0),0) -> 1
A157: 前日本体値幅 | C157: =C141 ->  | E157: =IF(C157<=0,1,0) -> 
A158: ＲＩＳ５日 | C158: =C138 -> 29.26829268 | F158: =IF(AND(C158>=0,C158<=40),1,IF(AND(C158>=50,C158<=70),1,0)) -> 1 | I158: =IF(AND(C158>=0,C158<=30),1,IF(AND(C158>=60,C158<=70),1,IF(AND(C158>=80,C158<=100),1,0))) -> 1
A159: ＲＳＩ９日 | C159: =C139 -> 72.07207207 | G159: =IF(AND(C159>=0,C159<=30),1,IF(AND(C159>=40,C159<=50),1,IF(AND(C159>=60,C159<=70),1,0))) -> 0 | J159: =IF(AND(C159>=0,C159<=40),1,0) -> 0
A160: セットアップ | D160: =IF(ＲＴＣ５分足データ!$B$427<>"",IF(SUM(D146,D147,,D155,D149)=4,MIN(ＲＴＣ５分足データ!$D$403:$D$414),""),"") ->  | E160: =IF(ＲＴＣ５分足データ!$B$427<>"",IF(SUM(E146,E147,E150,E157)=4,MIN(ＲＴＣ５分足データ!$D$403:$D$427),""),"") ->  | F160: =IF(ＲＴＣ５分足データ!$B$427<>"",IF(SUM(F146,F147,F150,F158)=4,MIN(ＲＴＣ５分足データ!$D$403:$D$427),""),"") ->  | G160: =IF(ＲＴＣ５分足データ!$B$427<>"",IF(SUM(G146,G147,G150,G159)=4,MIN(ＲＴＣ５分足データ!$D$403:$D$427),""),"") ->  | H160: =IF(ＲＴＣ５分足データ!$B$427<>"",IF(SUM(H146,H147,H148,H153,H154)=5,MIN(ＲＴＣ５分足データ!$D$403:$D$427),""),"") ->  | I160: =IF(ＲＴＣ５分足データ!$B$427<>"",IF(SUM(I146,I147,I151,I158)=4,MIN(ＲＴＣ５分足データ!$D$403:$D$427),""),"") ->  | J160: =IF(ＲＴＣ５分足データ!$B$427<>"",IF(SUM(J146,J147,J152,J159)=4,MIN(ＲＴＣ５分足データ!$D$403:$D$427),""),"") ->  | K160: =IF(ＲＴＣ５分足データ!$B$427<>"",IF(SUM(K146,K147,K151,K156)=4,MIN(ＲＴＣ５分足データ!$D$403:$D$427),""),"") -> 
A161: シグナル | D161: =IF(AND(D160<>"",MIN(ＲＴＣ５分足データ!$D$428:$D$460)<D160),D160-10,"") ->  | E161: =IF(AND(E160<>"",MIN(ＲＴＣ５分足データ!$D$428:$D$460)<E160),E160-10,"") ->  | F161: =IF(AND(F160<>"",MIN(ＲＴＣ５分足データ!$D$428:$D$460)<F160),F160-10,"") ->  | G161: =IF(AND(G160<>"",MIN(ＲＴＣ５分足データ!$D$428:$D$460)<G160),G160-10,"") ->  | H161: =IF(AND(H160<>"",MIN(ＲＴＣ５分足データ!$D$428:$D$460)<H160),H160-10,"") ->  | I161: =IF(AND(I160<>"",MIN(ＲＴＣ５分足データ!$D$428:$D$460)<I160),I160-10,"") ->  | J161: =IF(AND(J160<>"",MIN(ＲＴＣ５分足データ!$D$428:$D$460)<J160),J160-10,"") ->  | K161: =IF(AND(K160<>"",MIN(ＲＴＣ５分足データ!$D$428:$D$460)<K160),K160-10,"") ->  | L161: =COUNTIF(D161:K161,">0") -> 0

Sheet ＲＴＣ５分足データ
H1: =FB監視!P40 -> 14:08:27 | I1: =FLOOR(H1,J1) -> 14:05:00 | J1: 00:05:00 | K1: =I1/J1+298 -> 467 | L1: 9430 | M1: 460 | N1: 15:10:00 | DO1: 119 | DR1: 122 | DS1: 123 | DT1: 124 | DU1: 125 | DV1: 126 | DW1: 127 | DX1: 128 | DY1: 129 | DZ1: 130 | EA1: 131 | EB1: 132 | EC1: 133 | ED1: 134 | EE1: 135 | EF1: 136
A2: 現在値 | B2: =FB監視!B4 -> 20410 | C2: =IFERROR([3]!FBOARD("N225","0","気配値6"),0) -> 20400 | Q2: 買い | R2: 売り
P3: 連続足本数 | Q3: =ＲＴＣ!AA3 -> 4 | R3: =ＲＴＣ!AB3 -> 4 | S3: ON
A4: 四本値更新 | B4: ON | P4: 転換・基準線並び | Q4: =ＲＴＣ!AA4 -> 2 | R4: =ＲＴＣ!AB4 -> 2 | S4: OFF
A5: 前回当日出来高 | B5: 41952
A6: 当日出来高 | B6: =ＲＴＣ!A5 -> 41952 | AP6: =MAX(AP403:AP460) -> 0 | AQ6: =MIN(AQ403:AQ460) -> 0
A7: 当日値幅 | B7: =FB監視!P6 -> 160
A8: 前回当日値幅 | B8: 180
F9: =SUM(F211:F288) -> 20354 | BV9: 日足 | CD9: 週足
A10: 時刻 | B10: 始値 | C10: 高値 | D10: 安値 | E10: 終値 | F10: 出来高 | H10: ２１本線 | I10: 青スパン | J10: 赤スパン | K10: ＋１シグマ | L10: ＋２シグマ | M10: -１シグマ | N10: -２シグマ | O10: 前日高値 | P10: 前日安値 | Q10: ＨＢＯＰ | R10: Ｓ２ | S10: Ｓ１ | T10: Ｐ | U10: B1 | V10: B2 | W10: LBOP | X10: ５日ＭＡ | Y10: ５日高値 | Z10: ２０日高値 | AA10: ４０日高値 | AB10: ５日安値 | AC10: ２０日安値 | AD10: ４０日安値 | AE10: 日足転換線 | AF10: 日足基準線 | AG10: 先行スパン１ | AH10: 先行スパン２ | AI10: ２５日ＭＡ | AJ10: 陽線 | AK10: 陰線 | AL10: ナベ買い | AM10: ナベ売り | AN10: 転基bull | AO10: 転基bear | AP10: ＦＢ売り | AQ10: ＦＢ買い | AT10: 75日ＭＡ | AU10: 100日ＭＡ | AV10: 200日ＭＡ | AW10: GUR | AX10: GDR | AY10: IRMax | AZ10: IRMin | BA10: IRBL | BB10: IRBS | BC10: 窓上限１ | BD10: 窓上限２ | BE10: 窓上限３ | BF10: 窓下限１ | BG10: 窓下限２ | BH10: 窓下限３ | BI10: 前日ＶＡ上限 | BJ10: 前日ＶＡ下限 | BK10: 前日Ｍｏｄｅ | BL10: Target-L | BM10: Target-S | BN10: レンジ上限 | BO10: レンジ下限 | BP10: 陽線孕み足数 | BQ10: 陰線孕み足数 | BR10: FB監視チェック | BS10: 陽線孕み足数2 | BT10: 陰線孕み足数2 | BU10: 孕みレンジ陰陽 | BV10: 日足＋２σ | BW10: 日足＋１σ | BX10: 日足－１σ | BY10: 日足－２σ | BZ10: SQ値 | CA10: ＯＰ価格１ | CB10: ＯＰ価格２ | CC10: ＯＰ価格３ | CD10: 週足転換線 | CE10: 週足基準線 | CF10: 週足先行スパン１ | CG10: 週足先行スパン２ | CH10: １３週ＭＡ | CI10: ２６週ＭＡ | CJ10: ５２週ＭＡ | CK10: ５分足遅行スパン | CL10: span model 並び | CM10: span modelブルベア転換 | CN10: 遅行スパンブルベア転換 | DG10: 5MBB幅 | DH10: 5MBB幅拡大率 | DI10: 5MBBブレイク | EJ10: BGU | EK10: BGD | EL10: 30RMax | EM10: 30RMin | EN10: 30RBL | EO10: 30RBS | EP10: 120RMax | EQ10: 120RMin | ER10: 120RBL | ES10: 120RBS | ET10: 出来高前日比 | EU10: 30RBL | EV10: 30RBS | EW10: 120RBL | EX10: 120RBS | EY10: IRBL | EZ10: IRBS | FA10: 高値切り上げ継続時間 | FB10: 安値切り下げ継続時間 | FC10: 高値切り上げ回数 | FD10: 安値切り下げ回数 | FI10: 直近３０分高値 | FJ10: 直近３０分安値
A11: =[3]!FCANDLE("N225", "0", "5", "2", "約定時刻", A167, "A", "0") ->  | B11: =[3]!FCANDLE("N225", "0", "5", "2", "始値", B167, "A", "0") -> FCANDLE("N225", "0", "5", "2", "始値", B167, "A", "0") | C11: =[3]!FCANDLE("N225", "0", "5", "2", "高値", C167, "A", "0") -> FCANDLE("N225", "0", "5", "2", "高値", C167, "A", "0") | D11: =[3]!FCANDLE("N225", "0", "5", "2", "安値", D167, "A", "0") -> FCANDLE("N225", "0", "5", "2", "安値", D167, "A", "0") | E11: =[3]!FCANDLE("N225", "0", "5", "2", "終値", E167, "A", "0") -> FCANDLE("N225", "0", "5", "2", "終値", E167, "A", "0") | F11: =[3]!FCANDLE("N225", "0", "5", "2", "出来高", F167, "A", "0") -> FCANDLE("N225", "0", "5", "2", "出来高", F167, "A", "0") | Z11: 22270 | AA11: 2
Z12: 22270 | AA12: 3
Z13: 22270 | AA13: 2
Z14: 22270 | AA14: 1
Z15: 22270 | AA15: 1
Z16: 22270 | AA16: 1
Z17: 22270 | AA17: 3
Z18: 22270 | AA18: 2
Z19: 22270 | AA19: 1
Z20: 22270 | AA20: 4
Z21: 22270 | AA21: 1
Z22: 22270 | AA22: 1
Z23: 22270 | AA23: 2
Z24: 22270 | AA24: 1
Z25: 22270 | AA25: 4
Z26: 22270 | AA26: 1
Z27: 22270 | AA27: 1
Z28: 22270 | AA28: 1
Z29: 22270 | AA29: 1
Z30: 22270 | AA30: 1
Z31: 22270 | AA31: 2
Z32: 22270 | AA32: 6
Z33: 22270 | AA33: 25
Z34: 22270 | AA34: 3
I35: =IF(D10<>"",((MIN(D27:D35)+MAX(C27:C35))/2+(MIN(D10:D35)+MAX(C10:C35))/2)/2,I34) -> 0 | Z35: 22270 | AA35: 3
I36: 0 | Z36: 22270 | AA36: 4
I37: 0 | Z37: 22270 | AA37: 6
I38: 0 | Z38: 22270 | AA38: 2
I39: 0
I40: 0
I41: 0
I42: 0
I43: 0
I44: 0
I45: 0
I46: 0
I47: 0
I48: 0
I49: 0
I50: 0
I51: 0
I52: 0
I53: 0
I54: 0
I55: 0
I56: 0
I57: 0
I58: 0
I59: 0
I60: 0
I61: 0
I62: 0 | J62: =IF(D37<>"",(MIN(D11:D62)+MAX(C11:C62))/2,J61) -> 0
I63: 0 | J63: =IF(D38<>"",(MIN(D12:D63)+MAX(C12:C63))/2,J62) -> 0
I64: 0 | J64: 0
I65: 0 | J65: 0
I66: 0 | J66: 0
I67: 0 | J67: 0
I68: 0 | J68: 0
I69: 0 | J69: 0
I70: 0 | J70: 0
I71: 0 | J71: 0
I72: 0 | J72: 0
I73: 0 | J73: 0
I74: 0 | J74: 0
I75: 0 | J75: 0
I76: 0 | J76: 0
I77: 0 | J77: 0
I78: 0 | J78: 0
I79: 0 | J79: 0
I80: 0 | J80: 0
I81: 0 | J81: 0
I82: 0 | J82: 0
I83: 0 | J83: 0
I84: 0 | J84: 0
I85: 0 | J85: 0
I86: 0 | J86: 0
I87: 0 | J87: 0
I88: 0 | J88: 0
I89: 0 | J89: 0
I90: 0 | J90: 0
I91: 0 | J91: 0
I92: 0 | J92: 0
I93: 0 | J93: 0
I94: 0 | J94: 0
I95: 0 | J95: 0
I96: 0 | J96: 0
I97: 0 | J97: 0
I98: 0 | J98: 0
I99: =IF(D74<>"",((MIN(D91:D99)+MAX(C91:C99))/2+(MIN(D74:D99)+MAX(C74:C99))/2)/2,I98) -> 0 | J99: 0
I100: 0 | J100: 0
I101: 0 | J101: 0
I102: 0 | J102: 0
I103: 0 | J103: 0
I104: 0 | J104: 0
I105: 0 | J105: 0
I106: 0 | J106: 0
I107: 0 | J107: 0
I108: 0 | J108: 0
I109: 0 | J109: 0
H110: =IF(E110<>"",AVERAGE(E90:E110),H109) -> 0 | I110: 0 | J110: 0 | K110: =IF(B110<>"",$H110+STDEVP(E90:E110),K109) -> 0 | L110: =IF(B110<>"",$H110+2*STDEVP(E90:E110),L109) -> 0 | M110: =IF(B110<>"",$H110-STDEVP(E90:E110),M109) -> 0 | N110: =IF(B110<>"",$H110-2*STDEVP(E90:E110),N109) -> 0
H111: 0 | I111: 0 | J111: 0 | K111: 0 | L111: 0 | M111: 0 | N111: 0
H112: 0 | I112: 0 | J112: 0 | K112: 0 | L112: 0 | M112: 0 | N112: 0
H113: 0 | I113: 0 | J113: 0 | K113: 0 | L113: 0 | M113: 0 | N113: 0
H114: 0 | I114: 0 | J114: 0 | K114: 0 | L114: 0 | M114: 0 | N114: 0
H115: 0 | I115: 0 | J115: 0 | K115: 0 | L115: 0 | M115: 0 | N115: 0
H116: 0 | I116: 0 | J116: 0 | K116: 0 | L116: 0 | M116: 0 | N116: 0
H117: 0 | I117: 0 | J117: 0 | K117: 0 | L117: 0 | M117: 0 | N117: 0
H118: 0 | I118: 0 | J118: 0 | K118: 0 | L118: 0 | M118: 0 | N118: 0
H119: 0 | I119: 0 | J119: 0 | K119: 0 | L119: 0 | M119: 0 | N119: 0
H120: 0 | I120: 0 | J120: 0 | K120: 0 | L120: 0 | M120: 0 | N120: 0
H121: 0 | I121: 0 | J121: 0 | K121: 0 | L121: 0 | M121: 0 | N121: 0
H122: 0 | I122: 0 | J122: 0 | K122: 0 | L122: 0 | M122: 0 | N122: 0
H123: 0 | I123: 0 | J123: 0 | K123: 0 | L123: 0 | M123: 0 | N123: 0
H124: 0 | I124: 0 | J124: 0 | K124: 0 | L124: 0 | M124: 0 | N124: 0
H125: 0 | I125: 0 | J125: 0 | K125: 0 | L125: 0 | M125: 0 | N125: 0
H126: 0 | I126: 0 | J126: 0 | K126: 0 | L126: 0 | M126: 0 | N126: 0
H127: 0 | I127: 0 | J127: =IF(D102<>"",(MIN(D76:D127)+MAX(C76:C127))/2,J126) -> 0 | K127: 0 | L127: 0 | M127: 0 | N127: 0
H128: 0 | I128: 0 | J128: 0 | K128: 0 | L128: 0 | M128: 0 | N128: 0
H129: 0 | I129: 0 | J129: 0 | K129: 0 | L129: 0 | M129: 0 | N129: 0
H130: 0 | I130: 0 | J130: 0 | K130: 0 | L130: 0 | M130: 0 | N130: 0
H131: 0 | I131: 0 | J131: 0 | K131: 0 | L131: 0 | M131: 0 | N131: 0
H132: 0 | I132: 0 | J132: 0 | K132: 0 | L132: 0 | M132: 0 | N132: 0
H133: 0 | I133: 0 | J133: 0 | K133: 0 | L133: 0 | M133: 0 | N133: 0
H134: 0 | I134: 0 | J134: 0 | K134: 0 | L134: 0 | M134: 0 | N134: 0
H135: 0 | I135: 0 | J135: 0 | K135: 0 | L135: 0 | M135: 0 | N135: 0
H136: 0 | I136: 0 | J136: 0 | K136: 0 | L136: 0 | M136: 0 | N136: 0
H137: 0 | I137: 0 | J137: 0 | K137: 0 | L137: 0 | M137: 0 | N137: 0
H138: 0 | I138: 0 | J138: 0 | K138: 0 | L138: 0 | M138: 0 | N138: 0
H139: 0 | I139: 0 | J139: 0 | K139: 0 | L139: 0 | M139: 0 | N139: 0
H140: 0 | I140: 0 | J140: 0 | K140: 0 | L140: 0 | M140: 0 | N140: 0
H141: 0 | I141: 0 | J141: 0 | K141: 0 | L141: 0 | M141: 0 | N141: 0
H142: 0 | I142: 0 | J142: 0 | K142: 0 | L142: 0 | M142: 0 | N142: 0
H143: 0 | I143: 0 | J143: 0 | K143: 0 | L143: 0 | M143: 0 | N143: 0
H144: 0 | I144: 0 | J144: 0 | K144: 0 | L144: 0 | M144: 0 | N144: 0
H145: 0 | I145: 0 | J145: 0 | K145: 0 | L145: 0 | M145: 0 | N145: 0
H146: 0 | I146: 0 | J146: 0 | K146: 0 | L146: 0 | M146: 0 | N146: 0
H147: 0 | I147: 0 | J147: 0 | K147: 0 | L147: 0 | M147: 0 | N147: 0
H148: 0 | I148: 0 | J148: 0 | K148: 0 | L148: 0 | M148: 0 | N148: 0
H149: 0 | I149: 0 | J149: 0 | K149: 0 | L149: 0 | M149: 0 | N149: 0
H150: 0 | I150: 0 | J150: 0 | K150: 0 | L150: 0 | M150: 0 | N150: 0
H151: 0 | I151: 0 | J151: 0 | K151: 0 | L151: 0 | M151: 0 | N151: 0
H152: 0 | I152: 0 | J152: 0 | K152: 0 | L152: 0 | M152: 0 | N152: 0
H153: 0 | I153: 0 | J153: 0 | K153: 0 | L153: 0 | M153: 0 | N153: 0
H154: 0 | I154: 0 | J154: 0 | K154: 0 | L154: 0 | M154: 0 | N154: 0
H155: 0 | I155: 0 | J155: 0 | K155: 0 | L155: 0 | M155: 0 | N155: 0
H156: 0 | I156: 0 | J156: 0 | K156: 0 | L156: 0 | M156: 0 | N156: 0
H157: 0 | I157: 0 | J157: 0 | K157: 0 | L157: 0 | M157: 0 | N157: 0
H158: 0 | I158: 0 | J158: 0 | K158: 0 | L158: 0 | M158: 0 | N158: 0
H159: 0 | I159: 0 | J159: 0 | K159: 0 | L159: 0 | M159: 0 | N159: 0
H160: 0 | I160: 0 | J160: 0 | K160: 0 | L160: 0 | M160: 0 | N160: 0
H161: 0 | I161: 0 | J161: 0 | K161: 0 | L161: 0 | M161: 0 | N161: 0
H162: 0 | I162: 0 | J162: 0 | K162: 0 | L162: 0 | M162: 0 | N162: 0
H163: 0 | I163: =IF(D138<>"",((MIN(D155:D163)+MAX(C155:C163))/2+(MIN(D138:D163)+MAX(C138:C163))/2)/2,I162) -> 0 | J163: 0 | K163: 0 | L163: 0 | M163: 0 | N163: 0
H164: 0 | I164: 0 | J164: 0 | K164: 0 | L164: 0 | M164: 0 | N164: 0
H165: 0 | I165: 0 | J165: 0 | K165: 0 | L165: 0 | M165: 0 | N165: 0
H166: 0 | I166: 0 | J166: 0 | K166: 0 | L166: 0 | M166: 0 | N166: 0
A167: 08:45:00 | B167: 20690 | C167: 20720 | D167: 20680 | E167: 20710 | F167: 1156 | H167: 20710 | I167: 0 | J167: 0 | K167: 20710 | L167: 20710 | M167: 20710 | N167: 20710
A168: 08:50:00 | B168: 20710 | C168: 20720 | D168: 20700 | E168: 20710 | F168: 585 | H168: 20710 | I168: 0 | J168: 0 | K168: 20710 | L168: 20710 | M168: 20710 | N168: 20710
A169: 08:55:00 | B169: 20720 | C169: 20740 | D169: 20710 | E169: 20740 | F169: 1312 | H169: 20720 | I169: 0 | J169: 0 | K169: 20734.14214 | L169: 20748.28427 | M169: 20705.85786 | N169: 20691.71573
A170: 09:00:00 | B170: 20740 | C170: 20760 | D170: 20720 | E170: 20720 | F170: 3689 | H170: 20720 | I170: 0 | J170: 0 | K170: 20732.24745 | L170: 20744.4949 | M170: 20707.75255 | N170: 20695.5051
A171: 09:05:00 | B171: 20710 | C171: 20720 | D171: 20700 | E171: 20710 | F171: 1148 | H171: 20718 | I171: 0 | J171: 0 | K171: 20729.6619 | L171: 20741.32381 | M171: 20706.3381 | N171: 20694.67619
A172: 09:10:00 | B172: 20710 | C172: 20750 | D172: 20710 | E172: 20740 | F172: 1143 | H172: 20721.66667 | I172: 0 | J172: 0 | K172: 20735.10376 | L172: 20748.54086 | M172: 20708.22957 | N172: 20694.79247
A173: 09:15:00 | B173: 20740 | C173: 20750 | D173: 20730 | E173: 20740 | F173: 575 | H173: 20724.28571 | I173: 0 | J173: 0 | K173: 20738.2828 | L173: 20752.27988 | M173: 20710.28863 | N173: 20696.29155
A174: 09:20:00 | B174: 20740 | C174: 20740 | D174: 20700 | E174: 20720 | F174: 642 | H174: =IF(E174<>"",AVERAGE(E154:E174),H173) -> 20723.75 | I174: 0 | J174: 0 | K174: =IF(B174<>"",$H174+STDEVP(E154:E174),K173) -> 20736.91957 | L174: =IF(B174<>"",$H174+2*STDEVP(E154:E174),L173) -> 20750.08913 | M174: =IF(B174<>"",$H174-STDEVP(E154:E174),M173) -> 20710.58043 | N174: =IF(B174<>"",$H174-2*STDEVP(E154:E174),N173) -> 20697.41087
A175: 09:25:00 | B175: 20720 | C175: 20730 | D175: 20690 | E175: 20710 | F175: 934 | H175: 20722.22222 | I175: 0 | J175: 0 | K175: 20735.36907 | L175: 20748.51591 | M175: 20709.07538 | N175: 20695.92853
A176: 09:30:00 | B176: 20710 | C176: 20710 | D176: 20690 | E176: 20690 | F176: 551 | H176: 20719 | I176: 0 | J176: 0 | K176: 20734.77973 | L176: 20750.55947 | M176: 20703.22027 | N176: 20687.44053
A177: 09:35:00 | B177: 20700 | C177: 20710 | D177: 20680 | E177: 20690 | F177: 596 | H177: 20716.36364 | I177: 0 | J177: 0 | K177: 20733.56444 | L177: 20750.76525 | M177: 20699.16283 | N177: 20681.96202
A178: 09:40:00 | B178: 20680 | C178: 20690 | D178: 20670 | E178: 20690 | F178: 393 | H178: 20714.16667 | I178: 0 | J178: 0 | K178: 20732.17515 | L178: 20750.18364 | M178: 20696.15818 | N178: 20678.1497
A179: 09:45:00 | B179: 20680 | C179: 20690 | D179: 20670 | E179: 20670 | F179: 203 | H179: 20710.76923 | I179: 0 | J179: 0 | K179: 20731.69457 | L179: 20752.61991 | M179: 20689.84389 | N179: 20668.91855
A180: 09:50:00 | B180: 20670 | C180: 20680 | D180: 20660 | E180: 20670 | F180: 1318 | H180: 20707.85714 | I180: 0 | J180: 0 | K180: 20730.59119 | L180: 20753.32523 | M180: 20685.1231 | N180: 20662.38906
A181: 09:55:00 | B181: 20680 | C181: 20680 | D181: 20670 | E181: 20670 | F181: 485 | H181: 20705.33333 | I181: 0 | J181: 0 | K181: 20729.24056 | L181: 20753.14779 | M181: 20681.42611 | N181: 20657.51888
A182: 10:00:00 | B182: 20660 | C182: 20680 | D182: 20660 | E182: 20660 | F182: 958 | H182: 20702.5 | I182: 0 | J182: 0 | K182: 20728.11738 | L182: 20753.73475 | M182: 20676.88262 | N182: 20651.26525
A183: 10:05:00 | B183: 20660 | C183: 20690 | D183: 20660 | E183: 20680 | F183: 561 | H183: 20701.17647 | I183: 0 | J183: 0 | K183: 20726.5866 | L183: 20751.99673 | M183: 20675.76634 | N183: 20650.35621
A184: 10:10:00 | B184: 20690 | C184: 20710 | D184: 20690 | E184: 20690 | F184: 452 | H184: 20700.55556 | I184: 0 | J184: 0 | K184: 20725.38211 | L184: 20750.20867 | M184: 20675.729 | N184: 20650.90244
A185: 10:15:00 | B185: 20690 | C185: 20710 | D185: 20670 | E185: 20690 | F185: 838 | H185: 20700 | I185: 0 | J185: 0 | K185: 20724.27908 | L185: 20748.55816 | M185: 20675.72092 | N185: 20651.44184
A186: 10:20:00 | B186: 20690 | C186: 20690 | D186: 20670 | E186: 20680 | F186: 500 | H186: 20699 | I186: 0 | J186: 0 | K186: 20723.06242 | L186: 20747.12484 | M186: 20674.93758 | N186: 20650.87516
A187: 10:25:00 | B187: 20680 | C187: 20690 | D187: 20680 | E187: 20690 | F187: 303 | H187: 20698.57143 | I187: 0 | J187: 0 | K187: 20722.13203 | L187: 20745.69264 | M187: 20675.01082 | N187: 20651.45022
A188: 10:30:00 | B188: 20690 | C188: 20700 | D188: 20680 | E188: 20680 | F188: 710 | H188: 20697.14286 | I188: 0 | J188: 0 | K188: 20720.87607 | L188: 20744.60928 | M188: 20673.40965 | N188: 20649.67644
A189: 10:35:00 | B189: 20680 | C189: 20690 | D189: 20680 | E189: 20680 | F189: 490 | H189: 20695.71429 | I189: 0 | J189: 0 | K189: 20719.53333 | L189: 20743.35238 | M189: 20671.89524 | N189: 20648.07619
A190: 10:40:00 | B190: 20680 | C190: 20690 | D190: 20680 | E190: 20680 | F190: 523 | H190: 20692.85714 | I190: 0 | J190: 0 | K190: 20714.71008 | L190: 20736.56302 | M190: 20671.0042 | N190: 20649.15126
A191: 10:45:00 | B191: 20680 | C191: 20710 | D191: 20680 | E191: 20700 | F191: 397 | H191: 20691.90476 | I191: 0 | J191: =IF(D166<>"",(MIN(D140:D191)+MAX(C140:C191))/2,J190) -> 0 | K191: 20712.97585 | L191: 20734.04695 | M191: 20670.83367 | N191: 20649.76258
A192: 10:50:00 | B192: 20700 | C192: 20730 | D192: 20700 | E192: 20710 | F192: 582 | H192: 20691.90476 | I192: 20705 | J192: 20710 | K192: 20712.97585 | L192: 20734.04695 | M192: 20670.83367 | N192: 20649.76258
A193: 10:55:00 | B193: 20710 | C193: 20730 | D193: 20710 | E193: 20710 | F193: 583 | H193: 20690.47619 | I193: 20705 | J193: 20710 | K193: 20709.11465 | L193: 20727.75312 | M193: 20671.83773 | N193: 20653.19927
A194: 11:00:00 | B194: 20720 | C194: 20720 | D194: 20710 | E194: 20720 | F194: 364 | H194: 20689.52381 | I194: 20705 | J194: 20710 | K194: 20705.99202 | L194: 20722.46022 | M194: 20673.0556 | N194: 20656.5874
A195: 11:05:00 | B195: 20720 | C195: 20730 | D195: 20710 | E195: 20720 | F195: 638 | H195: 20689.52381 | I195: 20707.5 | J195: 20710 | K195: 20705.99202 | L195: 20722.46022 | M195: 20673.0556 | N195: 20656.5874
A196: 11:10:00 | B196: 20720 | C196: 20730 | D196: 20700 | E196: 20700 | F196: 227 | H196: 20689.04762 | I196: 20705 | J196: 20710 | K196: 20705.05499 | L196: 20721.06235 | M196: 20673.04025 | N196: 20657.03288
A197: 11:15:00 | B197: 20700 | C197: 20710 | D197: 20700 | E197: 20700 | F197: 530 | H197: 20689.52381 | I197: 20705 | J197: 20710 | K197: 20705.70027 | L197: 20721.87674 | M197: 20673.34734 | N197: 20657.17088
A198: 11:20:00 | B198: 20700 | C198: 20710 | D198: 20700 | E198: 20700 | F198: 217 | H198: 20690 | I198: 20705 | J198: 20710 | K198: 20706.32993 | L198: 20722.65986 | M198: 20673.67007 | N198: 20657.34014
A199: 11:25:00 | B199: 20710 | C199: 20710 | D199: 20710 | E199: 20710 | F199: 208 | H199: 20690.95238 | I199: 20702.5 | J199: 20710 | K199: 20707.82861 | L199: 20724.70485 | M199: 20674.07615 | N199: 20657.19991
A200: 11:30:00 | B200: 20710 | C200: 20720 | D200: 20710 | E200: 20720 | F200: 206 | H200: 20693.33333 | I200: 20705 | J200: 20710 | K200: 20710.60796 | L200: 20727.88259 | M200: 20676.05871 | N200: 20658.78408
... 815 more rows

Sheet FB監視
A1: =NOW() -> 2019-08-13T16:56:13.400 | U1: search price | V1: gap | W1: GUR | X1: GDR | Y1: BGU | Z1: BGD
U2: 22600 | V2: 1000 | W2: 0 | X2: 0 | Y2: 0 | Z2: 0
A3: 支持・抵抗線 | E3: ＦＢ監視（夕場なし） | U3: 22590 | V3: 990 | W3: 0 | X3: 0 | Y3: 0 | Z3: 0
A4: 現在値 | B4: =IFERROR(IF(P39<>"F",IF(B5>0,[3]!FQUOTE("N225","0","現在値"),P37),P37),B43) -> 20410 | C4: 年初来高値 | D4: 22370 | E4: 日付 | F4: 高値 | G4: ＦＢ売り対象値 | H4: サイン発動 | I4: Ｏｏｐｓ | J4: 日付 | K4: 安値 | L4: ＦＢ買い対象値 | M4: サイン発動 | N4: Ｏｏｐｓ | O4: 現在値－始値 | P4: =IF(B5<>" ",B4-B5,"") -> 70 | U4: 22580 | V4: 980 | W4: 0 | X4: 0 | Y4: 0 | Z4: 0
A5: 当日始値 | B5: =IFERROR(IF(P39<>"F",[3]!FQUOTE("N225","0","日中始値"),P37),P37) -> 20340 | C5: 日足＋３σ | D5: 22060.32328 | E5: =リアルタイム更新データ!A3 -> 2019-07-31 | F5: =リアルタイム更新データ!E3 -> 21560 | G5: X | I5: =IF(G5="X",IF($B$5<>" ",IF(AND($B$5>F5,$B$4<F5),"X",""),""),"") ->  | J5: =E5 -> 2019-07-31 | K5: =リアルタイム更新データ!F3 -> 21440 | L5: X | N5: =IF(L5="X",IF(AND($B$5<K5,$B$4>K5),"X",""),"") ->  | O5: ギャップ値幅 | P5: =IF(B5<>" ",リアルタイム更新データ!AE2,B4-B11) -> -1210 | U5: 22570 | V5: 970 | W5: 0 | X5: 0 | Y5: 0 | Z5: 0
A6: 当日高値 | B6: =IFERROR(IF(P39<>"F",[3]!FQUOTE("N225","0","日中高値"),P37),P37) -> 20470 | C6: 日足＋２σ | D6: 21881.68219 | E6: =リアルタイム更新データ!A4 -> 2019-07-30 | F6: =リアルタイム更新データ!E4 -> 21770 | G6: =IF(F6>=F5,"X","") -> X | I6: =IF(G6="X",IF($B$5<>" ",IF(AND($B$5>F6,$B$4<F6),"X",""),""),"") ->  | J6: =E6 -> 2019-07-30 | K6: =リアルタイム更新データ!F4 -> 21640 | L6: =IF(K6<=K5,"X","") ->  | N6: =IF(L6="X",IF(AND($B$5<K6,$B$4>K6),"X",""),"") ->  | O6: 当日最大値幅 | P6: =IF(B5<>" ",B6-B7," ") -> 160 | U6: 22560 | V6: 960 | W6: 0 | X6: 0 | Y6: 0 | Z6: 0
A7: 当日安値 | B7: =IFERROR(IF(P39<>"F",[3]!FQUOTE("N225","0","日中安値"),P37),P37) -> 20310 | C7: 窓上限１ | D7: 21870 | E7: =リアルタイム更新データ!A5 -> 2019-07-29 | F7: =リアルタイム更新データ!E5 -> 21620 | G7: =IF(F7>=MAX(F$5:F6),"X","") ->  | I7: =IF(G7="X",IF($B$5<>" ",IF(AND($B$5>F7,$B$4<F7),"X",""),""),"") ->  | J7: 2019-07-29 | K7: =リアルタイム更新データ!F5 -> 21490 | L7: =IF(K7<=MIN(K$5:K6),"X","") ->  | O7: 前日比 | P7: =IFERROR([3]!FQUOTE("N225","0","前日比"),0) -> -240 | U7: 22550 | V7: 950 | W7: 0 | X7: 0 | Y7: 0 | Z7: 0
A8: 前日始値 | B8: =リアルタイム更新データ!D3 -> 21490 | C8: 5日高値 | D8: 21800 | E8: =リアルタイム更新データ!A6 -> 2019-07-26 | F8: =リアルタイム更新データ!E6 -> 21680 | G8: =IF(F8>=MAX(F$5:F7),"X","") ->  | I8: =IF(G8="X",IF($B$5<>" ",IF(AND($B$5>F8,$B$4<F8),"X",""),""),"") ->  | J8: 2019-07-26 | K8: =リアルタイム更新データ!F6 -> 21560 | L8: =IF(K8<=MIN(K$5:K7),"X","") ->  | O8: 225現物 | P8: 9537.23 | U8: 22540 | V8: 940 | W8: 0 | X8: 0 | Y8: 0 | Z8: 0
A9: 前日高値 | B9: =リアルタイム更新データ!E3 -> 21560 | C9: 20日高値 | D9: 21800 | E9: =リアルタイム更新データ!A7 -> 2019-07-25 | F9: =リアルタイム更新データ!E7 -> 21800 | G9: =IF(F9>=MAX(F$5:F8),"X","") -> X | I9: =IF(G9="X",IF($B$5<>" ",IF(AND($B$5>F9,$B$4<F9),"X",""),""),"") ->  | J9: 2019-07-25 | K9: =リアルタイム更新データ!F7 -> 21720 | L9: =IF(K9<=MIN(K$5:K8),"X","") ->  | O9: 225先物－現物 | P9: =IF(B4<>" ",IF(P8<>" ",B4-P8,""),"") -> 10872.77 | U9: 22530 | V9: 930 | W9: 0 | X9: 0 | Y9: 0 | Z9: 0
A10: 前日安値 | B10: =リアルタイム更新データ!F3 -> 21440 | C10: 40日高値 | D10: 21800 | E10: =リアルタイム更新データ!A8 -> 2019-07-24 | F10: =リアルタイム更新データ!E8 -> 21720 | G10: =IF(F10>=MAX(F$5:F9),"X","") ->  | I10: =IF(G10="X",IF($B$5<>" ",IF(AND($B$5>F10,$B$4<F10),"X",""),""),"") ->  | J10: 2019-07-24 | K10: =リアルタイム更新データ!F8 -> 21650 | L10: =IF(K10<=MIN(K$5:K9),"X","") ->  | O10: 出来高 | P10: =IFERROR([3]!FQUOTE("N225","0","出来高"),0) -> 63031 | Q10: =P10/リアルタイム更新データ!BU2 -> 1.274812917 | U10: 22520 | V10: 920 | W10: 0 | X10: 0 | Y10: 0 | Z10: 0
A11: 前日終値 | B11: =リアルタイム更新データ!G3 -> 21550 | C11: ＯＰ価格５ | D11: 21750 | E11: =リアルタイム更新データ!A9 -> 2019-07-23 | F11: =リアルタイム更新データ!E9 -> 21660 | G11: =IF(F11>=MAX(F$5:F10),"X","") ->  | J11: 2019-07-23 | K11: =リアルタイム更新データ!F9 -> 21380 | L11: =IF(K11<=MIN(K$5:K10),"X","") -> X | O11: 売買代金 | P11: =IFERROR([3]!FQUOTE("N225","0","売買代金"),"") -> 1289302170 | U11: 22510 | V11: 910 | W11: 0 | X11: 0 | Y11: 0 | Z11: 0
A12: HBOP | B12: =リアルタイム更新データ!BA3 -> 21713 | C12: HBOP | D12: 21713 | E12: =リアルタイム更新データ!A10 -> 2019-07-22 | F12: =リアルタイム更新データ!E10 -> 21420 | G12: =IF(F12>=MAX(F$5:F11),"X","") ->  | J12: 2019-07-22 | K12: =リアルタイム更新データ!F10 -> 21290 | L12: =IF(K12<=MIN(K$5:K11),"X","") -> X | O12: RSI 5日 | P12: =リアルタイム更新データ!BJ2 -> 2.721088435 | U12: 22500 | V12: 900 | W12: 0 | X12: 0 | Y12: 0 | Z12: 0
A13: S2 | B13: =リアルタイム更新データ!BB3 -> 21637 | C13: 日足＋１σ | D13: 21703.04109 | E13: =リアルタイム更新データ!A11 -> 2019-07-19 | F13: =リアルタイム更新データ!E11 -> 21450 | G13: =IF(F13>=MAX(F$5:F12),"X","") ->  | J13: 2019-07-19 | K13: =リアルタイム更新データ!F11 -> 21090 | L13: =IF(K13<=MIN(K$5:K12),"X","") -> X | O13: RSI 9日 | P13: =リアルタイム更新データ!BK2 -> 22.87234043 | U13: 22490 | V13: 890 | W13: 0 | X13: 0 | Y13: 0 | Z13: 0
A14: S1 | B14: =リアルタイム更新データ!BC3 -> 21593 | C14: ５２週ＭＡ | D14: 21656.60377 | E14: =リアルタイム更新データ!A12 -> 2019-07-18 | F14: =リアルタイム更新データ!E12 -> 21310 | G14: =IF(F14>=MAX(F$5:F13),"X","") ->  | J14: 2019-07-18 | K14: =リアルタイム更新データ!F12 -> 20960 | L14: =IF(K14<=MIN(K$5:K13),"X","") -> X | O14: ５ＥＭＡ | P14: =リアルタイム更新データ!BX2 -> 21190 | U14: 22480 | V14: 880 | W14: 0 | X14: 0 | Y14: 0 | Z14: 0
A15: Pivot | B15: =リアルタイム更新データ!BD3 -> 21517 | C15: 窓下限１ | D15: 21640 | E15: =リアルタイム更新データ!A13 -> 2019-07-17 | F15: =リアルタイム更新データ!E13 -> 21460 | G15: =IF(F15>=MAX(F$5:F14),"X","") ->  | J15: 2019-07-17 | K15: =リアルタイム更新データ!F13 -> 21350 | L15: =IF(K15<=MIN(K$5:K14),"X","") ->  | O15: ２０ＥＭＡ | P15: =リアルタイム更新データ!BY2 -> 21398.90476 | U15: 22470 | V15: 870 | W15: 0 | X15: 0 | Y15: 0 | Z15: 0
A16: B1 | B16: =リアルタイム更新データ!BE3 -> 21473 | C16: S2 | D16: 21637 | E16: =リアルタイム更新データ!A14 -> 2019-07-16 | F16: =リアルタイム更新データ!E14 -> 21620 | G16: =IF(F16>=MAX(F$5:F15),"X","") ->  | J16: 2019-07-16 | K16: =リアルタイム更新データ!F14 -> 21480 | L16: =IF(K16<=MIN(K$5:K15),"X","") ->  | O16: ＭＡＣＤ | P16: =リアルタイム更新データ!BZ2 -> -208.9047619 | U16: 22460 | V16: 860 | W16: 0 | X16: 0 | Y16: 0 | Z16: 0
A17: B2 | B17: =リアルタイム更新データ!BF3 -> 21397 | C17: S1 | D17: 21593 | E17: =リアルタイム更新データ!A15 -> 2019-07-12 | F17: =リアルタイム更新データ!E15 -> 21690 | G17: =IF(F17>=MAX(F$5:F16),"X","") ->  | J17: 2019-07-12 | K17: =リアルタイム更新データ!F15 -> 21550 | L17: =IF(K17<=MIN(K$5:K16),"X","") ->  | O17: シグナル | P17: =リアルタイム更新データ!CA2 -> 42.92632152 | U17: 22450 | V17: 850 | W17: 0 | X17: 0 | Y17: 0 | Z17: 0
A18: LBOP | B18: =リアルタイム更新データ!BG3 -> 21353 | C18: 前日高値 | D18: 21560 | E18: =リアルタイム更新データ!A16 -> 2019-07-11 | F18: =リアルタイム更新データ!E16 -> 21630 | G18: =IF(F18>=MAX(F$5:F17),"X","") ->  | J18: 2019-07-11 | K18: =リアルタイム更新データ!F16 -> 21500 | L18: =IF(K18<=MIN(K$5:K17),"X","") ->  | O18: ＯＳＣＩ | P18: =リアルタイム更新データ!CB2 -> -251.8310834 | U18: 22440 | V18: 840 | W18: 0 | X18: 0 | Y18: 0 | Z18: 0
A19: 日足＋３σ | B19: =リアルタイム更新データ!CC2 -> 22329.57607 | C19: 前日終値 | D19: 21550 | E19: =リアルタイム更新データ!A17 -> 2019-07-10 | F19: =リアルタイム更新データ!E17 -> 21570 | G19: =IF(F19>=MAX(F$5:F18),"X","") ->  | J19: 2019-07-10 | K19: =リアルタイム更新データ!F17 -> 21470 | L19: =IF(K19<=MIN(K$5:K18),"X","") ->  | O19: CME-前日終値 | P19: =B43-B11 -> -295 | U19: 22430 | V19: 830 | W19: 0 | X19: 0 | Y19: 0 | Z19: 0
A20: 日足＋２σ | B20: =リアルタイム更新データ!CD2 -> 22048.78405 | C20: 日足転換線 | D20: 21545 | E20: =リアルタイム更新データ!A18 -> 2019-07-09 | F20: =リアルタイム更新データ!E18 -> 21660 | G20: =IF(F20>=MAX(F$5:F19),"X","") ->  | I20: =IF(G20="X",IF($B$5<>" ",IF(AND($B$5>F20,$B$4<F20),"X",""),""),"") ->  | J20: 2019-07-09 | K20: =リアルタイム更新データ!F18 -> 21480 | L20: =IF(K20<=MIN(K$5:K19),"X","") ->  | O20: 売気配値 | Q20: 買気配値 | U20: 22420 | V20: 820 | W20: 0 | X20: 0 | Y20: 0 | Z20: 0
A21: 日足＋１σ | B21: =リアルタイム更新データ!CE2 -> 21767.99202 | C21: 5日MA | D21: 21544 | E21: =リアルタイム更新データ!A19 -> 2019-07-08 | F21: =リアルタイム更新データ!E19 -> 21650 | G21: =IF(F21>=MAX(F$5:F20),"X","") ->  | J21: 2019-07-08 | K21: =リアルタイム更新データ!F19 -> 21460 | L21: =IF(K21<=MIN(K$5:K20),"X","") ->  | O21: =IFERROR([3]!FBOARD("N225","0","売気配数量-2"),0) -> 172 | P21: =IFERROR([3]!FBOARD("N225","0","気配値-2"),0) -> 20480 | U21: 22410 | V21: 810 | W21: 0 | X21: 0 | Y21: 0 | Z21: 0
A22: 日足－１σ | B22: =リアルタイム更新データ!CG2 -> 21206.40798 | C22: 25日MA | D22: 21524.4 | E22: =リアルタイム更新データ!A20 -> 2019-07-05 | F22: =リアルタイム更新データ!E20 -> 21700 | G22: =IF(F22>=MAX(F$5:F21),"X","") ->  | J22: 2019-07-05 | K22: =リアルタイム更新データ!F20 -> 21610 | L22: =IF(K22<=MIN(K$5:K21),"X","") ->  | O22: =IFERROR([3]!FBOARD("N225","0","売気配数量-1"),0) -> 211 | P22: =IFERROR([3]!FBOARD("N225","0","気配値-1"),0) -> 20470 | U22: 22400 | V22: 800 | W22: 0 | X22: 0 | Y22: 0 | Z22: 0
A23: 日足－２σ | B23: =リアルタイム更新データ!CH2 -> 20925.61595 | C23: Pivot | D23: 21517 | E23: =リアルタイム更新データ!A21 -> 2019-07-04 | F23: =リアルタイム更新データ!E21 -> 21720 | G23: =IF(F23>=MAX(F$5:F22),"X","") ->  | J23: 2019-07-04 | K23: =リアルタイム更新データ!F21 -> 21630 | L23: =IF(K23<=MIN(K$5:K22),"X","") ->  | O23: =IFERROR([3]!FBOARD("N225","0","売気配数量0"),0) -> 329 | P23: =IFERROR([3]!FBOARD("N225","0","気配値0"),0) -> 20460 | U23: 22390 | V23: 790 | W23: 0 | X23: 0 | Y23: 0 | Z23: 0
A24: 日足－３σ | B24: =リアルタイム更新データ!CI2 -> 20644.82393 | C24: ＯＰ価格３ | D24: 21500 | E24: =リアルタイム更新データ!A22 -> 2019-07-03 | F24: =リアルタイム更新データ!E22 -> 21670 | G24: =IF(F24>=MAX(F$5:F23),"X","") ->  | J24: 2019-07-03 | K24: =リアルタイム更新データ!F22 -> 21520 | L24: =IF(K24<=MIN(K$5:K23),"X","") ->  | O24: =IFERROR([3]!FBOARD("N225","0","売気配数量1"),0) -> 418 | P24: =IFERROR([3]!FBOARD("N225","0","気配値1"),0) -> 20450 | U24: 22380 | V24: 780 | W24: 0 | X24: 0 | Y24: 0 | Z24: 0
A25: 5日高値 | B25: =MAX(リアルタイム更新データ!E3:E7) -> 21800 | C25: 前日始値 | D25: 21490 | O25: =IFERROR([3]!FBOARD("N225","0","売気配数量2"),0) -> 304 | P25: =IFERROR([3]!FBOARD("N225","0","気配値2"),0) -> 20440 | U25: 22370 | V25: 770 | W25: 0 | X25: 0 | Y25: 0 | Z25: 0
A26: 20日高値 | B26: =MAX(リアルタイム更新データ!E3:E22) -> 21800 | C26: B1 | D26: 21473 | O26: =IFERROR([3]!FBOARD("N225","0","売気配数量3"),0) -> 279 | P26: =IFERROR([3]!FBOARD("N225","0","気配値3"),0) -> 20430 | U26: 22360 | V26: 760 | W26: 0 | X26: 0 | Y26: 0 | Z26: 0
A27: 40日高値 | B27: =リアルタイム更新データ!AK3 -> 21800 | C27: 前日安値 | D27: 21440 | O27: =IFERROR([3]!FBOARD("N225","0","売気配数量4"),0) -> 232 | P27: =IFERROR([3]!FBOARD("N225","0","気配値4"),0) -> 20420 | U27: 22350 | V27: 750 | W27: 0 | X27: 0 | Y27: 0 | Z27: 0
A28: 5日安値 | B28: =MIN(リアルタイム更新データ!F3:F7) -> 21440 | C28: 5日安値 | D28: 21440 | O28: =IFERROR([3]!FBOARD("N225","0","売気配数量5"),0) -> 102 | P28: =IFERROR([3]!FBOARD("N225","0","気配値5"),0) -> 20410 | U28: 22340 | V28: 740 | W28: 0 | X28: 0 | Y28: 0 | Z28: 0
A29: 20日安値 | B29: =MIN(リアルタイム更新データ!F3:F22) -> 20960 | C29: 200日ＭＡ | D29: 21416.75 | O29: =IFERROR([3]!FBOARD("N225","0","売気配数量6"),0) -> 0 | P29: =IFERROR([3]!FBOARD("N225","0","気配値6"),0) -> 20400 | Q29: =IFERROR([3]!FBOARD("N225","0","買気配数量6"),0) -> 271 | U29: 22330 | V29: 730 | W29: 0 | X29: 0 | Y29: 0 | Z29: 0
A30: 40日安値 | B30: =リアルタイム更新データ!AL3 -> 20680 | C30: 75日ＭＡ | D30: 21415.86667 | P30: =IFERROR([3]!FBOARD("N225","0","気配値7"),0) -> 20390 | Q30: =IFERROR([3]!FBOARD("N225","0","買気配数量7"),0) -> 246 | U30: 22320 | V30: 720 | W30: 0 | X30: 0 | Y30: 0 | Z30: 0
A31: 日足転換線 | B31: =リアルタイム更新データ!AW2 -> 21055 | C31: 100日ＭＡ | D31: 21401 | P31: =IFERROR([3]!FBOARD("N225","0","気配値8"),0) -> 20380 | Q31: =IFERROR([3]!FBOARD("N225","0","買気配数量8"),0) -> 259 | U31: 22310 | V31: 710 | W31: 0 | X31: 0 | Y31: 0 | Z31: 0
A32: 日足基準線 | B32: =リアルタイム更新データ!AV2 -> 21055 | C32: B2 | D32: 21397 | P32: =IFERROR([3]!FBOARD("N225","0","気配値9"),0) -> 20370 | Q32: =IFERROR([3]!FBOARD("N225","0","買気配数量9"),0) -> 253 | U32: 22300 | V32: 700 | W32: 0 | X32: 0 | Y32: 0 | Z32: 0
A33: 日足先行スパン１ | B33: =リアルタイム更新データ!AX2 -> 21010 | C33: 日足基準線 | D33: 21380 | P33: =IFERROR([3]!FBOARD("N225","0","気配値10"),0) -> 20360 | Q33: =IFERROR([3]!FBOARD("N225","0","買気配数量10"),0) -> 225 | U33: 22290 | V33: 690 | W33: 0 | X33: 0 | Y33: 0 | Z33: 0
A34: 日足先行スパン２ | B34: =リアルタイム更新データ!AY2 -> 21325 | C34: 当日高値 | D34: 21370 | P34: =IFERROR([3]!FBOARD("N225","0","気配値11"),0) -> 20350 | Q34: =IFERROR([3]!FBOARD("N225","0","買気配数量11"),0) -> 308 | U34: 22280 | V34: 680 | W34: 0 | X34: 0 | Y34: 0 | Z34: 0
A35: 5日MA | B35: =IF(B5=" ",AVERAGE(リアルタイム更新データ!G3:G6,B4),リアルタイム更新データ!X2) -> 21358 | C35: LBOP | D35: 21353 | P35: =IFERROR([3]!FBOARD("N225","0","気配値12"),0) -> 20340 | Q35: =IFERROR([3]!FBOARD("N225","0","買気配数量12"),0) -> 234 | U35: 22270 | V35: 670 | W35: 0 | X35: 0 | Y35: 0 | Z35: 0
A36: 25日MA | B36: =IF(B5=" ",AVERAGE(リアルタイム更新データ!G3:G26,B4),リアルタイム更新データ!Y2) -> 21487.2 | C36: 当日始値 | D36: 21350 | P36: =IFERROR([3]!FBOARD("N225","0","気配値13"),0) -> 20330 | Q36: =IFERROR([3]!FBOARD("N225","0","買気配数量13"),0) -> 199 | U36: 22260 | V36: 660 | W36: 0 | X36: 0 | Y36: 0 | Z36: 0
A37: 75日ＭＡ | B37: =IF(B5=" ",AVERAGE(リアルタイム更新データ!G3:G76,B4),リアルタイム更新データ!Z2) -> 21403.46667 | C37: 日足－１σ | D37: 21345.75891 | O37: CME | P37: =IF(O37="気配値",P29,IF(O37="CME",B43,Q37)) -> 21255 | Q37: 20600 | U37: 22250 | V37: 650 | W37: 0 | X37: 0 | Y37: 0 | Z37: 0
A38: 100日ＭＡ | B38: =リアルタイム更新データ!AA2 -> 21391.7 | C38: 現在値 | D38: 21340 | O38: 暫定始値 | P38: =IF(B5<>0,B5,P37) -> 20340 | U38: 22240 | V38: 640 | W38: 0 | X38: 0 | Y38: 0 | Z38: 0
A39: 200日ＭＡ | B39: =リアルタイム更新データ!AB2 -> 21412.1 | C39: 日足先行スパン２ | D39: 21325 | O39: 強制 | U39: 22230 | V39: 630 | W39: 0 | X39: 0 | Y39: 0 | Z39: 0
A40: CME始値 | C40: 当日安値 | D40: 21320 | O40: 売買最終日 | P40: =[3]!FQUOTE("N225","0","現在値時刻") -> 14:08:27 | U40: 22220 | V40: 620 | W40: 0 | X40: 0 | Y40: 0 | Z40: 0
A41: CME高値 | C41: CME終値 | D41: 21255 | O41: 残存日数 | P41: =[3]!FQUOTE("N225","0","残存日数") -> 31 | U41: 22210 | V41: 610 | W41: 0 | X41: 0 | Y41: 0 | Z41: 0
A42: CME安値 | C42: ＯＰ価格１ | D42: 21250 | O42: 清算値 | P42: =[3]!FQUOTE("N225","0","清算指数") -> 20650 | U42: 22200 | V42: 600 | W42: 0 | X42: 0 | Y42: 0 | Z42: 0
A43: CME終値 | B43: 21255 | C43: ２６週ＭＡ | D43: 21244.81481 | O43: 前ＳＱ | U43: 22190 | V43: 590 | W43: 0 | X43: 0 | Y43: 0 | Z43: 0
A44: 週足転換線 | B44: 16590 | C44: １３週ＭＡ | D44: 21210.90909 | O44: 最新日付 | U44: 22180 | V44: 580 | W44: 0 | X44: 0 | Y44: 0 | Z44: 0
A45: 週足基準線 | B45: 16775 | C45: 日足－２σ | D45: 21167.11781 | O45: リアルタイム | P45: =リアルタイム更新データ!A2 -> 2019-08-13 | U45: 22170 | V45: 570 | W45: 0 | X45: 0 | Y45: 0 | Z45: 0
A46: 週足先行スパン１ | B46: 16580 | C46: VA上限 | D46: 21070 | U46: 22160 | V46: 560 | W46: 0 | X46: 0 | Y46: 0 | Z46: 0
A47: 週足先行スパン２ | B47: 16700 | C47: Ｍｏｄｅ | D47: 21050 | U47: 22150 | V47: 550 | W47: 0 | X47: 0 | Y47: 0 | Z47: 0
A48: １３週ＭＡ | B48: =IF(B5=" ",AVERAGE(週足!G3:G6,B4),週足!W2) -> 21126.36364 | C48: 日足先行スパン１ | D48: 21010 | U48: 22140 | V48: 540 | W48: 0 | X48: 0 | Y48: 0 | Z48: 0
A49: ２６週ＭＡ | B49: =IF(B5=" ",AVERAGE(週足!G3:G6,B4),週足!X2) -> 21210.37037 | C49: VA下限 | D49: 21000 | F49: GUR short | I49: =SUM(I50:I69) -> 1 | K49: ＧＤＲ long | N49: =SUM(N50:N69) -> 1 | U49: 22130 | V49: 530 | W49: 0 | X49: 0 | Y49: 0 | Z49: 0
A50: ５２週ＭＡ | B50: =IF(B5=" ",AVERAGE(週足!G3:G6,B4),週足!Y2) -> 21639.0566 | C50: ＯＰ価格２ | D50: 21000 | F50: 1 | G50: 当日１８０円以上のギャップアップ＋上窓、前日０円以上のギャップアップで０円以上の陽線、ＭＡ並びがブルパターン | I50: =IFERROR(IF(AND(P5>=180,リアルタイム更新データ!AG2="H",リアルタイム更新データ!AE3>=0,リアルタイム更新データ!AF3>=0,リアルタイム更新データ!AI2="L"),1,""),"") ->  | K50: 1 | L50: 当日５０円以上のギャップダウン、前日０円以上のギャップダウン、前日０円以上の陰線、前日始値と終値が前々日レンジ内、ＲＳＩ５日４０以下 | N50: =IFERROR(IF(AND(P5<=50,リアルタイム更新データ!AE3<=0,リアルタイム更新データ!AF3<=0,リアルタイム更新データ!AG3="I",リアルタイム更新データ!AH3="I",リアルタイム更新データ!BJ2<=40),1,""),"") ->  | U50: 22120 | V50: 520 | W50: 0 | X50: 0 | Y50: 0 | Z50: 0
A51: 夜場高値 | B51: =[3]!FQUOTE("N225","0","夜間高値") -> 0 | C51: 日足－３σ | D51: 20988.47672 | F51: 2 | G51: 当日０円以上のギャップアップ、ＲＳＩ５日８０以上、ＲＳＩ９日７５以上、日足＋２σ乖離率０．３％以上 | I51: =IFERROR(IF(AND(P5>=0,P12>=80,P13>=75,リアルタイム更新データ!DG2>=0.003),1,""),"") ->  | K51: 2 | L51: 当日１０円以上のギャップダウン、ＲＳＩ５日７５以上、ＲＳＩ９日４５以上 | N51: =IF(AND(P5>=10,P12>=75,P13>=45),1,"") ->  | U51: 22110 | V51: 510 | W51: 0 | X51: 0 | Y51: 0 | Z51: 0
A52: 夜場安値 | B52: =[3]!FQUOTE("N225","0","夜間安値") -> 0 | C52: 20日安値 | D52: 20960 | F52: 3 | G52: 当日上窓、前日上窓、ＲＳＩ９日１５～６０ | I52: =IFERROR(IF(AND(リアルタイム更新データ!AG2="H",リアルタイム更新データ!AG3="H",P13>=15,P13<=60),1,""),"") ->  | K52: 3 | L52: 当日下窓、前日下窓、ＲＳＩ５日１０～４７ | N52: =IF(AND(リアルタイム更新データ!AG2="L",リアルタイム更新データ!AG3="L",Q12>=10,Q12<=47),1,"") ->  | U52: 22100 | V52: 500 | W52: 0 | X52: 0 | Y52: 0 | Z52: 0
A53: VA上限 | B53: =MP!Y1 -> 21070 | C53: ＯＰ価格４ | D53: 20750 | F53: 4 | K53: 4 | U53: 22090 | V53: 490 | W53: 0 | X53: 0 | Y53: 0 | Z53: 0
A54: VA下限 | B54: =MP!Y2 -> 21000 | C54: 40日安値 | D54: 20680 | F54: 5 | K54: 5 | U54: 22080 | V54: 480 | W54: 0 | X54: 0 | Y54: 0 | Z54: 0
A55: Ｍｏｄｅ | B55: =MP!Y3 -> 21050 | C55: 年初来安値 | D55: 19210 | F55: 6 | K55: 6 | U55: 22070 | V55: 470 | W55: 0 | X55: 0 | Y55: 0 | Z55: 0
A56: 窓上限１ | B56: =mado!E1 -> 21870 | C56: 週足基準線 | D56: 16775 | F56: 7 | K56: 7 | U56: 22060 | V56: 460 | W56: 0 | X56: 0 | Y56: 0 | Z56: 0
A57: 窓上限２ | B57: =mado!E2 -> 0 | C57: 週足先行スパン２ | D57: 16700 | F57: 8 | K57: 8 | U57: 22050 | V57: 450 | W57: 0 | X57: 0 | Y57: 0 | Z57: 0
A58: 窓上限３ | B58: 9250 | C58: 週足転換線 | D58: 16590 | F58: 9 | K58: 9 | U58: 22040 | V58: 440 | W58: 0 | X58: 0 | Y58: 0 | Z58: 0
A59: 窓下限１ | B59: =mado!G1 -> 21640 | C59: 週足先行スパン１ | D59: 16580 | F59: 10 | K59: 10 | U59: 22030 | V59: 430 | W59: 0 | X59: 0 | Y59: 0 | Z59: 0
A60: 窓下限２ | B60: =mado!G2 -> 0 | C60: 窓上限３ | D60: 9250 | F60: 11 | K60: 11 | U60: 22020 | V60: 420 | W60: 0 | X60: 0 | Y60: 0 | Z60: 0
A61: 窓下限３ | B61: =mado!G3 -> 0 | C61: 夜場高値 | D61: 0 | F61: 12 | K61: 12 | U61: 22010 | V61: 410 | W61: 0 | X61: 0 | Y61: 0 | Z61: 0
A62: SQ値 | C62: 夜場安値 | D62: 0 | F62: 13 | K62: 13 | U62: 22000 | V62: 400 | W62: 0 | X62: 0 | Y62: 0 | Z62: 0
A63: ＯＰ価格１ | B63: =FLOOR(B4,250) -> 20250 | C63: 窓上限２ | D63: 0 | F63: 14 | K63: 14 | U63: 21990 | V63: 390 | W63: 0 | X63: 0 | Y63: 0 | Z63: 0
A64: ＯＰ価格２ | B64: =B63-250 -> 20000 | C64: 窓下限２ | D64: 0 | F64: 15 | K64: 15 | U64: 21980 | V64: 380 | W64: 0 | X64: 0 | Y64: 0 | Z64: 0
A65: ＯＰ価格３ | B65: =B63+250 -> 20500 | C65: 窓下限３ | D65: 0 | F65: 16 | K65: 16 | U65: 21970 | V65: 370 | W65: 0 | X65: 0 | Y65: 0 | Z65: 0
A66: ＯＰ価格４ | B66: =B63-500 -> 19750 | C66: CME始値 | F66: 17 | K66: 17 | U66: 21960 | V66: 360 | W66: 0 | X66: 0 | Y66: 0 | Z66: 0
A67: ＯＰ価格５ | B67: =B63+500 -> 20750 | C67: CME高値 | F67: 18 | K67: 18 | U67: 21950 | V67: 350 | W67: 0 | X67: 0 | Y67: 0 | Z67: 0
A68: 年初来高値 | B68: =[3]!IDX("N225F1","年初来高値")*1 -> 22370 | C68: CME安値 | F68: 19 | K68: 19 | U68: 21940 | V68: 340 | W68: 0 | X68: 0 | Y68: 0 | Z68: 0
A69: 年初来安値 | B69: =[3]!IDX("N225F1","年初来安値")*1 -> 19210 | C69: SQ値 | F69: 20 | G69: 強制売り | I69: 1 | K69: 20 | L69: 強制買い | N69: 1 | U69: 21930 | V69: 330 | W69: 0 | X69: 0 | Y69: 0 | Z69: 0
U70: 21920 | V70: 320 | W70: 0 | X70: 0 | Y70: 0 | Z70: 0
U71: 21910 | V71: 310 | W71: 0 | X71: 0 | Y71: 0 | Z71: 0
U72: 21900 | V72: 300 | W72: 0 | X72: 0 | Y72: 0 | Z72: 0
U73: 21890 | V73: 290 | W73: 0 | X73: 0 | Y73: 0 | Z73: 0
U74: 21880 | V74: 280 | W74: 0 | X74: 0 | Y74: 0 | Z74: 0
F75: IRB short | I75: =SUM(I76:I83) -> 0 | K75: IRB long | N75: =SUM(N76:N87) -> 0 | U75: 21870 | V75: 270 | W75: 0 | X75: 0 | Y75: 0 | Z75: 0
U76: 21860 | V76: 260 | W76: 0 | X76: 0 | Y76: 0 | Z76: 0
U77: 21850 | V77: 250 | W77: 0 | X77: 0 | Y77: 0 | Z77: 0
U78: 21840 | V78: 240 | W78: 0 | X78: 0 | Y78: 0 | Z78: 0
U79: 21830 | V79: 230 | W79: 0 | X79: 0 | Y79: 0 | Z79: 0
U80: 21820 | V80: 220 | W80: 0 | X80: 0 | Y80: 0 | Z80: 0
U81: 21810 | V81: 210 | W81: 0 | X81: 0 | Y81: 0 | Z81: 0
U82: 21800 | V82: 200 | W82: 0 | X82: 0 | Y82: 0 | Z82: 0
U83: 21790 | V83: 190 | W83: 0 | X83: 0 | Y83: 0 | Z83: 0
U84: 21780 | V84: 180 | W84: 0 | X84: 0 | Y84: 0 | Z84: 0
U85: 21770 | V85: 170 | W85: 0 | X85: 0 | Y85: 0 | Z85: 0
U86: 21760 | V86: 160 | W86: 0 | X86: 0 | Y86: 0 | Z86: 0
U87: 21750 | V87: 150 | W87: 0 | X87: 0 | Y87: 0 | Z87: 0
U88: 21740 | V88: 140 | W88: 0 | X88: 0 | Y88: 0 | Z88: 0
U89: 21730 | V89: 130 | W89: 0 | X89: 0 | Y89: 0 | Z89: 0
F90: ＢＧＵ（買い） | I90: =SUM(I91:I101) -> 0 | K90: ＢGD（売り） | N90: =SUM(N91:N102) -> 0 | U90: 21720 | V90: 120 | W90: 0 | X90: 0 | Y90: 0 | Z90: 0
F91: 1 | K91: 1 | U91: 21710 | V91: 110 | W91: 0 | X91: 0 | Y91: 0 | Z91: 0
F92: 2 | K92: 2 | U92: 21700 | V92: 100 | W92: 0 | X92: 0 | Y92: 0 | Z92: 0
F93: 3 | K93: 3 | U93: 21690 | V93: 90 | W93: 0 | X93: 0 | Y93: 0 | Z93: 0
F94: 4 | K94: 4 | U94: 21680 | V94: 80 | W94: 0 | X94: 0 | Y94: 0 | Z94: 0
F95: 5 | K95: 5 | U95: 21670 | V95: 70 | W95: 0 | X95: 0 | Y95: 0 | Z95: 0
F96: 6 | K96: 6 | U96: 21660 | V96: 60 | W96: 0 | X96: 0 | Y96: 0 | Z96: 0
F97: 7 | K97: 7 | U97: 21650 | V97: 50 | W97: 0 | X97: 0 | Y97: 0 | Z97: 0
F98: 8 | K98: 8 | U98: 21640 | V98: 40 | W98: 0 | X98: 0 | Y98: 0 | Z98: 0
F99: 9 | K99: 9 | U99: 21630 | V99: 30 | W99: 0 | X99: 0 | Y99: 0 | Z99: 0
F100: 10 | K100: 10 | U100: 21620 | V100: 20 | W100: 0 | X100: 0 | Y100: 0 | Z100: 0
F101: 11 | K101: 11 | U101: 21610 | V101: 10 | W101: 0 | X101: 0 | Y101: 0 | Z101: 0
K102: 12 | U102: 21600 | V102: 0 | W102: 0 | X102: 0 | Y102: 0 | Z102: 0
U103: 21590 | V103: -10 | W103: 0 | X103: 0 | Y103: 0 | Z103: 0
U104: 21580 | V104: -20 | W104: 0 | X104: 0 | Y104: 0 | Z104: 0
U105: 21570 | V105: -30 | W105: 0 | X105: 0 | Y105: 0 | Z105: 0
U106: 21560 | V106: -40 | W106: 0 | X106: 0 | Y106: 0 | Z106: 0
U107: 21550 | V107: -50 | W107: 0 | X107: 0 | Y107: 0 | Z107: 0
U108: 21540 | V108: -60 | W108: 0 | X108: 0 | Y108: 0 | Z108: 0
U109: 21530 | V109: -70 | W109: 0 | X109: 0 | Y109: 0 | Z109: 0
U110: 21520 | V110: -80 | W110: 0 | X110: 0 | Y110: 0 | Z110: 0
U111: 21510 | V111: -90 | W111: 0 | X111: 0 | Y111: 0 | Z111: 0
U112: 21500 | V112: -100 | W112: 0 | X112: 0 | Y112: 0 | Z112: 0
U113: 21490 | V113: -110 | W113: 0 | X113: 0 | Y113: 0 | Z113: 0
U114: 21480 | V114: -120 | W114: 0 | X114: 0 | Y114: 0 | Z114: 0
U115: 21470 | V115: -130 | W115: 0 | X115: 0 | Y115: 0 | Z115: 0
U116: 21460 | V116: -140 | W116: 0 | X116: 0 | Y116: 0 | Z116: 0
U117: 21450 | V117: -150 | W117: 0 | X117: 0 | Y117: 0 | Z117: 0
U118: 21440 | V118: -160 | W118: 0 | X118: 0 | Y118: 0 | Z118: 0
U119: 21430 | V119: -170 | W119: 0 | X119: 0 | Y119: 0 | Z119: 0
U120: 21420 | V120: -180 | W120: 0 | X120: 0 | Y120: 0 | Z120: 0
U121: 21410 | V121: -190 | W121: 0 | X121: 0 | Y121: 0 | Z121: 0
U122: 21400 | V122: -200 | W122: 0 | X122: 0 | Y122: 0 | Z122: 0
U123: 21390 | V123: -210 | W123: 0 | X123: 0 | Y123: 0 | Z123: 0
U124: 21380 | V124: -220 | W124: 0 | X124: 0 | Y124: 0 | Z124: 0
U125: 21370 | V125: -230 | W125: 0 | X125: 0 | Y125: 0 | Z125: 0
U126: 21360 | V126: -240 | W126: 0 | X126: 0 | Y126: 0 | Z126: 0
U127: 21350 | V127: -250 | W127: 0 | X127: 0 | Y127: 0 | Z127: 0
U128: 21340 | V128: -260 | W128: 0 | X128: 0 | Y128: 0 | Z128: 0
U129: 21330 | V129: -270 | W129: 0 | X129: 0 | Y129: 0 | Z129: 0
U130: 21320 | V130: -280 | W130: 0 | X130: 0 | Y130: 0 | Z130: 0
U131: 21310 | V131: -290 | W131: 0 | X131: 0 | Y131: 0 | Z131: 0
U132: 21300 | V132: -300 | W132: 0 | X132: 0 | Y132: 0 | Z132: 0
U133: 21290 | V133: -310 | W133: 0 | X133: 0 | Y133: 0 | Z133: 0
U134: 21280 | V134: -320 | W134: 0 | X134: 0 | Y134: 0 | Z134: 0
U135: 21270 | V135: -330 | W135: 0 | X135: 0 | Y135: 0 | Z135: 0
A136: CME | U136: 21260 | V136: -340 | W136: 0 | X136: 0 | Y136: 0 | Z136: 0
A137: 気配値 | U137: 21250 | V137: -350 | W137: 0 | X137: 0 | Y137: 0 | Z137: 0
A138: search | U138: 21240 | V138: -360 | W138: 0 | X138: 0 | Y138: 0 | Z138: 0
U139: 21230 | V139: -370 | W139: 0 | X139: 0 | Y139: 0 | Z139: 0
U140: 21220 | V140: -380 | W140: 0 | X140: 0 | Y140: 0 | Z140: 0
U141: 21210 | V141: -390 | W141: 0 | X141: 0 | Y141: 0 | Z141: 0
U142: 21200 | V142: -400 | W142: 0 | X142: 0 | Y142: 0 | Z142: 0
U143: 21190 | V143: -410 | W143: 0 | X143: 0 | Y143: 0 | Z143: 0
U144: 21180 | V144: -420 | W144: 0 | X144: 0 | Y144: 0 | Z144: 0
U145: 21170 | V145: -430 | W145: 0 | X145: 0 | Y145: 0 | Z145: 0
U146: 21160 | V146: -440 | W146: 0 | X146: 0 | Y146: 0 | Z146: 0
U147: 21150 | V147: -450 | W147: 0 | X147: 0 | Y147: 0 | Z147: 0
U148: 21140 | V148: -460 | W148: 0 | X148: 0 | Y148: 0 | Z148: 0
U149: 21130 | V149: -470 | W149: 0 | X149: 0 | Y149: 0 | Z149: 0
U150: 21120 | V150: -480 | W150: 0 | X150: 0 | Y150: 0 | Z150: 0
U151: 21110 | V151: -490 | W151: 0 | X151: 0 | Y151: 0 | Z151: 0
U152: 21100 | V152: -500 | W152: 0 | X152: 0 | Y152: 0 | Z152: 0
U153: 21090 | V153: -510 | W153: 0 | X153: 0 | Y153: 0 | Z153: 0
U154: 21080 | V154: -520 | W154: 0 | X154: 0 | Y154: 0 | Z154: 0
U155: 21070 | V155: -530 | W155: 0 | X155: 0 | Y155: 0 | Z155: 0
U156: 21060 | V156: -540 | W156: 0 | X156: 0 | Y156: 0 | Z156: 0
U157: 21050 | V157: -550 | W157: 0 | X157: 0 | Y157: 0 | Z157: 0
U158: 21040 | V158: -560 | W158: 0 | X158: 0 | Y158: 0 | Z158: 0
U159: 21030 | V159: -570 | W159: 0 | X159: 0 | Y159: 0 | Z159: 0
U160: 21020 | V160: -580 | W160: 0 | X160: 0 | Y160: 0 | Z160: 0
U161: 21010 | V161: -590 | W161: 0 | X161: 0 | Y161: 0 | Z161: 0
U162: 21000 | V162: -600 | W162: 0 | X162: 0 | Y162: 0 | Z162: 0
U163: 20990 | V163: -610 | W163: 0 | X163: 0 | Y163: 0 | Z163: 0
U164: 20980 | V164: -620 | W164: 0 | X164: 0 | Y164: 0 | Z164: 0
U165: 20970 | V165: -630 | W165: 0 | X165: 0 | Y165: 0 | Z165: 0
U166: 20960 | V166: -640 | W166: 0 | X166: 0 | Y166: 0 | Z166: 0
U167: 20950 | V167: -650 | W167: 0 | X167: 0 | Y167: 0 | Z167: 0
U168: 20940 | V168: -660 | W168: 0 | X168: 0 | Y168: 0 | Z168: 0
U169: 20930 | V169: -670 | W169: 0 | X169: 0 | Y169: 0 | Z169: 0
U170: 20920 | V170: -680 | W170: 0 | X170: 0 | Y170: 0 | Z170: 0
U171: 20910 | V171: -690 | W171: 0 | X171: 0 | Y171: 0 | Z171: 0
U172: 20900 | V172: -700 | W172: 0 | X172: 0 | Y172: 0 | Z172: 0
U173: 20890 | V173: -710 | W173: 0 | X173: 0 | Y173: 0 | Z173: 0
U174: 20880 | V174: -720 | W174: 0 | X174: 0 | Y174: 0 | Z174: 0
U175: 20870 | V175: -730 | W175: 0 | X175: 0 | Y175: 0 | Z175: 0
U176: 20860 | V176: -740 | W176: 0 | X176: 0 | Y176: 0 | Z176: 0
U177: 20850 | V177: -750 | W177: 0 | X177: 0 | Y177: 0 | Z177: 0
U178: 20840 | V178: -760 | W178: 0 | X178: 0 | Y178: 0 | Z178: 0
U179: 20830 | V179: -770 | W179: 0 | X179: 0 | Y179: 0 | Z179: 0
U180: 20820 | V180: -780 | W180: 0 | X180: 0 | Y180: 0 | Z180: 0
U181: 20810 | V181: -790 | W181: 0 | X181: 0 | Y181: 0 | Z181: 0
U182: 20800 | V182: -800 | W182: 0 | X182: 0 | Y182: 0 | Z182: 0
U183: 20790 | V183: -810 | W183: 0 | X183: 0 | Y183: 0 | Z183: 0
U184: 20780 | V184: -820 | W184: 0 | X184: 0 | Y184: 0 | Z184: 0
U185: 20770 | V185: -830 | W185: 0 | X185: 0 | Y185: 0 | Z185: 0
U186: 20760 | V186: -840 | W186: 0 | X186: 0 | Y186: 0 | Z186: 0
U187: 20750 | V187: -850 | W187: 0 | X187: 0 | Y187: 0 | Z187: 0
U188: 20740 | V188: -860 | W188: 0 | X188: 0 | Y188: 0 | Z188: 0
U189: 20730 | V189: -870 | W189: 0 | X189: 0 | Y189: 0 | Z189: 0
U190: 20720 | V190: -880 | W190: 0 | X190: 0 | Y190: 0 | Z190: 0
U191: 20710 | V191: -890 | W191: 0 | X191: 0 | Y191: 0 | Z191: 0
U192: 20700 | V192: -900 | W192: 0 | X192: 0 | Y192: 0 | Z192: 0
U193: 20690 | V193: -910 | W193: 0 | X193: 0 | Y193: 0 | Z193: 0
U194: 20680 | V194: -920 | W194: 0 | X194: 0 | Y194: 0 | Z194: 0
U195: 20670 | V195: -930 | W195: 0 | X195: 0 | Y195: 0 | Z195: 0
U196: 20660 | V196: -940 | W196: 0 | X196: 0 | Y196: 0 | Z196: 0
U197: 20650 | V197: -950 | W197: 0 | X197: 0 | Y197: 0 | Z197: 0
U198: 20640 | V198: -960 | W198: 0 | X198: 0 | Y198: 0 | Z198: 0
U199: 20630 | V199: -970 | W199: 0 | X199: 0 | Y199: 0 | Z199: 0
U200: 20620 | V200: -980 | W200: 0 | X200: 0 | Y200: 0 | Z200: 0
... 2 more rows

Sheet MP
H1: 09:00:00 | I1: 09:30:00 | J1: 10:00:00 | K1: 10:30:00 | L1: 11:00:00 | M1: 11:30:00 | N1: 12:00:00 | O1: 12:30:00 | P1: 13:00:00 | Q1: 13:30:00 | R1: 14:00:00 | S1: 14:30:00 | T1: 中心価格 | U1: =(C3+D3)/2 -> 21045 | V1: TPO | W1: =SUM(U5:U80) -> 88 | X1: ＶＡ上限 | Y1: 21070
B2: 始値 | C2: 高値 | D2: 安値 | E2: 終値 | G2: 高値 | H2: =MAX($C5:$C10) -> 21150 | I2: =MAX($C11:$C16) -> 21070 | J2: =MAX($C17:$C22) -> 21070 | K2: =MAX($C23:$C28) -> 21010 | L2: =MAX($C29:$C34) -> 21030 | M2: =MAX($C35:$C40) -> 21100 | N2: =MAX($C41:$C46) -> 21090 | O2: =MAX($C47:$C52) -> 21090 | P2: =MAX($C53:$C58) -> 21070 | Q2: =MAX($C59:$C64) -> 21060 | R2: =MAX($C65:$C70) -> 21060 | S2: =MAX($C71:$C80) -> 21060 | U2: =MAX(U5:U80) -> 10 | V2: SP | W2: =COUNTIF(U5:U80,"=1") -> 6 | X2: ＶＡ下限 | Y2: 21000
B3: =B5 -> 21110 | C3: =MAX(C5:C83) -> 21150 | D3: =MIN(D5:D83) -> 20940 | E3: =E83 -> 21050 | G3: 安値 | H3: =IF(SUM(B5:E5)<>0,SMALL(D5:D10,COUNTIF(D5:D10,"0")+1),0) -> 21040 | I3: =IF(SUM(B11:E11)<>0,SMALL(D11:D16,COUNTIF(D11:D16,"0")+1),0) -> 21040 | J3: =IF(SUM(B17:E17)<>0,SMALL(D17:D22,COUNTIF(D17:D22,"0")+1),0) -> 20950 | K3: =IF(SUM(B23:E23)<>0,SMALL(D23:D28,COUNTIF(D23:D28,"0")+1),0) -> 20940 | L3: =IF(SUM(B29:E29)<>0,SMALL(D29:D34,COUNTIF(D29:D34,"0")+1),0) -> 20980 | M3: =IF(SUM(B35:E35)<>0,SMALL(D35:D40,COUNTIF(D35:D40,"0")+1),0) -> 21030 | N3: =IF(SUM(B41:E41)<>0,SMALL(D41:D46,COUNTIF(D41:D46,"0")+1),0) -> 21050 | O3: =IF(SUM(B47:E47)<>0,SMALL(D47:D52,COUNTIF(D47:D52,"0")+1),0) -> 21050 | P3: =IF(SUM(B53:E53)<>0,SMALL(D53:D58,COUNTIF(D53:D58,"0")+1),0) -> 21020 | Q3: =IF(SUM(B59:E59)<>0,SMALL(D59:D64,COUNTIF(D59:D64,"0")+1),0) -> 21020 | R3: =IF(SUM(B65:E65)<>0,SMALL(D65:D70,COUNTIF(D65:D70,"0")+1),0) -> 20990 | S3: =IF(SUM(B71:E71)<>0,SMALL(D71:D80,COUNTIF(D71:D80,"0")+1),0) -> 20990 | V3: 有効TPO | W3: =W1-W2 -> 82 | X3: mode | Y3: 21050
A4: 時刻 | B4: 始値 | C4: 高値 | D4: 安値 | E4: 終値 | H4: A | I4: B | J4: C | K4: D | L4: E | M4: F | N4: G | O4: H | P4: I | Q4: J | R4: K | S4: L | V4: 最大ＴＰO価格数 | W4: =COUNTIF(Y5:Y204,"=M") -> 2
A5: 08:45:00 | B5: 21110 | C5: 21130 | D5: 21100 | E5: 21130 | F5: 1060 | G5: =C3 -> 21150 | H5: =IF(AND($G5<=$H$2,$G5>=$H$3),$H$4,"") -> A | I5: =IF(AND($G5<=$I$2,$G5>=$I$3),$I$4,"") ->  | J5: =IF(AND($G5<=$J$2,$G5>=$J$3),$J$4,"") ->  | K5: =IF(AND($G5<=$K$2,$G5>=$K$3),$K$4,"") ->  | L5: =IF(AND($G5<=$L$2,$G5>=$L$3),$L$4,"") ->  | M5: =IF(AND($G5<=$M$2,$G5>=$M$3),$M$4,"") ->  | N5: =IF(AND($G5<=$N$2,$G5>=$N$3),$N$4,"") ->  | O5: =IF(AND($G5<=$O$2,$G5>=$O$3),$O$4,"") ->  | P5: =IF(AND($G5<=$P$2,$G5>=$P$3),$P$4,"") ->  | Q5: =IF(AND($G5<=$Q$2,$G5>=$Q$3),$Q$4,"") ->  | R5: =IF(AND($G5<=$R$2,$G5>=$R$3),$R$4,"") ->  | S5: =IF(AND($G5<=$S$2,$G5>=$S$3),$S$4,"") ->  | T5: =H5&I5&J5&K5&L5&M5&N5&O5&P5&Q5&R5&S5 -> A | U5: =LEN(T5) -> 1 | V5: =U5/$W$3 -> 0.01219512195 | W5: =IF(G5<>"",ABS(G5-$U$1),"") -> 105 | X5: =IF(G5<>"",ABS(G5-$E$3),"") -> 100 | Y5: =IF(U5=$U$2,"M","") -> 
A6: 08:50:00 | B6: 21130 | C6: 21140 | D6: 21120 | E6: 21130 | F6: 163 | G6: =IF(G5-10>=$D$3,G5-10,"") -> 21140 | H6: A | T6: =H6&I6&J6&K6&L6&M6&N6&O6&P6&Q6&R6&S6 -> A | U6: =LEN(T6) -> 1 | V6: 0.01219512195 | W6: 95 | X6: =IF(G6<>"",ABS(G6-$E$3),"") -> 90 | Y6: =IF(U6=$U$2,"M","") -> 
A7: 08:55:00 | B7: 21130 | C7: 21150 | D7: 21130 | E7: 21150 | F7: 220 | G7: =IF(G6<>"",IF(G6-10>=$D$3,G6-10,""),"") -> 21130 | H7: A | T7: A | U7: 1 | V7: 0.01219512195 | W7: 85 | X7: 80
A8: 09:00:00 | B8: 21140 | C8: 21150 | D8: 21040 | E8: 21080 | F8: 3691 | G8: =IF(G7<>"",IF(G7-10>=$D$3,G7-10,""),"") -> 21120 | H8: A | T8: A | U8: 1 | V8: 0.01219512195 | W8: 75 | X8: 70
A9: 09:05:00 | B9: 21080 | C9: 21080 | D9: 21060 | E9: 21080 | F9: 1495 | G9: 21110 | H9: A | T9: A | U9: 1 | V9: 0.01219512195 | W9: 65 | X9: 60
A10: 09:10:00 | B10: 21070 | C10: 21090 | D10: 21060 | E10: 21060 | F10: 937 | G10: 21100 | H10: A | M10: F | T10: AF | U10: 2 | V10: 0.0243902439 | W10: 55 | X10: 50
A11: 09:15:00 | B11: 21070 | C11: 21070 | D11: 21050 | E11: 21050 | F11: 923 | G11: 21090 | H11: A | M11: F | N11: G | O11: H | T11: AFGH | U11: 4 | V11: 0.0487804878 | W11: 45 | X11: 40
A12: 09:20:00 | B12: 21050 | C12: 21070 | D12: 21040 | E12: 21050 | F12: 1003 | G12: 21080 | H12: A | M12: F | N12: G | O12: H | T12: AFGH | U12: 4 | V12: 0.0487804878 | W12: 35 | X12: 30
A13: 09:25:00 | B13: 21050 | C13: 21060 | D13: 21050 | E13: 21060 | F13: 264 | G13: 21070 | H13: A | I13: B | J13: C | M13: F | N13: G | O13: H | P13: I | T13: ABCFGHI | U13: 7 | V13: 0.08536585366 | W13: 25 | X13: 20
A14: 09:30:00 | B14: 21050 | C14: 21070 | D14: 21050 | E14: 21050 | F14: 457 | G14: 21060 | H14: A | I14: B | J14: C | M14: F | N14: G | O14: H | P14: I | Q14: J | R14: K | S14: L | T14: ABCFGHIJKL | U14: 10 | V14: 0.1219512195 | W14: 15 | X14: 10 | Y14: M
A15: 09:35:00 | B15: 21050 | C15: 21060 | D15: 21050 | E15: 21060 | F15: 453 | G15: 21050 | H15: A | I15: B | J15: C | M15: F | N15: G | O15: H | P15: I | Q15: J | R15: K | S15: L | T15: ABCFGHIJKL | U15: 10 | V15: 0.1219512195 | W15: 5 | X15: 0 | Y15: M
A16: 09:40:00 | B16: 21050 | C16: 21070 | D16: 21050 | E16: 21070 | F16: 266 | G16: 21040 | H16: A | I16: B | J16: C | M16: F | P16: I | Q16: J | R16: K | S16: L | T16: ABCFIJKL | U16: 8 | V16: 0.09756097561 | W16: 5 | X16: 10
A17: 09:45:00 | B17: 21070 | C17: 21070 | D17: 21030 | E17: 21040 | F17: 350 | G17: 21030 | J17: C | L17: E | M17: F | P17: I | Q17: J | R17: K | S17: L | T17: CEFIJKL | U17: =LEN(T17) -> 7 | V17: 0.08536585366 | W17: 15 | X17: 20
A18: 09:50:00 | B18: 21040 | C18: 21060 | D18: 21030 | E18: 21050 | F18: 635 | G18: 21020 | J18: C | L18: E | P18: I | Q18: J | R18: K | S18: L | T18: CEIJKL | U18: =IF(G18<>"",LEN(T18),"") -> 6 | V18: =IF(G18<>"",U18/$W$3,"") -> 0.07317073171 | W18: 25 | X18: 30
A19: 09:55:00 | B19: 21050 | C19: 21050 | D19: 21030 | E19: 21030 | F19: 277 | G19: 21010 | J19: C | K19: D | L19: E | R19: K | S19: L | T19: CDEKL | U19: =IF(G19<>"",LEN(T19),"") -> 5 | V19: =IF(G19<>"",U19/$W$3,"") -> 0.06097560976 | W19: =IF(G19<>"",ABS(G19-$U$1),"") -> 35 | X19: 40
A20: 10:00:00 | B20: 21030 | C20: 21040 | D20: 21010 | E20: 21010 | F20: 955 | G20: 21000 | J20: C | K20: D | L20: E | R20: K | S20: L | T20: CDEKL | U20: 5 | V20: 0.06097560976 | W20: 45 | X20: 50
A21: 10:05:00 | B21: 21010 | C21: 21010 | D21: 20960 | E21: 20980 | F21: 1942 | G21: 20990 | J21: C | K21: D | L21: E | R21: K | S21: L | T21: CDEKL | U21: 5 | V21: 0.06097560976 | W21: 55 | X21: 60
A22: 10:10:00 | B22: 20990 | C22: 20990 | D22: 20950 | E22: 20960 | F22: 1050 | G22: 20980 | J22: C | K22: D | L22: E | T22: CDE | U22: 3 | V22: 0.03658536585 | W22: 65 | X22: 70
A23: 10:15:00 | B23: 20960 | C23: 20990 | D23: 20950 | E23: 20990 | F23: 1314 | G23: 20970 | J23: C | K23: D | T23: CD | U23: 2 | V23: 0.0243902439 | W23: 75 | X23: 80
A24: 10:20:00 | B24: 20980 | C24: 21000 | D24: 20969 | E24: 21000 | F24: 1405 | G24: 20960 | J24: C | K24: D | T24: CD | U24: 2 | V24: 0.0243902439 | W24: 85 | X24: 90
A25: 10:25:00 | B25: 21000 | C25: 21010 | D25: 20980 | E25: 21010 | F25: 702 | G25: 20950 | J25: C | K25: D | T25: CD | U25: 2 | V25: 0.0243902439 | W25: 95 | X25: 100
A26: 10:30:00 | B26: 21010 | C26: 21010 | D26: 20990 | E26: 20990 | F26: 863 | G26: 20940 | K26: D | T26: D | U26: 1 | V26: 0.01219512195 | W26: 105 | X26: 110
A27: 10:35:00 | B27: 20990 | C27: 20990 | D27: 20960 | E27: 20960 | F27: 866 | P27: =IF(AND($G27<=$P$2,$G27>=$P$3),$P$4,"") -> 
A28: 10:40:00 | B28: 20960 | C28: 20990 | D28: 20940 | E28: 20990 | F28: 1043
A29: 10:45:00 | B29: 20980 | C29: 21000 | D29: 20980 | E29: 21000 | F29: 1074
A30: 10:50:00 | B30: 21000 | C30: 21020 | D30: 20990 | E30: 20990 | F30: 863
A31: 10:55:00 | B31: 20990 | C31: 21000 | D31: 20990 | E31: 21000 | F31: 653
A32: 11:00:00 | B32: 21000 | C32: 21010 | D32: 20990 | E32: 20990 | F32: 528
A33: 11:05:00 | B33: 20990 | C33: 21020 | D33: 20990 | E33: 21020 | F33: 930
A34: 11:10:00 | B34: 21020 | C34: 21030 | D34: 21010 | E34: 21030 | F34: 814
A35: 11:15:00 | B35: 21030 | C35: 21050 | D35: 21030 | E35: 21040 | F35: 788
A36: 11:20:00 | B36: 21050 | C36: 21060 | D36: 21040 | E36: 21060 | F36: 187
A37: 11:25:00 | B37: 21060 | C37: 21070 | D37: 21040 | E37: 21040 | F37: 2176 | H37: =IF(AND($G37<=$H$2,$G37>=$H$3),$H$4,"") ->  | I37: =IF(AND($G37<=$I$2,$G37>=$I$3),$I$4,"") ->  | J37: =IF(AND($G37<=$J$2,$G37>=$J$3),$J$4,"") ->  | K37: =IF(AND($G37<=$K$2,$G37>=$K$3),$K$4,"") ->  | L37: =IF(AND($G37<=$L$2,$G37>=$L$3),$L$4,"") ->  | M37: =IF(AND($G37<=$M$2,$G37>=$M$3),$M$4,"") ->  | N37: =IF(AND($G37<=$N$2,$G37>=$N$3),$N$4,"") ->  | O37: =IF(AND($G37<=$O$2,$G37>=$O$3),$O$4,"") ->  | P37: =IF(AND($G37<=$P$2,$G37>=$P$3),$P$4,"") ->  | Q37: =IF(AND($G37<=$Q$2,$G37>=$Q$3),$Q$4,"") ->  | R37: =IF(AND($G37<=$R$2,$G37>=$R$3),$R$4,"") ->  | S37: =IF(AND($G37<=$S$2,$G37>=$S$3),$S$4,"") -> 
A38: 11:30:00 | B38: 21050 | C38: 21050 | D38: 21049 | E38: 21050 | F38: 382
A39: 11:35:00 | B39: 21050 | C39: 21060 | D39: 21050 | E39: 21060 | F39: 317
A40: 11:40:00 | B40: 21070 | C40: 21100 | D40: 21060 | E40: 21090 | F40: 911
A41: 11:45:00 | B41: 21090 | C41: 21090 | D41: 21060 | E41: 21060 | F41: 531
A42: 11:50:00 | B42: 21070 | C42: 21070 | D42: 21050 | E42: 21050 | F42: 252
A43: 11:55:00 | B43: 21060 | C43: 21060 | D43: 21050 | E43: 21060 | F43: 401
A44: 12:00:00 | B44: 21050 | C44: 21050 | D44: 21050 | E44: 21050 | F44: 193
A45: 12:05:00 | B45: 21060 | C45: 21060 | D45: 21050 | E45: 21050 | F45: 482
A46: 12:10:00 | B46: 21060 | C46: 21060 | D46: 21050 | E46: 21060 | F46: 140
A47: 12:15:00 | B47: 21050 | C47: 21050 | D47: 21050 | E47: 21050 | F47: 10
A48: 12:20:00 | B48: 21060 | C48: 21070 | D48: 21060 | E48: 21070 | F48: 505
A49: 12:25:00 | B49: 21070 | C49: 21070 | D49: 21070 | E49: 21070 | F49: 103
A50: 12:30:00 | B50: 21070 | C50: 21090 | D50: 21070 | E50: 21080 | F50: 654
A51: 12:35:00 | B51: 21080 | C51: 21080 | D51: 21050 | E51: 21060 | F51: 613
A52: 12:40:00 | B52: 21060 | C52: 21070 | D52: 21060 | E52: 21070 | F52: 135
A53: 12:45:00 | B53: 21070 | C53: 21070 | D53: 21060 | E53: 21060 | F53: 232
A54: 12:50:00 | B54: 21060 | C54: 21060 | D54: 21050 | E54: 21050 | F54: 701
A55: 12:55:00 | B55: 21050 | C55: 21050 | D55: 21050 | E55: 21050 | F55: 380
A56: 13:00:00 | B56: 21040 | C56: 21040 | D56: 21020 | E56: 21040 | F56: 618
A57: 13:05:00 | B57: 21040 | C57: 21050 | D57: 21030 | E57: 21030 | F57: 177
A58: 13:10:00 | B58: 21030 | C58: 21040 | D58: 21020 | E58: 21030 | F58: 274
A59: 13:15:00 | B59: 21030 | C59: 21040 | D59: 21020 | E59: 21040 | F59: 164
A60: 13:20:00 | B60: 21040 | C60: 21040 | D60: 21040 | E60: 21040 | F60: 172
A61: 13:25:00 | B61: 21040 | C61: 21040 | D61: 21030 | E61: 21040 | F61: 25
A62: 13:30:00 | B62: 21040 | C62: 21040 | D62: 21030 | E62: 21040 | F62: 199
A63: 13:35:00 | B63: 21040 | C63: 21050 | D63: 21040 | E63: 21050 | F63: 81
A64: 13:40:00 | B64: 21050 | C64: 21060 | D64: 21050 | E64: 21060 | F64: 150
A65: 13:45:00 | B65: 21050 | C65: 21060 | D65: 21050 | E65: 21050 | F65: 167
A66: 13:50:00 | B66: 21050 | C66: 21050 | D66: 21040 | E66: 21040 | F66: 59
A67: 13:55:00 | B67: 21040 | C67: 21040 | D67: 21020 | E67: 21020 | F67: 218
A68: 14:00:00 | B68: 21020 | C68: 21040 | D68: 21020 | E68: 21040 | F68: 389
A69: 14:05:00 | B69: 21040 | C69: 21040 | D69: 20990 | E69: 21010 | F69: 1164 | H69: =IF(AND($G69<=$H$2,$G69>=$H$3),$H$4,"") ->  | I69: =IF(AND($G69<=$I$2,$G69>=$I$3),$I$4,"") ->  | J69: =IF(AND($G69<=$J$2,$G69>=$J$3),$J$4,"") ->  | K69: =IF(AND($G69<=$K$2,$G69>=$K$3),$K$4,"") ->  | L69: =IF(AND($G69<=$L$2,$G69>=$L$3),$L$4,"") ->  | M69: =IF(AND($G69<=$M$2,$G69>=$M$3),$M$4,"") ->  | N69: =IF(AND($G69<=$N$2,$G69>=$N$3),$N$4,"") ->  | O69: =IF(AND($G69<=$O$2,$G69>=$O$3),$O$4,"") ->  | P69: =IF(AND($G69<=$P$2,$G69>=$P$3),$P$4,"") ->  | Q69: =IF(AND($G69<=$Q$2,$G69>=$Q$3),$Q$4,"") ->  | R69: =IF(AND($G69<=$R$2,$G69>=$R$3),$R$4,"") ->  | S69: =IF(AND($G69<=$S$2,$G69>=$S$3),$S$4,"") -> 
A70: 14:10:00 | B70: 21020 | C70: 21030 | D70: 21020 | E70: 21020 | F70: 332 | T70: =H70&I70&J70&K70&L70&M70&N70&O70&P70&Q70&R70&S70 ->  | X70: =IF(G70<>"",ABS(G70-$E$3),"") ->  | Y70: =IF(U70=$U$2,"M","") -> 
A71: 14:15:00 | B71: 21020 | C71: 21020 | D71: 20990 | E71: 20990 | F71: 574
A72: 14:20:00 | B72: 20990 | C72: 21020 | D72: 20990 | E72: 21010 | F72: 563 | G72: =IF(G71<>"",IF(G71-10>=$D$3,G71-10,""),"") -> 
A73: 14:25:00 | B73: 21010 | C73: 21030 | D73: 21010 | E73: 21030 | F73: 267
A74: 14:30:00 | B74: 21030 | C74: 21030 | D74: 21020 | E74: 21020 | F74: 212
A75: 14:35:00 | B75: 21010 | C75: 21030 | D75: 21010 | E75: 21020 | F75: 487
A76: 14:40:00 | B76: 21020 | C76: 21040 | D76: 21020 | E76: 21030 | F76: 461
A77: 14:45:00 | B77: 21030 | C77: 21040 | D77: 21030 | E77: 21030 | F77: 372
A78: 14:50:00 | B78: 21040 | C78: 21040 | D78: 21039 | E78: 21040 | F78: 516
A79: 14:55:00 | B79: 21040 | C79: 21050 | D79: 21030 | E79: 21050 | F79: 550
A80: 15:00:00 | B80: 21050 | C80: 21060 | D80: 21040 | E80: 21050 | F80: 1316
A81: 15:05:00 | B81: 21050 | C81: 21050 | D81: 21030 | E81: 21040 | F81: 789 | T81: =H81&I81&J81&K81&L81&M81&N81&O81&P81&Q81&R81&S81 -> 
A82: 15:10:00 | B82: 21050 | C82: 21050 | D82: 21040 | E82: 21040 | F82: 35 | T82: =H82&I82&J82&K82&L82&M82&N82&O82&P82&Q82&R82&S82 -> 
A83: 15:15:00 | B83: 21050 | C83: 21050 | D83: 21050 | E83: 21050 | F83: 1361 | T83: =H83&I83&J83&K83&L83&M83&N83&O83&P83&Q83&R83&S83 ->  | U83: =IF(G83<>"",LEN(T83),"") ->  | V83: =IF(G83<>"",U83/$W$3,"") ->  | W83: =IF(G83<>"",ABS(G83-$U$1),"") -> 
T84: =H84&I84&J84&K84&L84&M84&N84&O84&P84&Q84&R84&S84 -> 
T85: =H85&I85&J85&K85&L85&M85&N85&O85&P85&Q85&R85&S85 -> 
T86: =H86&I86&J86&K86&L86&M86&N86&O86&P86&Q86&R86&S86 -> 
H133: =IF(AND($G133<=$H$2,$G133>=$H$3),$H$4,"") ->  | I133: =IF(AND($G133<=$I$2,$G133>=$I$3),$I$4,"") ->  | J133: =IF(AND($G133<=$J$2,$G133>=$J$3),$J$4,"") ->  | K133: =IF(AND($G133<=$K$2,$G133>=$K$3),$K$4,"") ->  | L133: =IF(AND($G133<=$L$2,$G133>=$L$3),$L$4,"") ->  | M133: =IF(AND($G133<=$M$2,$G133>=$M$3),$M$4,"") ->  | N133: =IF(AND($G133<=$N$2,$G133>=$N$3),$N$4,"") ->  | O133: =IF(AND($G133<=$O$2,$G133>=$O$3),$O$4,"") ->  | P133: =IF(AND($G133<=$P$2,$G133>=$P$3),$P$4,"") ->  | Q133: =IF(AND($G133<=$Q$2,$G133>=$Q$3),$Q$4,"") ->  | R133: =IF(AND($G133<=$R$2,$G133>=$R$3),$R$4,"") ->  | S133: =IF(AND($G133<=$S$2,$G133>=$S$3),$S$4,"") -> 
X134: =IF(G134<>"",ABS(G134-$E$3),"") ->  | Y134: =IF(U134=$U$2,"M","") -> 
G136: =IF(G135<>"",IF(G135-10>=$D$3,G135-10,""),"") -> 
U147: =IF(G147<>"",LEN(T147),"") ->  | V147: =IF(G147<>"",U147/$W$3,"") ->  | W147: =IF(G147<>"",ABS(G147-$U$1),"") -> 
T150: =H150&I150&J150&K150&L150&M150&N150&O150&P150&Q150&R150&S150 -> 
H197: =IF(AND($G197<=$H$2,$G197>=$H$3),$H$4,"") ->  | I197: =IF(AND($G197<=$I$2,$G197>=$I$3),$I$4,"") ->  | J197: =IF(AND($G197<=$J$2,$G197>=$J$3),$J$4,"") ->  | K197: =IF(AND($G197<=$K$2,$G197>=$K$3),$K$4,"") ->  | L197: =IF(AND($G197<=$L$2,$G197>=$L$3),$L$4,"") ->  | M197: =IF(AND($G197<=$M$2,$G197>=$M$3),$M$4,"") ->  | N197: =IF(AND($G197<=$N$2,$G197>=$N$3),$N$4,"") ->  | O197: =IF(AND($G197<=$O$2,$G197>=$O$3),$O$4,"") ->  | P197: =IF(AND($G197<=$P$2,$G197>=$P$3),$P$4,"") ->  | Q197: =IF(AND($G197<=$Q$2,$G197>=$Q$3),$Q$4,"") ->  | R197: =IF(AND($G197<=$R$2,$G197>=$R$3),$R$4,"") ->  | S197: =IF(AND($G197<=$S$2,$G197>=$S$3),$S$4,"") -> 
X198: =IF(G198<>"",ABS(G198-$E$3),"") ->  | Y198: =IF(U198=$U$2,"M","") -> 
G200: =IF(G199<>"",IF(G199-10>=$D$3,G199-10,""),"") -> 
G201: =IF(G200<>"",IF(G200-10>=$D$3,G200-10,""),"") -> 
G202: =IF(G201<>"",IF(G201-10>=$D$3,G201-10,""),"") -> 
G203: =IF(G202<>"",IF(G202-10>=$D$3,G202-10,""),"") -> 
G204: =IF(G203<>"",IF(G203-10>=$D$3,G203-10,""),"") -> 

Sheet mado
A1: 期間 | B1: =FB監視!E24 -> 2019-07-03 | C1: =FB監視!E5 -> 2019-07-31 | D1: 窓上限１ | E1: 21870 | F1: 窓下限１ | G1: 21640
A2: 最高値 | B2: =MAX(FB監視!F5:F24) -> 21800 | D2: 窓上限２ | F2: 窓下限２
A3: 最安値 | B3: =MIN(FB監視!K5:K24) -> 20960 | D3: 窓上限３ | F3: 窓下限３
A4: 値幅 | B4: =B2-B3 -> 840
B1477: 9395

Sheet 週足
A1: 日付開始 | B1: 日付終了 | C1: 週番号 | D1: 始値 | E1: 高値 | F1: 安値 | G1: 終値 | H1: 出来高 | I1: 夕場込み始値 | J1: 夕場込み高値 | K1: 夕場込み安値 | L1: 夕場込み終値 | M1: 夕場始値 | N1: 夕場高値 | O1: 夕場安値 | P1: 夕場終値 | U1: 高値平均 | V1: 安値平均 | W1: 13WMA | X1: 26WMA | Y1: 52WMA | Z1: 75WMA | AA1: 100WMA | AB1: 200WMA | AC1: 高安値幅 | AD1: 5日値幅平均 | AE1: ギャップ | AF1: 本体値幅 | AG1: ５日HB | AH1: ５日LB | AI1: ２０日HB | AJ1: ２０日LB | AK1: ４０日高値 | AL1: ４０日安値 | AM1: HBタッチ | AN1: ＬＢタッチ | AO1: LSサイド | AP1: 連続陽線 | AQ1: 連続陰線 | AR1: LMA並び | AS1: SMA並び | AT1: 前日比＋ | AU1: 前日比－ | AV1: 基準線 | AW1: 転換線 | AX1: 先行スパン上限 | AY1: 先行スパン下限 | AZ1: 遅行線 | BA1: HBOP | BB1: S2 | BC1: S1 | BD1: P | BE1: B1 | BF1: B2 | BG1: LBOP | BH1: 上昇幅 | BI1: 下落幅 | BJ1: ＲＳＩ5日 | BK1: RSI9日 | BN1: ５日ＭＡ傾き | BO1: ２０日ＭＡ傾き | BP1: 傾き判定 | BQ1: 前４日レンジ幅 | BR1: 孕み足本数 | BU1: 5日間平均出来高 | BV1: 連続上昇日数 | BW1: 連続下落日数 | BX1: 5ＥＭＡ | BY1: 20ＥＭＡ | BZ1: ＭＡＣＤ | CA1: シグナル | CB1: ＯＳＣＩ | CC1: +3σ | CD1: +2σ | CE1: +1σ | CF1: 26ＭＡ | CG1: -1σ | CH1: -2σ | CI1: -3σ | CJ1: 本体値幅 | CK1: 高安値幅 | CL1: LB乖離率 | CM1: HB乖離率 | CN1: 20MA乖離率 | CO1: 上ヒゲ | CP1: 下ヒゲ | CQ1: 一目終値雲位置 | CR1: 一目始値位置 | CS1: 転換線・基準線位置 | CT1: 前４日ＲＢＯ | CU1: 前日安値～当日始値 | CV1: 前日高値～当日始値 | CY1: 前日包み足 | CZ1: 翌日基準線 | DA1: 翌日転換線 | DB1: 翌日先行スパン上限 | DC1: 翌日先行スパン下限 | DD1: 始値５日ＭＡ
A2: 2019-07-20 | B2: 2019-07-20 | C2: 29 | D2: 0 | E2: 21800 | F2: 0 | G2: 20410 | H2: 0 | U2: =AVERAGE(E2:E6) -> 21636 | V2: 16988 | W2: =AVERAGE(G2:G12) -> 21126.36364 | X2: =AVERAGE(G2:G28) -> 21210.37037 | Y2: =AVERAGE(G2:G54) -> 21639.0566 | Z2: =AVERAGE(G2:G66) -> 21795.23077 | AA2: =AVERAGE(G2:G91) -> 21942.77778 | AB2: =AVERAGE(G2:G191) -> 19969.52632 | AC2: =IF(E2>F2,E2-F2,(E2-F2)*(-1)) -> 21800 | AD2: =(SUM(AC2:AC6)-MAX(AC2:AC6)-MIN(AC2:AC6))/3 -> 403.3333333 | AE2: =D2-G3 -> -21380 | AF2: =G2-D2 -> 20410 | AG2: =MAX(E2:E6) -> 21800 | AH2: =MIN(F2:F6) -> 0 | AI2: =MAX(AG2:AG21) -> 22370 | AJ2: =MIN(F2:F21) -> 0 | AK2: =MAX(E2:E42) -> 23600 | AL2: =MIN(F2:F42) -> 0 | AM2: =IF(U2>0,IF(E2>U2,1,AM3+1),"") -> 1 | AN2: =IF(V2>0,IF(F2<V2,1,AN3+1),"") -> 1 | AO2: =IF(W2>0,IF(G2>W2,"L","S"),"") -> S | AP2: =IF((G2-D2)>0,AP3+1,0) -> 1 | AQ2: =IF((G2-D2)<0,AQ3+1,0) -> 0 | AR2: =IF(W2>0,IF(G2>U2,IF(V2>W2,"L",""),""),"") ->  | AS2: =IF(W2>0,IF(G2<V2,IF(U2<W2,"S",""),""),"") ->  | AT2: =IF(G2>0,IF(G2-G3>0,G2-G3,""),"") ->  | AU2: =IF(G2>0,IF(G2-G3<0,ABS(G2-G3),""),"") -> 970 | AV2: =IF(F2>0,(MAX(E2:E27)+MIN(F2:F27))/2,(MAX(E3:E27,[5]FB監視!P29)+MIN(F3:F27,[5]FB監視!P29))/2) -> 11185 | AW2: =IF(F2>0,(MAX(E2:E10)+MIN(F2:F10))/2,(MAX(E3:E10,[5]FB監視!P29)+MIN(F3:F10,[5]FB監視!P29))/2) -> 10885 | AX2: =(AW28+AV28)/2 -> 21245 | AY2: =(MAX(E28:E68)+MIN(F28:F68))/2 -> 21680 | AZ2: =G28 -> 20630 | BA2: =2*BD2-2*F2+E2 -> 49940 | BB2: =BD2+E2-F2 -> 35870 | BC2: =2*BD2-F2 -> 28140 | BD2: =SUM(E2:G2)/3 -> 14070 | BE2: =2*BD2-E2 -> 6340 | BF2: =BD2-E2+F2 -> -7730 | BG2: =2*BD2-2*E2+F2 -> -15460 | BH2: =IF(G2>D2,G2-D2,0) -> 20410 | BI2: =IF(D2>G2,D2-G2,0) -> 0 | BJ2: =(SUM(AT2:AT6)/(SUM(AU2:AU6)+SUM(AT2:AT6)))*100 -> 28.33333333 | BK2: =(SUM(AT2:AT10)/(SUM(AU2:AU10)+SUM(AT2:AT10)))*100 -> 38.53820598 | BN2: =IF(U2>U3,IF(U3>U4,IF(U4>U5,U2/U5-1,""),),IF(U2<U3,IF(U3<U4,IF(U4<U5,U2/U5-1,""),""),"")) -> 0.01387066542 | BO2: =IF(W2>W3,IF(W3>W4,IF(W4>W5,W2/W5-1,""),),IF(W2<W3,IF(W3<W4,IF(W4<W5,W2/W5-1,""),""),"")) -> -0.009968900439 | BP2: =IF(BN2<>"",IF(BO2<>"",IF(BN2>0.5%,IF(BO2>0.25%,"UP",""),IF(BN2<-0.5%,IF(BO2<-0.25%,"DW",""),"")),""),"") ->  | BQ2: =(MAX(E2:E5)-MIN(F2:F5)) -> 21800 | BR2: =IF(AND(E2<=E3,F2>=F3),1,0) -> 0 | BU2: =(SUM(H2:H6)-MAX(H2:H6)-MIN(H2:H6))/3 -> 171022.3333 | BV2: =IF(G2>G3,IF(B2=B3,BV3+1,1),0) -> 0 | BW2: =IF(G2<G3,IF(B2=B3,BW3+1,1),0) -> 1 | BX2: =BX3+((G2-BX3)*2/(1+5)) -> 21077.15007 | BY2: =BY3+((G2-BY3)*2/(1+20)) -> 21244.92928 | BZ2: =BX2-BY2 -> -167.7792098 | CA2: =AVERAGE(BZ2:BZ10) -> -100.1057681 | CB2: =BZ2-CA2 -> -67.67344169 | CC2: =$CF2+3*STDEVP($G2:$G27) -> 22705.64596 | CD2: =$CF2+2*STDEVP($G2:$G27) -> 22214.66141 | CE2: =$CF2+STDEVP($G2:$G27) -> 21723.67686 | CF2: =AVERAGE(G2:G27) -> 21232.69231 | CG2: =$CF2-STDEVP($G2:$G27) -> 20741.70776 | CH2: =$CF2-2*STDEVP($G2:$G27) -> 20250.72321 | CI2: =$CF2-3*STDEVP($G2:$G27) -> 19759.73866 | CJ2: =(G2-D2)/AD2 -> 50.60330579 | CK2: =(E2-F2)/AD2 -> 54.04958678 | CL2: =(G2-V2)/AD2 -> 8.484297521 | CM2: =(G2-U2)/AD2 -> -3.039669421 | CN2: =(G2-W2)/AD2 -> -1.776108189 | CO2: =IF(CJ2>=0,(E2-G2),(E2-D2)) -> 1390 | CP2: =IF(CJ2>=0,(D2-F2),(G2-F2)) -> 0 | CQ2: =IF(AND(G2>AX2,G2>AY2),"L",IF(AND(G2<AX2,G2<AY2),"S","I")) -> S | CR2: =IF(AND(CS2="L",D2>AW2),"L",IF(AND(CS2="S",D2<AW2),"S","N")) -> S | CS2: =IF(AW2>AV2,"L",IF(AW2<AV2,"S","N")) -> S | CT2: =IF(D2>MAX(E3:E6),"H",IF(D2<MIN(F3:F6),"L","")) -> L | CU2: =(D2-F3) -> -20960 | CV2: =(D2-E3) -> -21620 | CY2: =IF(AND(CJ3>=0,D2>G3,G2<D3),"D",IF(AND(CJ3<=0,D2<G3,G2>D3),"U","")) ->  | CZ2: =IF(F2>0,(MAX(E2:E27)+MIN(F2:F27))/2,(MAX([5]FB監視!D2,E3:E26)+MIN([5]FB監視!D2,F3:F26))/2) -> 21325 | DA2: =IF(F2>0,(MAX(E2:E10)+MIN(F2:F10))/2,(MAX([5]FB監視!D2,E3:E9)+MIN([5]FB監視!D2,F3:F9))/2) -> 21025 | DB2: =(AW27+AV27)/2 -> 21245 | DC2: =(MAX(E28:E67)+MIN(F28:F67))/2 -> 21680 | DD2: =AVERAGE(D2,G3:G6) -> 17186
A3: 2019-07-16 | B3: 2019-07-19 | C3: 29 | D3: 21580 | E3: 21620 | F3: 20960 | G3: 21380 | H3: 168089 | U3: 21566 | V3: 21160 | W3: 21208.18182 | X3: 21207.03704 | Y3: 21680.37736 | Z3: 21822.15385 | AA3: 21961 | AB3: 19966.63158 | AC3: 660 | AD3: 380 | AE3: -50 | AF3: -200 | AG3: 21770 | AH3: 20860 | AI3: 22370 | AJ3: 20280 | AK3: 24450 | AL3: 18910 | AM3: 1 | AN3: 1 | AO3: L | AP3: 0 | AQ3: 2 | AU3: 250 | AV3: =IF(F3>0,(MAX(E3:E28)+MIN(F3:F28))/2,(MAX(E4:E28,[5]FB監視!P30)+MIN(F4:F28,[5]FB監視!P30))/2) -> 21265 | AW3: =IF(F3>0,(MAX(E3:E11)+MIN(F3:F11))/2,(MAX(E4:E11,[5]FB監視!P30)+MIN(F4:F11,[5]FB監視!P30))/2) -> 21025 | AX3: 21245 | AY3: 21680 | AZ3: 20320 | BA3: 22340 | BB3: 21980 | BC3: 21680 | BD3: 21320 | BE3: 21020 | BF3: 20660 | BG3: 20360 | BH3: 0 | BI3: 200 | BJ3: 67.67676768 | BK3: 52.48868778 | BN3: 0.01515722086 | BO3: -0.006811699093 | BQ3: 810 | BR3: 0 | BU3: 174453 | BV3: 0 | BW3: 1 | BX3: 21410.7251 | BY3: 21332.81657 | BZ3: 77.90853097 | CA3: -81.18291146 | CB3: 159.0914424 | CC3: 22676.56304 | CD3: 22198.09331 | CE3: 21719.62358 | CF3: 21241.15385 | CG3: 20762.68411 | CH3: 20284.21438 | CI3: 19805.74465 | CJ3: -0.5263157895 | CK3: 1.736842105 | CL3: 0.5789473684 | CM3: -0.4894736842 | CN3: 0.45215311 | CO3: 40 | CP3: 420 | CQ3: I | CR3: N | CS3: S | CU3: 120 | CV3: -110 | CZ3: =IF(F3>0,(MAX(E3:E28)+MIN(F3:F28))/2,(MAX([5]FB監視!D3,E4:E27)+MIN([5]FB監視!D3,F4:F27))/2) -> 21265 | DA3: =IF(F3>0,(MAX(E3:E11)+MIN(F3:F11))/2,(MAX([5]FB監視!D3,E4:E10)+MIN([5]FB監視!D3,F4:F10))/2) -> 21025 | DB3: 21245 | DC3: 21680 | DD3: 21464
A4: 2019-07-08 | B4: 2019-07-12 | C4: 28 | D4: 21640 | E4: 21690 | F4: 21460 | G4: 21630 | H4: 174321 | U4: 21494 | V4: 21150 | W4: 21287.27273 | X4: 21136.66667 | Y4: 21688.30189 | Z4: 21828.76923 | AA4: 21961.77778 | AB4: 19958.78947 | AC4: 230 | AD4: 300 | AE4: -60 | AF4: -10 | AG4: 21770 | AH4: 20860 | AI4: 22370 | AJ4: 20280 | AK4: 24450 | AL4: 18910 | AM4: 1 | AN4: 6 | AO4: L | AP4: 0 | AQ4: 1 | AU4: 70 | AV4: 21175 | AW4: 21025 | AX4: 21245 | AY4: 21680 | AZ4: 19480 | BA4: 21956.66667 | BB4: 21823.33333 | BC4: 21726.66667 | BD4: 21593.33333 | BE4: 21496.66667 | BF4: 21363.33333 | BG4: 21266.66667 | BH4: 0 | BI4: 10 | BJ4: 91.76470588 | BK4: 58 | BO4: -0.005521107619 | BQ4: 910 | BR4: 0 | BU4: 178701.6667 | BV4: 0 | BW4: 1 | BX4: 21426.08765 | BY4: 21327.84989 | BZ4: 98.23775746 | CA4: -75.80118009 | CB4: 174.0389376 | CC4: 22727.63284 | CD4: 22218.5501 | CE4: 21709.46736 | CF4: 21200.38462 | CG4: 20691.30187 | CH4: 20182.21913 | CI4: 19673.13639 | CJ4: -0.03333333333 | CK4: 0.7666666667 | CL4: 1.6 | CM4: 0.4533333333 | CN4: 1.142424242 | CO4: 50 | CP4: 170 | CQ4: I | CR4: N | CS4: S | CU4: 120 | CV4: -130 | CZ4: 21175 | DA4: 21025 | DB4: 21245 | DC4: 21680 | DD4: 21356
A5: 2019-07-01 | B5: 2019-07-05 | C5: 27 | D5: 21640 | E5: 21770 | F5: 21520 | G5: 21700 | H5: 170657 | U5: 21340 | V5: 20914 | W5: 21339.09091 | X5: 21070.37037 | Y5: 21699.24528 | Z5: 21828.92308 | AA5: 21956.55556 | AB5: 19948.26316 | AC5: 250 | AD5: 413.3333333 | AE5: 420 | AF5: 60 | AG5: 21770 | AH5: 20280 | AI5: 22370 | AJ5: 20280 | AK5: 24450 | AL5: 18910 | AM5: 1 | AN5: 5 | AO5: L | AP5: 3 | AQ5: 0 | AT5: 480 | AV5: 20790 | AW5: 21220 | AX5: 21245 | AY5: 21680 | AZ5: 19840 | BA5: 22056.66667 | BB5: 21913.33333 | BC5: 21806.66667 | BD5: 21663.33333 | BE5: 21556.66667 | BF5: 21413.33333 | BG5: 21306.66667 | BH5: 60 | BI5: 0 | BJ5: 100 | BK5: 40.41811847 | BN5: 0 | BQ5: 910 | BR5: 0 | BU5: 197030.6667 | BV5: 1 | BW5: 0 | BX5: 21324.13147 | BY5: 21296.04462 | BZ5: 28.08685627 | CA5: -58.06473877 | CB5: 86.15159504 | CC5: 22915.35055 | CD5: 22316.13113 | CE5: 21716.91172 | CF5: 21117.69231 | CG5: 20518.47289 | CH5: 19919.25348 | CI5: 19320.03407 | CJ5: 0.1451612903 | CK5: 0.6048387097 | CL5: 1.901612903 | CM5: 0.8709677419 | CN5: 0.8731671554 | CO5: 70 | CP5: 120 | CQ5: L | CR5: L | CS5: L | CT5: H | CU5: 640 | CV5: 340 | CZ5: 20790 | DA5: 21220 | DB5: 21245 | DC5: 21680 | DD5: 21200
A6: 2019-06-24 | B6: 2019-06-28 | C6: 26 | D6: 21180 | E6: 21300 | F6: 21000 | G6: 21220 | H6: 178381 | U6: 21244 | V6: 20718 | W6: 21353.63636 | X6: 21009.25926 | Y6: 21713.58491 | Z6: 21824.92308 | AA6: 21945.55556 | AB6: 19935.42105 | AC6: 300 | AD6: 526.6666667 | AE6: -10 | AF6: 40 | AG6: 21450 | AH6: 20280 | AI6: 22370 | AJ6: 20280 | AK6: 24450 | AL6: 18910 | AM6: 1 | AN6: 4 | AO6: S | AP6: 2 | AQ6: 0 | AT6: 30 | AV6: 20640 | AW6: 21325 | AX6: 21760 | AY6: 22195 | AZ6: 20050 | BA6: 21646.66667 | BB6: 21473.33333 | BC6: 21346.66667 | BD6: 21173.33333 | BE6: 21046.66667 | BF6: 20873.33333 | BG6: 20746.66667 | BH6: 40 | BI6: 0 | BJ6: 54.83870968 | BK6: 29.91803279 | BQ6: 1170 | BR6: 1 | BU6: 216045.6667 | BV6: 1 | BW6: 0 | BX6: 21136.19721 | BY6: 21253.523 | BZ6: -117.3257882 | CA6: -11.56845945 | CB6: -105.7573287 | CC6: 22952.2588 | CD6: 22316.89048 | CE6: 21681.52216 | CF6: 21046.15385 | CG6: 20410.78553 | CH6: 19775.41721 | CI6: 19140.04889 | CJ6: 0.07594936709 | CK6: 0.5696202532 | CL6: 0.953164557 | CM6: -0.04556962025 | CN6: -0.253739931 | CO6: 80 | CP6: 180 | CQ6: S | CR6: N | CS6: L | CU6: 320 | CV6: -270 | CZ6: 20640 | DA6: 21325 | DB6: 21245 | DC6: 22195 | DD6: 20972
A7: 2019-06-17 | B7: 2019-06-21 | C7: 25 | D7: 21000 | E7: 21450 | F7: 20860 | G7: 21190 | H7: 183403 | U7: 21270 | V7: 20688 | W7: 21405.45455 | X7: 21012.22222 | Y7: 21743.96226 | Z7: 21811.53846 | AA7: 21935.77778 | AB7: 19924.21053 | AC7: 590 | AD7: 603.3333333 | AE7: -30 | AF7: 190 | AG7: 21450 | AH7: 20280 | AI7: 22370 | AJ7: 20280 | AK7: 24450 | AL7: 18910 | AM7: 1 | AN7: 3 | AO7: S | AP7: 1 | AQ7: 0 | AT7: 160 | AV7: 20640 | AW7: 21325 | AX7: 22330 | AY7: 22300 | AZ7: 21300 | BA7: 22063.33333 | BB7: 21756.66667 | BC7: 21473.33333 | BD7: 21166.66667 | BE7: 20883.33333 | BF7: 20576.66667 | BG7: 20293.33333 | BH7: 190 | BI7: 0 | BJ7: 47.10144928 | BK7: 37.81818182 | BN7: 0 | BQ7: 1170 | BR7: 0 | BU7: 222021.6667 | BV7: 1 | BW7: 0 | BX7: 21094.29581 | BY7: 21257.05173 | BZ7: -162.7559203 | CA7: 42.00353658 | CB7: -204.7594569 | CC7: 22988.12282 | CD7: 22325.79983 | CE7: 21663.47684 | CF7: 21001.15385 | CG7: 20338.83085 | CH7: 19676.50786 | CI7: 19014.18487 | CJ7: 0.3149171271 | CK7: 0.9779005525 | CL7: 0.8320441989 | CM7: -0.1325966851 | CN7: -0.3571069814 | CO7: 260 | CP7: 140 | CQ7: S | CR7: N | CS7: L | CU7: 90 | CV7: -260 | CY7: U | CZ7: 20640 | DA7: 21325 | DB7: 21760 | DC7: 22300 | DD7: 20918
A8: 2019-06-10 | B8: 2019-06-14 | C8: 24 | D8: 21150 | E8: 21260 | F8: 20910 | G8: 21030 | H8: 303407 | U8: 21258 | V8: 20666 | W8: 21405.45455 | X8: 21028.14815 | Y8: 21770.9434 | Z8: 21815.38462 | AA8: 21924.55556 | AB8: 19911.63158 | AC8: 350 | AD8: 620 | AE8: 230 | AF8: -120 | AG8: 21430 | AH8: 20280 | AI8: 22370 | AJ8: 20280 | AK8: 24450 | AL8: 18910 | AM8: 1 | AN8: 2 | AO8: S | AP8: 0 | AQ8: 1 | AT8: 110 | AV8: 20640 | AW8: 21325 | AX8: 22492.5 | AY8: 22300 | AZ8: 21620 | BA8: 21573.33333 | BB8: 21416.66667 | BC8: 21223.33333 | BD8: 21066.66667 | BE8: 20873.33333 | BF8: 20716.66667 | BG8: 20523.33333 | BH8: 0 | BI8: 120 | BJ8: 38.88888889 | BK8: 35.71428571 | BN8: -0.03099644453 | BO8: -0.003639133378 | BP8: DW | BQ8: 1150 | BR8: 0 | BU8: 242225.6667 | BV8: 1 | BW8: 0 | BX8: 21046.44372 | BY8: 21264.10981 | BZ8: -217.666091 | CA8: 85.62709824 | CB8: -303.2931892 | CC8: 22996.98057 | CD8: 22333.11525 | CE8: 21669.24993 | CF8: 21005.38462 | CG8: 20341.5193 | CH8: 19677.65398 | CI8: 19013.78866 | CJ8: -0.1935483871 | CK8: 0.564516129 | CL8: 0.5870967742 | CM8: -0.3677419355 | CN8: -0.6055718475 | CO8: 110 | CP8: 120 | CQ8: S | CR8: N | CS8: L | CU8: 870 | CV8: 230 | CZ8: 20640 | DA8: 21325 | DB8: 22330 | DC8: 22300 | DD8: 20996
A9: 2019-06-03 | B9: 2019-06-07 | C9: 23 | D9: 20300 | E9: 20920 | F9: 20280 | G9: 20920 | H9: 229308 | U9: 21438 | V9: 20718 | W9: 21433.63636 | X9: 21077.03704 | Y9: 21793.39623 | Z9: 21820.30769 | AA9: 21910.77778 | AB9: 19897.21053 | AC9: 640 | AD9: 676.6666667 | AE9: -240 | AF9: 620 | AG9: 22160 | AH9: 20280 | AI9: 22370 | AJ9: 20160 | AK9: 24450 | AL9: 18910 | AM9: 5 | AN9: 1 | AO9: S | AP9: 1 | AQ9: 0 | AT9: 380 | AV9: 20810 | AW9: 21325 | AX9: 22705 | AY9: 22300 | AZ9: 22350 | BA9: 21773.33333 | BB9: 21346.66667 | BC9: 21133.33333 | BD9: 20706.66667 | BE9: 20493.33333 | BF9: 20066.66667 | BG9: 19853.33333 | BH9: 620 | BI9: 0 | BJ9: 18.18181818 | BK9: 45.71428571 | BN9: -0.02757869908 | BO9: -0.004517817936 | BP9: DW | BQ9: 1150 | BR9: 0 | BU9: 242225.6667 | BV9: 1 | BW9: 0 | BX9: 21054.66558 | BY9: 21288.75295 | BZ9: -234.0873692 | CA9: 124.0577172 | CB9: -358.1450864 | CC9: 23051.03776 | CD9: 22376.71748 | CE9: 21702.3972 | CF9: 21028.07692 | CG9: 20353.75664 | CH9: 19679.43636 | CI9: 19005.11608 | CJ9: 0.9162561576 | CK9: 0.9458128079 | CL9: 0.2985221675 | CM9: -0.7655172414 | CN9: -0.7590685177 | CO9: 0 | CP9: 20 | CQ9: S | CR9: N | CS9: L | CT9: L | CU9: -240 | CV9: -990 | CZ9: 20810 | DA9: 21325 | DB9: 22492.5 | DC9: 22300 | DD9: 20904
A10: 2019-05-27 | B10: 2019-05-31 | C10: 22 | D10: 21180 | E10: 21290 | F10: 20540 | G10: 20540 | H10: 235426 | U10: 21728 | V10: 21074 | W10: 21462.72727 | X10: 21105.92593 | Y10: 21822.07547 | Z10: 21823.53846 | AA10: 21891 | AB10: 19884.05263 | AC10: 750 | AD10: 656.6666667 | AE10: 80 | AF10: -640 | AG10: 22370 | AH10: 20540 | AI10: 22370 | AJ10: 19980 | AK10: 24450 | AL10: 18910 | AM10: 4 | AN10: 1 | AO10: S | AP10: 0 | AQ10: 2 | AU10: 560 | AV10: 20810 | AW10: 21455 | AX10: 22705 | AY10: 22300 | AZ10: 21700 | BA10: 21790 | BB10: 21540 | BC10: 21040 | BD10: 20790 | BE10: 20290 | BF10: 20040 | BG10: 19540 | BH10: 0 | BI10: 640 | BJ10: 2.840909091 | BK10: 36.30136986 | BN10: -0.018342821 | BO10: -0.003713550238 | BP10: DW | BQ10: 1620 | BR10: 0 | BU10: 232900 | BV10: 0 | BW10: 1 | BX10: 21121.99837 | BY10: 21327.56905 | BZ10: -205.5706793 | CA10: 147.9089513 | CB10: -353.4796307 | CC10: 23243.16938 | CD10: 22523.13856 | CE10: 21803.10774 | CF10: 21083.07692 | CG10: 20363.04611 | CH10: 19643.01529 | CI10: 18922.98447 | CJ10: -0.9746192893 | CK10: 1.14213198 | CL10: -0.8131979695 | CM10: -1.809137056 | CN10: -1.405168436 | CO10: 110 | CP10: 0 | CQ10: S | CR10: N | CS10: L | CU10: 330 | CV10: -250 | CZ10: 20810 | DA10: 21455 | DB10: 22705 | DC10: 22300 | DD10: 21422
A11: 2019-05-20 | B11: 2019-05-24 | C11: 21 | D11: 21260 | E11: 21430 | F11: 20850 | G11: 21100 | H11: 201331 | U11: 21938 | V11: 21374 | W11: 21483.63636 | X11: 21147.03704 | Y11: 21867.16981 | Z11: 21844.61538 | AA11: 21881.55556 | AB11: 19868.94737 | AC11: 580 | AD11: 510 | AE11: -10 | AF11: -160 | AG11: 22370 | AH11: 20750 | AI11: 22710 | AJ11: 19210 | AK11: 24450 | AL11: 18910 | AM11: 3 | AN11: 1 | AO11: S | AP11: 0 | AQ11: 1 | AU11: 170 | AV11: 20810 | AW11: 21525 | AX11: 22705 | AY11: 22300 | AZ11: 21650 | BA11: 21983.33333 | BB11: 21706.66667 | BC11: 21403.33333 | BD11: 21126.66667 | BE11: 20823.33333 | BF11: 20546.66667 | BG11: 20243.33333 | BH11: 0 | BI11: 160 | BJ11: 25.32467532 | BK11: 47.15447154 | BQ11: 1620 | BR11: 0 | BU11: 219565.3333 | BV11: 0 | BW11: 1 | BX11: 21412.99755 | BY11: 21410.47105 | BZ11: 2.526500093 | CA11: 167.8249999 | CB11: -165.2984998 | CC11: 23290.4999 | CD11: 22569.56404 | CE11: 21848.62817 | CF11: 21127.69231 | CG11: 20406.75644 | CH11: 19685.82058 | CI11: 18964.88471 | CJ11: -0.3137254902 | CK11: 1.137254902 | CL11: -0.537254902 | CM11: -1.643137255 | CN11: -0.752228164 | CO11: 170 | CP11: 250 | CQ11: S | CR11: N | CS11: L | CU11: 510 | CV11: -130 | CZ11: 20810 | DA11: 21525 | DB11: 22705 | DC11: 22300 | DD11: 21658
A12: 2019-05-13 | B12: 2019-05-17 | C12: 20 | D12: 21180 | E12: 21390 | F12: 20750 | G12: 21270 | H12: 261943 | U12: 22046 | V12: 21512 | W12: 21530.90909 | X12: 21190.37037 | Y12: 21897.92453 | Z12: 21854.46154 | AA12: 21863.22222 | AB12: 19851.42105 | AC12: 640 | AD12: 460 | AE12: -130 | AF12: 90 | AG12: 22370 | AH12: 20750 | AI12: 22710 | AJ12: 18910 | AK12: 24450 | AL12: 18910 | AM12: 2 | AN12: 1 | AO12: S | AP12: 1 | AQ12: 0 | AU12: 40 | AV12: 20810 | AW12: 21525 | AX12: 22705 | AY12: 22300 | AZ12: 22270 | BA12: 22163.33333 | BB12: 21776.66667 | BC12: 21523.33333 | BD12: 21136.66667 | BE12: 20883.33333 | BF12: 20496.66667 | BG12: 20243.33333 | BH12: 90 | BI12: 0 | BJ12: 31.94444444 | BK12: 59.05797101 | BQ12: 1620 | BR12: 0 | BU12: 216058.3333 | BV12: 0 | BW12: 1 | BX12: 21569.49633 | BY12: 21443.15222 | BZ12: 126.3441133 | CA12: 156.9230979 | CB12: -30.57898461 | CC12: 23332.39292 | CD12: 22604.544 | CE12: 21876.69508 | CF12: 21148.84615 | CG12: 20420.99723 | CH12: 19693.14831 | CI12: 18965.29939 | CJ12: 0.1956521739 | CK12: 1.391304348 | CL12: -0.5260869565 | CM12: -1.686956522 | CN12: -0.5671936759 | CO12: 120 | CP12: 430 | CQ12: S | CR12: N | CS12: L | CU12: 10 | CV12: -980 | CZ12: 20810 | DA12: 21525 | DB12: 22705 | DC12: 22300 | DD12: 21760
A13: 2019-05-07 | B13: 2019-05-10 | C13: 19 | D13: 22120 | E13: 22160 | F13: 21170 | G13: 21310 | H13: 278477 | U13: 22134 | V13: 21652 | W13: 21542.72727 | X13: 21225.92593 | Y13: 21920.56604 | Z13: 21855.84615 | AA13: 21842.88889 | AB13: 19834.21053 | AC13: 990 | AD13: 373.3333333 | AE13: -130 | AF13: -810 | AG13: 22370 | AH13: 21170 | AI13: 22710 | AJ13: 18910 | AK13: 24450 | AL13: 18910 | AM13: 1 | AN13: 1 | AO13: S | AP13: 0 | AQ13: 1 | AU13: 940 | AV13: 20810 | AW13: 21525 | AX13: 22705 | AY13: 22300 | AZ13: 22230 | BA13: 22913.33333 | BB13: 22536.66667 | BC13: 21923.33333 | BD13: 21546.66667 | BE13: 20933.33333 | BF13: 20556.66667 | BG13: 19943.33333 | BH13: 0 | BI13: 810 | BJ13: 53 | BK13: 45.65826331 | BN13: 0.0241532482 | BO13: 0.01651509952 | BP13: UP | BQ13: 1200 | BR13: 0 | BU13: 205972.6667 | BV13: 0 | BW13: 1 | BX13: 21719.2445 | BY13: 21461.37877 | BZ13: 257.8657293 | CA13: 124.4494308 | CB13: 133.4162985 | CC13: 23464.27771 | CD13: 22705.2877 | CE13: 21946.2977 | CF13: 21187.30769 | CG13: 20428.31769 | CH13: 19669.32768 | CI13: 18910.33768 | CJ13: -2.169642857 | CK13: 2.651785714 | CL13: -0.9160714286 | CM13: -2.207142857 | CN13: -0.6233766234 | CO13: 40 | CP13: 140 | CQ13: S | CR13: L | CS13: L | CU13: 60 | CV13: -250 | CZ13: 20810 | DA13: 21525 | DB13: 22705 | DC13: 22300 | DD13: 22044
A14: 2019-04-22 | B14: 2019-04-26 | C14: 17 | D14: 22200 | E14: 22370 | F14: 22060 | G14: 22250 | H14: 195422 | U14: 21978 | V14: 21554 | W14: 21505.45455 | X14: 21222.96296 | Y14: 21943.20755 | Z14: 21886.76923 | AA14: 21825.11111 | AB14: 19817.68421 | AC14: 310 | AD14: 373.3333333 | AE14: 0 | AF14: 50 | AG14: 22370 | AH14: 20680 | AI14: 22710 | AJ14: 18910 | AK14: 24450 | AL14: 18910 | AM14: 1 | AN14: 5 | AO14: L | AP14: 2 | AQ14: 0 | AR14: L | AT14: 50 | AV14: 20810 | AW14: 21525 | AX14: 22705 | AY14: 22300 | AZ14: 21230 | BA14: 22703.33333 | BB14: 22536.66667 | BC14: 22393.33333 | BD14: 22226.66667 | BE14: 22083.33333 | BF14: 21916.66667 | BG14: 21773.33333 | BH14: 50 | BI14: 0 | BJ14: 87.60330579 | BK14: 64.9122807 | BN14: 0.01787699148 | BO14: 0.0194794001 | BP14: UP | BQ14: 920 | BR14: 0 | BU14: 205972.6667 | BV14: 1 | BW14: 0 | BX14: 21923.86674 | BY14: 21477.31337 | BZ14: 446.5533701 | CA14: 85.99136346 | CB14: 360.5620066 | CC14: 23577.35874 | CD14: 22792.46993 | CE14: 22007.58112 | CF14: 21222.69231 | CG14: 20437.8035 | CH14: 19652.91469 | CI14: 18868.02588 | CJ14: 0.1339285714 | CK14: 0.8303571429 | CL14: 1.864285714 | CM14: 0.7285714286 | CN14: 1.994318182 | CO14: 120 | CP14: 140 | CQ14: S | CR14: L | CS14: L | CU14: 160 | CV14: -140 | CZ14: 20810 | DA14: 21525 | DB14: 22705 | DC14: 22300 | DD14: 21848
A15: 2019-04-15 | B15: 2019-04-19 | C15: 16 | D15: 22100 | E15: 22340 | F15: 22040 | G15: 22200 | H15: 190810 | U15: 21802 | V15: 21390 | W15: 21327.27273 | X15: 21233.33333 | Y15: 21941.50943 | Z15: 21908 | AA15: 21799.55556 | AB15: 19794.05263 | AC15: 300 | AD15: 370 | AE15: 240 | AF15: 100 | AG15: 22340 | AH15: 20680 | AI15: 22710 | AJ15: 18910 | AK15: 24450 | AL15: 18910 | AM15: 1 | AN15: 4 | AO15: L | AP15: 1 | AQ15: 0 | AR15: L | AT15: 340 | AV15: 20810 | AW15: 21510 | AX15: 23090 | AY15: 22300 | AZ15: 22530 | BA15: 22646.66667 | BB15: 22493.33333 | BC15: 22346.66667 | BD15: 22193.33333 | BE15: 22046.66667 | BF15: 21893.33333 | BG15: 21746.66667 | BH15: 100 | BI15: 0 | BJ15: 88.0952381 | BK15: 69.6969697 | BN15: 0.01141213583 | BO15: 0.01611226611 | BP15: UP | BQ15: 1660 | BR15: 0 | BU15: 199267.3333 | BV15: 1 | BW15: 0 | BX15: 21760.80011 | BY15: 21395.97794 | BZ15: 364.8221761 | CA15: 4.109583572 | CB15: 360.7125925 | CC15: 23456.19199 | CD15: 22698.61517 | CE15: 21941.03836 | CF15: 21183.46154 | CG15: 20425.88472 | CH15: 19668.30791 | CI15: 18910.73109 | CJ15: 0.2702702703 | CK15: 0.8108108108 | CL15: 2.189189189 | CM15: 1.075675676 | CN15: 2.358722359 | CO15: 140 | CP15: 60 | CQ15: S | CR15: L | CS15: L | CT15: H | CU15: 560 | CV15: 130 | CZ15: 20810 | DA15: 21510 | DB15: 22705 | DC15: 22300 | DD15: 21656
A16: 2019-04-08 | B16: 2019-04-12 | C16: 15 | D16: 21940 | E16: 21970 | F16: 21540 | G16: 21860 | H16: 175306 | U16: 21612 | V16: 21132 | W16: 21192.72727 | X16: 21250 | Y16: 21934.15094 | Z16: 21932.61538 | AA16: 21774.55556 | AB16: 19778.15789 | AC16: 430 | AD16: 483.3333333 | AE16: 150 | AF16: -80 | AG16: 21970 | AH16: 20680 | AI16: 22710 | AJ16: 18910 | AK16: 24450 | AL16: 18910 | AM16: 1 | AN16: 3 | AO16: L | AP16: 0 | AQ16: 1 | AT16: 70 | AV16: 20930 | AW16: 21175 | AX16: 23037.5 | AY16: 22300 | AZ16: 22650 | BA16: 22470 | BB16: 22220 | BC16: 22040 | BD16: 21790 | BE16: 21610 | BF16: 21360 | BG16: 21180 | BH16: 0 | BI16: 80 | BJ16: 89.20863309 | BK16: 71.98879552 | BO16: 0.01352115125 | BQ16: 1290 | BR16: 0 | BU16: 212138.3333 | BV16: 1 | BW16: 0 | BX16: 21541.20017 | BY16: 21311.34404 | BZ16: 229.8561347 | CA16: -94.57738046 | CB16: 324.4335151 | CC16: 23527.20295 | CD16: 22750.18658 | CE16: 21973.17022 | CF16: 21196.15385 | CG16: 20419.13748 | CH16: 19642.12111 | CI16: 18865.10474 | CJ16: -0.1655172414 | CK16: 0.8896551724 | CL16: 1.506206897 | CM16: 0.5131034483 | CN16: 1.380564263 | CO16: 30 | CP16: 320 | CQ16: S | CR16: L | CS16: L | CT16: H | CU16: 490 | CV16: 110 | CZ16: 20930 | DA16: 21175 | DB16: 23090 | DC16: 22300 | DD16: 21500
A17: 2019-04-01 | B17: 2019-04-05 | C17: 14 | D17: 21500 | E17: 21830 | F17: 21450 | G17: 21790 | H17: 231686 | U17: 21592 | V17: 20978 | W17: 21094.54545 | X17: 21322.59259 | Y17: 21930 | Z17: 21960 | AA17: 21754.77778 | AB17: 19765.36842 | AC17: 380 | AD17: 573.3333333 | AE17: 310 | AF17: 290 | AG17: 21870 | AH17: 20680 | AI17: 22710 | AJ17: 18910 | AK17: 24450 | AL17: 18910 | AM17: 1 | AN17: 2 | AO17: L | AP17: 2 | AQ17: 0 | AT17: 600 | AV17: 21255 | AW17: 21080 | AX17: 23037.5 | AY17: 22300 | AZ17: 23820 | BA17: 22310 | BB17: 22070 | BC17: 21930 | BD17: 21690 | BE17: 21550 | BF17: 21310 | BG17: 21170 | BH17: 290 | BI17: 0 | BJ17: 53.91705069 | BK17: 63.61323155 | BN17: 0 | BO17: 0.01705018628 | BQ17: 1150 | BR17: 0 | BU17: 246869 | BV17: 1 | BW17: 0 | BX17: 21381.80026 | BY17: 21253.59078 | BZ17: 128.20948 | CA17: -196.194678 | CB17: 324.404158 | CC17: 23676.96461 | CD17: 22860.15589 | CE17: 22043.34718 | CF17: 21226.53846 | CG17: 20409.72975 | CH17: 19592.92103 | CI17: 18776.11231 | CJ17: 0.5058139535 | CK17: 0.6627906977 | CL17: 1.41627907 | CM17: 0.3453488372 | CN17: 1.213002114 | CO17: 40 | CP17: 50 | CQ17: S | CR17: N | CS17: S | CU17: 820 | CV17: 120 | CZ17: 21255 | DA17: 21080 | DB17: 23037.5 | DC17: 22300 | DD17: 21208
A18: 2019-03-25 | B18: 2019-03-29 | C18: 13 | D18: 20990 | E18: 21380 | F18: 20680 | G18: 21190 | H18: 279498 | U18: 21556 | V18: 20960 | W18: 20989.09091 | X18: 21409.25926 | Y18: 21923.39623 | Z18: 21989.69231 | AA18: 21736.11111 | AB18: 19758.63158 | AC18: 700 | AD18: 543.3333333 | AE18: -350 | AF18: 200 | AG18: 21870 | AH18: 20680 | AI18: 22950 | AJ18: 18910 | AK18: 24450 | AL18: 18910 | AM18: 4 | AN18: 1 | AO18: L | AP18: 1 | AQ18: 0 | AU18: 150 | AV18: 21680 | AW18: 21080 | AX18: 22860 | AY18: 22220 | AZ18: 24130 | BA18: 22186.66667 | BB18: 21783.33333 | BC18: 21486.66667 | BD18: 21083.33333 | BE18: 20786.66667 | BF18: 20383.33333 | BG18: 20086.66667 | BH18: 200 | BI18: 0 | BJ18: 44.13407821 | BK18: 56.04719764 | BO18: 0.01821389195 | BQ18: 1190 | BR18: 0 | BU18: 247709.6667 | BV18: 0 | BW18: 1 | BX18: 21177.70039 | BY18: 21197.12665 | BZ18: -19.42626232 | CA18: -285.479776 | CB18: 266.0535137 | CC18: 24162.59891 | CD18: 23209.93773 | CE18: 22257.27656 | CF18: 21304.61538 | CG18: 20351.95421 | CH18: 19399.29304 | CI18: 18446.63186 | CJ18: 0.3680981595 | CK18: 1.288343558 | CL18: 0.4233128834 | CM18: -0.6736196319 | CN18: 0.369771333 | CO18: 190 | CP18: 310 | CQ18: S | CR18: S | CS18: S | CU18: -250 | CV18: -500 | CZ18: 21680 | DA18: 21080 | DB18: 23037.5 | DC18: 22220 | DD18: 21192
A19: 2019-03-18 | B19: 2019-03-22 | C19: 12 | D19: 21370 | E19: 21490 | F19: 21240 | G19: 21340 | H19: 139118 | U19: 21590 | V19: 21058 | W19: 20910 | X19: 21504.07407 | Y19: 21907.54717 | Z19: 22013.69231 | AA19: 21722.33333 | AB19: 19756.10526 | AC19: 250 | AD19: 436.6666667 | AE19: 130 | AF19: -30 | AG19: 21870 | AH19: 20750 | AI19: 23600 | AJ19: 18910 | AK19: 24450 | AL19: 18910 | AM19: 3 | AN19: 2 | AO19: L | AP19: 0 | AQ19: 1 | AT19: 100 | AV19: 21680 | AW19: 21080 | AX19: 22402.5 | AY19: 22145 | AZ19: 23750 | BA19: 21723.33333 | BB19: 21606.66667 | BC19: 21473.33333 | BD19: 21356.66667 | BE19: 21223.33333 | BF19: 21106.66667 | BG19: 20973.33333 | BH19: 0 | BI19: 30 | BJ19: 60.28037383 | BK19: 60.4719764 | BN19: 0.01561764983 | BO19: 0.01760828209 | BP19: UP | BQ19: 1120 | BR19: 0 | BU19: 231982.6667 | BV19: 1 | BW19: 0 | BX19: 21171.55058 | BY19: 21197.87682 | BZ19: -26.3262423 | CA19: -371.549994 | CB19: 345.2237517 | CC19: 24705.81051 | CD19: 23609.77111 | CE19: 22513.73171 | CF19: 21417.69231 | CG19: 20321.65291 | CH19: 19225.61351 | CI19: 18129.57411 | CJ19: -0.06870229008 | CK19: 0.572519084 | CL19: 0.6458015267 | CM19: -0.572519084 | CN19: 0.9847328244 | CO19: 120 | CP19: 100 | CQ19: S | CR19: N | CS19: S | CU19: 620 | CV19: -20 | CZ19: 21680 | DA19: 21080 | DB19: 22860 | DC19: 22145 | DD19: 21280
A20: 2019-03-11 | B20: 2019-03-15 | C20: 11 | D20: 20910 | E20: 21390 | F20: 20750 | G20: 21240 | H20: 229423 | U20: 21536 | V20: 20886 | W20: 20740.90909 | X20: 21564.44444 | Y20: 21909.43396 | Z20: 22036.92308 | AA20: 21707.33333 | AB20: 19752.05263 | AC20: 640 | AD20: 620 | AE20: 140 | AF20: 330 | AG20: 21870 | AH20: 20380 | AI20: 24450 | AJ20: 18910 | AK20: 24450 | AL20: 18910 | AM20: 2 | AN20: 1 | AO20: L | AP20: 1 | AQ20: 0 | AT20: 470 | AV20: 21680 | AW20: 21015 | AX20: 22017.5 | AY20: 22145 | AZ20: 22970 | BA20: 22143.33333 | BB20: 21766.66667 | BC20: 21503.33333 | BD20: 21126.66667 | BE20: 20863.33333 | BF20: 20486.66667 | BG20: 20223.33333 | BH20: 330 | BI20: 0 | BJ20: 67.9245283 | BK20: 62.77777778 | BN20: 0.02047005307 | BO20: 0.01081033184 | BP20: UP | BQ20: 1120 | BR20: 0 | BU20: 231982.6667 | BV20: 1 | BW20: 0 | BX20: 21087.32587 | BY20: 21182.91649 | BZ20: -95.59061741 | CA20: -476.7076366 | CB20: 381.1170192 | CC20: 25062.18191 | CD20: 23878.24948 | CE20: 22694.31705 | CF20: 21510.38462 | CG20: 20326.45218 | CH20: 19142.51975 | CI20: 17958.58732 | CJ20: 0.5322580645 | CK20: 1.032258065 | CL20: 0.5709677419 | CM20: -0.4774193548 | CN20: 0.8049853372 | CO20: 150 | CP20: 160 | CQ20: S | CR20: S | CS20: S | CU20: 140 | CV20: -960 | CZ20: 21680 | DA20: 21015 | DB20: 22402.5 | DC20: 22145 | DD20: 21120
A21: 2019-03-04 | B21: 2019-03-08 | C21: 10 | D21: 21780 | E21: 21870 | F21: 20770 | G21: 20770 | H21: 351579 | U21: 21450 | V21: 20794 | W21: 20613.63636 | X21: 21606.66667 | Y21: 21911.50943 | Z21: 22056.61538 | AA21: 21694.44444 | AB21: 19748.26316 | AC21: 1100 | AD21: 630 | AE21: 160 | AF21: -1010 | AG21: 21870 | AH21: 20290 | AI21: 24450 | AJ21: 18910 | AK21: 24450 | AL21: 18910 | AM21: 1 | AN21: 1 | AO21: L | AP21: 0 | AQ21: 1 | AU21: 850 | AV21: 21680 | AW21: 20925 | AX21: 21992.5 | AY21: 22145 | AZ21: 22380 | BA21: 22603.33333 | BB21: 22236.66667 | BC21: 21503.33333 | BD21: 21136.66667 | BE21: 20403.33333 | BF21: 20036.66667 | BG21: 19303.33333 | BH21: 0 | BI21: 1010 | BJ21: 50.95785441 | BK21: 66.24685139 | BN21: 0.02494266055 | BQ21: 1490 | BR21: 0 | BU21: 229053 | BV21: 0 | BW21: 1 | BX21: 21010.98881 | BY21: 21176.9077 | BZ21: -165.918891 | CA21: -594.8177122 | CB21: 428.8988212 | CC21: 25222.13693 | CD21: 24007.06564 | CE21: 22791.99436 | CF21: 21576.92308 | CG21: 20361.85179 | CH21: 19146.78051 | CI21: 17931.70923 | CJ21: -1.603174603 | CK21: 1.746031746 | CL21: -0.0380952381 | CM21: -1.079365079 | CN21: 0.2481962482 | CO21: 90 | CP21: 0 | CQ21: S | CR21: N | CS21: S | CT21: H | CU21: 420 | CV21: 130 | CY21: D | CZ21: 21680 | DA21: 20925 | DB21: 22017.5 | DC21: 22145 | DD21: 21198
A22: 2019-02-25 | B22: 2019-03-01 | C22: 9 | D22: 21550 | E22: 21650 | F22: 21360 | G22: 21620 | H22: 234208 | U22: 21258 | V22: 20716 | W22: 20548.18182 | X22: 21684.07407 | Y22: 21918.30189 | Z22: 22087.69231 | AA22: 21685.22222 | AB22: 19747.57895 | AC22: 290 | AD22: 526.6666667 | AE22: 150 | AF22: 70 | AG22: 21650 | AH22: 20290 | AI22: 24450 | AJ22: 18910 | AK22: 24450 | AL22: 18910 | AM22: 1 | AN22: 9 | AO22: L | AP22: 3 | AQ22: 0 | AR22: L | AT22: 220 | AV22: 21680 | AW22: 20430 | AX22: 21920 | AY22: 22145 | AZ22: 22860 | BA22: 22016.66667 | BB22: 21833.33333 | BC22: 21726.66667 | BD22: 21543.33333 | BE22: 21436.66667 | BF22: 21253.33333 | BG22: 21146.66667 | BH22: 70 | BI22: 0 | BJ22: 73.07692308 | BK22: 75.57471264 | BN22: 0.0231013572 | BO22: 0 | BQ22: 1360 | BR22: 0 | BU22: 229053 | BV22: 1 | BW22: 0 | BX22: 21131.48321 | BY22: 21219.74009 | BZ22: -88.25687668 | CA22: -718.9747124 | CB22: 630.7178357 | CC22: 25279.02889 | CD22: 24065.63464 | CE22: 22852.2404 | CF22: 21638.84615 | CG22: 20425.45191 | CH22: 19212.05767 | CI22: 17998.66342 | CJ22: 0.1329113924 | CK22: 0.5506329114 | CL22: 1.716455696 | CM22: 0.6873417722 | CN22: 2.035097814 | CO22: 30 | CP22: 190 | CQ22: S | CR22: N | CS22: S | CU22: 380 | CV22: 0 | CZ22: 21680 | DA22: 20430 | DB22: 21992.5 | DC22: 22145 | DD22: 20972
A23: 2019-02-18 | B23: 2019-02-22 | C23: 8 | D23: 21250 | E23: 21550 | F23: 21170 | G23: 21400 | H23: 232317 | U23: 21104 | V23: 20528 | W23: 20519.09091 | X23: 21720 | Y23: 21923.77358 | Z23: 22105.53846 | AA23: 21666.66667 | AB23: 19738.31579 | AC23: 380 | AD23: 553.3333333 | AE23: 350 | AF23: 150 | AG23: 21550 | AH23: 20290 | AI23: 24450 | AJ23: 18910 | AK23: 24450 | AL23: 18910 | AM23: 1 | AN23: 8 | AO23: L | AP23: 2 | AQ23: 0 | AR23: L | AT23: 500 | AV23: 21680 | AW23: 20230 | AX23: 21890 | AY23: 22145 | AZ23: 22590 | BA23: 21956.66667 | BB23: 21753.33333 | BC23: 21576.66667 | BD23: 21373.33333 | BE23: 21196.66667 | BF23: 20993.33333 | BG23: 20816.66667 | BH23: 150 | BI23: 0 | BJ23: 72 | BK23: 69.45244957 | BN23: 0.02976480921 | BO23: -0.01346212684 | BQ23: 1260 | BR23: 0 | BU23: 221124.6667 | BV23: 1 | BW23: 0 | BX23: 20887.22482 | BY23: 21177.60747 | BZ23: -290.3826489 | CA23: -830.3942278 | CB23: 540.0115789 | CC23: 25394.16935 | CD23: 24158.29238 | CE23: 22922.41542 | CF23: 21686.53846 | CG23: 20450.6615 | CH23: 19214.78454 | CI23: 17978.90758 | CJ23: 0.2710843373 | CK23: 0.686746988 | CL23: 1.575903614 | CM23: 0.534939759 | CN23: 1.592004381 | CO23: 150 | CP23: 80 | CQ23: S | CR23: N | CS23: S | CT23: H | CU23: 870 | CV23: 30 | CZ23: 21680 | DA23: 20230 | DB23: 21920 | DC23: 22145 | DD23: 20788
A24: 2019-02-12 | B24: 2019-02-15 | C24: 7 | D24: 20400 | E24: 21220 | F24: 20380 | G24: 20900 | H24: 220634 | U24: 20928 | V24: 20326 | W24: 20539.09091 | X24: 21751.85185 | Y24: 21930.18868 | Z24: 22123.69231 | AA24: 21653 | AB24: 19733.78947 | AC24: 840 | AD24: 570 | AE24: 110 | AF24: 500 | AG24: 21220 | AH24: 20160 | AI24: 24450 | AJ24: 18910 | AK24: 24450 | AL24: 18910 | AM24: 1 | AN24: 7 | AO24: L | AP24: 1 | AQ24: 0 | AT24: 610 | AV24: 21680 | AW24: 20205 | AX24: 21890 | AY24: 22145 | AZ24: 22260 | BA24: 22126.66667 | BB24: 21673.33333 | BC24: 21286.66667 | BD24: 20833.33333 | BE24: 20446.66667 | BF24: 19993.33333 | BG24: 19606.66667 | BH24: 500 | BI24: 0 | BJ24: 68.58974359 | BK24: 45.26066351 | BN24: 0.0284029484 | BO24: -0.01649834581 | BQ24: 930 | BR24: 0 | BU24: 210502.3333 | BV24: 1 | BW24: 0 | BX24: 20630.83722 | BY24: 21154.19772 | BZ24: -523.3605002 | CA24: -893.3409212 | CB24: 369.980421 | CC24: 25471.53197 | CD24: 24225.12388 | CE24: 22978.71579 | CF24: 21732.30769 | CG24: 20485.8996 | CH24: 19239.4915 | CI24: 17993.08341 | CJ24: 0.8771929825 | CK24: 1.473684211 | CL24: 1.007017544 | CM24: -0.04912280702 | CN24: 0.6331738437 | CO24: 320 | CP24: 20 | CQ24: S | CR24: N | CS24: S | CU24: 110 | CV24: -560 | CZ24: 21680 | DA24: 20205 | DB24: 21890 | DC24: 22145 | DD24: 20564
A25: 2019-02-04 | B25: 2019-02-08 | C25: 6 | D25: 20760 | E25: 20960 | F25: 20290 | G25: 20290 | H25: 200450 | U25: 20778 | V25: 20246 | W25: 20670.90909 | X25: 21803.7037 | Y25: 21938.86792 | Z25: 22147.53846 | AA25: 21639.77778 | AB25: 19733.05263 | AC25: 670 | AD25: 510 | AE25: 40 | AF25: -470 | AG25: 20960 | AH25: 19980 | AI25: 24450 | AJ25: 18910 | AK25: 24450 | AL25: 18910 | AM25: 1 | AN25: 6 | AO25: S | AP25: 0 | AQ25: 3 | AU25: 430 | AV25: 21680 | AW25: 20392.5 | AX25: 21900 | AY25: 22145 | AZ25: 22300 | BA25: 21406.66667 | BB25: 21183.33333 | BC25: 20736.66667 | BD25: 20513.33333 | BE25: 20066.66667 | BF25: 19843.33333 | BG25: 19396.66667 | BH25: 0 | BI25: 470 | BJ25: 72.62569832 | BK25: 33.07888041 | BO25: -0.01656502746 | BQ25: 800 | BR25: 0 | BU25: 215900.3333 | BV25: 0 | BW25: 1 | BX25: 20496.25584 | BY25: 21180.95538 | BZ25: -684.6995432 | CA25: -891.4714434 | CB25: 206.7719001 | CC25: 25501.3034 | CD25: 24262.4074 | CE25: 23023.51139 | CF25: 21784.61538 | CG25: 20545.71938 | CH25: 19306.82337 | CI25: 18067.92737 | CJ25: -0.9215686275 | CK25: 1.31372549 | CL25: 0.0862745098 | CM25: -0.9568627451 | CN25: -0.7468805704 | CO25: 200 | CP25: 0 | CQ25: S | CR25: N | CS25: S | CU25: 380 | CV25: -150 | CZ25: 21680 | DA25: 20392.5 | DB25: 21890 | DC25: 22145 | DD25: 20642
A26: 2019-01-28 | B26: 2019-02-01 | C26: 5 | D26: 20750 | E26: 20910 | F26: 20380 | G26: 20720 | H26: 236828 | U26: 20494 | V26: 20030 | W26: 20799.09091 | X26: 21885.92593 | Y26: 21996.03774 | Z26: 22181.84615 | AA26: 21632.11111 | AB26: 19732.42105 | AC26: 530 | AD26: 486.6666667 | AE26: -30 | AF26: -30 | AG26: 20910 | AH26: 19210 | AI26: 24450 | AJ26: 18910 | AK26: 24450 | AL26: 18910 | AM26: 1 | AN26: 5 | AO26: S | AP26: 0 | AQ26: 2 | AU26: 60 | AV26: 21680 | AW26: 20810 | AX26: 21900 | AY26: 22145 | AZ26: 22510 | BA26: 21490 | BB26: 21200 | BC26: 20960 | BD26: 20670 | BE26: 20430 | BF26: 20140 | BG26: 19900 | BH26: 0 | BI26: 30 | BJ26: 75.58139535 | BK26: 30.73286052 | BN26: 0 | BO26: -0.01726729951 | BQ26: 930 | BR26: 0 | BU26: 209027.3333 | BV26: 0 | BW26: 1 | BX26: 20599.38376 | BY26: 21274.74016 | BZ26: -675.3564017 | CA26: -858.9963559 | CB26: 183.6399542 | CC26: 25478.36648 | CD26: 24272.88534 | CE26: 23067.40421 | CF26: 21861.92308 | CG26: 20656.44194 | CH26: 19450.96081 | CI26: 18245.47968 | CJ26: -0.06164383562 | CK26: 1.089041096 | CL26: 1.417808219 | CM26: 0.4643835616 | CN26: -0.1625155666 | CO26: 160 | CP26: 340 | CQ26: S | CR26: S | CS26: S | CU26: 330 | CV26: -130 | CZ26: 21680 | DA26: 20810 | DB26: 21900 | DC26: 22145 | DD26: 20392
A27: 2019-01-21 | B27: 2019-01-25 | C27: 4 | D27: 20860 | E27: 20880 | F27: 20420 | G27: 20780 | H27: 210423 | U27: 20350 | V27: 19736 | W27: 20883.63636 | X27: 21958.51852 | Y27: 22050.9434 | Z27: 22208.92308 | AA27: 21622.77778 | AB27: 19730.68421 | AC27: 460 | AD27: 486.6666667 | AE27: 230 | AF27: -80 | AG27: 20880 | AH27: 18910 | AI27: 24450 | AJ27: 18910 | AK27: 24450 | AL27: 18910 | AM27: 1 | AN27: 4 | AO27: S | AP27: 0 | AQ27: 1 | AT27: 150 | AV27: 21680 | AW27: 20810 | AX27: 22082.5 | AY27: 22145 | AZ27: 22680 | BA27: 21426.66667 | BB27: 21153.33333 | BC27: 20966.66667 | BD27: 20693.33333 | BE27: 20506.66667 | BF27: 20233.33333 | BG27: 20046.66667 | BH27: 0 | BI27: 80 | BJ27: 69.51871658 | BK27: 40.45643154 | BN27: -0.03841610358 | BO27: -0.01711449598 | BP27: DW | BQ27: 1670 | BR27: 0 | BU27: 208420 | BV27: 1 | BW27: 0 | BX27: 20539.07563 | BY27: 21333.13386 | BZ27: -794.0582249 | CA27: -818.2790781 | CB27: 24.2208532 | CC27: 25498.6832 | CD27: 24309.37854 | CE27: 23120.07389 | CF27: 21930.76923 | CG27: 20741.46458 | CH27: 19552.15992 | CI27: 18362.85527 | CJ27: -0.1643835616 | CK27: 0.9452054795 | CL27: 2.145205479 | CM27: 0.8835616438 | CN27: -0.2129514321 | CO27: 20 | CP27: 360 | CQ27: S | CR27: N | CS27: S | CT27: H | CU27: 700 | CV27: 190 | CZ27: 21680 | DA27: 20810 | DB27: 21900 | DC27: 22145 | DD27: 20226
A28: 2019-01-15 | B28: 2019-01-18 | C28: 3 | D28: 20170 | E28: 20670 | F28: 20160 | G28: 20630 | H28: 179831 | U28: 20474 | V28: 19640 | W28: 21019.09091 | X28: 22030.37037 | Y28: 22107.92453 | Z28: 22228.46154 | AA28: 21608.33333 | AB28: 19729 | AC28: 510 | AD28: 760 | AE28: -150 | AF28: 460 | AG28: 21500 | AH28: 18910 | AI28: 24450 | AJ28: 18910 | AK28: 24450 | AL28: 18910 | AM28: 1 | AN28: 3 | AO28: S | AP28: 4 | AQ28: 0 | AT28: 310 | AV28: 21680 | AW28: 20810 | AX28: 22192.5 | AY28: 22145 | AZ28: 22720 | BA28: 21323.33333 | BB28: 20996.66667 | BC28: 20813.33333 | BD28: 20486.66667 | BE28: 20303.33333 | BF28: 19976.66667 | BG28: 19793.33333 | BH28: 460 | BI28: 0 | BJ28: 38.72053872 | BK28: 39.19491525 | BN28: -0.05836361128 | BO28: -0.02348270473 | BP28: DW | BQ28: 1760 | BR28: 0 | BU28: 215607.3333 | BV28: 1 | BW28: 0 | BX28: 20418.61345 | BY28: 21391.35847 | BZ28: -972.7450252 | CA28: -779.1980257 | CB28: -193.5469995 | CC28: 25527.74445 | CD28: 24353.11168 | CE28: 23178.47892 | CF28: 22003.84615 | CG28: 20829.21339 | CH28: 19654.58063 | CI28: 18479.94786 | CJ28: 0.6052631579 | CK28: 0.6710526316 | CL28: 1.302631579 | CM28: 0.2052631579 | CN28: -0.5119617225 | CO28: 40 | CP28: 10 | CQ28: S | CR28: S | CS28: S | CU28: 190 | CV28: -300 | CZ28: 21680 | DA28: 20810 | DB28: 22082.5 | DC28: 22145 | DD28: 19972
A29: 2019-01-07 | B29: 2019-01-11 | C29: 2 | D29: 20140 | E29: 20470 | F29: 19980 | G29: 20320 | H29: 242965 | U29: 20715 | V29: 19820 | W29: 21164.54545 | X29: 22103.33333 | Y29: 22164.71698 | Z29: 22241.07692 | AA29: 21592.44444 | AB29: 19728.63158 | AC29: 490 | AD29: 861.6666667 | AE29: 660 | AF29: 180 | AG29: 21875 | AH29: 18910 | AI29: 24450 | AJ29: 18910 | AK29: 24450 | AL29: 18910 | AM29: 6 | AN29: 2 | AO29: S | AP29: 3 | AQ29: 0 | AT29: 840 | AV29: 21680 | AW29: 20810 | AX29: 22192.5 | AY29: 22145 | AZ29: 22600 | BA29: 21023.33333 | BB29: 20746.66667 | BC29: 20533.33333 | BD29: 20256.66667 | BE29: 20043.33333 | BF29: 19766.66667 | BG29: 19553.33333 | BH29: 180 | BI29: 0 | BJ29: 28.18791946 | BK29: 30.61630219 | BN29: -0.06160815402 | BO29: -0.02825778446 | BP29: DW | BQ29: 2590 | BR29: 0 | BU29: 236652 | BV29: 1 | BW29: 0 | BX29: 20312.92017 | BY29: 21471.50147 | BZ29: -1158.581298 | CA29: -713.7462095 | CB29: -444.8350886 | CC29: 25531.53245 | CD29: 24382.43189 | CE29: 23233.33133 | CF29: 22084.23077 | CG29: 20935.13021 | CH29: 19786.02965 | CI29: 18636.92908 | CJ29: 0.2088974855 | CK29: 0.5686653772 | CL29: 0.580270793 | CM29: -0.4584139265 | CN29: -0.9801301213 | CO29: 150 | CP29: 160 | CQ29: S | CR29: S | CS29: S | CU29: 930 | CV29: 600 | CZ29: 21680 | DA29: 20810 | DB29: 22192.5 | DC29: 22145 | DD29: 20162
A30: 2019-01-07 | B30: 2019-01-04 | C30: 1 | D30: 19420 | E30: 19540 | F30: 19210 | G30: 19480 | H30: 69519 | U30: 21163 | V30: 20084 | W30: 21247.27273 | X30: 22158.14815 | Y30: 22228.86792 | Z30: 22254 | AA30: 21573.88889 | AB30: 19728.42105 | AC30: 330 | AD30: 1168.333333 | AE30: -420 | AF30: 60 | AG30: 22710 | AH30: 18910 | AI30: 24450 | AJ30: 18910 | AK30: 24450 | AL30: 18910 | AM30: 5 | AN30: 1 | AO30: S | AP30: 2 | AQ30: 0 | AS30: S | AU30: 360 | AV30: 21680 | AW30: 20810 | AX30: 22192.5 | AY30: 22145 | AZ30: 21800 | BA30: 19940 | BB30: 19740 | BC30: 19610 | BD30: 19410 | BE30: 19280 | BF30: 19080 | BG30: 18950 | BH30: 60 | BI30: 0 | BJ30: 0 | BK30: 17.49408983 | BN30: -0.04838347048 | BO30: -0.03957263201 | BP30: DW | BQ30: 2965 | BR30: 1 | BU30: 264197 | BV30: 0 | BW30: 1 | BX30: 20309.38026 | BY30: 21592.71215 | BZ30: -1283.331893 | CA30: -612.4052399 | CB30: -670.9266527 | CC30: 25462.72164 | CD30: 24365.78879 | CE30: 23268.85593 | CF30: 22171.92308 | CG30: 21074.99022 | CH30: 19978.05737 | CI30: 18881.12451 | CJ30: 0.05135520685 | CK30: 0.2824536377 | CL30: -0.5169757489 | CM30: -1.440513552 | CN30: -1.512644274 | CO30: 60 | CP30: 210 | CQ30: S | CR30: S | CS30: S | CU30: 510 | CV30: -770 | CZ30: 21680 | DA30: 20810 | DB30: 22192.5 | DC30: 22145 | DD30: 20446
A31: 2018-12-25 | B31: 2018-12-28 | C31: 52 | D31: 19300 | E31: 20190 | F31: 18910 | G31: 19840 | H31: 235006 | U31: 21743 | V31: 20558 | W31: 21524.54545 | X31: 22259.25926 | Y31: 22290.56604 | Z31: 22272.92308 | AA31: 21561 | AB31: 19729.89474 | AC31: 1280 | AD31: 1183.333333 | AE31: -750 | AF31: 540 | AG31: 22710 | AH31: 18910 | AI31: 24450 | AJ31: 18910 | AK31: 24450 | AL31: 18910 | AM31: 4 | AN31: 1 | AO31: S | AP31: 1 | AQ31: 0 | AU31: 210 | AV31: 21680 | AW31: 20810 | AX31: 22315 | AY31: 22060 | AZ31: 22210 | BA31: 21663.33333 | BB31: 20926.66667 | BC31: 20383.33333 | BD31: 19646.66667 | BE31: 19103.33333 | BF31: 18366.66667 | BG31: 17823.33333 | BH31: 540 | BI31: 0 | BJ31: 20.56962025 | BK31: 35.72895277 | BN31: -0.02846291332 | BO31: -0.03822406369 | BP31: DW | BQ31: 3800 | BR31: 0 | BU31: 264197 | BV31: 0 | BW31: 1 | BX31: 20724.07039 | BY31: 21815.10291 | BZ31: -1091.032515 | CA31: -497.6870409 | CB31: -593.3454746 | CC31: 25141.6385 | CD31: 24181.47695 | CE31: 23221.3154 | CF31: 22261.15385 | CG31: 21300.99229 | CH31: 20340.83074 | CI31: 19380.66919 | CJ31: 0.4563380282 | CK31: 1.081690141 | CL31: -0.6067605634 | CM31: -1.608169014 | CN31: -1.423559539 | CO31: 350 | CP31: 390 | CQ31: S | CR31: S | CS31: S | CT31: L | CU31: -640 | CV31: -2200 | CZ31: 21680 | DA31: 20810 | DB31: 22192.5 | DC31: 22145 | DD31: 20924
A32: 2018-12-17 | B32: 2018-12-21 | C32: 51 | D32: 21260 | E32: 21500 | F32: 19940 | G32: 20050 | H32: 231985 | U32: 22075 | V32: 21014 | W32: 21780 | X32: 22356.2963 | Y32: 22347.35849 | Z32: 22280.61538 | AA32: 21548.44444 | AB32: 19727.47368 | AC32: 1560 | AD32: 1028.333333 | AE32: -40 | AF32: -1210 | AG32: 22710 | AH32: 19940 | AI32: 24450 | AJ32: 19940 | AK32: 24450 | AL32: 19940 | AM32: 3 | AN32: 1 | AO32: S | AP32: 0 | AQ32: 1 | AU32: 1250 | AV32: 22195 | AW32: 21325 | AX32: 22315 | AY32: 21705 | AZ32: 22460 | BA32: 22613.33333 | BB32: 22056.66667 | BC32: 21053.33333 | BD32: 20496.66667 | BE32: 19493.33333 | BF32: 18936.66667 | BG32: 17933.33333 | BH32: 0 | BI32: 1210 | BJ32: 23.33333333 | BK32: 29.19463087 | BO32: -0.03515766582 | BQ32: 2770 | BR32: 0 | BU32: 239484.3333 | BV32: 0 | BW32: 1 | BX32: 21166.10558 | BY32: 22023.00847 | BZ32: -856.9028895 | CA32: -401.9163229 | CB32: -454.9865667 | CC32: 24841.11613 | CD32: 24011.51332 | CE32: 23181.91051 | CF32: 22352.30769 | CG32: 21522.70488 | CH32: 20693.10207 | CI32: 19863.49925 | CJ32: -1.176661264 | CK32: 1.517017828 | CL32: -0.937439222 | CM32: -1.969205835 | CN32: -1.682333874 | CO32: 240 | CP32: 110 | CQ32: S | CR32: S | CS32: S | CU32: 200 | CV32: -615 | CZ32: 22195 | DA32: 21325 | DB32: 22315 | DC32: 22060 | DD32: 21646
A33: 2018-12-10 | B33: 2018-12-14 | C33: 50 | D33: 21200 | E33: 21875 | F33: 21060 | G33: 21300 | H33: 401733 | U33: 22239 | V33: 21320 | W33: 22122.72727 | X33: 22459.25926 | Y33: 22393.96226 | Z33: 22282.61538 | AA33: 21535.77778 | AB33: 19724.78947 | AC33: 815 | AD33: 841.6666667 | AE33: -420 | AF33: 100 | AG33: 22710 | AH33: 21060 | AI33: 24450 | AJ33: 20960 | AK33: 24450 | AL33: 20150 | AM33: 2 | AN33: 1 | AO33: S | AP33: 1 | AQ33: 0 | AU33: 320 | AV33: 22705 | AW33: 21955 | AX33: 22275 | AY33: 21610 | AZ33: 22830 | BA33: 22578.33333 | BB33: 22226.66667 | BC33: 21763.33333 | BD33: 21411.66667 | BE33: 20948.33333 | BF33: 20596.66667 | BG33: 20133.33333 | BH33: 100 | BI33: 0 | BJ33: 29.53586498 | BK33: 36.02484472 | BO33: -0.02241594022 | BQ33: 1650 | BR33: 0 | BU33: 228697.3333 | BV33: 0 | BW33: 1 | BX33: 21724.15838 | BY33: 22230.69358 | BZ33: -506.5351996 | CA33: -282.9499751 | CB33: -223.5852246 | CC33: 24515.27172 | CD33: 23825.18115 | CE33: 23135.09057 | CF33: 22445 | CG33: 21754.90943 | CH33: 21064.81885 | CI33: 20374.72828 | CJ33: 0.1188118812 | CK33: 0.9683168317 | CL33: -0.02376237624 | CM33: -1.115643564 | CN33: -0.9774977498 | CO33: 575 | CP33: 140 | CQ33: S | CR33: S | CS33: S | CU33: -100 | CV33: -1510 | CZ33: 22705 | DA33: 21955 | DB33: 22315 | DC33: 21705 | DD33: 21704
A34: 2018-12-03 | B34: 2018-12-07 | C34: 49 | D34: 22680 | E34: 22710 | F34: 21300 | G34: 21620 | H34: 325600 | U34: 22380 | V34: 21480 | W34: 22380 | X34: 22508.14815 | Y34: 22422.07547 | Z34: 22259.38462 | AA34: 21511.77778 | AB34: 19718.21053 | AC34: 1410 | AD34: 810 | AE34: 330 | AF34: -1060 | AG34: 22710 | AH34: 21190 | AI34: 24450 | AJ34: 20960 | AK34: 24450 | AL34: 20150 | AM34: 1 | AN34: 1 | AO34: S | AP34: 0 | AQ34: 1 | AU34: 730 | AV34: 22705 | AW34: 22280 | AX34: 22212.5 | AY34: 21610 | AZ34: 22620 | BA34: 23863.33333 | BB34: 23286.66667 | BC34: 22453.33333 | BD34: 21876.66667 | BE34: 21043.33333 | BF34: 20466.66667 | BG34: 19633.33333 | BH34: 0 | BI34: 1060 | BJ34: 35.40669856 | BK34: 30.63380282 | BN34: 0 | BO34: -0.01374143664 | BQ34: 1520 | BR34: 0 | BU34: 202346.3333 | BV34: 0 | BW34: 1 | BX34: 21936.23757 | BY34: 22328.66132 | BZ34: -392.4237559 | CA34: -179.5961191 | CB34: -212.8276368 | CC34: 24466.58696 | CD34: 23812.34003 | CE34: 23158.09309 | CF34: 22503.84615 | CG34: 21849.59922 | CH34: 21195.35228 | CI34: 20541.10535 | CJ34: -1.308641975 | CK34: 1.740740741 | CL34: 0.1728395062 | CM34: -0.9382716049 | CN34: -0.9382716049 | CO34: 30 | CP34: 320 | CQ34: I | CR34: N | CS34: S | CT34: H | CU34: 1100 | CV34: 240 | CZ34: 22705 | DA34: 22280 | DB34: 22275 | DC34: 21610 | DD34: 22130
A35: 2018-11-26 | B35: 2018-11-30 | C35: 48 | D35: 21580 | E35: 22440 | F35: 21580 | G35: 22350 | H35: 160868 | U35: 22298 | V35: 21422 | W35: 22573.63636 | X35: 22530.37037 | Y35: 22443.96226 | Z35: 22221.23077 | AA35: 21486.55556 | AB35: 19708.05263 | AC35: 860 | AD35: 810 | AE35: -120 | AF35: 770 | AG35: 22580 | AH35: 21010 | AI35: 24450 | AJ35: 20960 | AK35: 24450 | AL35: 20150 | AM35: 1 | AN35: 2 | AO35: S | AP35: 2 | AQ35: 0 | AT35: 650 | AV35: 22705 | AW35: 22705 | AX35: 22095 | AY35: 21610 | AZ35: 22220 | BA35: 23526.66667 | BB35: 22983.33333 | BC35: 22666.66667 | BD35: 22123.33333 | BE35: 21806.66667 | BF35: 21263.33333 | BG35: 20946.66667 | BH35: 770 | BI35: 0 | BJ35: 73.72881356 | BK35: 33.07984791 | BN35: -0.02278902621 | BO35: -0.01000717646 | BP35: DW | BQ35: 1390 | BR35: 0 | BU35: 202346.3333 | BV35: 1 | BW35: 0 | BX35: 22094.35635 | BY35: 22403.25725 | BZ35: -308.9009016 | CA35: -58.0044043 | CB35: -250.8964973 | CC35: 24432.62466 | CD35: 23802.519 | CE35: 23172.41335 | CF35: 22542.30769 | CG35: 21912.20204 | CH35: 21282.09638 | CI35: 20651.99073 | CJ35: 0.950617284 | CK35: 1.061728395 | CL35: 1.145679012 | CM35: 0.06419753086 | CN35: -0.2760942761 | CO35: 90 | CP35: 0 | CQ35: L | CR35: N | CS35: N | CU35: 390 | CV35: -270 | CZ35: 22705 | DA35: 22705 | DB35: 22212.5 | DC35: 21610 | DD35: 21886
A36: 2018-11-19 | B36: 2018-11-22 | C36: 47 | D36: 21680 | E36: 21850 | F36: 21190 | G36: 21700 | H36: 137166 | U36: 22342 | V36: 21298 | W36: 22630 | X36: 22533.7037 | Y36: 22448.30189 | Z36: 22180.30769 | AA36: 21454.55556 | AB36: 19695.52632 | AC36: 660 | AD36: 953.3333333 | AE36: 30 | AF36: 20 | AG36: 22660 | AH36: 20960 | AI36: 24450 | AJ36: 20960 | AK36: 24450 | AL36: 20150 | AM36: 8 | AN36: 1 | AO36: S | AP36: 1 | AQ36: 0 | AT36: 50 | AV36: 22705 | AW36: 22705 | AX36: 21872.5 | AY36: 21610 | AZ36: 22440 | BA36: 22630 | BB36: 22240 | BC36: 21970 | BD36: 21580 | BE36: 21310 | BF36: 20920 | BG36: 20650 | BH36: 20 | BI36: 0 | BJ36: 36.21262458 | BK36: 29.45891784 | BN36: -0.03665056916 | BO36: -0.008799872581 | BP36: DW | BQ36: 1570 | BR36: 0 | BU36: 242570 | BV36: 1 | BW36: 0 | BX36: 21966.53452 | BY36: 22408.86328 | BZ36: -442.3287535 | CA36: 50.14349507 | CB36: -492.4722486 | CC36: 24433.68079 | CD36: 23801.55642 | CE36: 23169.43206 | CF36: 22537.30769 | CG36: 21905.18333 | CH36: 21273.05896 | CI36: 20640.9346 | CJ36: 0.02097902098 | CK36: 0.6923076923 | CL36: 0.4216783217 | CM36: -0.6734265734 | CN36: -0.9755244755 | CO36: 150 | CP36: 490 | CQ36: I | CR36: N | CS36: N | CU36: 210 | CV36: -640 | CZ36: 22705 | DA36: 22705 | DB36: 22095 | DC36: 21610 | DD36: 21812
A37: 2018-11-12 | B37: 2018-11-16 | C37: 46 | D37: 22100 | E37: 22320 | F37: 21470 | G37: 21650 | H37: 199624 | U37: 22562 | V37: 21498 | W37: 22691.81818 | X37: 22579.25926 | Y37: 22462.45283 | Z37: 22145.69231 | AA37: 21429.77778 | AB37: 19683.84211 | AC37: 850 | AD37: 966.6666667 | AE37: -170 | AF37: -450 | AG37: 22950 | AH37: 20960 | AI37: 24450 | AJ37: 20960 | AK37: 24450 | AL37: 20150 | AM37: 7 | AN37: 1 | AO37: S | AP37: 0 | AQ37: 1 | AU37: 620 | AV37: 22705 | AW37: 22705 | AX37: 21847.5 | AY37: 21610 | AZ37: 22930 | BA37: 23006.66667 | BB37: 22663.33333 | BC37: 22156.66667 | BD37: 21813.33333 | BE37: 21306.66667 | BF37: 20963.33333 | BG37: 20456.66667 | BH37: 0 | BI37: 450 | BJ37: 33.76623377 | BK37: 38.46153846 | BN37: -0.0435777872 | BO37: -0.006210932834 | BP37: DW | BQ37: 1700 | BR37: 0 | BU37: 261597.6667 | BV37: 0 | BW37: 1 | BX37: 22099.80179 | BY37: 22483.48046 | BZ37: -383.6786788 | CA37: 148.7320215 | CB37: -532.4107003 | CC37: 24395.94274 | CD37: 23785.8849 | CE37: 23175.82707 | CF37: 22565.76923 | CG37: 21955.7114 | CH37: 21345.65356 | CI37: 20735.59573 | CJ37: -0.4655172414 | CK37: 0.8793103448 | CL37: 0.1572413793 | CM37: -0.9434482759 | CN37: -1.077742947 | CO37: 220 | CP37: 180 | CQ37: I | CR37: N | CS37: N | CU37: 240 | CV37: -480 | CZ37: 22705 | DA37: 22705 | DB37: 21872.5 | DC37: 21610 | DD37: 22072
A38: 2018-11-05 | B38: 2018-11-09 | C38: 45 | D38: 21910 | E38: 22580 | F38: 21860 | G38: 22270 | H38: 246547 | U38: 22818 | V38: 21684 | W38: 22801.81818 | X38: 22619.25926 | Y38: 22478.86792 | Z38: 22111.69231 | AA38: 21403.33333 | AB38: 19671.57895 | AC38: 720 | AD38: 1083.333333 | AE38: -320 | AF38: 360 | AG38: 23600 | AH38: 20960 | AI38: 24450 | AJ38: 20960 | AK38: 24450 | AL38: 20150 | AM38: 6 | AN38: 2 | AO38: S | AP38: 2 | AQ38: 0 | AT38: 40 | AV38: 22705 | AW38: 22705 | AX38: 21805 | AY38: 21610 | AZ38: 22730 | BA38: 23333.33333 | BB38: 22956.66667 | BC38: 22613.33333 | BD38: 22236.66667 | BE38: 21893.33333 | BF38: 21516.66667 | BG38: 21173.33333 | BH38: 360 | BI38: 0 | BJ38: 28.65013774 | BK38: 49.03339192 | BN38: -0.04214591554 | BO38: -0.00562955915 | BP38: DW | BQ38: 1990 | BR38: 0 | BU38: 279770.6667 | BV38: 1 | BW38: 0 | BX38: 22324.70268 | BY38: 22571.21525 | BZ38: -246.512572 | CA38: 214.4411387 | CB38: -460.9537107 | CC38: 24370.94649 | CD38: 23785.63099 | CE38: 23200.3155 | CF38: 22615 | CG38: 22029.6845 | CH38: 21444.36901 | CI38: 20859.05351 | CJ38: 0.3323076923 | CK38: 0.6646153846 | CL38: 0.5409230769 | CM38: -0.5058461538 | CN38: -0.4909090909 | CO38: 310 | CP38: 50 | CQ38: L | CR38: N | CS38: N | CU38: 900 | CV38: -390 | CZ38: 22705 | DA38: 22705 | DB38: 21847.5 | DC38: 21610 | DD38: 22110
A39: 2018-10-29 | B39: 2018-11-02 | C39: 44 | D39: 21330 | E39: 22300 | F39: 21010 | G39: 22230 | H39: 281539 | U39: 23192 | V39: 22058 | W39: 22830.90909 | X39: 22626.66667 | Y39: 22482.83019 | Z39: 22072.30769 | AA39: 21369.22222 | AB39: 19657 | AC39: 1290 | AD39: 1083.333333 | AE39: 100 | AF39: 900 | AG39: 24450 | AH39: 20960 | AI39: 24450 | AJ39: 20960 | AK39: 24450 | AL39: 20150 | AM39: 5 | AN39: 1 | AO39: S | AP39: 1 | AQ39: 0 | AT39: 1000 | AV39: 22705 | AW39: 22705 | AX39: 21755 | AY39: 21610 | AZ39: 22470 | BA39: 23973.33333 | BB39: 23136.66667 | BC39: 22683.33333 | BD39: 21846.66667 | BE39: 21393.33333 | BF39: 20556.66667 | BG39: 20103.33333 | BH39: 900 | BI39: 0 | BJ39: 25.64102564 | BK39: 44.86133768 | BN39: -0.02660958617 | BQ39: 2640 | BR39: 1 | BU39: 283571 | BV39: 1 | BW39: 0 | BX39: 22352.05402 | BY39: 22602.92212 | BZ39: -250.8681016 | CA39: 254.1988258 | CB39: -505.0669273 | CC39: 24377.37218 | CD39: 23795.81222 | CE39: 23214.25226 | CF39: 22632.69231 | CG39: 22051.13235 | CH39: 21469.5724 | CI39: 20888.01244 | CJ39: 0.8307692308 | CK39: 1.190769231 | CL39: 0.1587692308 | CM39: -0.888 | CN39: -0.5546853147 | CO39: 70 | CP39: 320 | CQ39: L | CR39: N | CS39: N | CU39: 370 | CV39: -1330 | CZ39: 22705 | DA39: 22705 | DB39: 21805 | DC39: 21610 | DD39: 22312
A40: 2018-10-22 | B40: 2018-10-26 | C40: 43 | D40: 22390 | E40: 22660 | F40: 20960 | G40: 21230 | H40: 338689 | U40: 23590 | V40: 22586 | W40: 22833.63636 | X40: 22637.03704 | Y40: 22479.43396 | Z40: 22037.23077 | AA40: 21337.55556 | AB40: 19641.05263 | AC40: 1700 | AD40: 893.3333333 | AE40: -140 | AF40: -1160 | AG40: 24450 | AH40: 20960 | AI40: 24450 | AJ40: 20960 | AK40: 24450 | AL40: 20150 | AM40: 4 | AN40: 1 | AO40: S | AP40: 0 | AQ40: 1 | AU40: 1300 | AV40: 22705 | AW40: 22705 | AX40: 21737.5 | AY40: 21610 | AZ40: 22510 | BA40: 23973.33333 | BB40: 23316.66667 | BC40: 22273.33333 | BD40: 21616.66667 | BE40: 20573.33333 | BF40: 19916.66667 | BG40: 18873.33333 | BH40: 0 | BI40: 1160 | BJ40: 11.58536585 | BK40: 37.40740741 | BQ40: 3490 | BR40: 0 | BU40: 275293.6667 | BV40: 0 | BW40: 1 | BX40: 22413.08102 | BY40: 22642.17708 | BZ40: -229.0960532 | CA40: 301.9094389 | CB40: -531.0054921 | CC40: 24372.86807 | CD40: 23795.8864 | CE40: 23218.90474 | CF40: 22641.92308 | CG40: 22064.94141 | CH40: 21487.95975 | CI40: 20910.97809 | CJ40: -1.298507463 | CK40: 1.902985075 | CL40: -1.517910448 | CM40: -2.641791045 | CN40: -1.795115332 | CO40: 270 | CP40: 270 | CQ40: S | CR40: N | CS40: N | CU40: 200 | CV40: -560 | CZ40: 22705 | DA40: 22705 | DB40: 21755 | DC40: 21610 | DD40: 23104
A41: 2018-10-15 | B41: 2018-10-19 | C41: 42 | D41: 22520 | E41: 22950 | F41: 22190 | G41: 22530 | H41: 256707 | U41: 23822 | V41: 22970 | W41: 22930.90909 | X41: 22671.48148 | Y41: 22483.58491 | Z41: 22017.53846 | AA41: 21312.11111 | AB41: 19629.26316 | AC41: 760 | AD41: 806.6666667 | AE41: -130 | AF41: 10 | AG41: 24450 | AH41: 22190 | AI41: 24450 | AJ41: 21430 | AK41: 24450 | AL41: 20150 | AM41: 3 | AN41: 1 | AO41: S | AP41: 1 | AQ41: 0 | AU41: 120 | AV41: 22940 | AW41: 23240 | AX41: 21737.5 | AY41: 21610 | AZ41: 22160 | BA41: 23683.33333 | BB41: 23316.66667 | BC41: 22923.33333 | BD41: 22556.66667 | BE41: 22163.33333 | BF41: 21796.66667 | BG41: 21403.33333 | BH41: 10 | BI41: 0 | BJ41: 42.02898551 | BK41: 53.04740406 | BO41: 0 | BQ41: 2260 | BR41: 0 | BU41: 246976.3333 | BV41: 0 | BW41: 1 | BX41: 23004.62154 | BY41: 22790.8273 | BZ41: 213.7942404 | CA41: 337.4870639 | CB41: -123.6928235 | CC41: 24204.5325 | CD41: 23700.07295 | CE41: 23195.6134 | CF41: 22691.15385 | CG41: 22186.6943 | CH41: 21682.23475 | CI41: 21177.7752 | CJ41: 0.01239669421 | CK41: 0.9421487603 | CL41: -0.5454545455 | CM41: -1.601652893 | CN41: -0.4969947408 | CO41: 420 | CP41: 330 | CQ41: L | CR41: N | CS41: L | CU41: 120 | CV41: -1080 | CZ41: 22940 | DA41: 23240 | DB41: 21737.5 | DC41: 21610 | DD41: 23374
A42: 2018-10-09 | B42: 2018-10-12 | C42: 41 | D42: 23550 | E42: 23600 | F42: 22400 | G42: 22650 | H42: 301066 | U42: 23826 | V42: 22980 | W42: 22929.09091 | X42: 22644.81481 | Y42: 22457.73585 | Z42: 21979.84615 | AA42: 21278 | AB42: 19609.73684 | AC42: 1200 | AD42: 796.6666667 | AE42: -270 | AF42: -900 | AG42: 24450 | AH42: 22240 | AI42: 24450 | AJ42: 21430 | AK42: 24450 | AL42: 20150 | AM42: 2 | AN42: 1 | AO42: S | AP42: 0 | AQ42: 2 | AU42: 1170 | AV42: 22940 | AW42: 23135 | AX42: 21737.5 | AY42: 21610 | AZ42: 21810 | BA42: 24566.66667 | BB42: 24083.33333 | BC42: 23366.66667 | BD42: 22883.33333 | BE42: 22166.66667 | BF42: 21683.33333 | BG42: 20966.66667 | BH42: 0 | BI42: 900 | BJ42: 54.17956656 | BK42: 54.02298851 | BN42: 0.03339694656 | BQ42: 2050 | BR42: 0 | BU42: 261762.6667 | BV42: 0 | BW42: 1 | BX42: 23241.93231 | BY42: 22818.2828 | BZ42: 423.649504 | CA42: 319.0594213 | CB42: 104.5900827 | CC42: 24218.72752 | CD42: 23704.79271 | CE42: 23190.85789 | CF42: 22676.92308 | CG42: 22162.98826 | CH42: 21649.05345 | CI42: 21135.11863 | CJ42: -1.129707113 | CK42: 1.506276151 | CL42: -0.4142259414 | CM42: -1.476150628 | CN42: -0.3503233169 | CO42: 50 | CP42: 250 | CQ42: L | CR42: L | CS42: L | CU42: -180 | CV42: -900 | CZ42: 22940 | DA42: 23135 | DB42: 21737.5 | DC42: 21610 | DD42: 23644
A43: 2018-10-01 | B43: 2018-10-05 | C43: 40 | D43: 24200 | E43: 24450 | F43: 23730 | G43: 23820 | H43: 268108 | U43: 23676 | V43: 22936 | W43: 22931.81818 | X43: 22607.40741 | Y43: 22421.13208 | Z43: 21940.76923 | AA43: 21239.22222 | AB43: 19587.15789 | AC43: 720 | AD43: 706.6666667 | AE43: 70 | AF43: -380 | AG43: 24450 | AH43: 22180 | AI43: 24450 | AJ43: 21430 | AK43: 24450 | AL43: 20150 | AM43: 1 | AN43: 5 | AO43: L | AP43: 0 | AQ43: 1 | AR43: L | AU43: 310 | AV43: 22940 | AW43: 23135 | AX43: 21822.5 | AY43: 21610 | AZ43: 21640 | BA43: 24990 | BB43: 24720 | BC43: 24270 | BD43: 24000 | BE43: 23550 | BF43: 23280 | BG43: 22830 | BH43: 0 | BI43: 380 | BJ43: 68.8976378 | BK43: 69.32153392 | BN43: 0.04006325778 | BO43: 0.01849234869 | BP43: UP | BQ43: 2210 | BR43: 0 | BU43: 233727.6667 | BV43: 0 | BW43: 1 | BX43: 23537.89846 | BY43: 22835.99678 | BZ43: 701.9016775 | CA43: 283.5578337 | CB43: 418.3438438 | CC43: 24265.62427 | CD43: 23725.28798 | CE43: 23184.95168 | CF43: 22644.61538 | CG43: 22104.27909 | CH43: 21563.94279 | CI43: 21023.60649 | CJ43: -0.5377358491 | CK43: 1.018867925 | CL43: 1.250943396 | CM43: 0.2037735849 | CN43: 1.256861063 | CO43: 250 | CP43: 90 | CQ43: L | CR43: L | CS43: L | CU43: 550 | CV43: -90 | CZ43: 22940 | DA43: 23135 | DB43: 21737.5 | DC43: 21610 | DD43: 23486
A44: 2018-09-25 | B44: 2018-09-28 | C44: 39 | D44: 23680 | E44: 24290 | F44: 23650 | G44: 24130 | H44: 205366 | U44: 23396 | V44: 22720 | W44: 22831.81818 | X44: 22519.25926 | Y44: 22355.4717 | Z44: 21881.23077 | AA44: 21188.44444 | AB44: 19556.31579 | AC44: 640 | AD44: 680 | AE44: -70 | AF44: 450 | AG44: 24290 | AH44: 22180 | AI44: 24290 | AJ44: 21430 | AK44: 24290 | AL44: 20150 | AM44: 1 | AN44: 4 | AO44: L | AP44: 3 | AQ44: 0 | AT44: 380 | AV44: 22665 | AW44: 23055 | AX44: 22055 | AY44: 21610 | AZ44: 21440 | BA44: 25036.66667 | BB44: 24663.33333 | BC44: 24396.66667 | BD44: 24023.33333 | BE44: 23756.66667 | BF44: 23383.33333 | BG44: 23116.66667 | BH44: 450 | BI44: 0 | BJ44: 80.8 | BK44: 72.30769231 | BN44: 0.02939105949 | BO44: 0.017172249 | BP44: UP | BQ44: 2110 | BR44: 0 | BU44: 212813.6667 | BV44: 1 | BW44: 0 | BX44: 23396.84769 | BY44: 22732.41749 | BZ44: 664.4301928 | CA44: 225.1267193 | CB44: 439.3034735 | CC44: 24121.3887 | CD44: 23601.18221 | CE44: 23080.97572 | CF44: 22560.76923 | CG44: 22040.56274 | CH44: 21520.35625 | CI44: 21000.14976 | CJ44: 0.6617647059 | CK44: 0.9411764706 | CL44: 2.073529412 | CM44: 1.079411765 | CN44: 1.909090909 | CO44: 160 | CP44: 30 | CQ44: L | CR44: L | CS44: L | CU44: 800 | CV44: -140 | CZ44: 22665 | DA44: 23055 | DB44: 21822.5 | DC44: 21610 | DD44: 23128
A45: 2018-09-18 | B45: 2018-09-21 | C45: 38 | D45: 22920 | E45: 23820 | F45: 22880 | G45: 23750 | H45: 216114 | U45: 23056 | V45: 22396 | W45: 22692.72727 | X45: 22379.25926 | Y45: 22280.9434 | Z45: 21817.53846 | AA45: 21135.88889 | AB45: 19522.26316 | AC45: 940 | AD45: 653.3333333 | AE45: -50 | AF45: 830 | AG45: 23820 | AH45: 22030 | AI45: 23820 | AJ45: 21430 | AK45: 24140 | AL45: 20150 | AM45: 1 | AN45: 3 | AO45: L | AP45: 2 | AQ45: 0 | AT45: 780 | AV45: 21985 | AW45: 22820 | AX45: 22192.5 | AY45: 21610 | AZ45: 20350 | BA45: 25026.66667 | BB45: 24423.33333 | BC45: 24086.66667 | BD45: 23483.33333 | BE45: 23146.66667 | BF45: 22543.33333 | BG45: 22206.66667 | BH45: 830 | BI45: 0 | BJ45: 80.40816327 | BK45: 67.6975945 | BN45: 0.01505679317 | BQ45: 1640 | BR45: 0 | BU45: 210086.3333 | BV45: 1 | BW45: 0 | BX45: 23030.27153 | BY45: 22585.30355 | BZ45: 444.9679843 | CA45: 173.8614477 | CB45: 271.1065365 | CC45: 23843.5284 | CD45: 23381.45483 | CE45: 22919.38126 | CF45: 22457.30769 | CG45: 21995.23412 | CH45: 21533.16056 | CI45: 21071.08699 | CJ45: 1.270408163 | CK45: 1.43877551 | CL45: 2.07244898 | CM45: 1.062244898 | CN45: 1.618274583 | CO45: 70 | CP45: 40 | CQ45: L | CR45: L | CS45: L | CU45: 680 | CV45: -50 | CZ45: 21985 | DA45: 22820 | DB45: 22055 | DC45: 21610 | DD45: 22744
A46: 2018-09-10 | B46: 2018-09-14 | C46: 37 | D46: 22250 | E46: 22970 | F46: 22240 | G46: 22970 | H46: 345866 | U46: 22764 | V46: 22184 | W46: 22515.45455 | X46: 22293.7037 | Y46: 22206.22642 | Z46: 21761.07692 | AA46: 21084.11111 | AB46: 19490.26316 | AC46: 730 | AD46: 590 | AE46: -130 | AF46: 720 | AG46: 23050 | AH46: 21820 | AI46: 23050 | AJ46: 21430 | AK46: 24140 | AL46: 20150 | AM46: 1 | AN46: 2 | AO46: L | AP46: 1 | AQ46: 0 | AT46: 590 | AV46: 21600 | AW46: 22435 | AX46: 22295 | AY46: 21610 | AZ46: 21440 | BA46: 23943.33333 | BB46: 23456.66667 | BC46: 23213.33333 | BD46: 22726.66667 | BE46: 22483.33333 | BF46: 21996.66667 | BG46: 21753.33333 | BH46: 720 | BI46: 0 | BJ46: 69.59064327 | BK46: 58.22222222 | BN46: 0.005299417064 | BO46: 0 | BQ46: 1020 | BR46: 0 | BU46: 210407 | BV46: 1 | BW46: 0 | BX46: 22670.4073 | BY46: 22462.70392 | BZ46: 207.7033762 | CA46: 143.3149126 | CB46: 64.38846359 | CC46: 23977.73262 | CD46: 23427.33457 | CE46: 22876.93652 | CF46: 22326.53846 | CG46: 21776.14041 | CH46: 21225.74235 | CI46: 20675.3443 | CJ46: 1.220338983 | CK46: 1.237288136 | CL46: 1.33220339 | CM46: 0.3491525424 | CN46: 0.7704160247 | CO46: 0 | CP46: 10 | CQ46: L | CR46: N | CS46: L | CU46: 70 | CV46: -600 | CY46: U | CZ46: 21600 | DA46: 22435 | DB46: 22192.5 | DC46: 21610 | DD46: 22468
A47: 2018-09-03 | B47: 2018-09-07 | C47: 36 | D47: 22840 | E47: 22850 | F47: 22180 | G47: 22380 | H47: 216961 | U47: 22728 | V47: 22184 | W47: 22446.36364 | X47: 22233.7037 | Y47: 22133.96226 | Z47: 21714.46154 | AA47: 21044 | AB47: 19461.52632 | AC47: 670 | AD47: 550 | AE47: -20 | AF47: -460 | AG47: 23050 | AH47: 21820 | AI47: 23050 | AJ47: 21430 | AK47: 24140 | AL47: 20150 | AM47: 1 | AN47: 1 | AO47: S | AP47: 0 | AQ47: 1 | AU47: 480 | AV47: 21600 | AW47: 22385 | AX47: 22117.5 | AY47: 21610 | AZ47: 21350 | BA47: 23430 | BB47: 23140 | BC47: 22760 | BD47: 22470 | BE47: 22090 | BF47: 21800 | BG47: 21420 | BH47: 0 | BI47: 460 | BJ47: 45.11278195 | BK47: 61.78861789 | BQ47: 1230 | BR47: 0 | BU47: 188614.6667 | BV47: 0 | BW47: 1 | BX47: 22520.61094 | BY47: 22409.30433 | BZ47: 111.3066115 | CA47: 130.3045213 | CB47: -18.9979098 | CC47: 23948.17248 | CD47: 23388.01242 | CE47: 22827.85237 | CF47: 22267.69231 | CG47: 21707.53225 | CH47: 21147.37219 | CI47: 20587.21214 | CJ47: -0.8363636364 | CK47: 1.218181818 | CL47: 0.3563636364 | CM47: -0.6327272727 | CN47: -0.120661157 | CO47: 10 | CP47: 200 | CQ47: L | CR47: L | CS47: L | CU47: 190 | CV47: -210 | CZ47: 21600 | DA47: 22385 | DB47: 22295 | DC47: 21610 | DD47: 22570
A48: 2018-08-27 | B48: 2018-08-31 | C48: 35 | D48: 22670 | E48: 23050 | F48: 22650 | G48: 22860 | H48: 197184 | U48: 22714 | V48: 22214 | W48: 22453.63636 | X48: 22187.40741 | Y48: 22083.20755 | Z48: 21677.07692 | AA48: 21010.66667 | AB48: 19432.15789 | AC48: 400 | AD48: 513.3333333 | AE48: 80 | AF48: 190 | AG48: 23050 | AH48: 21820 | AI48: 23050 | AJ48: 21430 | AK48: 24140 | AL48: 20150 | AM48: 1 | AN48: 2 | AO48: L | AP48: 3 | AQ48: 0 | AT48: 270 | AV48: 21600 | AW48: 22240 | AX48: 22070 | AY48: 21610 | AZ48: 21130 | BA48: 23456.66667 | BB48: 23253.33333 | BC48: 23056.66667 | BD48: 22853.33333 | BE48: 22656.66667 | BF48: 22453.33333 | BG48: 22256.66667 | BH48: 190 | BI48: 0 | BJ48: 58.82352941 | BK48: 63.59832636 | BN48: 0 | BO48: 0 | BQ48: 1230 | BR48: 0 | BU48: 176601 | BV48: 1 | BW48: 0 | BX48: 22590.91642 | BY48: 22412.389 | BZ48: 178.5274167 | CA48: 118.1045994 | CB48: 60.42281729 | CC48: 23987.91777 | CD48: 23401.30415 | CE48: 22814.69054 | CF48: 22228.07692 | CG48: 21641.46331 | CH48: 21054.84969 | CI48: 20468.23608 | CJ48: 0.3701298701 | CK48: 0.7792207792 | CL48: 1.258441558 | CM48: 0.2844155844 | CN48: 0.7916174734 | CO48: 190 | CP48: 20 | CQ48: L | CR48: L | CS48: L | CU48: 640 | CV48: 80 | CZ48: 21600 | DA48: 22240 | DB48: 22117.5 | DC48: 21610 | DD48: 22466
A49: 2018-08-20 | B49: 2018-08-24 | C49: 34 | D49: 22230 | E49: 22590 | F49: 22030 | G49: 22590 | H49: 151699 | U49: 22644 | V49: 22146 | W49: 22450.90909 | X49: 22152.22222 | Y49: 22018.86792 | Z49: 21635.69231 | AA49: 20967.66667 | AB49: 19402.42105 | AC49: 560 | AD49: 513.3333333 | AE49: -30 | AF49: 360 | AG49: 22790 | AH49: 21820 | AI49: 23050 | AJ49: 21430 | AK49: 24140 | AL49: 20150 | AM49: 3 | AN49: 1 | AO49: L | AP49: 2 | AQ49: 0 | AT49: 330 | AV49: 21600 | AW49: 22180 | AX49: 22070 | AY49: 21610 | AZ49: 21910 | BA49: 23336.66667 | BB49: 22963.33333 | BC49: 22776.66667 | BD49: 22403.33333 | BE49: 22216.66667 | BF49: 21843.33333 | BG49: 21656.66667 | BH49: 360 | BI49: 0 | BJ49: 41.7721519 | BK49: 52.74261603 | BQ49: 970 | BR49: 0 | BU49: 163450 | BV49: 1 | BW49: 0 | BX49: 22456.37462 | BY49: 22365.27205 | BZ49: 91.10257186 | CA49: 117.1009781 | CB49: -25.99840626 | CC49: 23988.10571 | CD49: 23379.24996 | CE49: 22770.39421 | CF49: 22161.53846 | CG49: 21552.68271 | CH49: 20943.82696 | CI49: 20334.97121 | CJ49: 0.7012987013 | CK49: 1.090909091 | CL49: 0.8649350649 | CM49: -0.1051948052 | CN49: 0.2709563164 | CO49: 0 | CP49: 200 | CQ49: L | CR49: L | CS49: L | CU49: 410 | CV49: -130 | CZ49: 21600 | DA49: 22180 | DB49: 22070 | DC49: 21610 | DD49: 22396
A50: 2018-08-13 | B50: 2018-08-17 | C50: 33 | D50: 22140 | E50: 22360 | F50: 21820 | G50: 22260 | H50: 217076 | U50: 22712 | V50: 22242 | W50: 22453.63636 | X50: 22120.74074 | Y50: 21959.43396 | Z50: 21591.38462 | AA50: 20920.33333 | AB50: 19374.89474 | AC50: 540 | AD50: 470 | AE50: -160 | AF50: 120 | AG50: 22930 | AH50: 21820 | AI50: 23050 | AJ50: 21040 | AK50: 24140 | AL50: 20150 | AM50: 2 | AN50: 1 | AO50: S | AP50: 1 | AQ50: 0 | AU50: 40 | AV50: 21600 | AW50: 22180 | AX50: 22070 | AY50: 21610 | AZ50: 21740 | BA50: 23013.33333 | BB50: 22686.66667 | BC50: 22473.33333 | BD50: 22146.66667 | BE50: 21933.33333 | BF50: 21606.66667 | BG50: 21393.33333 | BH50: 120 | BI50: 0 | BJ50: 20.68965517 | BK50: 38.17427386 | BO50: 0 | BQ50: 970 | BR50: 0 | BU50: 172914.6667 | BV50: 0 | BW50: 1 | BX50: 22389.56193 | BY50: 22341.61648 | BZ50: 47.94545689 | CA50: 137.7826422 | CB50: -89.83718532 | CC50: 23948.81968 | CD50: 23344.34133 | CE50: 22739.86297 | CF50: 22135.38462 | CG50: 21530.90626 | CH50: 20926.4279 | CI50: 20321.94955 | CJ50: 0.2553191489 | CK50: 1.14893617 | CL50: 0.03829787234 | CM50: -0.9617021277 | CN50: -0.4119922631 | CO50: 100 | CP50: 320 | CQ50: L | CR50: N | CS50: L | CT50: L | CU50: -100 | CV50: -650 | CZ50: 21600 | DA50: 22180 | DB50: 22070 | DC50: 21610 | DD50: 22470
A51: 2018-08-06 | B51: 2018-08-10 | C51: 32 | D51: 22540 | E51: 22790 | F51: 22240 | G51: 22300 | H51: 148739 | U51: 22774 | V51: 22222 | W51: 22450 | X51: 22087.40741 | Y51: 21911.32075 | Z51: 21550.46154 | AA51: 20877.22222 | AB51: 19351.73684 | AC51: 550 | AD51: 473.3333333 | AE51: 30 | AF51: -240 | AG51: 22930 | AH51: 21720 | AI51: 23050 | AJ51: 20150 | AK51: 24140 | AL51: 20150 | AM51: 1 | AN51: 5 | AO51: S | AP51: 0 | AQ51: 2 | AU51: 210 | AV51: 21600 | AW51: 22200 | AX51: 22102.5 | AY51: 21610 | AZ51: 21360 | BA51: 23196.66667 | BB51: 22993.33333 | BC51: 22646.66667 | BD51: 22443.33333 | BE51: 22096.66667 | BF51: 21893.33333 | BG51: 21546.66667 | BH51: 0 | BI51: 240 | BJ51: 68.65671642 | BK51: 43.79844961 | BO51: -0.002464049119 | BQ51: 690 | BR51: 0 | BU51: 172914.6667 | BV51: 0 | BW51: 1 | BX51: 22454.3429 | BY51: 22350.20769 | BZ51: 104.1352159 | CA51: 170.5207006 | CB51: -66.3854847 | CC51: 23941.22284 | CD51: 23332.6101 | CE51: 22723.99736 | CF51: 22115.38462 | CG51: 21506.77188 | CH51: 20898.15914 | CI51: 20289.54639 | CJ51: -0.5070422535 | CK51: 1.161971831 | CL51: 0.1647887324 | CM51: -1.001408451 | CN51: -0.3169014085 | CO51: 250 | CP51: 60 | CQ51: L | CR51: L | CS51: L | CU51: 210 | CV51: -240 | CZ51: 21600 | DA51: 22200 | DB51: 22070 | DC51: 21610 | DD51: 22610
A52: 2018-07-30 | B52: 2018-08-03 | C52: 31 | D52: 22570 | E52: 22780 | F52: 22330 | G52: 22510 | H52: 180920 | U52: 22676 | V52: 22060 | W52: 22462.72727 | X52: 22125.18519 | Y52: 21866.98113 | Z52: 21513.23077 | AA52: 20829.11111 | AB52: 19327.36842 | AC52: 450 | AD52: 580 | AE52: -110 | AF52: -60 | AG52: 22930 | AH52: 21430 | AI52: 23050 | AJ52: 20150 | AK52: 24140 | AL52: 20150 | AM52: 1 | AN52: 4 | AO52: L | AP52: 0 | AQ52: 1 | AU52: 170 | AV52: 21600 | AW52: 22200 | AX52: 22367.5 | AY52: 21485 | AZ52: 23320 | BA52: 23200 | BB52: 22990 | BC52: 22750 | BD52: 22540 | BE52: 22300 | BF52: 22090 | BG52: 21850 | BH52: 0 | BI52: 60 | BJ52: 59.74025974 | BK52: 55.23465704 | BN52: 0 | BQ52: 1210 | BR52: 0 | BU52: 205320.3333 | BV52: 0 | BW52: 1 | BX52: 22531.51435 | BY52: 22355.49271 | BZ52: 176.0216472 | CA52: 190.8221817 | CB52: -14.80053449 | CC52: 23952.10045 | CD52: 23327.81055 | CE52: 22703.52066 | CF52: 22079.23077 | CG52: 21454.94088 | CH52: 20830.65098 | CI52: 20206.36109 | CJ52: -0.1034482759 | CK52: 0.775862069 | CL52: 0.775862069 | CM52: -0.2862068966 | CN52: 0.08150470219 | CO52: 210 | CP52: 180 | CQ52: L | CR52: L | CS52: L | CU52: 260 | CV52: -130 | CZ52: 21600 | DA52: 22200 | DB52: 22102.5 | DC52: 21610 | DD52: 22474
A53: 2018-07-23 | B53: 2018-07-27 | C53: 30 | D53: 22440 | E53: 22700 | F53: 22310 | G53: 22680 | H53: 157731 | U53: 22626 | V53: 21996 | W53: 22500.90909 | X53: 22166.66667 | Y53: 21818.67925 | Z53: 21466.61538 | AA53: 20772.33333 | AB53: 19300.36842 | AC53: 390 | AD53: 603.3333333 | AE53: -280 | AF53: 240 | AG53: 22930 | AH53: 21430 | AI53: 23050 | AJ53: 20150 | AK53: 24140 | AL53: 20150 | AM53: 1 | AN53: 3 | AO53: L | AP53: 3 | AQ53: 0 | AU53: 40 | AV53: 21965 | AW53: 22200 | AX53: 22367.5 | AY53: 21165 | AZ53: 23630 | BA53: 23206.66667 | BB53: 22953.33333 | BC53: 22816.66667 | BD53: 22563.33333 | BE53: 22426.66667 | BF53: 22173.33333 | BG53: 22036.66667 | BH53: 240 | BI53: 0 | BJ53: 56.79012346 | BK53: 54.25531915 | BN53: -0.002732722144 | BQ53: 1500 | BR53: 0 | BU53: 212473 | BV53: 0 | BW53: 1 | BX53: 22542.27153 | BY53: 22339.22878 | BZ53: 203.0427491 | CA53: 200.4015398 | CB53: 2.641209336 | CC53: 24102.26298 | CD53: 23438.30353 | CE53: 22774.34407 | CF53: 22110.38462 | CG53: 21446.42516 | CH53: 20782.4657 | CI53: 20118.50625 | CJ53: 0.3977900552 | CK53: 0.6464088398 | CL53: 1.133701657 | CM53: 0.08950276243 | CN53: 0.2968357609 | CO53: 20 | CP53: 130 | CQ53: L | CR53: L | CS53: L | CU53: -70 | CV53: -490 | CZ53: 21965 | DA53: 22200 | DB53: 22367.5 | DC53: 21485 | DD53: 22354
A54: 2018-07-17 | B54: 2018-07-20 | C54: 29 | D54: 22540 | E54: 22930 | F54: 22510 | G54: 22720 | H54: 180093 | U54: 22642 | V54: 21956 | W54: 22505.45455 | X54: 22208.14815 | Y54: 21769.62264 | Z54: 21413.07692 | AA54: 20708 | AB54: 19275.42105 | AC54: 420 | AD54: 686.6666667 | AE54: -60 | AF54: 180 | AG54: 22930 | AH54: 21430 | AI54: 23050 | AJ54: 20150 | AK54: 24140 | AL54: 20150 | AM54: 1 | AN54: 2 | AO54: L | AP54: 2 | AQ54: 0 | AT54: 120 | AV54: 22145 | AW54: 22240 | AX54: 22357.5 | AY54: 21155 | AZ54: 23800 | BA54: 23350 | BB54: 23140 | BC54: 22930 | BD54: 22720 | BE54: 22510 | BF54: 22300 | BG54: 22090 | BH54: 180 | BI54: 0 | BJ54: 47.17948718 | BK54: 46.78899083 | BN54: -0.004222007213 | BQ54: 1500 | BR54: 0 | BU54: 226148.3333 | BV54: 1 | BW54: 0 | BX54: 22473.40729 | BY54: 22303.35812 | BZ54: 170.0491682 | CA54: 218.454956 | CB54: -48.40578779 | CC54: 24301.59229 | CD54: 23583.36922 | CE54: 22865.14615 | CF54: 22146.92308 | CG54: 21428.70001 | CH54: 20710.47694 | CI54: 19992.25387 | CJ54: 0.2621359223 | CK54: 0.6116504854 | CL54: 1.112621359 | CM54: 0.113592233 | CN54: 0.3124448367 | CO54: 210 | CP54: 30 | CQ54: L | CR54: L | CS54: L | CU54: 820 | CV54: -130 | CZ54: 22145 | DA54: 22240 | DB54: 22367.5 | DC54: 21155 | DD54: 22322
A55: 2018-07-09 | B55: 2018-07-13 | C55: 28 | D55: 21850 | E55: 22670 | F55: 21720 | G55: 22600 | H55: 254948 | U55: 22650 | V55: 21974 | W55: 22482.72727 | X55: 22242.22222 | Y55: 21720.37736 | Z55: 21350.46154 | AA55: 20649.55556 | AB55: 19247.68421 | AC55: 950 | AD55: 686.6666667 | AE55: 50 | AF55: 750 | AG55: 22970 | AH55: 21430 | AI55: 23780 | AJ55: 20150 | AK55: 24140 | AL55: 20150 | AM55: 1 | AN55: 1 | AO55: L | AP55: 1 | AQ55: 0 | AT55: 800 | AV55: 22145 | AW55: 22240 | AX55: 22265 | AY55: 21095 | AZ55: 23640 | BA55: 23890 | BB55: 23280 | BC55: 22940 | BD55: 22330 | BE55: 21990 | BF55: 21380 | BG55: 21040 | BH55: 750 | BI55: 0 | BJ55: 49.50980392 | BK55: 48.05970149 | BN55: -0.008405568689 | BO55: 0 | BQ55: 1350 | BR55: 0 | BU55: 226148.3333 | BV55: 1 | BW55: 0 | BX55: 22350.11094 | BY55: 22259.50109 | BZ55: 90.60985411 | CA55: 247.4143062 | CB55: -156.8044521 | CC55: 24524.97806 | CD55: 23746.13922 | CE55: 22967.30038 | CF55: 22188.46154 | CG55: 21409.6227 | CH55: 20630.78386 | CI55: 19851.94501 | CJ55: 1.09223301 | CK55: 1.383495146 | CL55: 0.9116504854 | CM55: -0.07281553398 | CN55: 0.1707855252 | CO55: 70 | CP55: 130 | CQ55: L | CR55: N | CS55: L | CU55: 420 | CV55: -450 | CZ55: 22145 | DA55: 22240 | DB55: 22357.5 | DC55: 21095 | DD55: 22230
A56: 2018-07-02 | B56: 2018-07-06 | C56: 27 | D56: 22200 | E56: 22300 | F56: 21430 | G56: 21800 | H56: 258645 | U56: 22688 | V56: 22094 | W56: 22474.54545 | X56: 22283.7037 | Y56: 21670.37736 | Z56: 21284.61538 | AA56: 20589.77778 | AB56: 19220.21053 | AC56: 870 | AD56: 576.6666667 | AE56: -10 | AF56: -400 | AG56: 22970 | AH56: 21430 | AI56: 24140 | AJ56: 20150 | AK56: 24140 | AL56: 20150 | AM56: 4 | AN56: 1 | AO56: S | AP56: 0 | AQ56: 3 | AU56: 410 | AV56: 22145 | AW56: 22240 | AX56: 22130 | AY56: 20960 | AZ56: 23720 | BA56: 23126.66667 | BB56: 22713.33333 | BC56: 22256.66667 | BD56: 21843.33333 | BE56: 21386.66667 | BF56: 20973.33333 | BG56: 20516.66667 | BH56: 0 | BI56: 400 | BJ56: 37.19512195 | BK56: 38.07829181 | BN56: -0.008218219969 | BQ56: 1540 | BR56: 0 | BU56: 227380.6667 | BV56: 0 | BW56: 1 | BX56: 22225.16641 | BY56: 22223.65909 | BZ56: 1.507314752 | CA56: 273.1935286 | CB56: -271.6862138 | CC56: 24701.43893 | CD56: 23877.11313 | CE56: 23052.78733 | CF56: 22228.46154 | CG56: 21404.13574 | CH56: 20579.80995 | CI56: 19755.48415 | CJ56: -0.6936416185 | CK56: 1.50867052 | CL56: -0.5098265896 | CM56: -1.539884393 | CN56: -1.169732002 | CO56: 100 | CP56: 370 | CQ56: I | CR56: N | CS56: L | CU56: 190 | CV56: -330 | CZ56: 22145 | DA56: 22240 | DB56: 22265 | DC56: 20960 | DD56: 22464
A57: 2018-06-25 | B57: 2018-06-29 | C57: 26 | D57: 22480 | E57: 22530 | F57: 22010 | G57: 22210 | H57: 202378 | U57: 22738 | V57: 22192 | W57: 22507.27273 | X57: 22318.88889 | Y57: 21636.22642 | Z57: 21237.07692 | AA57: 20534.77778 | AB57: 19197.31579 | AC57: 520 | AD57: 563.3333333 | AE57: 20 | AF57: -270 | AG57: 22970 | AH57: 21920 | AI57: 24140 | AJ57: 20150 | AK57: 24140 | AL57: 19980 | AM57: 3 | AN57: 1 | AO57: S | AP57: 0 | AQ57: 2 | AU57: 250 | AV57: 22145 | AW57: 22485 | AX57: 21945 | AY57: 20810 | AZ57: 22750 | BA57: 23010 | BB57: 22770 | BC57: 22490 | BD57: 22250 | BE57: 21970 | BF57: 21730 | BG57: 21450 | BH57: 0 | BI57: 270 | BJ57: 42.06896552 | BK57: 43.85245902 | BO57: 0.01065436584 | BQ57: 960 | BR57: 0 | BU57: 202905 | BV57: 0 | BW57: 1 | BX57: 22437.74961 | BY57: 22268.25479 | BZ57: 169.494825 | CA57: 295.8524046 | CB57: -126.3575795 | CC57: 24904.82093 | CD57: 24037.31652 | CE57: 23169.8121 | CF57: 22302.30769 | CG57: 21434.80328 | CH57: 20567.29887 | CI57: 19699.79446 | CJ57: -0.4792899408 | CK57: 0.9230769231 | CL57: 0.03195266272 | CM57: -0.9372781065 | CN57: -0.5277030662 | CO57: 50 | CP57: 200 | CQ57: L | CR57: N | CS57: L | CU57: 370 | CV57: -300 | CZ57: 22145 | DA57: 22485 | DB57: 22130 | DC57: 20810 | DD57: 22522
A58: 2018-06-18 | B58: 2018-06-22 | C58: 25 | D58: 22780 | E58: 22780 | F58: 22110 | G58: 22460 | H58: 221119 | U58: 22842 | V58: 22252 | W58: 22470.90909 | X58: 22342.59259 | Y58: 21596.03774 | Z58: 21186.30769 | AA58: 20475.66667 | AB58: 19169.57895 | AC58: 670 | AD58: 613.3333333 | AE58: -50 | AF58: -320 | AG58: 23050 | AH58: 21920 | AI58: 24140 | AJ58: 20150 | AK58: 24140 | AL58: 19270 | AM58: 2 | AN58: 1 | AO58: S | AP58: 0 | AQ58: 1 | AU58: 370 | AV58: 22145 | AW58: 22485 | AX58: 21887.5 | AY58: 20810 | AZ58: 22850 | BA58: 23460 | BB58: 23120 | BC58: 22790 | BD58: 22450 | BE58: 22120 | BF58: 21780 | BG58: 21450 | BH58: 0 | BI58: 320 | BJ58: 36.09467456 | BK58: 55.90551181 | BO58: 0.01845900288 | BQ58: 1050 | BR58: 0 | BU58: 200756 | BV58: 0 | BW58: 1 | BX58: 22551.62442 | BY58: 22274.38687 | BZ58: 277.2375487 | CA58: 288.4612917 | CB58: -11.22374299 | CC58: 24937.57926 | CD58: 24066.07848 | CE58: 23194.5777 | CF58: 22323.07692 | CG58: 21451.57614 | CH58: 20580.07536 | CI58: 19708.57458 | CJ58: -0.5217391304 | CK58: 1.092391304 | CL58: 0.3391304348 | CM58: -0.622826087 | CN58: -0.01778656126 | CO58: 0 | CP58: 350 | CQ58: L | CR58: L | CS58: L | CU58: 180 | CV58: -190 | CZ58: 22145 | DA58: 22485 | DB58: 21945 | DC58: 20810 | DD58: 22578
A59: 2018-06-11 | B59: 2018-06-15 | C59: 24 | D59: 22610 | E59: 22970 | F59: 22600 | G59: 22830 | H59: 153982 | U59: 22876 | V59: 22370 | W59: 22396.36364 | X59: 22344.81481 | Y59: 21548.49057 | Z59: 21135.23077 | AA59: 20408.22222 | AB59: 19138.15789 | AC59: 370 | AD59: 513.3333333 | AE59: -10 | AF59: 220 | AG59: 23050 | AH59: 21920 | AI59: 24140 | AJ59: 20150 | AK59: 24140 | AL59: 19080 | AM59: 1 | AN59: 3 | AO59: L | AP59: 2 | AQ59: 0 | AT59: 210 | AV59: 22145 | AW59: 22405 | AX59: 21782.5 | AY59: 20810 | AZ59: 22520 | BA59: 23370 | BB59: 23170 | BC59: 23000 | BD59: 22800 | BE59: 22630 | BF59: 22430 | BG59: 22260 | BH59: 220 | BI59: 0 | BJ59: 53.28947368 | BK59: 70.23809524 | BN59: 0.004478791604 | BO59: 0.0183531746 | BQ59: 1130 | BR59: 0 | BU59: 178377 | BV59: 1 | BW59: 0 | BX59: 22597.43663 | BY59: 22254.84865 | BZ59: 342.5879827 | CA59: 247.8675365 | CB59: 94.72044615 | CC59: 24969.27755 | CD59: 24092.21067 | CE59: 23215.1438 | CF59: 22338.07692 | CG59: 21461.01005 | CH59: 20583.94317 | CI59: 19706.8763 | CJ59: 0.4285714286 | CK59: 0.7207792208 | CL59: 0.8961038961 | CM59: -0.08961038961 | CN59: 0.8447461629 | CO59: 140 | CP59: 10 | CQ59: L | CR59: L | CS59: L | CU59: 290 | CV59: -250 | CZ59: 22145 | DA59: 22405 | DB59: 21887.5 | DC59: 20810 | DD59: 22564
A60: 2018-06-04 | B60: 2018-06-08 | C60: 23 | D60: 22330 | E60: 22860 | F60: 22320 | G60: 22620 | H60: 332385 | U60: 22838 | V60: 22320 | W60: 22270 | X60: 22343.33333 | Y60: 21494.15094 | Z60: 21081.69231 | AA60: 20338.66667 | AB60: 19098.68421 | AC60: 540 | AD60: 533.3333333 | AE60: 110 | AF60: 290 | AG60: 23050 | AH60: 21920 | AI60: 24140 | AJ60: 20150 | AK60: 24140 | AL60: 19080 | AM60: 1 | AN60: 2 | AO60: L | AP60: 1 | AQ60: 0 | AT60: 400 | AV60: 22145 | AW60: 22280 | AX60: 21647.5 | AY60: 20810 | AZ60: 22790 | BA60: 23420 | BB60: 23140 | BC60: 22880 | BD60: 22600 | BE60: 22340 | BF60: 22060 | BG60: 21800 | BH60: 290 | BI60: 0 | BJ60: 54.77707006 | BK60: 69.75806452 | BN60: 0.008923838134 | BO60: 0.01719054935 | BP60: UP | BQ60: 1130 | BR60: 0 | BU60: 176804 | BV60: 1 | BW60: 0 | BX60: 22481.15494 | BY60: 22194.3064 | BZ60: 286.8485452 | CA60: 180.6795985 | CB60: 106.1689468 | CC60: 24943.33332 | CD60: 24070.94016 | CE60: 23198.547 | CF60: 22326.15385 | CG60: 21453.76069 | CH60: 20581.36753 | CI60: 19708.97437 | CJ60: 0.54375 | CK60: 1.0125 | CL60: 0.5625 | CM60: -0.40875 | CN60: 0.65625 | CO60: 240 | CP60: 10 | CQ60: L | CR60: L | CS60: L | CU60: 410 | CV60: -220 | CZ60: 22145 | DA60: 22280 | DB60: 21782.5 | DC60: 20810 | DD60: 22530
A61: 2018-05-28 | B61: 2018-06-01 | C61: 22 | D61: 22490 | E61: 22550 | F61: 21920 | G61: 22220 | H61: 185218 | U61: 22782 | V61: 22340 | W61: 22063.63636 | X61: 22349.25926 | Y61: 21447.92453 | Z61: 21033.23077 | AA61: 20269 | AB61: 19056.10526 | AC61: 630 | AD61: 436.6666667 | AE61: 50 | AF61: -270 | AG61: 23050 | AH61: 21920 | AI61: 24140 | AJ61: 20150 | AK61: 24140 | AL61: 19080 | AM61: 2 | AN61: 1 | AO61: L | AP61: 0 | AQ61: 2 | AU61: 220 | AV61: 22145 | AW61: 22045 | AX61: 21572.5 | AY61: 20810 | AZ61: 22780 | BA61: 23170 | BB61: 22860 | BC61: 22540 | BD61: 22230 | BE61: 21910 | BF61: 21600 | BG61: 21280 | BH61: 0 | BI61: 270 | BJ61: 38.01652893 | BK61: 67.10526316 | BN61: 0.01533113468 | BO61: 0.01535372129 | BP61: UP | BQ61: 1130 | BR61: 0 | BU61: 157222.3333 | BV61: 0 | BW61: 1 | BX61: 22411.73242 | BY61: 22149.49655 | BZ61: 262.2358702 | CA61: 104.5164592 | CB61: 157.7194111 | CC61: 24958.30289 | CD61: 24083.09936 | CE61: 23207.89583 | CF61: 22332.69231 | CG61: 21457.48878 | CH61: 20582.28525 | CI61: 19707.08173 | CJ61: -0.6183206107 | CK61: 1.442748092 | CL61: -0.2748091603 | CM61: -1.287022901 | CN61: 0.3580846634 | CO61: 60 | CP61: 300 | CQ61: L | CR61: N | CS61: S | CU61: 180 | CV61: -560 | CZ61: 22145 | DA61: 22045 | DB61: 21647.5 | DC61: 20810 | DD61: 22612
A62: 2018-05-21 | B62: 2018-05-25 | C62: 21 | D62: 22930 | E62: 23050 | F62: 22310 | G62: 22440 | H62: 195931 | U62: 22774 | V62: 22368 | W62: 21992.72727 | X62: 22362.59259 | Y62: 21400.56604 | Z62: 20990.92308 | AA62: 20209.44444 | AB62: 19019.89474 | AC62: 740 | AD62: 376.6666667 | AE62: 0 | AF62: -490 | AG62: 23050 | AH62: 22060 | AI62: 24140 | AJ62: 20150 | AK62: 24140 | AL62: 19080 | AM62: 1 | AN62: 1 | AO62: L | AP62: 0 | AQ62: 1 | AU62: 490 | AV62: 22145 | AW62: 21600 | AX62: 21522.5 | AY62: 20810 | AZ62: 22580 | BA62: 23630 | BB62: 23340 | BC62: 22890 | BD62: 22600 | BE62: 22150 | BF62: 21860 | BG62: 21410 | BH62: 0 | BI62: 490 | BJ62: 60.44776119 | BK62: 83.17460317 | BN62: 0.02437927312 | BO62: 0.01557449309 | BP62: UP | BQ62: 740 | BR62: 0 | BU62: 151391 | BV62: 0 | BW62: 1 | BX62: 22507.59863 | BY62: 22142.07513 | BZ62: 365.5234948 | CA62: 15.72758119 | CB62: 349.7959136 | CC62: 24991.3731 | CD62: 24112.32566 | CE62: 23233.27821 | CF62: 22354.23077 | CG62: 21475.18333 | CH62: 20596.13588 | CI62: 19717.08844 | CJ62: -1.300884956 | CK62: 1.96460177 | CL62: 0.1911504425 | CM62: -0.8867256637 | CN62: 1.187449718 | CO62: 120 | CP62: 130 | CQ62: L | CR62: N | CS62: S | CU62: 230 | CV62: -20 | CZ62: 22145 | DA62: 21600 | DB62: 21572.5 | DC62: 20810 | DD62: 22714
A63: 2018-05-14 | B63: 2018-05-18 | C63: 20 | D63: 22740 | E63: 22950 | F63: 22700 | G63: 22930 | H63: 137186 | U63: 22636 | V63: 22258 | W63: 21893.63636 | X63: 22362.96296 | Y63: 21346.98113 | Z63: 20942.15385 | AA63: 20148.33333 | AB63: 18984.73684 | AC63: 250 | AD63: 376.6666667 | AE63: 10 | AF63: 190 | AG63: 22950 | AH63: 21760 | AI63: 24140 | AJ63: 20150 | AK63: 24140 | AL63: 19080 | AM63: 1 | AN63: 8 | AO63: L | AP63: 8 | AQ63: 0 | AR63: L | AT63: 200 | AV63: 22145 | AW63: 21550 | AX63: 21480 | AY63: 20810 | AZ63: 22450 | BA63: 23270 | BB63: 23110 | BC63: 23020 | BD63: 22860 | BE63: 22770 | BF63: 22610 | BG63: 22520 | BH63: 190 | BI63: 0 | BJ63: 96.66666667 | BK63: 69.86666667 | BN63: 0.02806794441 | BO63: 0.01410645107 | BP63: UP | BQ63: 890 | BR63: 0 | BU63: 151391 | BV63: 1 | BW63: 0 | BX63: 22541.39794 | BY63: 22110.71462 | BZ63: 430.6833201 | CA63: -98.0922734 | CB63: 528.7755935 | CC63: 24999.56924 | CD63: 24119.58462 | CE63: 23239.6 | CF63: 22359.61538 | CG63: 21479.63077 | CH63: 20599.64615 | CI63: 19719.66153 | CJ63: 0.5044247788 | CK63: 0.6637168142 | CL63: 1.784070796 | CM63: 0.7805309735 | CN63: 2.751407884 | CO63: 20 | CP63: 40 | CQ63: L | CR63: N | CS63: S | CU63: 390 | CV63: -40 | CZ63: 22145 | DA63: 21550 | DB63: 21522.5 | DC63: 20810 | DD63: 22522
A64: 2018-05-07 | B64: 2018-05-11 | C64: 19 | D64: 22520 | E64: 22780 | F64: 22350 | G64: 22730 | H64: 149263 | U64: 22438 | V64: 22020 | W64: 21730 | X64: 22347.77778 | Y64: 21289.43396 | Z64: 20884.76923 | AA64: 20075.77778 | AB64: 18949.68421 | AC64: 430 | AD64: 443.3333333 | AE64: 50 | AF64: 210 | AG64: 22780 | AH64: 21510 | AI64: 24140 | AJ64: 20150 | AK64: 24140 | AL64: 19080 | AM64: 1 | AN64: 7 | AO64: L | AP64: 7 | AQ64: 0 | AR64: L | AT64: 260 | AV64: 22145 | AW64: 21465 | AX64: 21302.5 | AY64: 20810 | AZ64: 22520 | BA64: 23320 | BB64: 23050 | BC64: 22890 | BD64: 22620 | BE64: 22460 | BF64: 22190 | BG64: 22030 | BH64: 210 | BI64: 0 | BJ64: 96.58119658 | BK64: 68.95604396 | BN64: 0.02869979828 | BO64: 0.01142470275 | BP64: UP | BQ64: 1020 | BR64: 0 | BU64: 167341.6667 | BV64: 1 | BW64: 0 | BX64: 22347.09691 | BY64: 22024.47405 | BZ64: 322.6228556 | CA64: -189.9641934 | CB64: 512.587049 | CC64: 24959.64569 | CD64: 24086.81508 | CE64: 23213.98446 | CF64: 22341.15385 | CG64: 21468.32323 | CH64: 20595.49261 | CI64: 19722.662 | CJ64: 0.4736842105 | CK64: 0.969924812 | CL64: 1.601503759 | CM64: 0.6586466165 | CN64: 2.255639098 | CO64: 50 | CP64: 170 | CQ64: L | CR64: N | CS64: S | CU64: 100 | CV64: -60 | CZ64: 22145 | DA64: 21465 | DB64: 21480 | DC64: 20810 | DD64: 22294
A65: 2018-05-01 | B65: 2018-05-02 | C65: 18 | D65: 22450 | E65: 22580 | F65: 22420 | G65: 22470 | H65: 53557 | U65: 22232 | V65: 21758 | W65: 21655.45455 | X65: 22338.51852 | Y65: 21228.11321 | Z65: 20833.23077 | AA65: 20006.77778 | AB65: 18915.42105 | AC65: 160 | AD65: 500 | AE65: -60 | AF65: 20 | AG65: 22580 | AH65: 21040 | AI65: 24140 | AJ65: 20150 | AK65: 24140 | AL65: 19080 | AM65: 1 | AN65: 6 | AO65: L | AP65: 6 | AQ65: 0 | AR65: L | AU65: 40 | AV65: 22145 | AW65: 21365 | AX65: 20815 | AY65: 20370 | AZ65: 22480 | BA65: 22720 | BB65: 22650 | BC65: 22560 | BD65: 22490 | BE65: 22400 | BF65: 22330 | BG65: 22240 | BH65: 20 | BI65: 0 | BJ65: 96.3963964 | BK65: 68.61111111 | BN65: 0.02442171228 | BQ65: 1070 | BR65: 0 | BU65: 187392.6667 | BV65: 0 | BW65: 1 | BX65: 22155.64536 | BY65: 21950.20816 | BZ65: 205.4371985 | CA65: -266.9291733 | CB65: 472.3663718 | CC65: 24943.56453 | CD65: 24073.402 | CE65: 23203.23946 | CF65: 22333.07692 | CG65: 21462.91439 | CH65: 20592.75185 | CI65: 19722.58931 | CJ65: 0.04 | CK65: 0.32 | CL65: 1.424 | CM65: 0.476 | CN65: 1.629090909 | CO65: 110 | CP65: 30 | CQ65: L | CR65: N | CS65: S | CU65: 390 | CV65: -60 | CZ65: 22145 | DA65: 21365 | DB65: 21302.5 | DC65: 20370 | DD65: 22114
A66: 2018-04-23 | B66: 2018-04-27 | C66: 17 | D66: 22150 | E66: 22510 | F66: 22060 | G66: 22510 | H66: 167724 | U66: 22018 | V66: 21304 | W66: 21589.09091 | X66: 22322.96296 | Y66: 21166.41509 | Z66: 20778.92308 | AA66: 19945.11111 | AB66: 18880.73684 | AC66: 450 | AD66: 586.6666667 | AE66: -10 | AF66: 360 | AG66: 22510 | AH66: 20150 | AI66: 24140 | AJ66: 20150 | AK66: 24140 | AL66: 19080 | AM66: 1 | AN66: 5 | AO66: L | AP66: 5 | AQ66: 0 | AT66: 350 | AV66: 22145 | AW66: 21330 | AX66: 20565 | AY66: 20120 | AZ66: 22050 | BA66: 23110 | BB66: 22810 | BC66: 22660 | BD66: 22360 | BE66: 22210 | BF66: 21910 | BG66: 21760 | BH66: 360 | BI66: 0 | BJ66: 100 | BK66: 56.9124424 | BN66: 0.01680982728 | BO66: 0 | BQ66: 1470 | BR66: 0 | BU66: 213214.6667 | BV66: 1 | BW66: 0 | BX66: 21998.46804 | BY66: 21895.49323 | BZ66: 102.9748091 | CA66: -319.9537889 | CB66: 422.928598 | CC66: 24944.13708 | CD66: 24073.9119 | CE66: 23203.68672 | CF66: 22333.46154 | CG66: 21463.23636 | CH66: 20593.01118 | CI66: 19722.786 | CJ66: 0.6136363636 | CK66: 0.7670454545 | CL66: 2.055681818 | CM66: 0.8386363636 | CN66: 1.569731405 | CO66: 0 | CP66: 90 | CQ66: L | CR66: N | CS66: S | CU66: 390 | CV66: -210 | CZ66: 22145 | DA66: 21330 | DB66: 20815 | DC66: 20120 | DD66: 21840
A67: 2018-04-16 | B67: 2018-04-20 | C67: 16 | D67: 21820 | E67: 22360 | F67: 21760 | G67: 22160 | H67: 185038 | U67: 21812 | V67: 20960 | W67: 21484.54545 | X67: 22283.7037 | Y67: 21093.58491 | Z67: 20732 | AA67: 19875.11111 | AB67: 18844.84211 | AC67: 600 | AD67: 816.6666667 | AE67: 10 | AF67: 340 | AG67: 22360 | AH67: 20150 | AI67: 24140 | AJ67: 20150 | AK67: 24140 | AL67: 19080 | AM67: 1 | AN67: 4 | AO67: L | AP67: 4 | AQ67: 0 | AT67: 350 | AV67: 22145 | AW67: 21330 | AX67: 20237.5 | AY67: 19855 | AZ67: 21450 | BA67: 23026.66667 | BB67: 22693.33333 | BC67: 22426.66667 | BD67: 22093.33333 | BE67: 21826.66667 | BF67: 21493.33333 | BG67: 21226.66667 | BH67: 340 | BI67: 0 | BJ67: 62.4137931 | BK67: 55.04807692 | BO67: -0.02128628815 | BQ67: 2210 | BR67: 0 | BU67: 225095.6667 | BV67: 1 | BW67: 0 | BX67: 21742.70206 | BY67: 21830.80831 | BZ67: -88.10624746 | CA67: -332.2514169 | CB67: 244.1451695 | CC67: 24929.16454 | CD67: 24058.03277 | CE67: 23186.901 | CF67: 22315.76923 | CG67: 21444.63746 | CH67: 20573.50569 | CI67: 19702.37392 | CJ67: 0.4163265306 | CK67: 0.7346938776 | CL67: 1.469387755 | CM67: 0.426122449 | CN67: 0.8270871985 | CO67: 200 | CP67: 60 | CQ67: L | CR67: N | CS67: S | CU67: 310 | CV67: -140 | CZ67: 22145 | DA67: 21330 | DB67: 20565 | DC67: 19855 | DD67: 21412
A68: 2018-04-09 | B68: 2018-04-13 | C68: 15 | D68: 21520 | E68: 21960 | F68: 21510 | G68: 21810 | H68: 209416 | U68: 21702 | V68: 20880 | W68: 21590 | X68: 22246.66667 | Y68: 21021.13208 | Z68: 20685.84615 | AA68: 19813.44444 | AB68: 18809.36842 | AC68: 450 | AD68: 766.6666667 | AE68: -120 | AF68: 290 | AG68: 21960 | AH68: 20150 | AI68: 24140 | AJ68: 20150 | AK68: 24140 | AL68: 19080 | AM68: 1 | AN68: 3 | AO68: L | AP68: 3 | AQ68: 0 | AT68: 170 | AV68: 22145 | AW68: 21330 | AX68: 19927.5 | AY68: 19705 | AZ68: 21160 | BA68: 22460 | BB68: 22210 | BC68: 22010 | BD68: 21760 | BE68: 21560 | BF68: 21310 | BG68: 21110 | BH68: 290 | BI68: 0 | BJ68: 58.71212121 | BK68: 55.3699284 | BN68: 0 | BO68: -0.02536217015 | BQ68: 1810 | BR68: 0 | BU68: 226776 | BV68: 1 | BW68: 0 | BX68: 21534.05309 | BY68: 21796.15655 | BZ68: -262.1034598 | CA68: -308.8368837 | CB68: 46.73342387 | CC68: 24948.19581 | CD68: 24061.61772 | CE68: 23175.03963 | CF68: 22288.46154 | CG68: 21401.88345 | CH68: 20515.30536 | CI68: 19628.72727 | CJ68: 0.3782608696 | CK68: 0.5869565217 | CL68: 1.213043478 | CM68: 0.1408695652 | CN68: 0.2869565217 | CO68: 150 | CP68: 10 | CQ68: L | CR68: N | CS68: S | CU68: 480 | CV68: -230 | CZ68: 22145 | DA68: 21330 | DB68: 20237.5 | DC68: 19705 | DD68: 21278
A69: 2018-04-02 | B69: 2018-04-06 | C69: 14 | D69: 21410 | E69: 21750 | F69: 21040 | G69: 21640 | H69: 245190 | U69: 21654 | V69: 20762 | W69: 21755.45455 | X69: 22205.92593 | Y69: 20962.64151 | Z69: 20646.46154 | AA69: 19755.88889 | AB69: 18776.42105 | AC69: 710 | AD69: 883.3333333 | AE69: -30 | AF69: 230 | AG69: 21810 | AH69: 20150 | AI69: 24140 | AJ69: 20150 | AK69: 24140 | AL69: 19080 | AM69: 1 | AN69: 2 | AO69: S | AP69: 2 | AQ69: 0 | AT69: 200 | AV69: 22145 | AW69: 21500 | AX69: 19677.5 | AY69: 19455 | AZ69: 20710 | BA69: 22623.33333 | BB69: 22186.66667 | BC69: 21913.33333 | BD69: 21476.66667 | BE69: 21203.33333 | BF69: 20766.66667 | BG69: 20493.33333 | BH69: 230 | BI69: 0 | BJ69: 59.4795539 | BK69: 35.95317726 | BN69: -0.01626385608 | BO69: -0.03129047927 | BP69: DW | BQ69: 1660 | BR69: 0 | BU69: 257057.3333 | BV69: 1 | BW69: 0 | BX69: 21396.07964 | BY69: 21794.69935 | BZ69: -398.6197087 | CA69: -235.3424268 | CB69: -163.277282 | CC69: 24989.28602 | CD69: 24080.67786 | CE69: 23172.0697 | CF69: 22263.46154 | CG69: 21354.85338 | CH69: 20446.24522 | CI69: 19537.63706 | CJ69: 0.2603773585 | CK69: 0.8037735849 | CL69: 0.9939622642 | CM69: -0.0158490566 | CN69: -0.130703259 | CO69: 110 | CP69: 370 | CQ69: L | CR69: S | CS69: S | CU69: 1260 | CV69: -100 | CZ69: 22145 | DA69: 21500 | DB69: 19927.5 | DC69: 19455 | DD69: 21198
A70: 2018-03-26 | B70: 2018-03-30 | C70: 13 | D70: 20240 | E70: 21510 | F70: 20150 | G70: 21440 | H70: 305301 | U70: 21806 | V70: 20758 | W70: 21951.81818 | X70: 22157.77778 | Y70: 20911.13208 | Z70: 20612 | AA70: 19699.44444 | AB70: 18743.15789 | AC70: 1360 | AD70: 1100 | AE70: -110 | AF70: 1200 | AG70: 22510 | AH70: 20150 | AI70: 24140 | AJ70: 20150 | AK70: 24140 | AL70: 19080 | AM70: 10 | AN70: 1 | AO70: S | AP70: 1 | AQ70: 0 | AT70: 1090 | AV70: 22145 | AW70: 21965 | AX70: 19522.5 | AY70: 19300 | AZ70: 20340 | BA70: 23276.66667 | BB70: 22393.33333 | BC70: 21916.66667 | BD70: 21033.33333 | BE70: 20556.66667 | BF70: 19673.33333 | BG70: 19196.66667 | BH70: 1200 | BI70: 0 | BJ70: 42.81345566 | BK70: 32.01970443 | BN70: -0.01863186319 | BO70: -0.02770283874 | BP70: DW | BQ70: 1660 | BR70: 0 | BU70: 287296.6667 | BV70: 1 | BW70: 0 | BX70: 21274.11946 | BY70: 21810.98349 | BZ70: -536.8640315 | CA70: -81.37306784 | CB70: -455.4909636 | CC70: 25077.14943 | CD70: 24127.33039 | CE70: 23177.51135 | CF70: 22227.69231 | CG70: 21277.87327 | CH70: 20328.05422 | CI70: 19378.23518 | CJ70: 1.090909091 | CK70: 1.236363636 | CL70: 0.62 | CM70: -0.3327272727 | CN70: -0.4652892562 | CO70: 70 | CP70: 90 | CQ70: L | CR70: S | CS70: S | CT70: L | CU70: -100 | CV70: -1240 | CY70: U | CZ70: 22145 | DA70: 21965 | DB70: 19677.5 | DC70: 19300 | DD70: 20902
A71: 2018-03-19 | B71: 2018-03-23 | C71: 12 | D71: 21370 | E71: 21480 | F71: 20340 | G71: 20350 | H71: 220681 | U71: 21938 | V71: 21046 | W71: 22151.81818 | X71: 22111.11111 | Y71: 20867.73585 | Z71: 20575.84615 | AA71: 19629.22222 | AB71: 18708 | AC71: 1140 | AD71: 840 | AE71: -70 | AF71: -1020 | AG71: 22510 | AH71: 20340 | AI71: 24140 | AJ71: 20340 | AK71: 24140 | AL71: 19080 | AM71: 9 | AN71: 1 | AO71: S | AP71: 0 | AQ71: 2 | AS71: S | AU71: 1090 | AV71: 22145 | AW71: 22240 | AX71: 19502.5 | AY71: 19280 | AZ71: 20180 | BA71: 22246.66667 | BB71: 21863.33333 | BC71: 21106.66667 | BD71: 20723.33333 | BE71: 19966.66667 | BF71: 19583.33333 | BG71: 18826.66667 | BH71: 0 | BI71: 1020 | BJ71: 20.42553191 | BK71: 16.6344294 | BN71: -0.03066454578 | BO71: -0.0247348409 | BP71: DW | BQ71: 2170 | BR71: 0 | BU71: 267199.3333 | BV71: 0 | BW71: 1 | BX71: 21191.17919 | BY71: 21850.03438 | BZ71: -658.8551965 | CA71: 104.4905045 | CB71: -763.3457009 | CC71: 25205.6496 | CD71: 24198.89461 | CE71: 23192.13961 | CF71: 22185.38462 | CG71: 21178.62962 | CH71: 20171.87462 | CI71: 19165.11963 | CJ71: -1.214285714 | CK71: 1.357142857 | CL71: -0.8285714286 | CM71: -1.89047619 | CN71: -2.145021645 | CO71: 110 | CP71: 10 | CQ71: L | CR71: N | CS71: L | CU71: 10 | CV71: -440 | CZ71: 22145 | DA71: 22240 | DB71: 19522.5 | DC71: 19280 | DD71: 21440
A72: 2018-03-12 | B72: 2018-03-16 | C72: 11 | D72: 21750 | E72: 21810 | F72: 21360 | G72: 21440 | H72: 214457 | U72: 22012 | V72: 21162 | W72: 22458.18182 | X72: 22090.37037 | Y72: 20848.86792 | Z72: 20560.61538 | AA72: 19577.22222 | AB72: 18682.89474 | AC72: 450 | AD72: 770 | AE72: 400 | AF72: -310 | AG72: 22510 | AH72: 20920 | AI72: 24140 | AJ72: 20920 | AK72: 24140 | AL72: 19080 | AM72: 8 | AN72: 2 | AO72: S | AP72: 0 | AQ72: 1 | AT72: 90 | AV72: 22060 | AW72: 22530 | AX72: 19432.5 | AY72: 19240 | AZ72: 19790 | BA72: 22163.33333 | BB72: 21986.66667 | BC72: 21713.33333 | BD72: 21536.66667 | BE72: 21263.33333 | BF72: 21086.66667 | BG72: 20813.33333 | BH72: 0 | BI72: 310 | BJ72: 52.43902439 | BK72: 24.05660377 | BN72: -0.04120567994 | BO72: -0.01671708327 | BP72: DW | BQ72: 1590 | BR72: 0 | BU72: 278081.6667 | BV72: 1 | BW72: 0 | BX72: 21611.76878 | BY72: 22007.93274 | BZ72: -396.1639596 | CA72: 311.080611 | CB72: -707.2445706 | CC72: 25236.23562 | CD72: 24217.1058 | CE72: 23197.97597 | CF72: 22178.84615 | CG72: 21159.71633 | CH72: 20140.58651 | CI72: 19121.45669 | CJ72: -0.4025974026 | CK72: 0.5844155844 | CL72: 0.361038961 | CM72: -0.7428571429 | CN72: -1.32231405 | CO72: 60 | CP72: 80 | CQ72: L | CR72: N | CS72: L | CU72: 830 | CV72: 30 | CZ72: 22060 | DA72: 22530 | DB72: 19502.5 | DC72: 19240 | DD72: 21576
A73: 2018-03-05 | B73: 2018-03-09 | C73: 10 | D73: 21020 | E73: 21720 | F73: 20920 | G73: 21350 | H73: 472491 | U73: 22220 | V73: 21100 | W73: 22577.27273 | X73: 22005.18519 | Y73: 20811.69811 | Z73: 20528.92308 | AA73: 19505.11111 | AB73: 18651.36842 | AC73: 800 | AD73: 1073.333333 | AE73: -110 | AF73: 330 | AG73: 22850 | AH73: 20920 | AI73: 24140 | AJ73: 20920 | AK73: 24140 | AL73: 19080 | AM73: 7 | AN73: 1 | AO73: S | AP73: 1 | AQ73: 0 | AT73: 220 | AV73: 21705 | AW73: 22530 | AX73: 19437.5 | AY73: 19240 | AZ73: 19140 | BA73: 22540 | BB73: 22130 | BC73: 21740 | BD73: 21330 | BE73: 20940 | BF73: 20530 | BG73: 20140 | BH73: 330 | BI73: 0 | BJ73: 21.93732194 | BK73: 21.9858156 | BN73: -0.04831248929 | BO73: -0.01495319689 | BP73: DW | BQ73: 1590 | BR73: 0 | BU73: 353909 | BV73: 1 | BW73: 0 | BX73: 21697.65317 | BY73: 22067.71513 | BZ73: -370.0619639 | CA73: 485.896808 | CB73: -855.9587719 | CC73: 25446.71731 | CD73: 24336.27308 | CE73: 23225.82885 | CF73: 22115.38462 | CG73: 21004.94038 | CH73: 19894.49615 | CI73: 18784.05192 | CJ73: 0.3074534161 | CK73: 0.7453416149 | CL73: 0.2329192547 | CM73: -0.8105590062 | CN73: -1.143421796 | CO73: 370 | CP73: 100 | CQ73: L | CR73: N | CS73: L | CU73: 0 | CV73: -1490 | CZ73: 21705 | DA73: 22530 | DB73: 19432.5 | DC73: 19240 | DD73: 21432
A74: 2018-02-26 | B74: 2018-03-02 | C74: 9 | D74: 22150 | E74: 22510 | F74: 21020 | G74: 21130 | H74: 335908 | U74: 22632 | V74: 21530 | W74: 22713.63636 | X74: 21943.7037 | Y74: 20776.22642 | Z74: 20492.61538 | AA74: 19440.44444 | AB74: 18619.05263 | AC74: 1490 | AD74: 1043.333333 | AE74: 240 | AF74: -1020 | AG74: 23780 | AH74: 20920 | AI74: 24140 | AJ74: 20920 | AK74: 24140 | AL74: 19080 | AM74: 6 | AN74: 1 | AO74: S | AP74: 0 | AQ74: 1 | AS74: S | AU74: 780 | AV74: 21610 | AW74: 22530 | AX74: 19482.5 | AY74: 19145 | AZ74: 19690 | BA74: 23576.66667 | BB74: 23043.33333 | BC74: 22086.66667 | BD74: 21553.33333 | BE74: 20596.66667 | BF74: 20063.33333 | BG74: 19106.66667 | BH74: 0 | BI74: 1020 | BJ74: 15.27777778 | BK74: 33.73493976 | BN74: -0.04819581125 | BO74: -0.01307473535 | BP74: DW | BQ74: 1930 | BR74: 0 | BU74: 292518.3333 | BV74: 0 | BW74: 1 | BX74: 21871.47975 | BY74: 22143.26409 | BZ74: -271.7843413 | CA74: 653.6589167 | CB74: -925.443258 | CC74: 25757.90939 | CD74: 24515.40113 | CE74: 23272.89287 | CF74: 22030.38462 | CG74: 20787.87636 | CH74: 19545.3681 | CI74: 18302.85984 | CJ74: -0.9776357827 | CK74: 1.428115016 | CL74: -0.3833865815 | CM74: -1.439616613 | CN74: -1.517862329 | CO74: 360 | CP74: 110 | CQ74: L | CR74: N | CS74: L | CU74: 560 | CV74: -20 | CY74: D | CZ74: 21610 | DA74: 22530 | DB74: 19437.5 | DC74: 19240 | DD74: 22096
A75: 2018-02-19 | B75: 2018-02-23 | C75: 8 | D75: 21860 | E75: 22170 | F75: 21590 | G75: 21910 | H75: 245009 | U75: 22958 | V75: 22036 | W75: 22840 | X75: 21881.48148 | Y75: 20741.13208 | Z75: 20449.53846 | AA75: 19389.33333 | AB75: 18587.68421 | AC75: 580 | AD75: 743.3333333 | AE75: 120 | AF75: 50 | AG75: 24140 | AH75: 20920 | AI75: 24140 | AJ75: 20650 | AK75: 24140 | AL75: 19080 | AM75: 5 | AN75: 1 | AO75: S | AP75: 2 | AQ75: 0 | AT75: 170 | AV75: 21610 | AW75: 22530 | AX75: 19512.5 | AY75: 18875 | AZ75: 19450 | BA75: 22770 | BB75: 22470 | BC75: 22190 | BD75: 21890 | BE75: 21610 | BF75: 21310 | BG75: 21030 | BH75: 50 | BI75: 0 | BJ75: 18.39464883 | BK75: 39.06976744 | BN75: -0.04157969441 | BO75: -0.01234373772 | BP75: DW | BQ75: 2860 | BR75: 0 | BU75: 262218.6667 | BV75: 1 | BW75: 0 | BX75: 22242.21963 | BY75: 22249.92347 | BZ75: -7.703843737 | CA75: 793.4403645 | CB75: -801.1442083 | CC75: 25909.74684 | CD75: 24598.16456 | CE75: 23286.58228 | CF75: 21975 | CG75: 20663.41772 | CH75: 19351.83544 | CI75: 18040.25316 | CJ75: 0.06726457399 | CK75: 0.7802690583 | CL75: -0.1695067265 | CM75: -1.409865471 | CN75: -1.251121076 | CO75: 260 | CP75: 270 | CQ75: L | CR75: N | CS75: L | CU75: 940 | CV75: 10 | CZ75: 21610 | DA75: 22530 | DB75: 19482.5 | DC75: 19145 | DD75: 22382
A76: 2018-02-13 | B76: 2018-02-16 | C76: 7 | D76: 21650 | E76: 21850 | F76: 20920 | G76: 21740 | H76: 253328 | U76: 23348 | V76: 22450 | W76: 22920 | X76: 21790 | Y76: 20690 | Z76: 20395.23077 | AA76: 19331 | AB76: 18553.63158 | AC76: 930 | AD76: 743.3333333 | AE76: 290 | AF76: 90 | AG76: 24140 | AH76: 20920 | AI76: 24140 | AJ76: 20350 | AK76: 24140 | AL76: 19080 | AM76: 4 | AN76: 1 | AO76: S | AP76: 1 | AQ76: 0 | AT76: 380 | AV76: 21610 | AW76: 22530 | AX76: 19545 | AY76: 18190 | AZ76: 19440 | BA76: 23016.66667 | BB76: 22433.33333 | BC76: 22086.66667 | BD76: 21503.33333 | BE76: 21156.66667 | BF76: 20573.33333 | BG76: 20226.66667 | BH76: 90 | BI76: 0 | BJ76: 18.12080537 | BK76: 41.25560538 | BQ76: 3220 | BR76: 0 | BU76: 257482.3333 | BV76: 1 | BW76: 0 | BX76: 22408.32944 | BY76: 22285.70489 | BZ76: 122.6245519 | CA76: 912.3706403 | CB76: -789.7460885 | CC76: 26076.47192 | CD76: 24677.77615 | CE76: 23279.08038 | CF76: 21880.38462 | CG76: 20481.68885 | CH76: 19082.99308 | CI76: 17684.29731 | CJ76: 0.1210762332 | CK76: 1.251121076 | CL76: -0.9551569507 | CM76: -2.1632287 | CN76: -1.587443946 | CO76: 110 | CP76: 730 | CQ76: L | CR76: N | CS76: L | CU76: 600 | CV76: -1200 | CZ76: 21610 | DA76: 22530 | DB76: 19512.5 | DC76: 18875 | DD76: 22752
A77: 2018-02-05 | B77: 2018-02-09 | C77: 6 | D77: 22780 | E77: 22850 | F77: 21050 | G77: 21360 | H77: 516890 | U77: 23778 | V77: 22980 | W77: 23014.54545 | X77: 21714.81481 | Y77: 20645.4717 | Z77: 20337.23077 | AA77: 19276.33333 | AB77: 18518.78947 | AC77: 1800 | AD77: 586.6666667 | AE77: -540 | AF77: -1420 | AG77: 24140 | AH77: 21050 | AI77: 24140 | AJ77: 20150 | AK77: 24140 | AL77: 19080 | AM77: 3 | AN77: 1 | AO77: S | AP77: 0 | AQ77: 3 | AU77: 1960 | AV77: 21610 | AW77: 22595 | AX77: 19602.5 | AY77: 18190 | AZ77: 19710 | BA77: 24256.66667 | BB77: 23553.33333 | BC77: 22456.66667 | BD77: 21753.33333 | BE77: 20656.66667 | BF77: 19953.33333 | BG77: 18856.66667 | BH77: 0 | BI77: 1420 | BJ77: 5.970149254 | BK77: 33.56321839 | BQ77: 3090 | BR77: 0 | BU77: 249469 | BV77: 0 | BW77: 1 | BX77: 22742.49416 | BY77: 22343.14751 | BZ77: 399.3466524 | CA77: 1020.296941 | CB77: -620.9502887 | CC77: 26218.14144 | CD77: 24742.73532 | CE77: 23267.3292 | CF77: 21791.92308 | CG77: 20316.51695 | CH77: 18841.11083 | CI77: 17365.70471 | CJ77: -2.420454545 | CK77: 3.068181818 | CL77: -2.761363636 | CM77: -4.121590909 | CN77: -2.820247934 | CO77: 70 | CP77: 310 | CQ77: L | CR77: L | CS77: L | CT77: L | CU77: -290 | CV77: -1000 | CZ77: 21610 | DA77: 22595 | DB77: 19545 | DC77: 18190 | DD77: 23434
A78: 2018-01-29 | B78: 2018-02-02 | C78: 5 | D78: 23730 | E78: 23780 | F78: 23070 | G78: 23320 | H78: 288319 | U78: 23954 | V78: 23386 | W78: 23125.45455 | X78: 21662.59259 | Y78: 20599.81132 | Z78: 20276.30769 | AA78: 19225 | AB78: 18487.31579 | AC78: 710 | AD78: 566.6666667 | AE78: 100 | AF78: -410 | AG78: 24140 | AH78: 23070 | AI78: 24140 | AJ78: 19980 | AK78: 24140 | AL78: 18830 | AM78: 2 | AN78: 1 | AO78: L | AP78: 0 | AQ78: 2 | AU78: 310 | AV78: 21610 | AW78: 23125 | AX78: 19622.5 | AY78: 18190 | AZ78: 19950 | BA78: 24420 | BB78: 24100 | BC78: 23710 | BD78: 23390 | BE78: 23000 | BF78: 22680 | BG78: 22290 | BH78: 0 | BI78: 410 | BJ78: 66.86390533 | BK78: 61.25 | BN78: 0.0270988766 | BO78: 0.01314322128 | BP78: UP | BQ78: 1070 | BR78: 0 | BU78: 213989.6667 | BV78: 0 | BW78: 1 | BX78: 23433.74124 | BY78: 22446.63672 | BZ78: 987.1045216 | CA78: 1111.317022 | CB78: -124.2125002 | CC78: 26310.0503 | CD78: 24782.85405 | CE78: 23255.65779 | CF78: 21728.46154 | CG78: 20201.26528 | CH78: 18674.06903 | CI78: 17146.87277 | CJ78: -0.7235294118 | CK78: 1.252941176 | CL78: -0.1164705882 | CM78: -1.118823529 | CN78: 0.343315508 | CO78: 50 | CP78: 250 | CQ78: L | CR78: L | CS78: L | CU78: 180 | CV78: -410 | CZ78: 21610 | DA78: 23125 | DB78: 19602.5 | DC78: 18190 | DD78: 23704
A79: 2018-01-22 | B79: 2018-01-26 | C79: 4 | D79: 23770 | E79: 24140 | F79: 23550 | G79: 23630 | H79: 230800 | U79: 23788 | V79: 23316 | W79: 23046.36364 | X79: 21537.77778 | Y79: 20526.98113 | Z79: 20177.38462 | AA79: 19147.44444 | AB79: 18444.26316 | AC79: 590 | AD79: 493.3333333 | AE79: -30 | AF79: -140 | AG79: 24140 | AH79: 22720 | AI79: 24140 | AJ79: 19270 | AK79: 24140 | AL79: 18190 | AM79: 1 | AN79: 8 | AO79: L | AP79: 0 | AQ79: 1 | AU79: 170 | AV79: 21610 | AW79: 23125 | AX79: 19582.5 | AY79: 18190 | AZ79: 19950 | BA79: 24586.66667 | BB79: 24363.33333 | BC79: 23996.66667 | BD79: 23773.33333 | BE79: 23406.66667 | BF79: 23183.33333 | BG79: 22816.66667 | BH79: 0 | BI79: 140 | BJ79: 76.35135135 | BK79: 72.92576419 | BN79: 0.02996189816 | BO79: 0.01611287026 | BP79: UP | BQ79: 1060 | BR79: 0 | BU79: 174248 | BV79: 0 | BW79: 1 | BX79: 23490.61186 | BY79: 22354.70374 | BZ79: 1135.908119 | CA79: 1141.009067 | CB79: -5.100947328 | CC79: 26187.7248 | CD79: 24658.09859 | CE79: 23128.47237 | CF79: 21598.84615 | CG79: 20069.21994 | CH79: 18539.59372 | CI79: 17009.96751 | CJ79: -0.2837837838 | CK79: 1.195945946 | CL79: 0.6364864865 | CM79: -0.3202702703 | CN79: 1.183046683 | CO79: 370 | CP79: 80 | CQ79: L | CR79: L | CS79: L | CU79: 110 | CV79: -350 | CZ79: 21610 | DA79: 23125 | DB79: 19622.5 | DC79: 18190 | DD79: 23536
A80: 2018-01-15 | B80: 2018-01-19 | C80: 3 | D80: 23800 | E80: 24120 | F80: 23660 | G80: 23800 | H80: 229288 | U80: 23552 | V80: 23144 | W80: 22945.45455 | X80: 21406.2963 | Y80: 20442.64151 | Z80: 20082.46154 | AA80: 19063.55556 | AB80: 18399.31579 | AC80: 460 | AD80: 386.6666667 | AE80: 160 | AF80: 0 | AG80: 24120 | AH80: 22690 | AI80: 24120 | AJ80: 19080 | AK80: 24120 | AL80: 18190 | AM80: 1 | AN80: 7 | AO80: L | AP80: 0 | AQ80: 0 | AR80: L | AT80: 160 | AV80: 21600 | AW80: 23115 | AX80: 19582.5 | AY80: 18190 | AZ80: 20080 | BA80: 24520 | BB80: 24320 | BC80: 24060 | BD80: 23860 | BE80: 23600 | BF80: 23400 | BG80: 23140 | BH80: 0 | BI80: 0 | BJ80: 89.02439024 | BK80: 80 | BN80: 0.02623093682 | BO80: 0.02095299733 | BP80: UP | BQ80: 1400 | BR80: 0 | BU80: 140677.3333 | BV80: 1 | BW80: 0 | BX80: 23420.91779 | BY80: 22220.46203 | BZ80: 1200.455762 | CA80: 1153.866453 | CB80: 46.5893086 | CC80: 25972.89269 | CD80: 24467.69769 | CE80: 22962.50269 | CF80: 21457.30769 | CG80: 19952.11269 | CH80: 18446.9177 | CI80: 16941.7227 | CJ80: 0 | CK80: 1.189655172 | CL80: 1.696551724 | CM80: 0.6413793103 | CN80: 2.210031348 | CO80: 320 | CP80: 140 | CQ80: L | CR80: L | CS80: L | CU80: 230 | CV80: -200 | CZ80: 21600 | DA80: 23115 | DB80: 19582.5 | DC80: 18190 | DD80: 23352
A81: 2018-01-09 | B81: 2018-01-12 | C81: 2 | D81: 23910 | E81: 24000 | F81: 23570 | G81: 23640 | H81: 181881 | U81: 23322 | V81: 22900 | W81: 22825.45455 | X81: 21269.62963 | Y81: 20356.79245 | Z81: 19981.23077 | AA81: 18982.44444 | AB81: 18351.15789 | AC81: 430 | AD81: 410 | AE81: 190 | AF81: -270 | AG81: 24000 | AH81: 22440 | AI81: 24000 | AJ81: 19080 | AK81: 24000 | AL81: 18190 | AM81: 1 | AN81: 6 | AO81: L | AP81: 0 | AQ81: 1 | AR81: L | AU81: 80 | AV81: 21540 | AW81: 22990 | AX81: 19552.5 | AY81: 18190 | AZ81: 20110 | BA81: 24333.33333 | BB81: 24166.66667 | BC81: 23903.33333 | BD81: 23736.66667 | BE81: 23473.33333 | BF81: 23306.66667 | BG81: 23043.33333 | BH81: 0 | BI81: 270 | BJ81: 74.28571429 | BK81: 75.92592593 | BN81: 0.01851690104 | BO81: 0.0221878435 | BP81: UP | BQ81: 1310 | BR81: 0 | BU81: 131222.3333 | BV81: 0 | BW81: 1 | BX81: 23231.37669 | BY81: 22054.19488 | BZ81: 1177.181814 | CA81: 1160.505466 | CB81: 16.67634825 | CC81: 25668.90073 | CD81: 24217.34407 | CE81: 22765.78742 | CF81: 21314.23077 | CG81: 19862.67412 | CH81: 18411.11746 | CI81: 16959.56081 | CJ81: -0.6585365854 | CK81: 1.048780488 | CL81: 1.804878049 | CM81: 0.7756097561 | CN81: 1.986696231 | CO81: 90 | CP81: 70 | CQ81: L | CR81: L | CS81: L | CT81: H | CU81: 830 | CV81: 180 | CZ81: 21540 | DA81: 22990 | DB81: 19582.5 | DC81: 18190 | DD81: 23150
A82: 2018-01-04 | B82: 2018-01-05 | C82: 1 | D82: 23100 | E82: 23730 | F82: 23080 | G82: 23720 | H82: 111575 | U82: 23096 | V82: 22608 | W82: 22680.90909 | X82: 21132.96296 | Y82: 20276.79245 | Z82: 19876.76923 | AA82: 18915 | AB82: 18302.63158 | AC82: 650 | AD82: 483.3333333 | AE82: 350 | AF82: 620 | AG82: 23730 | AH82: 22110 | AI82: 23730 | AJ82: 19080 | AK82: 23730 | AL82: 18190 | AM82: 1 | AN82: 5 | AO82: L | AP82: 1 | AQ82: 0 | AT82: 970 | AV82: 21405 | AW82: 22855 | AX82: 19552.5 | AY82: 18190 | AZ82: 19950 | BA82: 24590 | BB82: 24160 | BC82: 23940 | BD82: 23510 | BE82: 23290 | BF82: 22860 | BG82: 22640 | BH82: 620 | BI82: 0 | BJ82: 77.97619048 | BK82: 79.24528302 | BN82: 0.01032370954 | BO82: 0.02464166906 | BP82: UP | BQ82: 1290 | BR82: 0 | BU82: 131222.3333 | BV82: 1 | BW82: 0 | BX82: 23027.06504 | BY82: 21887.26802 | BZ82: 1139.797015 | CA82: 1169.64354 | CB82: -29.84652541 | CC82: 25353.00548 | CD82: 23961.49084 | CE82: 22569.97619 | CF82: 21178.46154 | CG82: 19786.94689 | CH82: 18395.43224 | CI82: 17003.91759 | CJ82: 1.282758621 | CK82: 1.344827586 | CL82: 2.300689655 | CM82: 1.291034483 | CN82: 2.14984326 | CO82: 10 | CP82: 20 | CQ82: L | CR82: L | CS82: L | CT82: H | CU82: 380 | CV82: 150 | CZ82: 21405 | DA82: 22855 | DB82: 19552.5 | DC82: 18190 | DD82: 22802
A83: 2017-12-25 | B83: 2017-12-29 | C83: 52 | D83: 22860 | E83: 22950 | F83: 22720 | G83: 22750 | H83: 86998 | U83: 22950 | V83: 22466 | W83: 22474.54545 | X83: 20994.81481 | Y83: 20189.43396 | Z83: 19771.69231 | AA83: 18837.66667 | AB83: 18252.15789 | AC83: 230 | AD83: 476.6666667 | AE83: 10 | AF83: -110 | AG83: 23000 | AH83: 22110 | AI83: 23430 | AJ83: 19080 | AK83: 23430 | AL83: 18190 | AM83: 2 | AN83: 4 | AO83: L | AP83: 0 | AQ83: 1 | AU83: 100 | AV83: 21255 | AW83: 22635 | AX83: 19487.5 | AY83: 18190 | AZ83: 19990 | BA83: 23123.33333 | BB83: 23036.66667 | BC83: 22893.33333 | BD83: 22806.66667 | BE83: 22663.33333 | BF83: 22576.66667 | BG83: 22433.33333 | BH83: 0 | BI83: 110 | BJ83: 59.34065934 | BK83: 72.15189873 | BO83: 0.02449131822 | BQ83: 860 | BR83: 1 | BU83: 171076.6667 | BV83: 0 | BW83: 1 | BX83: 22680.59756 | BY83: 21694.34887 | BZ83: 986.2486887 | CA83: 1172.356126 | CB83: -186.1074374 | CC83: 24973.5157 | CD83: 23660.16431 | CE83: 22346.81292 | CF83: 21033.46154 | CG83: 19720.11015 | CH83: 18406.75877 | CI83: 17093.40738 | CJ83: -0.2307692308 | CK83: 0.4825174825 | CL83: 0.5958041958 | CM83: -0.4195804196 | CN83: 0.5778766688 | CO83: 90 | CP83: 30 | CQ83: L | CR83: L | CS83: L | CU83: 170 | CV83: -100 | CZ83: 21255 | DA83: 22635 | DB83: 19552.5 | DC83: 18190 | DD83: 22760
A84: 2017-12-18 | B84: 2017-12-22 | C84: 51 | D84: 22750 | E84: 22960 | F84: 22690 | G84: 22850 | H84: 128576 | U84: 22898 | V84: 22364 | W84: 22330 | X84: 20895.92593 | Y84: 20125.4717 | Z84: 19673.84615 | AA84: 18760.77778 | AB84: 18207.21053 | AC84: 270 | AD84: 546.6666667 | AE84: 230 | AF84: 100 | AG84: 23000 | AH84: 22110 | AI84: 23430 | AJ84: 19080 | AK84: 23430 | AL84: 18190 | AM84: 1 | AN84: 3 | AO84: L | AP84: 1 | AQ84: 0 | AT84: 330 | AV84: 21255 | AW84: 22520 | AX84: 19400 | AY84: 18190 | AZ84: 20080 | BA84: 23246.66667 | BB84: 23103.33333 | BC84: 22976.66667 | BD84: 22833.33333 | BE84: 22706.66667 | BF84: 22563.33333 | BG84: 22436.66667 | BH84: 100 | BI84: 0 | BJ84: 71.27659574 | BK84: 83.65384615 | BN84: 0 | BO84: 0.02903225806 | BQ84: 890 | BR84: 1 | BU84: 174683.6667 | BV84: 1 | BW84: 0 | BX84: 22645.89633 | BY84: 21583.2277 | BZ84: 1062.668639 | CA84: 1169.536319 | CB84: -106.8676808 | CC84: 24771.72724 | CD84: 23490.25406 | CE84: 22208.78088 | CF84: 20927.30769 | CG84: 19645.83451 | CH84: 18364.36132 | CI84: 17082.88814 | CJ84: 0.1829268293 | CK84: 0.493902439 | CL84: 0.8890243902 | CM84: -0.08780487805 | CN84: 0.9512195122 | CO84: 110 | CP84: 60 | CQ84: L | CR84: L | CS84: L | CU84: 310 | CV84: -220 | CZ84: 21255 | DA84: 22520 | DB84: 19487.5 | DC84: 18190 | DD84: 22684
A85: 2017-12-11 | B85: 2017-12-15 | C85: 50 | D85: 22870 | E85: 22970 | F85: 22440 | G85: 22520 | H85: 153516 | U85: 22860 | V85: 22222 | W85: 22135.45455 | X85: 20788.14815 | Y85: 20060 | Z85: 19577.23077 | AA85: 18686.66667 | AB85: 18163.15789 | AC85: 530 | AD85: 640 | AE85: 80 | AF85: -350 | AG85: 23000 | AH85: 21980 | AI85: 23430 | AJ85: 19080 | AK85: 23430 | AL85: 18190 | AM85: 1 | AN85: 2 | AO85: L | AP85: 0 | AQ85: 2 | AU85: 270 | AV85: 21255 | AW85: 22310 | AX85: 19220 | AY85: 18170 | AZ85: 19940 | BA85: 23376.66667 | BB85: 23173.33333 | BC85: 22846.66667 | BD85: 22643.33333 | BE85: 22316.66667 | BF85: 22113.33333 | BG85: 21786.66667 | BH85: 0 | BI85: 350 | BJ85: 50 | BK85: 83.33333333 | BO85: 0.03300666073 | BQ85: 890 | BR85: 0 | BU85: 232788.6667 | BV85: 0 | BW85: 1 | BX85: 22543.8445 | BY85: 21449.88324 | BZ85: 1093.961259 | CA85: 1134.008588 | CB85: -40.04732916 | CC85: 24514.8563 | CD85: 23283.49394 | CE85: 22052.13159 | CF85: 20820.76923 | CG85: 19589.40687 | CH85: 18358.04452 | CI85: 17126.68216 | CJ85: -0.546875 | CK85: 0.828125 | CL85: 0.465625 | CM85: -0.53125 | CN85: 0.6008522727 | CO85: 100 | CP85: 80 | CQ85: L | CR85: L | CS85: L | CU85: 760 | CV85: 0 | CZ85: 21255 | DA85: 22310 | DB85: 19400 | DC85: 18170 | DD85: 22694
A86: 2017-12-04 | B86: 2017-12-08 | C86: 49 | D86: 22810 | E86: 22870 | F86: 22110 | G86: 22790 | H86: 360786 | U86: 22952 | V86: 22220 | W86: 21937.27273 | X86: 20692.96296 | Y86: 19993.39623 | Z86: 19482.30769 | AA86: 18623.88889 | AB86: 18120.73684 | AC86: 760 | AD86: 726.6666667 | AE86: 30 | AF86: -20 | AG86: 23430 | AH86: 21980 | AI86: 23430 | AJ86: 19080 | AK86: 23430 | AL86: 18190 | AM86: 2 | AN86: 1 | AO86: L | AP86: 0 | AQ86: 1 | AT86: 10 | AV86: 21255 | AW86: 22040 | AX86: 19220 | AY86: 18170 | AZ86: 19950 | BA86: 23830 | BB86: 23350 | BC86: 23070 | BD86: 22590 | BE86: 22310 | BF86: 21830 | BG86: 21550 | BH86: 0 | BI86: 20 | BJ86: 84.44444444 | BK86: 96.84684685 | BN86: 0.02172364672 | BO86: 0.03892022216 | BP86: UP | BQ86: 1020 | BR86: 0 | BU86: 301878.6667 | BV86: 1 | BW86: 0 | BX86: 22555.76675 | BY86: 21337.23937 | BZ86: 1218.527379 | CA86: 1076.826195 | CB86: 141.7011834 | CC86: 24302.97804 | CD86: 23109.16485 | CE86: 21915.35165 | CF86: 20721.53846 | CG86: 19527.72527 | CH86: 18333.91207 | CI86: 17140.09888 | CJ86: -0.02752293578 | CK86: 1.04587156 | CL86: 0.7844036697 | CM86: -0.2229357798 | CN86: 1.173477898 | CO86: 60 | CP86: 680 | CQ86: L | CR86: L | CS86: L | CU86: 440 | CV86: -190 | CZ86: 21255 | DA86: 22040 | DB86: 19220 | DC86: 18170 | DD86: 22628
A87: 2017-11-27 | B87: 2017-12-01 | C87: 48 | D87: 22690 | E87: 23000 | F87: 22370 | G87: 22780 | H87: 231138 | U87: 22888 | V87: 22166 | W87: 21700 | X87: 20595.92593 | Y87: 19909.24528 | Z87: 19391.07692 | AA87: 18554.11111 | AB87: 18077.21053 | AC87: 630 | AD87: 710 | AE87: 110 | AF87: 90 | AG87: 23430 | AH87: 21840 | AI87: 23430 | AJ87: 19080 | AK87: 23430 | AL87: 18190 | AM87: 1 | AN87: 13 | AO87: L | AP87: 2 | AQ87: 0 | AT87: 200 | AV87: 21255 | AW87: 21890 | AX87: 19220 | AY87: 18170 | AZ87: 20170 | BA87: 23693.33333 | BB87: 23346.66667 | BC87: 23063.33333 | BD87: 22716.66667 | BE87: 22433.33333 | BF87: 22086.66667 | BG87: 21803.33333 | BH87: 90 | BI87: 0 | BJ87: 91.95402299 | BK87: 97.28682171 | BN87: 0.03313171436 | BO87: 0.04004182824 | BP87: UP | BQ87: 1450 | BR87: 0 | BU87: 262618.3333 | BV87: 1 | BW87: 0 | BX87: 22438.65013 | BY87: 21184.3172 | BZ87: 1254.332926 | CA87: 984.9978672 | CB87: 269.3350587 | CC87: 23995.25789 | CD87: 22867.60783 | CE87: 21739.95776 | CF87: 20612.30769 | CG87: 19484.65762 | CH87: 18357.00756 | CI87: 17229.35749 | CJ87: 0.1267605634 | CK87: 0.8873239437 | CL87: 0.8647887324 | CM87: -0.1521126761 | CN87: 1.521126761 | CO87: 220 | CP87: 320 | CQ87: L | CR87: L | CS87: L | CU87: 480 | CV87: 0 | CZ87: 21255 | DA87: 21890 | DB87: 19220 | DC87: 18170 | DD87: 22544
A88: 2017-11-20 | B88: 2017-11-24 | C88: 47 | D88: 22250 | E88: 22690 | F88: 22210 | G88: 22580 | H88: 139397 | U88: 22698 | V88: 22014 | W88: 21428.18182 | X88: 20482.22222 | Y88: 19826.22642 | Z88: 19301.23077 | AA88: 18488.22222 | AB88: 18031.31579 | AC88: 480 | AD88: 660 | AE88: -200 | AF88: 330 | AG88: 23430 | AH88: 21610 | AI88: 23430 | AJ88: 19080 | AK88: 23430 | AL88: 18190 | AM88: 2 | AN88: 12 | AO88: L | AP88: 1 | AQ88: 0 | AT88: 130 | AV88: 21255 | AW88: 21790 | AX88: 19095 | AY88: 18045 | AZ88: 19710 | BA88: 23256.66667 | BB88: 22973.33333 | BC88: 22776.66667 | BD88: 22493.33333 | BE88: 22296.66667 | BF88: 22013.33333 | BG88: 21816.66667 | BH88: 330 | BI88: 0 | BJ88: 94.48818898 | BK88: 97.24409449 | BN88: 0.05024986119 | BO88: 0.04093799682 | BP88: UP | BQ88: 1590 | BR88: 1 | BU88: 278508.3333 | BV88: 1 | BW88: 0 | BX88: 22267.97519 | BY88: 21016.35059 | BZ88: 1251.6246 | CA88: 872.1422426 | CB88: 379.4823575 | CC88: 23641.59395 | CD88: 22598.37033 | CE88: 21555.1467 | CF88: 20511.92308 | CG88: 19468.69945 | CH88: 18425.47583 | CI88: 17382.2522 | CJ88: 0.5 | CK88: 0.7272727273 | CL88: 0.8575757576 | CM88: -0.1787878788 | CN88: 1.745179063 | CO88: 110 | CP88: 40 | CQ88: L | CR88: L | CS88: L | CU88: 270 | CV88: -520 | CY88: U | CZ88: 21255 | DA88: 21790 | DB88: 19220 | DC88: 18045 | DD88: 22350
A89: 2017-11-13 | B89: 2017-11-17 | C89: 46 | D89: 22550 | E89: 22770 | F89: 21980 | G89: 22450 | H89: 313712 | U89: 22464 | V89: 21810 | W89: 21115.45455 | X89: 20371.85185 | Y89: 19739.24528 | Z89: 19206.15385 | AA89: 18426.22222 | AB89: 17991.84211 | AC89: 790 | AD89: 646.6666667 | AE89: 30 | AF89: -100 | AG89: 23430 | AH89: 21190 | AI89: 23430 | AJ89: 19080 | AK89: 23430 | AL89: 18190 | AM89: 1 | AN89: 11 | AO89: L | AP89: 0 | AQ89: 2 | AU89: 70 | AV89: 21255 | AW89: 21705 | AX89: 19047.5 | AY89: 18045 | AZ89: 19600 | BA89: 23610 | BB89: 23190 | BC89: 22820 | BD89: 22400 | BE89: 22030 | BF89: 21610 | BG89: 21240 | BH89: 0 | BI89: 100 | BJ89: 95.1048951 | BK89: 97.5 | BN89: 0.06042296073 | BO89: 0.0397045658 | BP89: UP | BQ89: 1820 | BR89: 0 | BU89: 278508.3333 | BV89: 0 | BW89: 1 | BX89: 22111.96279 | BY89: 20851.75592 | BZ89: 1260.206871 | CA89: 746.1548171 | CB89: 514.0520534 | CC89: 23304.51999 | CD89: 22336.85948 | CE89: 21369.19897 | CF89: 20401.53846 | CG89: 19433.87795 | CH89: 18466.21744 | CI89: 17498.55693 | CJ89: -0.1546391753 | CK89: 1.221649485 | CL89: 0.9896907216 | CM89: -0.02164948454 | CN89: 2.063730084 | CO89: 220 | CP89: 470 | CQ89: L | CR89: L | CS89: L | CU89: 120 | CV89: -880 | CZ89: 21255 | DA89: 21705 | DB89: 19095 | DC89: 18045 | DD89: 22210
A90: 2017-11-06 | B90: 2017-11-10 | C90: 45 | D90: 22640 | E90: 23430 | F90: 22430 | G90: 22520 | H90: 458368 | U90: 22154 | V90: 21544 | W90: 20864.54545 | X90: 20276.66667 | Y90: 19643.96226 | Z90: 19114.92308 | AA90: 18357.44444 | AB90: 17951.05263 | AC90: 1000 | AD90: 573.3333333 | AE90: 160 | AF90: -120 | AG90: 23430 | AH90: 20650 | AI90: 23430 | AJ90: 19080 | AK90: 23430 | AL90: 18190 | AM90: 1 | AN90: 10 | AO90: L | AP90: 0 | AQ90: 1 | AR90: L | AT90: 40 | AV90: 21255 | AW90: 21350 | AX90: 18912.5 | AY90: 17940 | AZ90: 19880 | BA90: 24156.66667 | BB90: 23793.33333 | BC90: 23156.66667 | BD90: 22793.33333 | BE90: 22156.66667 | BF90: 21793.33333 | BG90: 21156.66667 | BH90: 0 | BI90: 120 | BJ90: 100 | BK90: 100 | BN90: 0.0626438987 | BO90: 0.03822491631 | BP90: UP | BQ90: 2240 | BR90: 0 | BU90: 253810 | BV90: 1 | BW90: 0 | BX90: 21942.94418 | BY90: 20683.5197 | BZ90: 1259.424484 | CA90: 603.2727792 | CB90: 656.1517044 | CC90: 22954.44527 | CD90: 22066.93787 | CE90: 21179.43047 | CF90: 20291.92308 | CG90: 19404.41568 | CH90: 18516.90828 | CI90: 17629.40089 | CJ90: -0.2093023256 | CK90: 1.744186047 | CL90: 1.702325581 | CM90: 0.638372093 | CN90: 2.887420719 | CO90: 790 | CP90: 90 | CQ90: L | CR90: L | CS90: L | CT90: H | CU90: 800 | CV90: 90 | CZ90: 21255 | DA90: 21350 | DB90: 19047.5 | DC90: 18045 | DD90: 21956
A91: 2017-10-30 | B91: 2017-11-02 | C91: 44 | D91: 22030 | E91: 22550 | F91: 21840 | G91: 22480 | H91: 243005 | U91: 21612 | V91: 21128 | W91: 20585.45455 | X91: 20164.07407 | Y91: 19537.73585 | Z91: 19028.76923 | AA91: 18284.77778 | AB91: 17906.89474 | AC91: 710 | AD91: 460 | AE91: -20 | AF91: 450 | AG91: 22550 | AH91: 20350 | AI91: 22550 | AJ91: 19080 | AK91: 22550 | AL91: 18190 | AM91: 1 | AN91: 9 | AO91: L | AP91: 8 | AQ91: 0 | AR91: L | AT91: 430 | AV91: 20815 | AW91: 20815 | AX91: 18375 | AY91: 17780 | AZ91: 19480 | BA91: 23450 | BB91: 23000 | BC91: 22740 | BD91: 22290 | BE91: 22030 | BF91: 21580 | BG91: 21320 | BH91: 450 | BI91: 0 | BJ91: 100 | BK91: 85.86118252 | BN91: 0.05403823644 | BO91: 0.03133539807 | BP91: UP | BQ91: 1900 | BR91: 0 | BU91: 228921.3333 | BV91: 1 | BW91: 0 | BX91: 21654.41627 | BY91: 20490.20598 | BZ91: 1164.21029 | CA91: 451.3048684 | CB91: 712.905422 | CC91: 22500.48173 | CD91: 21730.44936 | CE91: 20960.41699 | CF91: 20190.38462 | CG91: 19420.35224 | CH91: 18650.31987 | CI91: 17880.2875 | CJ91: 0.9782608696 | CK91: 1.543478261 | CL91: 2.939130435 | CM91: 1.886956522 | CN91: 4.118577075 | CO91: 70 | CP91: 190 | CQ91: L | CR91: N | CS91: N | CU91: 420 | CV91: -20 | CZ91: 20815 | DA91: 20815 | DB91: 18912.5 | DC91: 17780 | DD91: 21480
A92: 2017-10-23 | B92: 2017-10-27 | C92: 43 | D92: 21730 | E92: 22050 | F92: 21610 | G92: 22050 | H92: 278808 | U92: 21184 | V92: 20790 | W92: 20309.09091 | X92: 20042.59259 | Y92: 19443.01887 | Z92: 18932.30769 | AA92: 18199.44444 | AB92: 17863.42105 | AC92: 440 | AD92: 380 | AE92: 280 | AF92: 320 | AG92: 22050 | AH92: 20150 | AI92: 22050 | AJ92: 19080 | AK92: 22050 | AL92: 18190 | AM92: 1 | AN92: 8 | AO92: L | AP92: 7 | AQ92: 0 | AR92: L | AT92: 600 | AV92: 20565 | AW92: 20565 | AX92: 18410 | AY92: 17780 | AZ92: 19200 | BA92: 22636.66667 | BB92: 22343.33333 | BC92: 22196.66667 | BD92: 21903.33333 | BE92: 21756.66667 | BF92: 21463.33333 | BG92: 21316.66667 | BH92: 320 | BI92: 0 | BJ92: 100 | BK92: 85.13513514 | BN92: 0.04954419342 | BO92: 0.0231280055 | BP92: UP | BQ92: 1700 | BR92: 0 | BU92: 214505.6667 | BV92: 1 | BW92: 0 | BX92: 21241.62441 | BY92: 20280.75398 | BZ92: 960.8704284 | CA92: 323.850795 | CB92: 637.0196334 | CC92: 21966.23128 | CD92: 21335.82086 | CE92: 20705.41043 | CF92: 20075 | CG92: 19444.58957 | CH92: 18814.17914 | CI92: 18183.76872 | CJ92: 0.8421052632 | CK92: 1.157894737 | CL92: 3.315789474 | CM92: 2.278947368 | CN92: 4.581339713 | CO92: 0 | CP92: 120 | CQ92: L | CR92: N | CS92: N | CT92: H | CU92: 540 | CV92: 210 | CZ92: 20565 | DA92: 20565 | DB92: 18375 | DC92: 17780 | DD92: 21078
A93: 2017-10-16 | B93: 2017-10-20 | C93: 42 | D93: 21240 | E93: 21520 | F93: 21190 | G93: 21450 | H93: 239617 | U93: 20848 | V93: 20464 | W93: 20096.36364 | X93: 19916.66667 | Y93: 19351.88679 | Z93: 18848.61538 | AA93: 18140.22222 | AB93: 17827.84211 | AC93: 330 | AD93: 363.3333333 | AE93: 80 | AF93: 210 | AG93: 21520 | AH93: 19980 | AI93: 21520 | AJ93: 19080 | AK93: 21520 | AL93: 18190 | AM93: 1 | AN93: 7 | AO93: L | AP93: 6 | AQ93: 0 | AR93: L | AT93: 290 | AV93: 20175 | AW93: 20300 | AX93: 18410 | AY93: 17565 | AZ93: 18650 | BA93: 21913.33333 | BB93: 21716.66667 | BC93: 21583.33333 | BD93: 21386.66667 | BE93: 21253.33333 | BF93: 21056.66667 | BG93: 20923.33333 | BH93: 210 | BI93: 0 | BJ93: 100 | BK93: 82.31511254 | BN93: 0.04302581549 | BO93: 0.0153408047 | BP93: UP | BQ93: 1370 | BR93: 0 | BU93: 203851.6667 | BV93: 1 | BW93: 0 | BX93: 20837.43661 | BY93: 20094.51756 | BZ93: 742.9190556 | CA93: 217.8689999 | CB93: 525.0500557 | CC93: 21509.2187 | CD93: 20994.60734 | CE93: 20479.99598 | CF93: 19965.38462 | CG93: 19450.77326 | CH93: 18936.16189 | CI93: 18421.55053 | CJ93: 0.5779816514 | CK93: 0.9082568807 | CL93: 2.713761468 | CM93: 1.656880734 | CN93: 3.725604671 | CO93: 70 | CP93: 50 | CQ93: L | CR93: L | CS93: L | CT93: H | CU93: 590 | CV93: 20 | CZ93: 20175 | DA93: 20300 | DB93: 18410 | DC93: 17780 | DD93: 20726
A94: 2017-10-10 | B94: 2017-10-13 | C94: 41 | D94: 20670 | E94: 21220 | F94: 20650 | G94: 21160 | H94: 188994 | U94: 20504 | V94: 20080 | W94: 19960 | X94: 19800.74074 | Y94: 19265.09434 | Z94: 18774.46154 | AA94: 18097.88889 | AB94: 17793.15789 | AC94: 570 | AD94: 430 | AE94: -40 | AF94: 490 | AG94: 21220 | AH94: 19270 | AI94: 21220 | AJ94: 19080 | AK94: 21220 | AL94: 18190 | AM94: 1 | AN94: 6 | AO94: L | AP94: 5 | AQ94: 0 | AR94: L | AT94: 450 | AV94: 19705 | AW94: 20150 | AX94: 18432.5 | AY94: 17375 | AZ94: 18320 | BA94: 21940 | BB94: 21580 | BC94: 21370 | BD94: 21010 | BE94: 20800 | BF94: 20440 | BG94: 20230 | BH94: 490 | BI94: 0 | BJ94: 100 | BK94: 73.46278317 | BN94: 0.03471941865 | BO94: 0.009517678974 | BP94: UP | BQ94: 1240 | BR94: 0 | BU94: 200937.3333 | BV94: 1 | BW94: 0 | BX94: 20531.15492 | BY94: 19951.83519 | BZ94: 579.3197243 | CA94: 144.730638 | CB94: 434.5890863 | CC94: 21312.00359 | CD94: 20827.23316 | CE94: 20342.46273 | CF94: 19857.69231 | CG94: 19372.92188 | CH94: 18888.15145 | CI94: 18403.38103 | CJ94: 1.139534884 | CK94: 1.325581395 | CL94: 2.511627907 | CM94: 1.525581395 | CN94: 2.790697674 | CO94: 60 | CP94: 20 | CQ94: L | CR94: L | CS94: L | CU94: 320 | CV94: -50 | CZ94: 19705 | DA94: 20150 | DB94: 18410 | DC94: 17565 | DD94: 20338
A95: 2017-10-02 | B95: 2017-10-06 | C95: 40 | D95: 20390 | E95: 20720 | F95: 20350 | G95: 20710 | H95: 204142 | U95: 20184 | V95: 19766 | W95: 19850 | X95: 19710 | Y95: 19184.5283 | Z95: 18703.69231 | AA95: 18050.22222 | AB95: 17759.84211 | AC95: 370 | AD95: 430 | AE95: 50 | AF95: 320 | AG95: 20720 | AH95: 19080 | AI95: 20720 | AJ95: 19080 | AK95: 20720 | AL95: 18190 | AM95: 1 | AN95: 5 | AO95: L | AP95: 4 | AQ95: 0 | AT95: 370 | AV95: 19455 | AW95: 19900 | AX95: 18487.5 | AY95: 17320 | AZ95: 18710 | BA95: 21206.66667 | BB95: 20963.33333 | BC95: 20836.66667 | BD95: 20593.33333 | BE95: 20466.66667 | BF95: 20223.33333 | BG95: 20096.66667 | BH95: 320 | BI95: 0 | BJ95: 74.05660377 | BK95: 63.19444444 | BN95: 0.02436053593 | BO95: 0.005017030286 | BP95: UP | BQ95: 1450 | BR95: 0 | BU95: 203851.6667 | BV95: 1 | BW95: 0 | BX95: 20216.73238 | BY95: 19824.65995 | BZ95: 392.0724262 | CA95: 104.0154253 | CB95: 288.0570009 | CC95: 21244.80382 | CD95: 20746.02306 | CE95: 20247.2423 | CF95: 19748.46154 | CG95: 19249.68078 | CH95: 18750.90001 | CI95: 18252.11925 | CJ95: 0.7441860465 | CK95: 0.8604651163 | CL95: 2.195348837 | CM95: 1.223255814 | CN95: 2 | CO95: 10 | CP95: 40 | CQ95: L | CR95: L | CS95: L | CU95: 240 | CV95: -20 | CZ95: 19455 | DA95: 19900 | DB95: 18432.5 | DC95: 17375 | DD95: 19968
A96: 2017-09-25 | B96: 2017-09-29 | C96: 39 | D96: 20260 | E96: 20410 | F96: 20150 | G96: 20340 | H96: 199758 | U96: 19988 | V96: 19548 | W96: 19792.72727 | X96: 19643.33333 | Y96: 19103.01887 | Z96: 18617.69231 | AA96: 18010.66667 | AB96: 17726.26316 | AC96: 260 | AD96: 466.6666667 | AE96: 80 | AF96: 80 | AG96: 20410 | AH96: 19080 | AI96: 20410 | AJ96: 19080 | AK96: 20410 | AL96: 18190 | AM96: 1 | AN96: 4 | AO96: L | AP96: 3 | AQ96: 0 | AT96: 160 | AV96: 19300 | AW96: 19745 | AX96: 18557.5 | AY96: 17235 | AZ96: 18910 | BA96: 20710 | BB96: 20560 | BC96: 20450 | BD96: 20300 | BE96: 20190 | BF96: 20040 | BG96: 19930 | BH96: 80 | BI96: 0 | BJ96: 72.36180905 | BK96: 57.7689243 | BQ96: 1330 | BR96: 0 | BU96: 221260.6667 | BV96: 1 | BW96: 0 | BX96: 19970.09857 | BY96: 19731.46626 | BZ96: 238.6323044 | CA96: 94.63588376 | CB96: 143.9964207 | CC96: 21167.88075 | CD96: 20669.09999 | CE96: 20170.31922 | CF96: 19671.53846 | CG96: 19172.7577 | CH96: 18673.97694 | CI96: 18175.19618 | CJ96: 0.1714285714 | CK96: 0.5571428571 | CL96: 1.697142857 | CM96: 0.7542857143 | CN96: 1.172727273 | CO96: 70 | CP96: 110 | CQ96: L | CR96: L | CS96: L | CU96: 280 | CV96: -110 | CZ96: 19300 | DA96: 19745 | DB96: 18487.5 | DC96: 17320 | DD96: 19812
A97: 2017-09-19 | B97: 2017-09-22 | C97: 38 | D97: 19990 | E97: 20370 | F97: 19980 | G97: 20180 | H97: 207655 | U97: 19816 | V97: 19378 | W97: 19771.81818 | X97: 19598.88889 | Y97: 19031.88679 | Z97: 18545.84615 | AA97: 17981.22222 | AB97: 17695.52632 | AC97: 390 | AD97: 466.6666667 | AE97: 200 | AF97: 190 | AG97: 20370 | AH97: 19080 | AI97: 20370 | AJ97: 19080 | AK97: 20370 | AL97: 18190 | AM97: 1 | AN97: 3 | AO97: L | AP97: 2 | AQ97: 0 | AT97: 390 | AV97: 19280 | AW97: 19725 | AX97: 18552.5 | AY97: 17235 | AZ97: 19140 | BA97: 20763.33333 | BB97: 20566.66667 | BC97: 20373.33333 | BD97: 20176.66667 | BE97: 19983.33333 | BF97: 19786.66667 | BG97: 19593.33333 | BH97: 190 | BI97: 0 | BJ97: 70.10869565 | BK97: 52.01612903 | BN97: 0 | BO97: 0 | BQ97: 1290 | BR97: 0 | BU97: 220978.6667 | BV97: 1 | BW97: 0 | BX97: 19785.14785 | BY97: 19667.41008 | BZ97: 117.7377707 | CA97: 107.4380885 | CB97: 10.2996822 | CC97: 21119.1656 | CD97: 20618.28989 | CE97: 20117.41417 | CF97: 19616.53846 | CG97: 19115.66275 | CH97: 18614.78704 | CI97: 18113.91132 | CJ97: 0.4071428571 | CK97: 0.8357142857 | CL97: 1.718571429 | CM97: 0.78 | CN97: 0.8746753247 | CO97: 190 | CP97: 10 | CQ97: L | CR97: L | CS97: L | CT97: H | CU97: 720 | CV97: 190 | CZ97: 19280 | DA97: 19725 | DB97: 18557.5 | DC97: 17235 | DD97: 19612
A98: 2017-09-11 | B98: 2017-09-15 | C98: 37 | D98: 19280 | E98: 19800 | F98: 19270 | G98: 19790 | H98: 198912 | U98: 19704 | V98: 19264 | W98: 19750.90909 | X98: 19568.14815 | Y98: 18959.62264 | Z98: 18465.38462 | AA98: 17968.11111 | AB98: 17667.47368 | AC98: 530 | AD98: 470 | AE98: 140 | AF98: 510 | AG98: 19810 | AH98: 19080 | AI98: 20290 | AJ98: 19080 | AK98: 20290 | AL98: 18190 | AM98: 1 | AN98: 2 | AO98: L | AP98: 1 | AQ98: 0 | AT98: 650 | AV98: 19240 | AW98: 19625 | AX98: 18520 | AY98: 17235 | AZ98: 19350 | BA98: 20500 | BB98: 20150 | BC98: 19970 | BD98: 19620 | BE98: 19440 | BF98: 19090 | BG98: 18910 | BH98: 510 | BI98: 0 | BJ98: 52.3255814 | BK98: 42.45283019 | BN98: -0.01183550652 | BO98: -0.006357191859 | BP98: DW | BQ98: 720 | BR98: 0 | BU98: 212299.6667 | BV98: 1 | BW98: 0 | BX98: 19587.72178 | BY98: 19613.45325 | BZ98: -25.73147055 | CA98: 140.1134233 | CB98: -165.8448938 | CC98: 21063.88375 | CD98: 20568.10199 | CE98: 20072.32022 | CF98: 19576.53846 | CG98: 19080.7567 | CH98: 18584.97494 | CI98: 18089.19317 | CJ98: 1.085106383 | CK98: 1.127659574 | CL98: 1.119148936 | CM98: 0.1829787234 | CN98: 0.083172147 | CO98: 10 | CP98: 10 | CQ98: L | CR98: N | CS98: L | CU98: 200 | CV98: -340 | CZ98: 19240 | DA98: 19625 | DB98: 18552.5 | DC98: 17235 | DD98: 19400
A99: 2017-09-04 | B99: 2017-09-08 | C99: 36 | D99: 19600 | E99: 19620 | F99: 19080 | G99: 19140 | H99: 359435 | U99: 19758 | V99: 19338 | W99: 19769.09091 | X99: 19556.2963 | Y99: 18904.33962 | Z99: 18399.84615 | AA99: 17956.22222 | AB99: 17644.57895 | AC99: 540 | AD99: 436.6666667 | AE99: -90 | AF99: -460 | AG99: 20070 | AH99: 19080 | AI99: 20290 | AJ99: 18830 | AK99: 20290 | AL99: 18190 | AM99: 9 | AN99: 1 | AO99: S | AP99: 0 | AQ99: 1 | AS99: S | AU99: 550 | AV99: 19240 | AW99: 19635 | AX99: 18520 | AY99: 17235 | AZ99: 19470 | BA99: 20020 | BB99: 19820 | BC99: 19480 | BD99: 19280 | BE99: 18940 | BF99: 18740 | BG99: 18400 | BH99: 0 | BI99: 460 | BJ99: 19.08396947 | BK99: 25.15337423 | BN99: -0.01495662579 | BO99: -0.00771161305 | BP99: DW | BQ99: 730 | BR99: 0 | BU99: 204882.3333 | BV99: 0 | BW99: 1 | BX99: 19486.58266 | BY99: 19594.86938 | BZ99: -108.2867142 | CA99: 191.297263 | CB99: -299.5839772 | CC99: 21046.76373 | CD99: 20551.04762 | CE99: 20055.3315 | CF99: 19559.61538 | CG99: 19063.89927 | CH99: 18568.18315 | CI99: 18072.46704 | CJ99: -1.053435115 | CK99: 1.236641221 | CL99: -0.4534351145 | CM99: -1.415267176 | CN99: -1.440666204 | CO99: 20 | CP99: 60 | CQ99: L | CR99: N | CS99: L | CU99: 340 | CV99: -140 | CZ99: 19240 | DA99: 19635 | DB99: 18520 | DC99: 17235 | DD99: 19578
A100: 2017-08-28 | B100: 2017-09-01 | C100: 35 | D100: 19470 | E100: 19740 | F100: 19260 | G100: 19690 | H100: 256369 | U100: 19854 | V100: 19500 | W100: 19854.54545 | X100: 19568.51852 | Y100: 18862.83019 | Z100: 18359.69231 | AA100: 17954.11111 | AB100: 17626.73684 | AC100: 480 | AD100: 360 | AE100: 20 | AF100: 220 | AG100: 20100 | AH100: 19260 | AI100: 20290 | AJ100: 18190 | AK100: 20290 | AL100: 18000 | AM100: 8 | AN100: 1 | AO100: S | AP100: 1 | AQ100: 0 | AT100: 240 | AV100: 19240 | AW100: 19725 | AX100: 18520 | AY100: 17235 | AZ100: 19470 | BA100: 20346.66667 | BB100: 20043.33333 | BC100: 19866.66667 | BD100: 19563.33333 | BE100: 19386.66667 | BF100: 19083.33333 | BG100: 18906.66667 | BH100: 220 | BI100: 0 | BJ100: 32.89473684 | BK100: 36.60714286 | BN100: -0.01390682428 | BO100: -0.006730944151 | BP100: DW | BQ100: 810 | BR100: 0 | BU100: 171694.6667 | BV100: 1 | BW100: 0 | BX100: 19659.87399 | BY100: 19642.75036 | BZ100: 17.12363007 | CA100: 252.0513168 | CB100: -234.9276867 | CC100: 21039.27413 | CD100: 20550.28532 | CE100: 20061.29651 | CF100: 19572.30769 | CG100: 19083.31888 | CH100: 18594.33007 | CI100: 18105.34125 | CJ100: 0.6111111111 | CK100: 1.333333333 | CL100: 0.5277777778 | CM100: -0.4555555556 | CN100: -0.4570707071 | CO100: 50 | CP100: 210 | CQ100: L | CR100: N | CS100: L | CU100: 170 | CV100: -80 | CZ100: 19240 | DA100: 19725 | DB100: 18520 | DC100: 17235 | DD100: 19604
A101: 2017-08-21 | B101: 2017-08-25 | C101: 34 | D101: 19490 | E101: 19550 | F101: 19300 | G101: 19450 | H101: 181618 | U101: 19940 | V101: 19622 | W101: 19877.27273 | X101: 19552.96296 | Y101: 18800.75472 | Z101: 18313.07692 | AA101: 17948.77778 | AB101: 17606.89474 | AC101: 250 | AD101: 316.6666667 | AE101: 50 | AF101: -40 | AG101: 20170 | AH101: 19300 | AI101: 20290 | AJ101: 18190 | AK101: 20290 | AL101: 17460 | AM101: 7 | AN101: 1 | AO101: S | AP101: 0 | AQ101: 3 | AT101: 10 | AV101: 19240 | AW101: 19785 | AX101: 18500 | AY101: 17215 | AZ101: 19270 | BA101: 19816.66667 | BB101: 19683.33333 | BC101: 19566.66667 | BD101: 19433.33333 | BE101: 19316.66667 | BF101: 19183.33333 | BG101: 19066.66667 | BH101: 0 | BI101: 40 | BJ101: 1.538461538 | BK101: 17.5257732 | BN101: -0.01081456494 | BQ101: 800 | BR101: 0 | BU101: 160943.6667 | BV101: 1 | BW101: 0 | BX101: 19644.81099 | BY101: 19637.77672 | BZ101: 7.034272877 | CA101: 303.9829683 | CB101: -296.9486954 | CC101: 21030.19351 | CD101: 20541.41106 | CE101: 20052.6286 | CF101: 19563.84615 | CG101: 19075.0637 | CH101: 18586.28125 | CI101: 18097.4988 | CJ101: -0.1263157895 | CK101: 0.7894736842 | CL101: -0.5431578947 | CM101: -1.547368421 | CN101: -1.349282297 | CO101: 60 | CP101: 150 | CQ101: L | CR101: N | CS101: L | CU101: 80 | CV101: -320 | CZ101: 19240 | DA101: 19785 | DB101: 18520 | DC101: 17215 | DD101: 19708
A102: 2017-08-14 | B102: 2017-08-18 | C102: 33 | D102: 19480 | E102: 19810 | F102: 19410 | G102: 19440 | H102: 176660 | U102: 20058 | V102: 19746 | W102: 19922.72727 | X102: 19543.7037 | Y102: 18745.4717 | Z102: 18272.61538 | AA102: 17948.88889 | AB102: 17590.42105 | AC102: 400 | AD102: 306.6666667 | AE102: -230 | AF102: -40 | AG102: 20170 | AH102: 19410 | AI102: 20290 | AJ102: 18190 | AK102: 20290 | AL102: 16090 | AM102: 6 | AN102: 1 | AO102: S | AP102: 0 | AQ102: 2 | AU102: 270 | AV102: 19240 | AW102: 19850 | AX102: 18500 | AY102: 17215 | AZ102: 19200 | BA102: 20096.66667 | BB102: 19953.33333 | BC102: 19696.66667 | BD102: 19553.33333 | BE102: 19296.66667 | BF102: 19153.33333 | BG102: 18896.66667 | BH102: 0 | BI102: 40 | BJ102: 0 | BK102: 27.27272727 | BN102: -0.006636291601 | BQ102: 760 | BR102: 0 | BU102: 145517.3333 | BV102: 0 | BW102: 1 | BX102: 19742.21649 | BY102: 19657.54269 | BZ102: 84.6737979 | CA102: 360.9231816 | CB102: -276.2493837 | CC102: 21031.76055 | CD102: 20540.14806 | CE102: 20048.53557 | CF102: 19556.92308 | CG102: 19065.31059 | CH102: 18573.6981 | CI102: 18082.08561 | CJ102: -0.1304347826 | CK102: 1.304347826 | CL102: -0.997826087 | CM102: -2.015217391 | CN102: -1.574110672 | CO102: 330 | CP102: 30 | CQ102: L | CR102: N | CS102: L | CT102: L | CU102: -160 | CV102: -590 | CZ102: 19240 | DA102: 19850 | DB102: 18500 | DC102: 17215 | DD102: 19834
A103: 2017-08-07 | B103: 2017-08-10 | C103: 32 | D103: 20060 | E103: 20070 | F103: 19640 | G103: 19710 | H103: 156806 | U103: 20134 | V103: 19866 | W103: 19989.09091 | X103: 19541.48148 | Y103: 18697.92453 | Z103: 18231.07692 | AA103: 17953.55556 | AB103: 17573.36842 | AC103: 430 | AD103: 243.3333333 | AE103: 110 | AF103: -350 | AG103: 20190 | AH103: 19640 | AI103: 20290 | AJ103: 18190 | AK103: 20290 | AL103: 16090 | AM103: 5 | AN103: 1 | AO103: S | AP103: 0 | AQ103: 1 | AU103: 240 | AV103: 19240 | AW103: 19965 | AX103: 18500 | AY103: 17215 | AZ103: 19380 | BA103: 20403.33333 | BB103: 20236.66667 | BC103: 19973.33333 | BD103: 19806.66667 | BE103: 19543.33333 | BF103: 19376.66667 | BG103: 19113.33333 | BH103: 0 | BI103: 350 | BJ103: 28.57142857 | BK103: 35.71428571 | BN103: -0.004056193114 | BQ103: 530 | BR103: 0 | BU103: 137403.6667 | BV103: 0 | BW103: 1 | BX103: 19893.32473 | BY103: 19680.44192 | BZ103: 212.8828106 | CA103: 408.6965257 | CB103: -195.8137152 | CC103: 21035.55802 | CD103: 20539.60278 | CE103: 20043.64755 | CF103: 19547.69231 | CG103: 19051.73707 | CH103: 18555.78183 | CI103: 18059.8266 | CJ103: -1.438356164 | CK103: 1.767123288 | CL103: -0.6410958904 | CM103: -1.742465753 | CN103: -1.146948941 | CO103: 10 | CP103: 70 | CQ103: L | CR103: L | CS103: L | CU103: 170 | CV103: -40 | CY103: D | CZ103: 19240 | DA103: 19965 | DB103: 18500 | DC103: 17215 | DD103: 20030
A104: 2017-07-31 | B104: 2017-08-04 | C104: 31 | D104: 19930 | E104: 20100 | F104: 19890 | G104: 19950 | H104: 130381 | U104: 20158 | V104: 19904 | W104: 19989.09091 | X104: 19512.96296 | Y104: 18631.88679 | Z104: 18179.23077 | AA104: 17955.55556 | AB104: 17553.15789 | AC104: 210 | AD104: 243.3333333 | AE104: -20 | AF104: 20 | AG104: 20190 | AH104: 19830 | AI104: 20290 | AJ104: 18190 | AK104: 20290 | AL104: 16090 | AM104: 4 | AN104: 1 | AO104: S | AP104: 1 | AQ104: 0 | AV104: 19240 | AW104: 20005 | AX104: 18397.5 | AY104: 17215 | AZ104: 18940 | BA104: 20280 | BB104: 20190 | BC104: 20070 | BD104: 19980 | BE104: 19860 | BF104: 19770 | BG104: 19650 | BH104: 20 | BI104: 0 | BJ104: 44.44444444 | BK104: 36.58536585 | BO104: 0.00466051357 | BQ104: 320 | BR104: 1 | BU104: 137403.6667 | BV104: 0 | BW104: 0 | BX104: 19984.98709 | BY104: 19677.33054 | BZ104: 307.656552 | CA104: 444.4595335 | CB104: -136.8029815 | CC104: 21022.58516 | CD104: 20526.72344 | CE104: 20030.86172 | CF104: 19535 | CG104: 19039.13828 | CH104: 18543.27656 | CI104: 18047.41484 | CJ104: 0.08219178082 | CK104: 0.8630136986 | CL104: 0.1890410959 | CM104: -0.8547945205 | CN104: -0.1606475716 | CO104: 150 | CP104: 40 | CQ104: L | CR104: N | CS104: L | CU104: 60 | CV104: -240 | CZ104: 19240 | DA104: 20005 | DB104: 18500 | DC104: 17215 | DD104: 20004
A105: 2017-07-24 | B105: 2017-07-28 | C105: 30 | D105: 19950 | E105: 20170 | F105: 19870 | G105: 19950 | H105: 149365 | U105: 20192 | V105: 19912 | W105: 19957.27273 | X105: 19494.81481 | Y105: 18568.86792 | Z105: 18119.69231 | AA105: 17952 | AB105: 17529.63158 | AC105: 300 | AD105: 286.6666667 | AE105: -130 | AF105: 0 | AG105: 20270 | AH105: 19830 | AI105: 20290 | AJ105: 18190 | AK105: 20290 | AL105: 16090 | AM105: 3 | AN105: 1 | AO105: S | AP105: 0 | AQ105: 0 | AU105: 130 | AV105: 19240 | AW105: 19925 | AX105: 18342.5 | AY105: 17215 | AZ105: 19460 | BA105: 20423.33333 | BB105: 20296.66667 | BC105: 20123.33333 | BD105: 19996.66667 | BE105: 19823.33333 | BF105: 19696.66667 | BG105: 19523.33333 | BH105: 0 | BI105: 0 | BJ105: 35.55555556 | BK105: 59.375 | BO105: 0.007249369121 | BQ105: 360 | BR105: 0 | BU105: 143620.3333 | BV105: 0 | BW105: 1 | BX105: 20002.48064 | BY105: 19648.62849 | BZ105: 353.852147 | CA105: 469.831913 | CB105: -115.979766 | CC105: 21000.23469 | CD105: 20498.87441 | CE105: 19997.51413 | CF105: 19496.15385 | CG105: 18994.79357 | CH105: 18493.43329 | CI105: 17992.07301 | CJ105: 0 | CK105: 1.046511628 | CL105: 0.1325581395 | CM105: -0.8441860465 | CN105: -0.02536997886 | CO105: 220 | CP105: 80 | CQ105: L | CR105: L | CS105: L | CU105: 30 | CV105: -190 | CZ105: 19240 | DA105: 19925 | DB105: 18397.5 | DC105: 17215 | DD105: 20016
A106: 2017-07-18 | B106: 2017-07-21 | C106: 29 | D106: 20040 | E106: 20140 | F106: 19920 | G106: 20080 | H106: 114141 | U106: 20216 | V106: 19918 | W106: 19950.90909 | X106: 19465.55556 | Y106: 18506.22642 | Z106: 18066.61538 | AA106: 17944.33333 | AB106: 17505.21053 | AC106: 220 | AD106: 306.6666667 | AE106: -70 | AF106: 40 | AG106: 20290 | AH106: 19830 | AI106: 20290 | AJ106: 18190 | AK106: 20290 | AL106: 16090 | AM106: 2 | AN106: 3 | AO106: L | AP106: 2 | AQ106: 0 | AU106: 30 | AV106: 19240 | AW106: 19925 | AX106: 18290 | AY106: 17215 | AZ106: 19160 | BA106: 20393.33333 | BB106: 20266.66667 | BC106: 20173.33333 | BD106: 20046.66667 | BE106: 19953.33333 | BF106: 19826.66667 | BG106: 19733.33333 | BH106: 40 | BI106: 0 | BJ106: 65.2173913 | BK106: 69.04761905 | BN106: 0 | BO106: 0.01297022848 | BQ106: 440 | BR106: 0 | BU106: 144086.6667 | BV106: 0 | BW106: 1 | BX106: 20028.72096 | BY106: 19616.90518 | BZ106: 411.8157836 | CA106: 477.5195293 | CB106: -65.70374572 | CC106: 20956.56951 | CD106: 20463.48224 | CE106: 19970.39497 | CF106: 19477.30769 | CG106: 18984.22042 | CH106: 18491.13315 | CI106: 17998.04587 | CJ106: 0.1304347826 | CK106: 0.7173913043 | CL106: 0.5282608696 | CM106: -0.4434782609 | CN106: 0.4209486166 | CO106: 60 | CP106: 120 | CQ106: L | CR106: L | CS106: L | CU106: 30 | CV106: -150 | CZ106: 19240 | DA106: 19925 | DB106: 18342.5 | DC106: 17215 | DD106: 20034
A107: 2017-07-10 | B107: 2017-07-14 | C107: 28 | D107: 20060 | E107: 20190 | F107: 20010 | G107: 20110 | H107: 132465 | U107: 20184 | V107: 19878 | W107: 19896.36364 | X107: 19434.81481 | Y107: 18439.81132 | Z107: 18028 | AA107: 17933.33333 | AB107: 17482.36842 | AC107: 180 | AD107: 320 | AE107: 110 | AF107: 50 | AG107: 20290 | AH107: 19720 | AI107: 20290 | AJ107: 18190 | AK107: 20290 | AL107: 16090 | AM107: 1 | AN107: 2 | AO107: L | AP107: 1 | AQ107: 0 | AT107: 160 | AV107: 19240 | AW107: 19865 | AX107: 18155 | AY107: 17215 | AZ107: 19250 | BA107: 20376.66667 | BB107: 20283.33333 | BC107: 20196.66667 | BD107: 20103.33333 | BE107: 20016.66667 | BF107: 19923.33333 | BG107: 19836.66667 | BH107: 50 | BI107: 0 | BJ107: 68.18181818 | BK107: 57.61589404 | BO107: 0.01804819053 | BQ107: 460 | BR107: 1 | BU107: 152547 | BV107: 1 | BW107: 0 | BX107: 20003.08144 | BY107: 19568.15835 | BZ107: 434.9230872 | CA107: 475.6584968 | CB107: -40.73540964 | CC107: 20886.24398 | CD107: 20404.80368 | CE107: 19923.36338 | CF107: 19441.92308 | CG107: 18960.48278 | CH107: 18479.04248 | CI107: 17997.60217 | CJ107: 0.15625 | CK107: 0.5625 | CL107: 0.725 | CM107: -0.23125 | CN107: 0.6676136364 | CO107: 80 | CP107: 50 | CQ107: L | CR107: L | CS107: L | CU107: 230 | CV107: -130 | CZ107: 19240 | DA107: 19865 | DB107: 18290 | DC107: 17215 | DD107: 20004
A108: 2017-07-03 | B108: 2017-07-07 | C108: 27 | D108: 20040 | E108: 20190 | F108: 19830 | G108: 19950 | H108: 184848 | U108: 20192 | V108: 19854 | W108: 19813.63636 | X108: 19408.51852 | Y108: 18345.66038 | Z108: 17976.46154 | AA108: 17918.77778 | AB108: 17457.73684 | AC108: 360 | AD108: 346.6666667 | AE108: 50 | AF108: -90 | AG108: 20290 | AH108: 19720 | AI108: 20290 | AJ108: 18190 | AK108: 20290 | AL108: 16090 | AM108: 2 | AN108: 1 | AO108: L | AP108: 0 | AQ108: 2 | AU108: 40 | AV108: 19240 | AW108: 19865 | AX108: 17705 | AY108: 17215 | AZ108: 19400 | BA108: 20510 | BB108: 20350 | BC108: 20150 | BD108: 19990 | BE108: 19790 | BF108: 19630 | BG108: 19430 | BH108: 0 | BI108: 90 | BJ108: 28 | BK108: 63.42857143 | BO108: 0.02031740087 | BQ108: 570 | BR108: 0 | BU108: 164486 | BV108: 0 | BW108: 1 | BX108: 19949.62216 | BY108: 19511.12239 | BZ108: 438.4997701 | CA108: 468.5910747 | CB108: -30.09130457 | CC108: 20799.69797 | CD108: 20336.0807 | CE108: 19872.46343 | CF108: 19408.84615 | CG108: 18945.22888 | CH108: 18481.61161 | CI108: 18017.99433 | CJ108: -0.2596153846 | CK108: 1.038461538 | CL108: 0.2769230769 | CM108: -0.6980769231 | CN108: 0.3933566434 | CO108: 150 | CP108: 120 | CQ108: L | CR108: L | CS108: L | CU108: 110 | CV108: -230 | CZ108: 19240 | DA108: 19865 | DB108: 18155 | DC108: 17215 | DD108: 20000
A109: 2017-06-26 | B109: 2017-06-30 | C109: 26 | D109: 20080 | E109: 20270 | F109: 19930 | G109: 19990 | H109: 149031 | U109: 20204 | V109: 19800 | W109: 19695.45455 | X109: 19376.66667 | Y109: 18264.90566 | Z109: 17913.07692 | AA109: 17900.33333 | AB109: 17432.57895 | AC109: 340 | AD109: 356.6666667 | AE109: 0 | AF109: -90 | AG109: 20290 | AH109: 19560 | AI109: 20290 | AJ109: 18190 | AK109: 20290 | AL109: 16090 | AM109: 1 | AN109: 11 | AO109: L | AP109: 0 | AQ109: 1 | AU109: 90 | AV109: 19240 | AW109: 19735 | AX109: 17570 | AY109: 17175 | AZ109: 19090 | BA109: 20536.66667 | BB109: 20403.33333 | BC109: 20196.66667 | BD109: 20063.33333 | BE109: 19856.66667 | BF109: 19723.33333 | BG109: 19516.66667 | BH109: 0 | BI109: 90 | BJ109: 65.2173913 | BK109: 69.84924623 | BO109: 0.01914573337 | BQ109: 570 | BR109: 1 | BU109: 174628.6667 | BV109: 0 | BW109: 1 | BX109: 19949.43324 | BY109: 19464.92475 | BZ109: 484.5084934 | CA109: 442.2990639 | CB109: 42.2094295 | CC109: 20740.13389 | CD109: 20289.32003 | CE109: 19838.50617 | CF109: 19387.69231 | CG109: 18936.87845 | CH109: 18486.06459 | CI109: 18035.25073 | CJ109: -0.2523364486 | CK109: 0.953271028 | CL109: 0.5327102804 | CM109: -0.6 | CN109: 0.8258283772 | CO109: 190 | CP109: 60 | CQ109: L | CR109: L | CS109: L | CU109: 180 | CV109: -210 | CZ109: 19240 | DA109: 19735 | DB109: 17705 | DC109: 17175 | DD109: 20044
A110: 2017-06-19 | B110: 2017-06-23 | C110: 25 | D110: 19920 | E110: 20290 | F110: 19900 | G110: 20080 | H110: 150764 | U110: 20120 | V110: 19730 | W110: 19543.63636 | X110: 19353.33333 | Y110: 18169.81132 | Z110: 17854.46154 | AA110: 17882.88889 | AB110: 17401.52632 | AC110: 390 | AD110: 333.3333333 | AE110: -20 | AF110: 160 | AG110: 20290 | AH110: 19560 | AI110: 20290 | AJ110: 18190 | AK110: 20290 | AL110: 16090 | AM110: 1 | AN110: 10 | AO110: L | AP110: 2 | AQ110: 0 | AT110: 140 | AV110: 19240 | AW110: 19560 | AX110: 17542.5 | AY110: 17175 | AZ110: 19360 | BA110: 20670 | BB110: 20480 | BC110: 20280 | BD110: 20090 | BE110: 19890 | BF110: 19700 | BG110: 19500 | BH110: 160 | BI110: 0 | BJ110: 75.53191489 | BK110: 79.18367347 | BN110: 0 | BO110: 0.01515795438 | BQ110: 730 | BR110: 0 | BU110: 174628.6667 | BV110: 1 | BW110: 0 | BX110: 19929.14986 | BY110: 19409.65367 | BZ110: 519.4961929 | CA110: 396.0448146 | CB110: 123.4513783 | CC110: 20665.86586 | CD110: 20228.26955 | CE110: 19790.67324 | CF110: 19353.07692 | CG110: 18915.48061 | CH110: 18477.8843 | CI110: 18040.28799 | CJ110: 0.48 | CK110: 1.17 | CL110: 1.05 | CM110: -0.12 | CN110: 1.609090909 | CO110: 210 | CP110: 20 | CQ110: L | CR110: L | CS110: L | CU110: 200 | CV110: -60 | CZ110: 19240 | DA110: 19560 | DB110: 17570 | DC110: 17175 | DD110: 19938
A111: 2017-06-12 | B111: 2017-06-16 | C111: 24 | D111: 19900 | E111: 19980 | F111: 19720 | G111: 19940 | H111: 157846 | U111: 20062 | V111: 19638 | W111: 19419.09091 | X111: 19327.40741 | Y111: 18083.96226 | Z111: 17805.07692 | AA111: 17856.11111 | AB111: 17370.52632 | AC111: 260 | AD111: 390 | AE111: -50 | AF111: 40 | AG111: 20250 | AH111: 19440 | AI111: 20250 | AJ111: 18190 | AK111: 20250 | AL111: 16090 | AM111: 2 | AN111: 9 | AO111: L | AP111: 1 | AQ111: 0 | AU111: 10 | AV111: 19220 | AW111: 19220 | AX111: 17430 | AY111: 17105 | AZ111: 19380 | BA111: 20300 | BB111: 20140 | BC111: 20040 | BD111: 19880 | BE111: 19780 | BF111: 19620 | BG111: 19520 | BH111: 40 | BI111: 0 | BJ111: 52.77777778 | BK111: 80.68181818 | BO111: 0.01260962313 | BQ111: 690 | BR111: 0 | BU111: 187890 | BV111: 0 | BW111: 1 | BX111: 19853.72479 | BY111: 19339.0909 | BZ111: 514.633895 | CA111: 333.164797 | CB111: 181.4690981 | CC111: 20563.77711 | CD111: 20150.97961 | CE111: 19738.18211 | CF111: 19325.38462 | CG111: 18912.58712 | CH111: 18499.78962 | CI111: 18086.99212 | CJ111: 0.1025641026 | CK111: 0.6666666667 | CL111: 0.7743589744 | CM111: -0.3128205128 | CN111: 1.335664336 | CO111: 40 | CP111: 180 | CQ111: L | CR111: N | CS111: N | CU111: 10 | CV111: -330 | CZ111: 19220 | DA111: 19220 | DB111: 17542.5 | DC111: 17105 | DD111: 19866
A112: 2017-06-05 | B112: 2017-06-09 | C112: 23 | D112: 20100 | E112: 20230 | F112: 19890 | G112: 19950 | H112: 314015 | U112: 20066 | V112: 19636 | W112: 19325.45455 | X112: 19292.22222 | Y112: 18019.62264 | Z112: 17752.30769 | AA112: 17832 | AB112: 17339.89474 | AC112: 340 | AD112: 396.6666667 | AE112: -70 | AF112: -150 | AG112: 20250 | AH112: 19440 | AI112: 20250 | AJ112: 18190 | AK112: 20250 | AL112: 16090 | AM112: 1 | AN112: 8 | AO112: L | AP112: 0 | AQ112: 1 | AU112: 220 | AV112: 19220 | AW112: 19220 | AX112: 17220 | AY112: 16895 | AZ112: 18990 | BA112: 20496.66667 | BB112: 20363.33333 | BC112: 20156.66667 | BD112: 20023.33333 | BE112: 19816.66667 | BF112: 19683.33333 | BG112: 19476.66667 | BH112: 0 | BI112: 150 | BJ112: 65.98639456 | BK112: 70.52980132 | BN112: 0.02987066311 | BO112: 0.008874756775 | BP112: UP | BQ112: 810 | BR112: 1 | BU112: 207060 | BV112: 0 | BW112: 1 | BX112: 19810.58719 | BY112: 19275.83731 | BZ112: 534.7498804 | CA112: 274.1006557 | CB112: 260.6492248 | CC112: 20486.94083 | CD112: 20092.57594 | CE112: 19698.21105 | CF112: 19303.84615 | CG112: 18909.48126 | CH112: 18515.11637 | CI112: 18120.75148 | CJ112: -0.3781512605 | CK112: 0.8571428571 | CL112: 0.7915966387 | CM112: -0.2924369748 | CN112: 1.574484339 | CO112: 130 | CP112: 60 | CQ112: L | CR112: N | CS112: N | CU112: 540 | CV112: -150 | CZ112: 19220 | DA112: 19220 | DB112: 17430 | DC112: 16895 | DD112: 19892
A113: 2017-05-29 | B113: 2017-06-02 | C113: 22 | D113: 19700 | E113: 20250 | F113: 19560 | G113: 20170 | H113: 215276 | U113: 19916 | V113: 19494 | W113: 19251.81818 | X113: 19232.22222 | Y113: 17957.54717 | Z113: 17704.61538 | AA113: 17810.33333 | AB113: 17311.68421 | AC113: 690 | AD113: 383.3333333 | AE113: -10 | AF113: 470 | AG113: 20250 | AH113: 19180 | AI113: 20250 | AJ113: 18190 | AK113: 20250 | AL113: 16090 | AM113: 1 | AN113: 7 | AO113: L | AP113: 2 | AQ113: 0 | AR113: L | AT113: 460 | AV113: 19220 | AW113: 19220 | AX113: 17100 | AY113: 16775 | AZ113: 18330 | BA113: 21116.66667 | BB113: 20683.33333 | BC113: 20426.66667 | BD113: 19993.33333 | BE113: 19736.66667 | BF113: 19303.33333 | BG113: 19046.66667 | BH113: 470 | BI113: 0 | BJ113: 81.69934641 | BK113: 71 | BN113: 0.03438246598 | BO113: 0.00565105898 | BP113: UP | BQ113: 810 | BR113: 0 | BU113: 182160 | BV113: 1 | BW113: 0 | BX113: 19740.88078 | BY113: 19204.87281 | BZ113: 536.0079678 | CA113: 232.8048079 | CB113: 303.2031599 | CC113: 20396.97387 | CD113: 20020.29027 | CE113: 19643.60667 | CF113: 19266.92308 | CG113: 18890.23948 | CH113: 18513.55588 | CI113: 18136.87228 | CJ113: 1.226086957 | CK113: 1.8 | CL113: 1.763478261 | CM113: 0.6626086957 | CN113: 2.395256917 | CO113: 80 | CP113: 140 | CQ113: L | CR113: N | CS113: N | CU113: 120 | CV113: -150 | CZ113: 19220 | DA113: 19220 | DB113: 17220 | DC113: 16775 | DD113: 19674
A114: 2017-05-22 | B114: 2017-05-26 | C114: 21 | D114: 19670 | E114: 19850 | F114: 19580 | G114: 19710 | H114: 140656 | U114: 19724 | V114: 19348 | W114: 19177.27273 | X114: 19165.92593 | Y114: 17894.33962 | Z114: 17655.84615 | AA114: 17788.11111 | AB114: 17281.36842 | AC114: 270 | AD114: 350 | AE114: 70 | AF114: 40 | AG114: 20000 | AH114: 18830 | AI114: 20000 | AJ114: 18190 | AK114: 20000 | AL114: 16090 | AM114: 1 | AN114: 6 | AO114: L | AP114: 1 | AQ114: 0 | AT114: 110 | AV114: 19095 | AW114: 19095 | AX114: 16965 | AY114: 16640 | AZ114: 18380 | BA114: 20116.66667 | BB114: 19983.33333 | BC114: 19846.66667 | BD114: 19713.33333 | BE114: 19576.66667 | BF114: 19443.33333 | BG114: 19306.66667 | BH114: 40 | BI114: 0 | BJ114: 82.71604938 | BK114: 60.28880866 | BN114: 0.03440318859 | BO114: 0.004667333429 | BP114: UP | BQ114: 820 | BR114: 1 | BU114: 182186.6667 | BV114: 1 | BW114: 0 | BX114: 19526.32117 | BY114: 19103.28048 | BZ114: 423.0406933 | CA114: 206.4737196 | CB114: 216.5669737 | CC114: 20315.75093 | CD114: 19942.5519 | CE114: 19569.35287 | CF114: 19196.15385 | CG114: 18822.95482 | CH114: 18449.75579 | CI114: 18076.55676 | CJ114: 0.1142857143 | CK114: 0.7714285714 | CL114: 1.034285714 | CM114: -0.04 | CN114: 1.522077922 | CO114: 140 | CP114: 90 | CQ114: L | CR114: N | CS114: N | CU114: 230 | CV114: -330 | CZ114: 19095 | DA114: 19095 | DB114: 17100 | DC114: 16640 | DD114: 19566
A115: 2017-05-15 | B115: 2017-05-19 | C115: 20 | D115: 19770 | E115: 20000 | F115: 19440 | G115: 19600 | H115: 190548 | U115: 19484 | V115: 19070 | W115: 19155.45455 | X115: 19101.48148 | Y115: 17838.30189 | Z115: 17602.76923 | AA115: 17766.44444 | AB115: 17251.52632 | AC115: 560 | AD115: 406.6666667 | AE115: -110 | AF115: -170 | AG115: 20000 | AH115: 18190 | AI115: 20000 | AJ115: 18190 | AK115: 20000 | AL115: 16090 | AM115: 1 | AN115: 5 | AO115: L | AP115: 0 | AQ115: 1 | AU115: 280 | AV115: 19000 | AW115: 19095 | AX115: 16775 | AY115: 16450 | AZ115: 17970 | BA115: 20480 | BB115: 20240 | BC115: 19920 | BD115: 19680 | BE115: 19360 | BF115: 19120 | BG115: 18800 | BH115: 0 | BI115: 170 | BJ115: 84.7826087 | BK115: 54.3554007 | BN115: 0.02428766691 | BO115: 0.004864323525 | BP115: UP | BQ115: 1170 | BR115: 0 | BU115: 198747.3333 | BV115: 0 | BW115: 1 | BX115: 19434.48175 | BY115: 19039.41526 | BZ115: 395.0664911 | CA115: 207.2156669 | CB115: 187.8508243 | CC115: 20315.09615 | CD115: 19925.0641 | CE115: 19535.03205 | CF115: 19145 | CG115: 18754.96795 | CH115: 18364.9359 | CI115: 17974.90385 | CJ115: -0.4180327869 | CK115: 1.37704918 | CL115: 1.303278689 | CM115: 0.2852459016 | CN115: 1.09314456 | CO115: 230 | CP115: 160 | CQ115: L | CR115: L | CS115: L | CU115: 60 | CV115: -230 | CZ115: 19000 | DA115: 19095 | DB115: 16965 | DC115: 16450 | DD115: 19396
A116: 2017-05-08 | B116: 2017-05-12 | C116: 19 | D116: 19740 | E116: 20000 | F116: 19710 | G116: 19880 | H116: 215356 | U116: 19254 | V116: 18838 | W116: 19143.63636 | X116: 19020 | Y116: 17776.79245 | Z116: 17547.07692 | AA116: 17761.77778 | AB116: 17225.94737 | AC116: 290 | AD116: 406.6666667 | AE116: 260 | AF116: 140 | AG116: 20000 | AH116: 18190 | AI116: 20000 | AJ116: 18190 | AK116: 20000 | AL116: 15880 | AM116: 1 | AN116: 4 | AO116: L | AP116: 4 | AQ116: 0 | AT116: 400 | AV116: 18730 | AW116: 19095 | AX116: 16530 | AY116: 16345 | AZ116: 17400 | BA116: 20306.66667 | BB116: 20153.33333 | BC116: 20016.66667 | BD116: 19863.33333 | BE116: 19726.66667 | BF116: 19573.33333 | BG116: 19436.66667 | BH116: 140 | BI116: 0 | BJ116: 80 | BK116: 57.56457565 | BQ116: 1810 | BR116: 0 | BU116: 208872.6667 | BV116: 1 | BW116: 0 | BX116: 19351.72263 | BY116: 18980.40634 | BZ116: 371.3162881 | CA116: 222.5396496 | CB116: 148.7766385 | CC116: 20401.39762 | CD116: 19961.70097 | CE116: 19522.00433 | CF116: 19082.30769 | CG116: 18642.61105 | CH116: 18202.91441 | CI116: 17763.21777 | CJ116: 0.3442622951 | CK116: 0.7131147541 | CL116: 2.562295082 | CM116: 1.539344262 | CN116: 1.810730253 | CO116: 120 | CP116: 30 | CQ116: L | CR116: L | CS116: L | CT116: H | CU116: 560 | CV116: 260 | CZ116: 18730 | DA116: 19095 | DB116: 16775 | DC116: 16210 | DD116: 19078
A117: 2017-05-01 | B117: 2017-05-02 | C117: 18 | D117: 19180 | E117: 19480 | F117: 19180 | G117: 19480 | H117: 61439 | U117: 19068 | V117: 18596 | W117: 19088.18182 | X117: 18909.25926 | Y117: 17705.09434 | Z117: 17468.92308 | AA117: 17756.77778 | AB117: 17198.57895 | AC117: 300 | AD117: 496.6666667 | AE117: -20 | AF117: 300 | AG117: 19480 | AH117: 18190 | AI117: 19680 | AJ117: 18190 | AK117: 19680 | AL117: 15880 | AM117: 1 | AN117: 3 | AO117: L | AP117: 3 | AQ117: 0 | AT117: 280 | AV117: 17885 | AW117: 18865 | AX117: 16480 | AY117: 16345 | AZ117: 16890 | BA117: 19880 | BB117: 19680 | BC117: 19580 | BD117: 19380 | BE117: 19280 | BF117: 19080 | BG117: 18980 | BH117: 300 | BI117: 0 | BJ117: 66.28571429 | BK117: 50.21645022 | BN117: 0 | BO117: 0 | BQ117: 1290 | BR117: 0 | BU117: 213757.6667 | BV117: 1 | BW117: 0 | BX117: 19087.58395 | BY117: 18885.71227 | BZ117: 201.8716731 | CA117: 247.197499 | CB117: -45.32582598 | CC117: 20541.76149 | CD117: 20023.48202 | CE117: 19505.20255 | CF117: 18986.92308 | CG117: 18468.64361 | CH117: 17950.36414 | CI117: 17432.08467 | CJ117: 0.6040268456 | CK117: 0.6040268456 | CL117: 1.779865772 | CM117: 0.8295302013 | CN117: 0.7888956681 | CO117: 0 | CP117: 0 | CQ117: L | CR117: L | CS117: L | CU117: 350 | CV117: -110 | CZ117: 17885 | DA117: 18865 | DB117: 16530 | DC117: 16345 | DD117: 18812
A118: 2017-04-24 | B118: 2017-04-28 | C118: 17 | D118: 18900 | E118: 19290 | F118: 18830 | G118: 19200 | H118: 220924 | U118: 19022 | V118: 18518 | W118: 19062.72727 | X118: 18834.44444 | Y118: 17648.86792 | Z118: 17426.46154 | AA118: 17768.22222 | AB118: 17171.42105 | AC118: 460 | AD118: 496.6666667 | AE118: 250 | AF118: 300 | AG118: 19290 | AH118: 18190 | AI118: 19680 | AJ118: 18190 | AK118: 19680 | AL118: 15880 | AM118: 1 | AN118: 2 | AO118: L | AP118: 2 | AQ118: 0 | AT118: 550 | AV118: 17885 | AW118: 18935 | AX118: 16470 | AY118: 16345 | AZ118: 17460 | BA118: 19843.33333 | BB118: 19566.66667 | BC118: 19383.33333 | BD118: 19106.66667 | BE118: 18923.33333 | BF118: 18646.66667 | BG118: 18463.33333 | BH118: 300 | BI118: 0 | BJ118: 51.76470588 | BK118: 48.43049327 | BN118: -0.01664598842 | BO118: -0.007619498344 | BP118: DW | BQ118: 1100 | BR118: 0 | BU118: 217149.6667 | BV118: 1 | BW118: 0 | BX118: 18891.37592 | BY118: 18823.15567 | BZ118: 68.22024959 | CA118: 293.0496793 | CB118: -224.8294297 | CC118: 20827.9579 | CD118: 20181.0745 | CE118: 19534.19109 | CF118: 18887.30769 | CG118: 18240.42429 | CH118: 17593.54089 | CI118: 16946.65749 | CJ118: 0.6040268456 | CK118: 0.9261744966 | CL118: 1.373154362 | CM118: 0.3583892617 | CN118: 0.2763880415 | CO118: 90 | CP118: 70 | CQ118: L | CR118: N | CS118: L | CU118: 710 | CV118: 250 | CZ118: 17885 | DA118: 18935 | DB118: 16480 | DC118: 16345 | DD118: 18698
A119: 2017-04-17 | B119: 2017-04-21 | C119: 16 | D119: 18240 | E119: 18650 | F119: 18190 | G119: 18650 | H119: 190338 | U119: 19036 | V119: 18518 | W119: 19079.09091 | X119: 18761.11111 | Y119: 17618.11321 | Z119: 17402.46154 | AA119: 17785 | AB119: 17143.26316 | AC119: 460 | AD119: 520 | AE119: -80 | AF119: 410 | AG119: 19360 | AH119: 18190 | AI119: 19680 | AJ119: 18190 | AK119: 19680 | AL119: 15450 | AM119: 6 | AN119: 1 | AO119: S | AP119: 1 | AQ119: 0 | AT119: 330 | AV119: 17885 | AW119: 18935 | AX119: 16467.5 | AY119: 16345 | AZ119: 17220 | BA119: 19263.33333 | BB119: 18956.66667 | BC119: 18803.33333 | BD119: 18496.66667 | BE119: 18343.33333 | BF119: 18036.66667 | BG119: 17883.33333 | BH119: 410 | BI119: 0 | BJ119: 24.26470588 | BK119: 34.28571429 | BN119: -0.0220897976 | BO119: -0.008878394333 | BP119: DW | BQ119: 1060 | BR119: 0 | BU119: 206954.3333 | BV119: 1 | BW119: 0 | BX119: 18737.06388 | BY119: 18783.48785 | BZ119: -46.42396559 | CA119: 354.0826969 | CB119: -400.5066624 | CC119: 20917.32438 | CD119: 20218.34446 | CE119: 19519.36454 | CF119: 18820.38462 | CG119: 18121.4047 | CH119: 17422.42477 | CI119: 16723.44485 | CJ119: 0.7884615385 | CK119: 0.8846153846 | CL119: 0.2538461538 | CM119: -0.7423076923 | CN119: -0.8251748252 | CO119: 0 | CP119: 50 | CQ119: L | CR119: N | CS119: L | CT119: L | CU119: -40 | CV119: -610 | CZ119: 17885 | DA119: 18935 | DB119: 16470 | DC119: 16345 | DD119: 18664
A120: 2017-04-10 | B120: 2017-04-14 | C120: 15 | D120: 18840 | E120: 18850 | F120: 18280 | G120: 18320 | H120: 230011 | U120: 19214 | V120: 18740 | W120: 19105.45455 | X120: 18694.44444 | Y120: 17582.45283 | Z120: 17375.07692 | AA120: 17806.33333 | AB120: 17115.36842 | AC120: 570 | AD120: 520 | AE120: 130 | AF120: -520 | AG120: 19540 | AH120: 18280 | AI120: 19680 | AJ120: 18210 | AK120: 19680 | AL120: 15070 | AM120: 5 | AN120: 1 | AO120: S | AP120: 0 | AQ120: 2 | AU120: 390 | AV120: 17885 | AW120: 18980 | AX120: 16432.5 | AY120: 16870 | AZ120: 16850 | BA120: 19256.66667 | BB120: 19053.33333 | BC120: 18686.66667 | BD120: 18483.33333 | BE120: 18116.66667 | BF120: 17913.33333 | BG120: 17546.66667 | BH120: 0 | BI120: 520 | BJ120: 0 | BK120: 16.875 | BN120: -0.0149697529 | BO120: -0.009099910415 | BP120: DW | BQ120: 1080 | BR120: 0 | BU120: 205615 | BV120: 0 | BW120: 1 | BX120: 18780.59582 | BY120: 18797.5392 | BZ120: -16.94337679 | CA120: 433.5629085 | CB120: -450.5062853 | CC120: 21055.90031 | CD120: 20292.39508 | CE120: 19528.88985 | CF120: 18765.38462 | CG120: 18001.87939 | CH120: 17238.37415 | CI120: 16474.86892 | CJ120: -1 | CK120: 1.096153846 | CL120: -0.8076923077 | CM120: -1.719230769 | CN120: -1.51048951 | CO120: 10 | CP120: 40 | CQ120: L | CR120: N | CS120: L | CU120: 340 | CV120: -230 | CZ120: 17885 | DA120: 18980 | DB120: 16467.5 | DC120: 16345 | DD120: 18990
A121: 2017-04-03 | B121: 2017-04-07 | C121: 14 | D121: 19000 | E121: 19070 | F121: 18500 | G121: 18710 | H121: 320699 | U121: 19344 | V121: 18922.6 | W121: 19209.09091 | X121: 18641.48148 | Y121: 17535.4717 | Z121: 17357.07692 | AA121: 17830.77778 | AB121: 17091.05263 | AC121: 570 | AD121: 432.3333333 | AE121: 90 | AF121: -290 | AG121: 19540 | AH121: 18500 | AI121: 19680 | AJ121: 18000 | AK121: 19680 | AL121: 14960 | AM121: 4 | AN121: 1 | AO121: S | AP121: 0 | AQ121: 1 | AU121: 200 | AV121: 17885 | AW121: 19090 | AX121: 16432.5 | AY121: 16950 | AZ121: 16890 | BA121: 19590 | BB121: 19330 | BC121: 19020 | BD121: 18760 | BE121: 18450 | BF121: 18190 | BG121: 17880 | BH121: 0 | BI121: 290 | BJ121: 0 | BK121: 43.03030303 | BN121: -0.00992936841 | BO121: -0.004944666824 | BP121: DW | BQ121: 1040 | BR121: 0 | BU121: 229274.3333 | BV121: 0 | BW121: 1 | BX121: 19010.89374 | BY121: 18847.80648 | BZ121: 163.0872508 | CA121: 518.3908257 | CB121: -355.3035749 | CC121: 21242.41303 | CD121: 20397.89074 | CE121: 19553.36844 | CF121: 18708.84615 | CG121: 17864.32386 | CH121: 17019.80157 | CI121: 16175.27928 | CJ121: -0.6707787201 | CK121: 1.31842714 | CL121: -0.4917501928 | CM121: -1.466461064 | CN121: -1.15441228 | CO121: 70 | CP121: 210 | CQ121: L | CR121: N | CS121: L | CU121: 210 | CV121: -250 | CY121: D | CZ121: 17885 | DA121: 19090 | DB121: 16432.5 | DC121: 16870 | DD121: 19174
A122: 2017-03-27 | B122: 2017-03-31 | C122: 13 | D122: 18910 | E122: 19250 | F122: 18790 | G122: 18910 | H122: 200514 | U122: 19466 | V122: 19020.6 | W122: 19250 | X122: 18555.55556 | Y122: 17487.73585 | Z122: 17341.38462 | AA122: 17852.22222 | AB122: 17064.52632 | AC122: 460 | AD122: 432.3333333 | AE122: -230 | AF122: 0 | AG122: 19680 | AH122: 18790 | AI122: 19680 | AJ122: 17460 | AK122: 19680 | AL122: 14790 | AM122: 3 | AN122: 1 | AO122: S | AP122: 0 | AQ122: 0 | AU122: 230 | AV122: 17885 | AW122: 19230 | AX122: 16365 | AY122: 16950 | AZ122: 16390 | BA122: 19636.66667 | BB122: 19443.33333 | BC122: 19176.66667 | BD122: 18983.33333 | BE122: 18716.66667 | BF122: 18523.33333 | BG122: 18256.66667 | BH122: 0 | BI122: 0 | BJ122: 26.31578947 | BK122: 36.04060914 | BQ122: 750 | BR122: 0 | BU122: 214661.6667 | BV122: 0 | BW122: 1 | BX122: 19161.3406 | BY122: 18862.31243 | BZ122: 299.0281728 | CA122: 585.2516274 | CB122: -286.2234546 | CC122: 21381.10932 | CD122: 20467.0216 | CE122: 19552.93387 | CF122: 18638.84615 | CG122: 17724.75843 | CH122: 16810.67071 | CI122: 15896.58299 | CJ122: 0 | CK122: 1.063993832 | CL122: -0.2558211257 | CM122: -1.286044719 | CN122: -0.7864302236 | CO122: 340 | CP122: 120 | CQ122: L | CR122: N | CS122: L | CU122: 80 | CV122: -450 | CZ122: 17885 | DA122: 19230 | DB122: 16432.5 | DC122: 16950 | DD122: 19268
A123: 2017-03-21 | B123: 2017-03-24 | C123: 12 | D123: 19250 | E123: 19360 | F123: 18830 | G123: 19140 | H123: 186320 | U123: 19506 | V123: 19082.6 | W123: 19280.90909 | X123: 18468.88889 | Y123: 17449.24528 | Z123: 17342.76923 | AA123: 17862.77778 | AB123: 17036.94737 | AC123: 530 | AD123: 395.6666667 | AE123: -100 | AF123: -110 | AG123: 19680 | AH123: 18830 | AI123: 19680 | AJ123: 16090 | AK123: 19680 | AL123: 14790 | AM123: 2 | AN123: 1 | AO123: S | AP123: 0 | AQ123: 2 | AU123: 210 | AV123: 17885 | AW123: 19220 | AX123: 16365 | AY123: 17335 | AZ123: 16570 | BA123: 19920 | BB123: 19640 | BC123: 19390 | BD123: 19110 | BE123: 18860 | BF123: 18580 | BG123: 18330 | BH123: 0 | BI123: 110 | BJ123: 45 | BK123: 49.50980392 | BQ123: 850 | BR123: 0 | BU123: 194818.6667 | BV123: 0 | BW123: 1 | BX123: 19287.0109 | BY123: 18857.29269 | BZ123: 429.7182186 | CA123: 655.2093621 | CB123: -225.4911435 | CC123: 21568.57415 | CD123: 20559.69046 | CE123: 19550.80677 | CF123: 18541.92308 | CG123: 17533.03939 | CH123: 16524.1557 | CI123: 15515.272 | CJ123: -0.2780117944 | CK123: 1.339511373 | CL123: 0.1450716091 | CM123: -0.9250210615 | CN123: -0.3561308111 | CO123: 110 | CP123: 310 | CQ123: L | CR123: L | CS123: L | CU123: -50 | CV123: -290 | CZ123: 17885 | DA123: 19220 | DB123: 16365 | DC123: 16950 | DD123: 19362
A124: 2017-03-13 | B124: 2017-03-17 | C124: 11 | D124: 19420 | E124: 19540 | F124: 19300 | G124: 19350 | H124: 129044 | U124: 19538 | V124: 19146.6 | W124: 19304.54545 | X124: 18365.55556 | Y124: 17399.62264 | Z124: 17336.30769 | AA124: 17878.33333 | AB124: 17012.42105 | AC124: 240 | AD124: 342.3333333 | AE124: -50 | AF124: -70 | AG124: 19680 | AH124: 18990 | AI124: 19680 | AJ124: 16090 | AK124: 19680 | AL124: 14790 | AM124: 1 | AN124: 6 | AO124: L | AP124: 0 | AQ124: 1 | AU124: 120 | AV124: 17885 | AW124: 19155 | AX124: 16365 | AY124: 17335 | AZ124: 16350 | BA124: 19733.33333 | BB124: 19636.66667 | BC124: 19493.33333 | BD124: 19396.66667 | BE124: 19253.33333 | BF124: 19156.66667 | BG124: 19013.33333 | BH124: 0 | BI124: 70 | BJ124: 47.36842105 | BK124: 52.60416667 | BN124: 0.004627725216 | BO124: 0.002170937751 | BQ124: 690 | BR124: 0 | BU124: 201028.3333 | BV124: 0 | BW124: 1 | BX124: 19360.51636 | BY124: 18827.53402 | BZ124: 532.9823357 | CA124: 712.5844119 | CB124: -179.6020762 | CC124: 21651.63989 | CD124: 20582.1189 | CE124: 19512.59791 | CF124: 18443.07692 | CG124: 17373.55593 | CH124: 16304.03494 | CI124: 15234.51395 | CJ124: -0.2044790652 | CK124: 0.7010710808 | CL124: 0.594157741 | CM124: -0.5491723466 | CN124: 0.1327786138 | CO124: 120 | CP124: 50 | CQ124: L | CR124: L | CS124: L | CU124: 227 | CV124: -80 | CZ124: 17885 | DA124: 19155 | DB124: 16365 | DC124: 17335 | DD124: 19366
A125: 2017-03-06 | B125: 2017-03-10 | C125: 10 | D125: 19440 | E125: 19500 | F125: 19193 | G125: 19470 | H125: 300989 | U125: 19512 | V125: 19042.6 | W125: 19280.90909 | X125: 18273.33333 | Y125: 17352.45283 | Z125: 17330.15385 | AA125: 17894 | AB125: 16984.94737 | AC125: 307 | AD125: 450 | AE125: -30 | AF125: 30 | AG125: 19680 | AH125: 18780 | AI125: 19680 | AJ125: 16090 | AK125: 19680 | AL125: 14790 | AM125: 2 | AN125: 5 | AO125: L | AP125: 3 | AQ125: 0 | AV125: 17885 | AW125: 19155 | AX125: 16257.5 | AY125: 17415 | AZ125: 16860 | BA125: 19889.33333 | BB125: 19694.66667 | BC125: 19582.33333 | BD125: 19387.66667 | BE125: 19275.33333 | BF125: 19080.66667 | BG125: 18968.33333 | BH125: 30 | BI125: 0 | BJ125: 79.7752809 | BK125: 51.79487179 | BN125: 0.005462228177 | BO125: 0.002268323803 | BQ125: 690 | BR125: 1 | BU125: 216524 | BV125: 0 | BW125: 0 | BX125: 19365.77454 | BY125: 18772.5376 | BZ125: 593.2369332 | CA125: 769.3245694 | CB125: -176.0876362 | CC125: 21705.09205 | CD125: 20579.29213 | CE125: 19453.49222 | CF125: 18327.69231 | CG125: 17201.89239 | CH125: 16076.09248 | CI125: 14950.29257 | CJ125: 0.06666666667 | CK125: 0.6822222222 | CL125: 0.9497777778 | CM125: -0.09333333333 | CN125: 0.4202020202 | CO125: 30 | CP125: 247 | CQ125: L | CR125: L | CS125: L | CU125: 450 | CV125: -240 | CZ125: 17885 | DA125: 19155 | DB125: 16365 | DC125: 17335 | DD125: 19352
A126: 2017-02-27 | B126: 2017-03-03 | C126: 9 | D126: 19120 | E126: 19680 | F126: 18990 | G126: 19470 | H126: 257151 | U126: 19488 | V126: 18964 | W126: 19270.90909 | X126: 18179.62963 | Y126: 17305.84906 | Z126: 17326.15385 | AA126: 17901.77778 | AB126: 16959.57895 | AC126: 690 | AD126: 526.6666667 | AE126: -150 | AF126: 350 | AG126: 19680 | AH126: 18780 | AI126: 19680 | AJ126: 16090 | AK126: 19680 | AL126: 14790 | AM126: 1 | AN126: 4 | AO126: L | AP126: 2 | AQ126: 0 | AT126: 200 | AV126: 17885 | AW126: 19155 | AX126: 16110 | AY126: 17415 | AZ126: 16940 | BA126: 20460 | BB126: 20070 | BC126: 19770 | BD126: 19380 | BE126: 19080 | BF126: 18690 | BG126: 18390 | BH126: 350 | BI126: 0 | BJ126: 50.35460993 | BK126: 58.40707965 | BN126: 0.00474324603 | BO126: 0.005884027712 | BQ126: 900 | BR126: 0 | BU126: 209733 | BV126: 1 | BW126: 0 | BX126: 19313.6618 | BY126: 18699.12051 | BZ126: 614.5412957 | CA126: 827.2889759 | CB126: -212.7476802 | CC126: 21634.66852 | CD126: 20498.88158 | CE126: 19363.09464 | CF126: 18227.30769 | CG126: 17091.52075 | CH126: 15955.7338 | CI126: 14819.94686 | CJ126: 0.664556962 | CK126: 1.310126582 | CL126: 0.9607594937 | CM126: -0.03417721519 | CN126: 0.3780207135 | CO126: 210 | CP126: 130 | CQ126: L | CR126: N | CS126: L | CU126: 20 | CV126: -330 | CZ126: 17885 | DA126: 19155 | DB126: 16257.5 | DC126: 17415 | DD126: 19182
A127: 2017-02-20 | B127: 2017-02-24 | C127: 8 | D127: 19150 | E127: 19450 | F127: 19100 | G127: 19270 | H127: 140985 | U127: 19448 | V127: 18918 | W127: 19262.72727 | X127: 18065.92593 | Y127: 17245.28302 | Z127: 17326 | AA127: 17912 | AB127: 16933.26316 | AC127: 350 | AD127: 526.6666667 | AE127: -50 | AF127: 120 | AG127: 19520 | AH127: 18760 | AI127: 19640 | AJ127: 16090 | AK127: 19640 | AL127: 14790 | AM127: 1 | AN127: 3 | AO127: L | AP127: 1 | AQ127: 0 | AT127: 70 | AV127: 17865 | AW127: 19135 | AX127: 16077.5 | AY127: 17415 | AZ127: 16400 | BA127: 19796.66667 | BB127: 19623.33333 | BC127: 19446.66667 | BD127: 19273.33333 | BE127: 19096.66667 | BF127: 18923.33333 | BG127: 18746.66667 | BH127: 120 | BI127: 0 | BJ127: 53.64238411 | BK127: 48.06866953 | BO127: 0.01025078669 | BQ127: 740 | BR127: 0 | BU127: 209733 | BV127: 1 | BW127: 0 | BX127: 19235.49271 | BY127: 18617.9753 | BZ127: 617.5174074 | CA127: 882.9165107 | CB127: -265.3991033 | CC127: 21530.58253 | CD127: 20397.05502 | CE127: 19263.52751 | CF127: 18130 | CG127: 16996.47249 | CH127: 15862.94498 | CI127: 14729.41747 | CJ127: 0.2278481013 | CK127: 0.664556962 | CL127: 0.6683544304 | CM127: -0.3379746835 | CN127: 0.01380897583 | CO127: 180 | CP127: 50 | CQ127: L | CR127: L | CS127: L | CU127: 0 | CV127: -370 | CZ127: 17865 | DA127: 19135 | DB127: 16110 | DC127: 17415 | DD127: 19226
A128: 2017-02-13 | B128: 2017-02-17 | C128: 7 | D128: 19480 | E128: 19520 | F128: 19150 | G128: 19200 | H128: 204949 | U128: 19406 | V128: 18824 | W128: 19237.27273 | X128: 17964.07407 | Y128: 17183.20755 | Z128: 17335.07692 | AA128: 17925.22222 | AB128: 16907.31579 | AC128: 370 | AD128: 606.6666667 | AE128: 100 | AF128: -280 | AG128: 19520 | AH128: 18630 | AI128: 19640 | AJ128: 16090 | AK128: 19640 | AL128: 14790 | AM128: 1 | AN128: 2 | AO128: S | AP128: 0 | AQ128: 1 | AU128: 180 | AV128: 17865 | AW128: 19135 | AX128: 16035 | AY128: 17415 | AZ128: 16520 | BA128: 19800 | BB128: 19660 | BC128: 19430 | BD128: 19290 | BE128: 19060 | BF128: 18920 | BG128: 18690 | BH128: 0 | BI128: 280 | BJ128: 48.36601307 | BK128: 46.05263158 | BN128: 0 | BO128: 0.01360348709 | BQ128: 760 | BR128: 0 | BU128: 226669.6667 | BV128: 0 | BW128: 1 | BX128: 19218.23906 | BY128: 18549.34112 | BZ128: 668.8979396 | CA128: 945.3384846 | CB128: -276.440545 | CC128: 21489.54924 | CD128: 20332.90462 | CE128: 19176.26 | CF128: 18019.61538 | CG128: 16862.97077 | CH128: 15706.32615 | CI128: 14549.68153 | CJ128: -0.4615384615 | CK128: 0.6098901099 | CL128: 0.6197802198 | CM128: -0.3395604396 | CN128: -0.06143856144 | CO128: 40 | CP128: 50 | CQ128: L | CR128: L | CS128: L | CU128: 700 | CV128: 70 | CZ128: 17865 | DA128: 19135 | DB128: 16077.5 | DC128: 17415 | DD128: 19284
A129: 2017-02-06 | B129: 2017-02-10 | C129: 6 | D129: 19080 | E129: 19410 | F129: 18780 | G129: 19380 | H129: 187472 | U129: 19396 | V129: 18804 | W129: 19158.18182 | X129: 17879.62963 | Y129: 17100.18868 | Z129: 17345.69231 | AA129: 17940.33333 | AB129: 16878.05263 | AC129: 630 | AD129: 606.6666667 | AE129: 140 | AF129: 300 | AG129: 19480 | AH129: 18630 | AI129: 19640 | AJ129: 16090 | AK129: 19640 | AL129: 14790 | AM129: 1 | AN129: 1 | AO129: L | AP129: 1 | AQ129: 0 | AT129: 440 | AV129: 17865 | AW129: 19135 | AX129: 16035 | AY129: 17415 | AZ129: 16920 | BA129: 20230 | BB129: 19820 | BC129: 19600 | BD129: 19190 | BE129: 18970 | BF129: 18560 | BG129: 18340 | BH129: 300 | BI129: 0 | BJ129: 49.33333333 | BK129: 57.8313253 | BN129: -0.003903040263 | BO129: 0.01949591215 | BQ129: 850 | BR129: 0 | BU129: 223656.6667 | BV129: 1 | BW129: 0 | BX129: 19227.35859 | BY129: 18480.85071 | BZ129: 746.5078778 | CA129: 995.125521 | CB129: -248.6176432 | CC129: 21415.24754 | CD129: 20249.01118 | CE129: 19082.77482 | CF129: 17916.53846 | CG129: 16750.3021 | CH129: 15584.06574 | CI129: 14417.82938 | CJ129: 0.4945054945 | CK129: 1.038461538 | CL129: 0.9494505495 | CM129: -0.02637362637 | CN129: 0.3656343656 | CO129: 30 | CP129: 300 | CQ129: L | CR129: N | CS129: L | CU129: 280 | CV129: -300 | CZ129: 17865 | DA129: 19135 | DB129: 16035 | DC129: 17415 | DD129: 19178
A130: 2017-01-30 | B130: 2017-02-03 | C130: 5 | D130: 19350 | E130: 19380 | F130: 18800 | G130: 18940 | H130: 236778 | U130: 19442 | V130: 18900 | W130: 19067.27273 | X130: 17762.22222 | Y130: 17050 | Z130: 17349.53846 | AA130: 17950.33333 | AB130: 16846.42105 | AC130: 580 | AD130: 536.6666667 | AE130: -110 | AF130: -410 | AG130: 19640 | AH130: 18630 | AI130: 19640 | AJ130: 16090 | AK130: 19640 | AL130: 14790 | AM130: 2 | AN130: 1 | AO130: S | AP130: 0 | AQ130: 1 | AU130: 520 | AV130: 17865 | AW130: 18930 | AX130: 16035 | AY130: 17415 | AZ130: 16210 | BA130: 19860 | BB130: 19620 | BC130: 19280 | BD130: 19040 | BE130: 18700 | BF130: 18460 | BG130: 18120 | BH130: 0 | BI130: 410 | BJ130: 44.52554745 | BK130: 61.25461255 | BN130: -0.003383227394 | BO130: 0.02592447662 | BQ130: 850 | BR130: 1 | BU130: 223656.6667 | BV130: 0 | BW130: 1 | BX130: 19151.03788 | BY130: 18386.20342 | BZ130: 764.8344659 | CA130: 1017.397422 | CB130: -252.5629565 | CC130: 21251.61601 | CD130: 20108.38503 | CE130: 18965.15406 | CF130: 17821.92308 | CG130: 16678.6921 | CH130: 15535.46112 | CI130: 14392.23014 | CJ130: -0.7639751553 | CK130: 1.080745342 | CL130: 0.07453416149 | CM130: -0.9354037267 | CN130: -0.2371541502 | CO130: 30 | CP130: 140 | CQ130: L | CR130: L | CS130: L | CU130: 590 | CV130: -130 | CZ130: 17865 | DA130: 18930 | DB130: 16035 | DC130: 17415 | DD130: 19324
A131: 2017-01-23 | B131: 2017-01-27 | C131: 4 | D131: 18980 | E131: 19480 | F131: 18760 | G131: 19460 | H131: 238282 | U131: 19456 | V131: 18934 | W131: 18979.09091 | X131: 17675.92593 | Y131: 17025.4717 | Z131: 17354.46154 | AA131: 17959.44444 | AB131: 16813.94737 | AC131: 720 | AD131: 503.3333333 | AE131: -180 | AF131: 480 | AG131: 19640 | AH131: 18630 | AI131: 19640 | AJ131: 16090 | AK131: 19640 | AL131: 14790 | AM131: 1 | AN131: 1 | AO131: L | AP131: 1 | AQ131: 0 | AT131: 300 | AV131: 17760 | AW131: 18925 | AX131: 16185 | AY131: 17415 | AZ131: 16610 | BA131: 20426.66667 | BB131: 19953.33333 | BC131: 19706.66667 | BD131: 19233.33333 | BE131: 18986.66667 | BF131: 18513.33333 | BG131: 18266.66667 | BH131: 480 | BI131: 0 | BJ131: 54.46428571 | BK131: 74.10714286 | BO131: 0.03019985196 | BQ131: 1010 | BR131: 0 | BU131: 196447.3333 | BV131: 1 | BW131: 0 | BX131: 19256.55683 | BY131: 18327.90904 | BZ131: 928.6477849 | CA131: 1017.879921 | CB131: -89.232136 | CC131: 21199.77439 | CD131: 20038.82395 | CE131: 18877.87351 | CF131: 17716.92308 | CG131: 16555.97264 | CH131: 15395.0222 | CI131: 14234.07177 | CJ131: 0.9536423841 | CK131: 1.430463576 | CL131: 1.045033113 | CM131: 0.007947019868 | CN131: 0.955448525 | CO131: 20 | CP131: 220 | CQ131: L | CR131: L | CS131: L | CU131: 350 | CV131: -260 | CY131: U | CZ131: 17760 | DA131: 18925 | DB131: 16035 | DC131: 17415 | DD131: 19176
A132: 2017-01-16 | B132: 2017-01-20 | C132: 3 | D132: 19190 | E132: 19240 | F132: 18630 | G132: 19160 | H132: 258331 | U132: 19472 | V132: 19034 | W132: 18791.81818 | X132: 17571.11111 | Y132: 16976.60377 | Z132: 17348.76923 | AA132: 17958.55556 | AB132: 16778.26316 | AC132: 610 | AD132: 426.6666667 | AE132: -60 | AF132: -30 | AG132: 19640 | AH132: 18630 | AI132: 19640 | AJ132: 16090 | AK132: 19640 | AL132: 14790 | AM132: 3 | AN132: 1 | AO132: L | AP132: 0 | AQ132: 2 | AU132: 90 | AV132: 17760 | AW132: 18820 | AX132: 16185 | AY132: 17415 | AZ132: 16630 | BA132: 20000 | BB132: 19620 | BC132: 19390 | BD132: 19010 | BE132: 18780 | BF132: 18400 | BG132: 18170 | BH132: 0 | BI132: 30 | BJ132: 36.9047619 | BK132: 75.31914894 | BO132: 0.0311268519 | BQ132: 1010 | BR132: 0 | BU132: 171882.6667 | BV132: 0 | BW132: 1 | BX132: 19154.83524 | BY132: 18208.74157 | BZ132: 946.0936672 | CA132: 991.8616112 | CB132: -45.76794404 | CC132: 20982.88516 | CD132: 19857.69267 | CE132: 18732.50018 | CF132: 17607.30769 | CG132: 16482.1152 | CH132: 15356.92272 | CI132: 14231.73023 | CJ132: -0.0703125 | CK132: 1.4296875 | CL132: 0.2953125 | CM132: -0.73125 | CN132: 0.8629261364 | CO132: 50 | CP132: 530 | CQ132: L | CR132: L | CS132: L | CU132: 140 | CV132: -280 | CZ132: 17760 | DA132: 18820 | DB132: 16185 | DC132: 17415 | DD132: 19258
A133: 2017-01-10 | B133: 2017-01-13 | C133: 2 | D133: 19400 | E133: 19470 | F133: 19050 | G133: 19250 | H133: 195910 | U133: 19508 | V133: 19110 | W133: 18585.45455 | X133: 17474.81481 | Y133: 16938.67925 | Z133: 17343.23077 | AA133: 17962.77778 | AB133: 16749.52632 | AC133: 420 | AD133: 403.3333333 | AE133: 0 | AF133: -150 | AG133: 19640 | AH133: 18970 | AI133: 19640 | AJ133: 16090 | AK133: 19640 | AL133: 14790 | AM133: 2 | AN133: 1 | AO133: L | AP133: 0 | AQ133: 1 | AU133: 150 | AV133: 17760 | AW133: 18550 | AX133: 16185 | AY133: 17415 | AZ133: 16560 | BA133: 19883.33333 | BB133: 19676.66667 | BC133: 19463.33333 | BD133: 19256.66667 | BE133: 19043.33333 | BF133: 18836.66667 | BG133: 18623.33333 | BH133: 0 | BI133: 150 | BJ133: 61.40350877 | BK133: 82.68551237 | BN133: 0.02425706185 | BO133: 0.03132724613 | BP133: UP | BQ133: 670 | BR133: 0 | BU133: 171882.6667 | BV133: 0 | BW133: 1 | BX133: 19152.25286 | BY133: 18108.60911 | BZ133: 1043.643753 | CA133: 943.8911709 | CB133: 99.7525818 | CC133: 20797.15683 | CD133: 19701.43788 | CE133: 18605.71894 | CF133: 17510 | CG133: 16414.28106 | CH133: 15318.56212 | CI133: 14222.84317 | CJ133: -0.3719008264 | CK133: 1.041322314 | CL133: 0.347107438 | CM133: -0.6396694215 | CN133: 1.647633358 | CO133: 70 | CP133: 200 | CQ133: L | CR133: L | CS133: L | CU133: 140 | CV133: -240 | CZ133: 17760 | DA133: 18550 | DB133: 16185 | DC133: 17415 | DD133: 19326
A134: 2017-01-04 | B134: 2017-01-06 | C134: 1 | D134: 19270 | E134: 19640 | F134: 19260 | G134: 19400 | H134: 155150 | U134: 19414 | V134: 18944 | W134: 18422.72727 | X134: 17321.85185 | Y134: 16909.24528 | Z134: 17328.46154 | AA134: 17971.66667 | AB134: 16725.10526 | AC134: 380 | AD134: 423.3333333 | AE134: 180 | AF134: 130 | AG134: 19640 | AH134: 18220 | AI134: 19640 | AJ134: 16090 | AK134: 19640 | AL134: 14790 | AM134: 1 | AN134: 9 | AO134: L | AP134: 1 | AQ134: 0 | AT134: 310 | AV134: 17545 | AW134: 17865 | AX134: 16185 | AY134: 17415 | AZ134: 15120 | BA134: 19986.66667 | BB134: 19813.33333 | BC134: 19606.66667 | BD134: 19433.33333 | BE134: 19226.66667 | BF134: 19053.33333 | BG134: 18846.66667 | BH134: 130 | BI134: 0 | BJ134: 82.42424242 | BK134: 89.34169279 | BN134: 0.03508210706 | BO134: 0.03519615856 | BP134: UP | BQ134: 670 | BR134: 0 | BU134: 195775 | BV134: 1 | BW134: 0 | BX134: 19103.37929 | BY134: 17988.4627 | BZ134: 1114.916592 | CA134: 866.87573 | CB134: 248.0408616 | CC134: 20564.61538 | CD134: 19511.92308 | CE134: 18459.23077 | CF134: 17406.53846 | CG134: 16353.84615 | CH134: 15301.15385 | CI134: 14248.46154 | CJ134: 0.3070866142 | CK134: 0.8976377953 | CL134: 1.077165354 | CM134: -0.03307086614 | CN134: 2.308518253 | CO134: 240 | CP134: 10 | CQ134: L | CR134: L | CS134: L | CU134: 300 | CV134: -180 | CZ134: 17545 | DA134: 17865 | DB134: 16185 | DC134: 17415 | DD134: 19218
A135: 2016-12-26 | B135: 2016-12-30 | C135: 53 | D135: 19360 | E135: 19450 | F135: 18970 | G135: 19090 | H135: 152489 | U135: 19238 | V135: 18734 | W135: 18224.54545 | X135: 17183.7037 | Y135: 16901.69811 | Z135: 17313.38462 | AA135: 17974.88889 | AB135: 16702.94737 | AC135: 480 | AD135: 480 | AE135: 0 | AF135: -270 | AG135: 19560 | AH135: 18210 | AI135: 19560 | AJ135: 16090 | AK135: 19560 | AL135: 14790 | AM135: 1 | AN135: 8 | AO135: L | AP135: 0 | AQ135: 1 | AU135: 270 | AV135: 17315 | AW135: 17825 | AX135: 16447.5 | AY135: 17415 | AZ135: 15670 | BA135: 19850 | BB135: 19650 | BC135: 19370 | BD135: 19170 | BE135: 18890 | BF135: 18690 | BG135: 18410 | BH135: 0 | BI135: 270 | BJ135: 75.53956835 | BK135: 73.62318841 | BN135: 0.04577081974 | BO135: 0.03994397468 | BP135: UP | BQ135: 1340 | BR135: 0 | BU135: 248919.6667 | BV135: 0 | BW135: 1 | BX135: 18955.06893 | BY135: 17839.87982 | BZ135: 1115.189109 | CA135: 774.7075485 | CB135: 340.4815607 | CC135: 20429.98998 | CD135: 19367.30101 | CE135: 18304.61204 | CF135: 17241.92308 | CG135: 16179.23411 | CH135: 15116.54514 | CI135: 14053.85618 | CJ135: -0.5625 | CK135: 1 | CL135: 0.7416666667 | CM135: -0.3083333333 | CN135: 1.803030303 | CO135: 90 | CP135: 120 | CQ135: L | CR135: L | CS135: L | CU135: 100 | CV135: -200 | CZ135: 17315 | DA135: 17825 | DB135: 16185 | DC135: 17415 | DD135: 19084
A136: 2016-12-19 | B136: 2016-12-22 | C136: 52 | D136: 19290 | E136: 19560 | F136: 19260 | G136: 19360 | H136: 164588 | U136: 19046 | V136: 18540 | W136: 18020.90909 | X136: 17030.37037 | Y136: 16894.71698 | Z136: 17291.53846 | AA136: 17984.66667 | AB136: 16679.63158 | AC136: 300 | AD136: 483.3333333 | AE136: -90 | AF136: 70 | AG136: 19560 | AH136: 18000 | AI136: 19560 | AJ136: 16090 | AK136: 19560 | AL136: 14790 | AM136: 1 | AN136: 7 | AO136: L | AP136: 7 | AQ136: 0 | AR136: L | AU136: 20 | AV136: 17260 | AW136: 17825 | AX136: 16580 | AY136: 17415 | AZ136: 14950 | BA136: 19826.66667 | BB136: 19693.33333 | BC136: 19526.66667 | BD136: 19393.33333 | BE136: 19226.66667 | BF136: 19093.33333 | BG136: 18926.66667 | BH136: 70 | BI136: 0 | BJ136: 95.4248366 | BK136: 81.28654971 | BN136: 0.05261412623 | BO136: 0.04139742579 | BP136: UP | BQ136: 1350 | BR136: 0 | BU136: 248919.6667 | BV136: 0 | BW136: 1 | BX136: 18887.6034 | BY136: 17708.28822 | BZ136: 1179.315172 | CA136: 691.2160432 | CB136: 488.0991289 | CC136: 20221.83534 | CD136: 19184.6851 | CE136: 18147.53486 | CF136: 17110.38462 | CG136: 16073.23437 | CH136: 15036.08413 | CI136: 13998.93389 | CJ136: 0.1448275862 | CK136: 0.6206896552 | CL136: 1.696551724 | CM136: 0.6496551724 | CN136: 2.770532915 | CO136: 200 | CP136: 30 | CQ136: L | CR136: L | CS136: L | CU136: 280 | CV136: -130 | CZ136: 17260 | DA136: 17825 | DB136: 16447.5 | DC136: 17415 | DD136: 18874
A137: 2016-12-12 | B137: 2016-12-16 | C137: 51 | D137: 19170 | E137: 19420 | F137: 19010 | G137: 19380 | H137: 267587 | U137: 18756 | V137: 18180 | W137: 17796.36364 | X137: 16888.51852 | Y137: 16886.98113 | Z137: 17267.07692 | AA137: 17986 | AB137: 16649.89474 | AC137: 410 | AD137: 563.3333333 | AE137: 180 | AF137: 210 | AG137: 19420 | AH137: 17460 | AI137: 19420 | AJ137: 15880 | AK137: 19420 | AL137: 14790 | AM137: 1 | AN137: 6 | AO137: L | AP137: 6 | AQ137: 0 | AR137: L | AT137: 390 | AV137: 17105 | AW137: 17755 | AX137: 16720 | AY137: 17420 | AZ137: 15530 | BA137: 19940 | BB137: 19680 | BC137: 19530 | BD137: 19270 | BE137: 19120 | BF137: 18860 | BG137: 18710 | BH137: 210 | BI137: 0 | BJ137: 97.59615385 | BK137: 83.55437666 | BN137: 0.05158107199 | BO137: 0.0392313001 | BP137: UP | BQ137: 1420 | BR137: 0 | BU137: 279227.6667 | BV137: 1 | BW137: 0 | BX137: 18651.40509 | BY137: 17534.42383 | BZ137: 1116.981268 | CA137: 587.9073524 | CB137: 529.0739151 | CC137: 19988.06098 | CD137: 18972.29706 | CE137: 17956.53315 | CF137: 16940.76923 | CG137: 15925.00532 | CH137: 14909.2414 | CI137: 13893.47749 | CJ137: 0.3727810651 | CK137: 0.7278106509 | CL137: 2.130177515 | CM137: 1.107692308 | CN137: 2.811188811 | CO137: 40 | CP137: 160 | CQ137: L | CR137: L | CS137: L | CT137: H | CU137: 950 | CV137: 170 | CZ137: 17105 | DA137: 17755 | DB137: 16580 | DC137: 17420 | DD137: 18568
A138: 2016-12-05 | B138: 2016-12-09 | C138: 50 | D138: 18300 | E138: 19000 | F138: 18220 | G138: 18990 | H138: 411808 | U138: 18396 | V138: 17596 | W138: 17524.54545 | X138: 16782.96296 | Y138: 16883.77358 | Z138: 17245.84615 | AA138: 17985.33333 | AB138: 16621.31579 | AC138: 780 | AD138: 660 | AE138: -30 | AF138: 690 | AG138: 19000 | AH138: 16090 | AI138: 19000 | AJ138: 15880 | AK138: 19000 | AL138: 14790 | AM138: 1 | AN138: 5 | AO138: L | AP138: 5 | AQ138: 0 | AR138: L | AT138: 660 | AV138: 16895 | AW138: 17545 | AX138: 16955 | AY138: 17420 | AZ138: 16530 | BA138: 20033.33333 | BB138: 19516.66667 | BC138: 19253.33333 | BD138: 18736.66667 | BE138: 18473.33333 | BF138: 17956.66667 | BG138: 17693.33333 | BH138: 690 | BI138: 0 | BJ138: 97.72727273 | BK138: 80.70175439 | BN138: 0.04534606205 | BO138: 0.03168316832 | BP138: UP | BQ138: 1540 | BR138: 0 | BU138: 327301.3333 | BV138: 1 | BW138: 0 | BX138: 18287.10764 | BY138: 17340.15265 | BZ138: 946.9549904 | CA138: 479.5495745 | CB138: 467.4054159 | CC138: 19570.82535 | CD138: 18644.78101 | CE138: 17718.73666 | CF138: 16792.69231 | CG138: 15866.64796 | CH138: 14940.60361 | CI138: 14014.55926 | CJ138: 1.045454545 | CK138: 1.181818182 | CL138: 2.112121212 | CM138: 0.9 | CN138: 2.220385675 | CO138: 10 | CP138: 80 | CQ138: L | CR138: L | CS138: L | CU138: 90 | CV138: -460 | CZ138: 16895 | DA138: 17545 | DB138: 16720 | DC138: 17420 | DD138: 18076
A139: 2016-11-28 | B139: 2016-12-02 | C139: 49 | D139: 18320 | E139: 18760 | F139: 18210 | G139: 18330 | H139: 314584 | U139: 18094 | V139: 17312 | W139: 17304.54545 | X139: 16696.66667 | Y139: 16892.64151 | Z139: 17233.23077 | AA139: 17991 | AB139: 16591.73684 | AC139: 550 | AD139: 630 | AE139: -60 | AF139: 10 | AG139: 18760 | AH139: 16090 | AI139: 18760 | AJ139: 15880 | AK139: 18760 | AL139: 14790 | AM139: 1 | AN139: 4 | AO139: L | AP139: 4 | AQ139: 0 | AR139: L | AU139: 50 | AV139: 16775 | AW139: 17425 | AX139: 16942.5 | AY139: 17420 | AZ139: 16660 | BA139: 19206.66667 | BB139: 18983.33333 | BC139: 18656.66667 | BD139: 18433.33333 | BE139: 18106.66667 | BF139: 17883.33333 | BG139: 17556.66667 | BH139: 10 | BI139: 0 | BJ139: 70.61611374 | BK139: 79.75460123 | BN139: 0.04036338546 | BO139: 0.02437843074 | BP139: UP | BQ139: 2670 | BR139: 0 | BU139: 249236 | BV139: 0 | BW139: 1 | BX139: 17935.66146 | BY139: 17166.48451 | BZ139: 769.1769526 | CA139: 385.6292458 | CB139: 383.5477068 | CC139: 19145.53585 | CD139: 18329.7162 | CE139: 17513.89656 | CF139: 16698.07692 | CG139: 15882.25728 | CH139: 15066.43764 | CI139: 14250.618 | CJ139: 0.01587301587 | CK139: 0.873015873 | CL139: 1.615873016 | CM139: 0.3746031746 | CN139: 1.627705628 | CO139: 430 | CP139: 110 | CQ139: L | CR139: L | CS139: L | CU139: 320 | CV139: -170 | CZ139: 16775 | DA139: 17425 | DB139: 16955 | DC139: 17420 | DD139: 17792
A140: 2016-11-21 | B140: 2016-11-25 | C140: 48 | D140: 18080 | E140: 18490 | F140: 18000 | G140: 18380 | H140: 162603 | U140: 17836 | V140: 17102 | W140: 17124.54545 | X140: 16640.74074 | Y140: 16921.50943 | Z140: 17224.46154 | AA140: 18000.66667 | AB140: 16566.31579 | AC140: 490 | AD140: 610 | AE140: 110 | AF140: 300 | AG140: 18490 | AH140: 16090 | AI140: 18490 | AJ140: 15450 | AK140: 18490 | AL140: 14790 | AM140: 1 | AN140: 3 | AO140: L | AP140: 3 | AQ140: 0 | AT140: 410 | AV140: 16640 | AW140: 17290 | AX140: 16982.5 | AY140: 17735 | AZ140: 16820 | BA140: 19070 | BB140: 18780 | BC140: 18580 | BD140: 18290 | BE140: 18090 | BF140: 17800 | BG140: 17600 | BH140: 300 | BI140: 0 | BJ140: 75.2173913 | BK140: 76.69616519 | BN140: 0.03325223033 | BO140: 0.01920787794 | BP140: UP | BQ140: 2400 | BR140: 0 | BU140: 198575.6667 | BV140: 1 | BW140: 0 | BX140: 17738.49219 | BY140: 17044.00919 | BZ140: 694.4829976 | CA140: 301.7282143 | CB140: 392.7547833 | CC140: 18876.95988 | CD140: 18129.2553 | CE140: 17381.55073 | CF140: 16633.84615 | CG140: 15886.14158 | CH140: 15138.43701 | CI140: 14390.73243 | CJ140: 0.4918032787 | CK140: 0.8032786885 | CL140: 2.095081967 | CM140: 0.8918032787 | CN140: 2.058122206 | CO140: 110 | CP140: 80 | CQ140: L | CR140: L | CS140: L | CU140: 620 | CV140: -30 | CZ140: 16640 | DA140: 17290 | DB140: 16942.5 | DC140: 17420 | DD140: 17560
A141: 2016-11-14 | B141: 2016-11-18 | C141: 47 | D141: 17480 | E141: 18110 | F141: 17460 | G141: 17970 | H141: 255512 | U141: 17598 | V141: 16864 | W141: 16986.36364 | X141: 16580 | Y141: 16950 | Z141: 17236.76923 | AA141: 18007.44444 | AB141: 16537 | AC141: 650 | AD141: 610 | AE141: 80 | AF141: 490 | AG141: 18110 | AH141: 16090 | AI141: 18110 | AJ141: 15070 | AK141: 18110 | AL141: 14790 | AM141: 1 | AN141: 2 | AO141: L | AP141: 2 | AQ141: 0 | AT141: 570 | AV141: 16450 | AW141: 17100 | AX141: 16982.5 | AY141: 17870 | AZ141: 16740 | BA141: 18883.33333 | BB141: 18496.66667 | BC141: 18233.33333 | BD141: 17846.66667 | BE141: 17583.33333 | BF141: 17196.66667 | BG141: 16933.33333 | BH141: 490 | BI141: 0 | BJ141: 74.77876106 | BK141: 75.3125 | BN141: 0.02828093958 | BO141: 0.01301165628 | BP141: UP | BQ141: 2020 | BR141: 0 | BU141: 206607 | BV141: 1 | BW141: 0 | BX141: 17417.73829 | BY141: 16903.37858 | BZ141: 514.3597039 | CA141: 231.8364226 | CB141: 282.5232813 | CC141: 18562.74359 | CD141: 17899.77778 | CE141: 17236.81197 | CF141: 16573.84615 | CG141: 15910.88034 | CH141: 15247.91453 | CI141: 14584.94872 | CJ141: 0.8032786885 | CK141: 1.06557377 | CL141: 1.813114754 | CM141: 0.6098360656 | CN141: 1.612518629 | CO141: 140 | CP141: 20 | CQ141: L | CR141: L | CS141: L | CU141: 1390 | CV141: -140 | CZ141: 16450 | DA141: 17100 | DB141: 16982.5 | DC141: 17735 | DD141: 17290
A142: 2016-11-07 | B142: 2016-11-11 | C142: 46 | D142: 17170 | E142: 17620 | F142: 16090 | G142: 17400 | H142: 549214 | U142: 17392 | V142: 16708 | W142: 16892.72727 | X142: 16519.62963 | Y142: 16981.32075 | Z142: 17259.23077 | AA142: 18016.88889 | AB142: 16507.78947 | AC142: 1530 | AD142: 526.6666667 | AE142: 280 | AF142: 230 | AG142: 17620 | AH142: 16090 | AI142: 17620 | AJ142: 14960 | AK142: 17900 | AL142: 14790 | AM142: 1 | AN142: 1 | AO142: L | AP142: 1 | AQ142: 0 | AT142: 510 | AV142: 16205 | AW142: 16855 | AX142: 16982.5 | AY142: 17870 | AZ142: 16340 | BA142: 19513.33333 | BB142: 18566.66667 | BC142: 17983.33333 | BD142: 17036.66667 | BE142: 16453.33333 | BF142: 15506.66667 | BG142: 14923.33333 | BH142: 230 | BI142: 0 | BJ142: 64.73988439 | BK142: 58.59872611 | BN142: 0.02510904161 | BO142: 0.01038551465 | BP142: UP | BQ142: 1530 | BR142: 0 | BU142: 181079.6667 | BV142: 1 | BW142: 0 | BX142: 17141.60743 | BY142: 16791.10264 | BZ142: 350.5047853 | CA142: 183.147237 | CB142: 167.3575483 | CC142: 18334.95996 | CD142: 17732.15279 | CE142: 17129.34563 | CF142: 16526.53846 | CG142: 15923.7313 | CH142: 15320.92413 | CI142: 14718.11696 | CJ142: 0.4367088608 | CK142: 2.905063291 | CL142: 1.313924051 | CM142: 0.01518987342 | CN142: 0.9631760644 | CO142: 220 | CP142: 1080 | CQ142: I | CR142: L | CS142: L | CU142: 370 | CV142: -320 | CZ142: 16205 | DA142: 16855 | DB142: 16982.5 | DC142: 17870 | DD142: 17118
A143: 2016-10-31 | B143: 2016-11-04 | C143: 45 | D143: 17360 | E143: 17490 | F143: 16800 | G143: 16890 | H143: 177612 | U143: 17262 | V143: 16798 | W143: 16801.81818 | X143: 16470.74074 | Y143: 17016.41509 | Z143: 17307.07692 | AA143: 18027.55556 | AB143: 16481.05263 | AC143: 690 | AD143: 440 | AE143: -100 | AF143: -470 | AG143: 17490 | AH143: 16540 | AI143: 17490 | AJ143: 14790 | AK143: 17900 | AL143: 14790 | AM143: 1 | AN143: 6 | AO143: L | AP143: 0 | AQ143: 1 | AU143: 570 | AV143: 16140 | AW143: 16820 | AX143: 16982.5 | AY143: 17870 | AZ143: 16080 | BA143: 18010 | BB143: 17750 | BC143: 17320 | BD143: 17060 | BE143: 16630 | BF143: 16370 | BG143: 15940 | BH143: 0 | BI143: 470 | BJ143: 64.53488372 | BK143: 49.07749077 | BN143: 0.02469428945 | BO143: 0.01049753964 | BP143: UP | BQ143: 810 | BR143: 0 | BU143: 172361.6667 | BV143: 0 | BW143: 1 | BX143: 17012.41114 | BY143: 16727.00818 | BZ143: 285.4029578 | CA143: 163.8389957 | CB143: 121.5639621 | CC143: 18218.79584 | CD143: 17641.1203 | CE143: 17063.44477 | CF143: 16485.76923 | CG143: 15908.0937 | CH143: 15330.41816 | CI143: 14752.74263 | CJ143: -1.068181818 | CK143: 1.568181818 | CL143: 0.2090909091 | CM143: -0.8454545455 | CN143: 0.2004132231 | CO143: 130 | CP143: 90 | CQ143: S | CR143: L | CS143: L | CU143: 200 | CV143: -110 | CZ143: 16140 | DA143: 16820 | DB143: 16982.5 | DC143: 17870 | DD143: 17156
A144: 2016-10-24 | B144: 2016-10-28 | C144: 44 | D144: 17240 | E144: 17470 | F144: 17160 | G144: 17460 | H144: 145511 | U144: 17114 | V144: 16668 | W144: 16768.18182 | X144: 16456.2963 | Y144: 17057.92453 | Z144: 17365.84615 | AA144: 18039.44444 | AB144: 16457.89474 | AC144: 310 | AD144: 440 | AE144: 20 | AF144: 220 | AG144: 17470 | AH144: 16150 | AI144: 17470 | AJ144: 14790 | AK144: 17900 | AL144: 14790 | AM144: 1 | AN144: 5 | AO144: L | AP144: 2 | AQ144: 0 | AT144: 240 | AV144: 16130 | AW144: 16810 | AX144: 16982.5 | AY144: 17870 | AZ144: 16500 | BA144: 17876.66667 | BB144: 17673.33333 | BC144: 17566.66667 | BD144: 17363.33333 | BE144: 17256.66667 | BF144: 17053.33333 | BG144: 16946.66667 | BH144: 220 | BI144: 0 | BJ144: 83.45864662 | BK144: 69.7761194 | BO144: 0.009799627724 | BQ144: 930 | BR144: 0 | BU144: 175390 | BV144: 1 | BW144: 0 | BX144: 17073.61671 | BY144: 16709.85115 | BZ144: 363.7655618 | CA144: 146.8890696 | CB144: 216.8764922 | CC144: 18185.24461 | CD144: 17608.3682 | CE144: 17031.49179 | CF144: 16454.61538 | CG144: 15877.73898 | CH144: 15300.86257 | CI144: 14723.98616 | CJ144: 0.5 | CK144: 0.7045454545 | CL144: 1.8 | CM144: 0.7863636364 | CN144: 1.57231405 | CO144: 10 | CP144: 80 | CQ144: I | CR144: L | CS144: L | CU144: 430 | CV144: -60 | CZ144: 16130 | DA144: 16810 | DB144: 16982.5 | DC144: 17870 | DD144: 16918
A145: 2016-10-17 | B145: 2016-10-21 | C145: 43 | D145: 16850 | E145: 17300 | F145: 16810 | G145: 17220 | H145: 186697 | U145: 16966 | V145: 16480 | W145: 16719.09091 | X145: 16460.37037 | Y145: 17083.20755 | Z145: 17413.69231 | AA145: 18041.66667 | AB145: 16430.31579 | AC145: 490 | AD145: 476.6666667 | AE145: 0 | AF145: 370 | AG145: 17300 | AH145: 16150 | AI145: 17300 | AJ145: 14790 | AK145: 17900 | AL145: 14790 | AM145: 1 | AN145: 4 | AO145: L | AP145: 1 | AQ145: 0 | AT145: 370 | AV145: 16210 | AW145: 16725 | AX145: 16970 | AY145: 17870 | AZ145: 17570 | BA145: 17900 | BB145: 17600 | BC145: 17410 | BD145: 17110 | BE145: 16920 | BF145: 16620 | BG145: 16430 | BH145: 370 | BI145: 0 | BJ145: 83.20610687 | BK145: 63.671875 | BN145: 0 | BO145: 0.008278508772 | BQ145: 1150 | BR145: 0 | BU145: 175390 | BV145: 1 | BW145: 0 | BX145: 16880.42507 | BY145: 16630.88811 | BZ145: 249.5369547 | CA145: 108.8638903 | CB145: 140.6730644 | CC145: 18040.53826 | CD145: 17499.58961 | CE145: 16958.64096 | CF145: 16417.69231 | CG145: 15876.74366 | CH145: 15335.795 | CI145: 14794.84635 | CJ145: 0.7762237762 | CK145: 1.027972028 | CL145: 1.552447552 | CM145: 0.5328671329 | CN145: 1.050858233 | CO145: 80 | CP145: 40 | CQ145: I | CR145: L | CS145: L | CU145: 170 | CV145: -230 | CZ145: 16210 | DA145: 16725 | DB145: 16982.5 | DC145: 17870 | DD145: 16710
A146: 2016-10-11 | B146: 2016-10-14 | C146: 42 | D146: 16940 | E146: 17080 | F146: 16680 | G146: 16850 | H146: 178930 | U146: 16846 | V146: 16362 | W146: 16627.27273 | X146: 16443.33333 | Y146: 17103.39623 | Z146: 17464.46154 | AA146: 18046.66667 | AB146: 16400.57895 | AC146: 400 | AD146: 473.3333333 | AE146: 50 | AF146: -90 | AG146: 17080 | AH146: 16150 | AI146: 17260 | AJ146: 14790 | AK146: 18950 | AL146: 14790 | AM146: 1 | AN146: 3 | AO146: L | AP146: 0 | AQ146: 1 | AU146: 40 | AV146: 16210 | AW146: 16655 | AX146: 16867.5 | AY146: 17870 | AZ146: 16760 | BA146: 17460 | BB146: 17270 | BC146: 17060 | BD146: 16870 | BE146: 16660 | BF146: 16470 | BG146: 16260 | BH146: 0 | BI146: 90 | BJ146: 49.65517241 | BK146: 48.64864865 | BQ146: 930 | BR146: 0 | BU146: 182853.3333 | BV146: 0 | BW146: 1 | BX146: 16710.6376 | BY146: 16568.87634 | BZ146: 141.7612664 | CA146: 86.5836952 | CB146: 55.17757117 | CC146: 18124.90921 | CD146: 17560.32409 | CE146: 16995.73897 | CF146: 16431.15385 | CG146: 15866.56872 | CH146: 15301.9836 | CI146: 14737.39848 | CJ146: -0.1901408451 | CK146: 0.8450704225 | CL146: 1.030985915 | CM146: 0.008450704225 | CN146: 0.4705505762 | CO146: 140 | CP146: 170 | CQ146: S | CR146: L | CS146: L | CU146: 400 | CV146: -30 | CZ146: 16210 | DA146: 16655 | DB146: 16970 | DC146: 17870 | DD146: 16628
A147: 2016-10-03 | B147: 2016-10-07 | C147: 41 | D147: 16590 | E147: 16970 | F147: 16540 | G147: 16890 | H147: 160543 | U147: 16862 | V147: 16378 | W147: 16605.45455 | X147: 16405.55556 | Y147: 17133.01887 | Z147: 17522.76923 | AA147: 18054 | AB147: 16371.94737 | AC147: 430 | AD147: 473.3333333 | AE147: 200 | AF147: 300 | AG147: 17160 | AH147: 16150 | AI147: 17630 | AJ147: 14790 | AK147: 19110 | AL147: 14790 | AM147: 1 | AN147: 2 | AO147: L | AP147: 1 | AQ147: 0 | AT147: 500 | AV147: 16210 | AW147: 16655 | AX147: 16702.5 | AY147: 17870 | AZ147: 15830 | BA147: 17490 | BB147: 17230 | BC147: 17060 | BD147: 16800 | BE147: 16630 | BF147: 16370 | BG147: 16200 | BH147: 300 | BI147: 0 | BJ147: 48.32214765 | BK147: 60.42944785 | BO147: 0 | BQ147: 820 | BR147: 0 | BU147: 203321.3333 | BV147: 1 | BW147: 0 | BX147: 16640.9564 | BY147: 16539.28437 | BZ147: 101.6720322 | CA147: 75.79019484 | CB147: 25.88183735 | CC147: 18114.52541 | CD147: 17552.24771 | CE147: 16989.97001 | CF147: 16427.69231 | CG147: 15865.41461 | CH147: 15303.13691 | CI147: 14740.8592 | CJ147: 0.6338028169 | CK147: 0.9084507042 | CL147: 1.081690141 | CM147: 0.05915492958 | CN147: 0.6011523688 | CO147: 80 | CP147: 50 | CQ147: I | CR147: N | CS147: L | CU147: 440 | CV147: -160 | CZ147: 16210 | DA147: 16655 | DB147: 16867.5 | DC147: 17870 | DD147: 16552
A148: 2016-09-26 | B148: 2016-09-30 | C148: 40 | D148: 16580 | E148: 16750 | F148: 16150 | G148: 16390 | H148: 240334 | U148: 16858 | V148: 16402 | W148: 16581.81818 | X148: 16379.25926 | Y148: 17147.73585 | Z148: 17568.46154 | AA148: 18053 | AB148: 16341.84211 | AC148: 600 | AD148: 463.3333333 | AE148: 10 | AF148: -190 | AG148: 17160 | AH148: 16150 | AI148: 17630 | AJ148: 14790 | AK148: 19110 | AL148: 14790 | AM148: 4 | AN148: 1 | AO148: S | AP148: 0 | AQ148: 1 | AU148: 180 | AV148: 16210 | AW148: 16520 | AX148: 16885 | AY148: 17875 | AZ148: 16180 | BA148: 17310 | BB148: 17030 | BC148: 16710 | BD148: 16430 | BE148: 16110 | BF148: 15830 | BG148: 15510 | BH148: 0 | BI148: 190 | BJ148: 49.67320261 | BK148: 46.51898734 | BN148: 0 | BQ148: 1010 | BR148: 0 | BU148: 204857.6667 | BV148: 0 | BW148: 1 | BX148: 16516.43461 | BY148: 16502.36694 | BZ148: 14.06766855 | CA148: 50.83657432 | CB148: -36.76890578 | CC148: 18084.01544 | CD148: 17518.31798 | CE148: 16952.62053 | CF148: 16386.92308 | CG148: 15821.22562 | CH148: 15255.52817 | CI148: 14689.83071 | CJ148: -0.4100719424 | CK148: 1.294964029 | CL148: -0.02589928058 | CM148: -1.010071942 | CN148: -0.4139960759 | CO148: 170 | CP148: 240 | CQ148: S | CR148: L | CS148: L | CU148: 360 | CV148: -150 | CZ148: 16210 | DA148: 16520 | DB148: 16702.5 | DC148: 17870 | DD148: 16660
A149: 2016-09-20 | B149: 2016-09-23 | C149: 39 | D149: 16270 | E149: 16730 | F149: 16220 | G149: 16570 | H149: 142775 | U149: 16838 | V149: 16436 | W149: 16597.27273 | X149: 16397.03704 | Y149: 17173.77358 | Z149: 17632.30769 | AA149: 18062.11111 | AB149: 16314.36842 | AC149: 510 | AD149: 403.3333333 | AE149: -80 | AF149: 300 | AG149: 17160 | AH149: 16220 | AI149: 17630 | AJ149: 14790 | AK149: 19880 | AL149: 14790 | AM149: 3 | AN149: 1 | AO149: S | AP149: 1 | AQ149: 0 | AT149: 220 | AV149: 16210 | AW149: 16520 | AX149: 16885 | AY149: 17875 | AZ149: 16870 | BA149: 17303.33333 | BB149: 17016.66667 | BC149: 16793.33333 | BD149: 16506.66667 | BE149: 16283.33333 | BF149: 15996.66667 | BG149: 15773.33333 | BH149: 300 | BI149: 0 | BJ149: 51.70068027 | BK149: 49 | BO149: 0.02262924999 | BQ149: 940 | BR149: 0 | BU149: 186909.3333 | BV149: 1 | BW149: 0 | BX149: 16579.65191 | BY149: 16514.19504 | BZ149: 65.45687259 | CA149: 36.61505044 | CB149: 28.84182215 | CC149: 18080.12608 | CD149: 17513.03277 | CE149: 16945.93946 | CF149: 16378.84615 | CG149: 15811.75284 | CH149: 15244.65953 | CI149: 14677.56622 | CJ149: 0.7438016529 | CK149: 1.26446281 | CL149: 0.332231405 | CM149: -0.6644628099 | CN149: -0.06761833208 | CO149: 160 | CP149: 50 | CQ149: S | CR149: N | CS149: L | CU149: 50 | CV149: -430 | CZ149: 16210 | DA149: 16520 | DB149: 16885 | DC149: 17875 | DD149: 16564
A150: 2016-09-12 | B150: 2016-09-16 | C150: 38 | D150: 16650 | E150: 16700 | F150: 16220 | G150: 16350 | H150: 209087 | U150: 16878 | V150: 16478 | W150: 16465.45455 | X150: 16394.81481 | Y150: 17200.75472 | Z150: 17696.76923 | AA150: 18070.88889 | AB150: 16285.94737 | AC150: 480 | AD150: 403.3333333 | AE150: -210 | AF150: -300 | AG150: 17160 | AH150: 16220 | AI150: 17630 | AJ150: 14790 | AK150: 19880 | AL150: 14790 | AM150: 2 | AN150: 1 | AO150: S | AP150: 0 | AQ150: 2 | AU150: 510 | AV150: 16210 | AW150: 16520 | AX150: 16885 | AY150: 17875 | AZ150: 16510 | BA150: 17106.66667 | BB150: 16903.33333 | BC150: 16626.66667 | BD150: 16423.33333 | BE150: 16146.66667 | BF150: 15943.33333 | BG150: 15666.66667 | BH150: 0 | BI150: 300 | BJ150: 32.72727273 | BK150: 46.31578947 | BO150: 0.02258355917 | BQ150: 940 | BR150: 0 | BU150: 194876.3333 | BV150: 0 | BW150: 1 | BX150: 16584.47786 | BY150: 16508.32083 | BZ150: 76.15703337 | CA150: 1.461030126 | CB150: 74.69600324 | CC150: 18112.01472 | CD150: 17538.13802 | CE150: 16964.26132 | CF150: 16390.38462 | CG150: 15816.50791 | CH150: 15242.63121 | CI150: 14668.75451 | CJ150: -0.7438016529 | CK150: 1.190082645 | CL150: -0.3173553719 | CM150: -1.309090909 | CN150: -0.2862509391 | CO150: 50 | CP150: 130 | CQ150: S | CR150: L | CS150: L | CU150: -110 | CV150: -510 | CZ150: 16210 | DA150: 16520 | DB150: 16885 | DC150: 17875 | DD150: 16674
A151: 2016-09-05 | B151: 2016-09-09 | C151: 37 | D151: 17140 | E151: 17160 | F151: 16760 | G151: 16860 | H151: 265744 | U151: 16924 | V151: 16528 | W151: 16403.63636 | X151: 16413.33333 | Y151: 17235.09434 | Z151: 17755.53846 | AA151: 18087.66667 | AB151: 16257.42105 | AC151: 400 | AD151: 396.6666667 | AE151: 200 | AF151: -280 | AG151: 17160 | AH151: 16320 | AI151: 17630 | AJ151: 14790 | AK151: 20040 | AL151: 14790 | AM151: 1 | AN151: 10 | AO151: L | AP151: 0 | AQ151: 1 | AU151: 80 | AV151: 16210 | AW151: 16305 | AX151: 16885 | AY151: 17875 | AZ151: 16850 | BA151: 17493.33333 | BB151: 17326.66667 | BC151: 17093.33333 | BD151: 16926.66667 | BE151: 16693.33333 | BF151: 16526.66667 | BG151: 16293.33333 | BH151: 0 | BI151: 280 | BJ151: 67.56756757 | BK151: 73.01587302 | BQ151: 840 | BR151: 0 | BU151: 180231.3333 | BV151: 0 | BW151: 1 | BX151: 16701.71679 | BY151: 16524.98618 | BZ151: 176.730614 | CA151: -59.52911041 | CB151: 236.2597244 | CC151: 18119.3436 | CD151: 17545.07522 | CE151: 16970.80684 | CF151: 16396.53846 | CG151: 15822.27008 | CH151: 15248.0017 | CI151: 14673.73332 | CJ151: -0.7058823529 | CK151: 1.008403361 | CL151: 0.8369747899 | CM151: -0.1613445378 | CN151: 1.150496562 | CO151: 20 | CP151: 100 | CQ151: S | CR151: L | CS151: L | CT151: H | CU151: 480 | CV151: 190 | CZ151: 16210 | DA151: 16305 | DB151: 16885 | DC151: 17875 | DD151: 16784
A152: 2016-08-29 | B152: 2016-09-02 | C152: 36 | D152: 16660 | E152: 16950 | F152: 16660 | G152: 16940 | H152: 165152 | U152: 16824 | V152: 16352 | W152: 16230 | X152: 16418.51852 | Y152: 17252.07547 | Z152: 17809.84615 | AA152: 18096.66667 | AB152: 16226.15789 | AC152: 290 | AD152: 430 | AE152: 260 | AF152: 280 | AG152: 16950 | AH152: 15880 | AI152: 17630 | AJ152: 14790 | AK152: 20040 | AL152: 14790 | AM152: 1 | AN152: 9 | AO152: L | AP152: 1 | AQ152: 0 | AR152: L | AT152: 540 | AV152: 16210 | AW152: 16010 | AX152: 17147.5 | AY152: 17875 | AZ152: 17000 | BA152: 17330 | BB152: 17140 | BC152: 17040 | BD152: 16850 | BE152: 16750 | BF152: 16560 | BG152: 16460 | BH152: 280 | BI152: 0 | BJ152: 57.60368664 | BK152: 64.94117647 | BN152: 0 | BO152: 0 | BQ152: 630 | BR152: 0 | BU152: 180231.3333 | BV152: 1 | BW152: 0 | BX152: 16622.57519 | BY152: 16489.72157 | BZ152: 132.8536231 | CA152: -166.7217586 | CB152: 299.5753818 | CC152: 18118.03719 | CD152: 17544.07608 | CE152: 16970.11496 | CF152: 16396.15385 | CG152: 15822.19273 | CH152: 15248.23162 | CI152: 14674.2705 | CJ152: 0.6511627907 | CK152: 0.6744186047 | CL152: 1.36744186 | CM152: 0.2697674419 | CN152: 1.651162791 | CO152: 10 | CP152: 0 | CQ152: S | CR152: N | CS152: S | CU152: 340 | CV152: 10 | CZ152: 16210 | DA152: 16010 | DB152: 16885 | DC152: 17875 | DD152: 16542
A153: 2016-08-22 | B153: 2016-08-26 | C153: 35 | D153: 16550 | E153: 16650 | F153: 16320 | G153: 16400 | H153: 186489 | U153: 16800 | V153: 16202 | W153: 16101.81818 | X153: 16393.33333 | Y153: 17294.33962 | Z153: 17864 | AA153: 18101.55556 | AB153: 16194 | AC153: 330 | AD153: 580 | AE153: 30 | AF153: -150 | AG153: 16930 | AH153: 15880 | AI153: 17630 | AJ153: 14790 | AK153: 20040 | AL153: 14790 | AM153: 2 | AN153: 8 | AO153: L | AP153: 0 | AQ153: 2 | AU153: 120 | AV153: 16210 | AW153: 15945 | AX153: 17187.5 | AY153: 17875 | AZ153: 16260 | BA153: 16923.33333 | BB153: 16786.66667 | BC153: 16593.33333 | BD153: 16456.66667 | BE153: 16263.33333 | BF153: 16126.66667 | BG153: 15933.33333 | BH153: 0 | BI153: 150 | BJ153: 43.03030303 | BK153: 66.36568849 | BQ153: 1050 | BR153: 0 | BU153: 202106 | BV153: 0 | BW153: 1 | BX153: 16463.86278 | BY153: 16442.32384 | BZ153: 21.53894767 | CA153: -259.3452671 | CB153: 280.8842148 | CC153: 18127.23885 | CD153: 17550.97975 | CE153: 16974.72064 | CF153: 16398.46154 | CG153: 15822.20243 | CH153: 15245.94333 | CI153: 14669.68422 | CJ153: -0.2586206897 | CK153: 0.5689655172 | CL153: 0.3413793103 | CM153: -0.6896551724 | CN153: 0.5141065831 | CO153: 100 | CP153: 80 | CQ153: S | CR153: N | CS153: S | CU153: 120 | CV153: -380 | CZ153: 16210 | DA153: 15945 | DB153: 17147.5 | DC153: 17875 | DD153: 16562
